Workbook

Sheet Pipes (hidden)
A1: PIPE DIMENSIONS CS & SS
A3: Dimensions acc. ANSI | F3: Nominal Pipe Size:
A4: do | B4: Pipe ø outside | C4: =INDEX($D$88:$D$123,A88) -> 660.4 | D4: mm
A5: di | B5: Pipe ø inside | C5: =C4-(2*C6) -> #VALUE! | D5: mm
A6: s | B6: Pipe wallthkn. | C6: =INDEX(B87:V123,MATCH(C4,D87:D123, ),MATCH(H6,B87:V87, )) -> - | D6: mm | F6: Pipe schedule: | H6: 80
A7: A | B7: Pipe section | C7: =(PI()/4*(C4^2-C5^2))/100 -> #VALUE! | D7: cm² | F7: Capacity | G7: v = (m/s)
A8: O | B8: Circumference | C8: =PI()*C4 -> 2074.707788 | D8: mm | F8: C1 | G8: 0.5 | H8: =($C$5/1000)^2*PI()/4*0.5*3600 -> #VALUE! | I8: m³/h
A9: S | B9: Surface | C9: =C8/1000 -> 2.074707788 | D9: m²/m¹ | F9: C2 | G9: 1 | H9: =($C$5/1000)^2*PI()/4*1*3600 -> #VALUE! | I9: m³/h
A10: W1 | B10: Weight | C10: =C7/10*7.85 -> #VALUE! | D10: kg/m¹ | F10: C3 | G10: 1.5 | H10: =($C$5/1000)^2*PI()/4*1.5*3600 -> #VALUE! | I10: m³/h
A11: W2 | B11: Weight full of water | C11: =((PI()/4*(C5/1000)^2)*1000)+C10 -> #VALUE! | D11: kg/m¹ | F11: C4 Choose | G11: 1.5 | H11: =H9*G11 -> #VALUE! | I11: m³/h
A15: Dim. acc. DIN 2448 (seaml.) | F15: Diameter Nominal:
A16: do | B16: Pipe ø outside | C16: =INDEX($D$128:$D$158,A128) -> 10.2 | D16: mm
A17: di | B17: Pipe ø inside | C17: =C16-(2*C18) -> 6.6 | D17: mm
A18: s | B18: Pipe wallthkn. | C18: =INDEX(B127:AN158,MATCH(C16,D127:D158, ),MATCH(H18,B127:AN127, )) -> 1.8 | D18: mm | F18: Wallthickness (mm) | H18: 1.8
A19: A | B19: Pipe section | C19: =(PI()/4*(C16^2-C17^2))/100 -> 0.4750088092 | D19: cm² | F19: Capacity | G19: v = (m/s)
A20: O | B20: Circumference | C20: =PI()*C16 -> 32.04424507 | D20: mm | F20: C1 | G20: 0.5 | H20: =($C$17/1000)^2*PI()/4*0.5*3600 -> 0.0615814992 | I20: m³/h
A21: S | B21: Surface | C21: =C20/1000 -> 0.03204424507 | D21: m²/m¹ | F21: C2 | G21: 1 | H21: =($C$17/1000)^2*PI()/4*0.8*3600 -> 0.09853039871 | I21: m³/h
A22: W1 | B22: Weight | C22: =C19/10*7.85 -> 0.3728819152 | D22: kg/m¹ | F22: C3 | G22: 1.5 | H22: =($C$17/1000)^2*PI()/4*3600 -> 0.1231629984 | I22: m³/h
A23: W2 | B23: Weight full of water | C23: =((PI()/4*(C17/1000)^2)*1000)+C22 -> 0.4070938592 | D23: kg/m¹ | F23: C4 Choose | G23: 1.5 | H23: =H21*G23 -> 0.1477955981 | I23: m³/h
A27: Dim. acc. DIN 2458 (welded) | F27: Diameter Nominal:
A28: do | B28: Pipe ø outside | C28: =INDEX($D$163:$D$193,A163) -> 13.5 | D28: mm
A29: di | B29: Pipe ø inside | C29: =C28-(2*C30) -> 6.3 | D29: mm
A30: s | B30: Pipe wallthkn. | C30: =INDEX(B162:AN193,MATCH(C28,D162:D193, ),MATCH(H30,B162:AN162, )) -> 3.6 | D30: mm | F30: Wallthickness (mm) | H30: 3.6
A31: A | B31: Pipe section | C31: =(PI()/4*(C28^2-C29^2))/100 -> 1.119663622 | D31: cm² | F31: Capacity | G31: v = (m/s)
A32: O | B32: Circumference | C32: =PI()*C28 -> 42.41150082 | D32: mm | F32: C1 | G32: 0.5 | H32: =($C$29/1000)^2*PI()/4*0.5*3600 -> 0.05611041559 | I32: m³/h
A33: S | B33: Surface | C33: =C32/1000 -> 0.04241150082 | D33: m²/m¹ | F33: C2 | G33: 1 | H33: =($C$29/1000)^2*PI()/4*0.8*3600 -> 0.08977666494 | I33: m³/h
A34: W1 | B34: Weight | C34: =C31/10*7.85 -> 0.8789359431 | D34: kg/m¹ | F34: C3 | G34: 1.5 | H34: =($C$29/1000)^2*PI()/4*3600 -> 0.1122208312 | I34: m³/h
A35: W2 | B35: Weight full of water | C35: =((PI()/4*(C29/1000)^2)*1000)+C34 -> 0.9101083962 | D35: kg/m¹ | F35: C4 Choose | G35: 2.8 | H35: =H33*G35 -> 0.2513746618 | I35: m³/h
A38: Dim. Stainless steel pipes | F38: Pipe dimensions (mm)
A39: do | B39: Pipe ø outside | C39: =INDEX('Data SS pipe'!$C$3:$C$604,'Data SS pipe'!$A$3,'Data SS pipe'!$C$3) -> 1.59 | D39: mm
A40: di | B40: Pipe ø inside | C40: =INDEX('Data SS pipe'!$F$3:$F$604,'Data SS pipe'!$A$3,'Data SS pipe'!$F$3) -> #VALUE! | D40: mm
A41: s | B41: Pipe wallthkn. | C41: =INDEX('Data SS pipe'!$D$3:$D$604,'Data SS pipe'!$A$3,'Data SS pipe'!$D$3) -> #VALUE! | D41: mm
A42: A | B42: Pipe section | C42: =(PI()/4*(C39^2-C40^2))/100 -> #VALUE! | D42: cm² | F42: Capacity | G42: v = (m/s)
A43: O | B43: Circumference | C43: =PI()*C39 -> 4.995132319 | D43: mm | F43: C1 | G43: 0.5 | H43: =($C$40/1000)^2*PI()/4*0.5*3600 -> #VALUE! | I43: m³/h
A44: S | B44: Surface | C44: =C43/1000 -> 0.004995132319 | D44: m²/m¹ | F44: C2 | G44: 1 | H44: =($C$40/1000)^2*PI()/4*0.8*3600 -> #VALUE! | I44: m³/h
A45: W1 | B45: Weight | C45: =C42/10*7.85 -> #VALUE! | D45: kg/m¹ | F45: C3 | G45: 1.5 | H45: =($C$40/1000)^2*PI()/4*3600 -> #VALUE! | I45: m³/h
A46: W2 | B46: Weight full of water | C46: =((PI()/4*(C40/1000)^2)*1000)+C45 -> #VALUE! | D46: kg/m¹ | F46: C4 Choose | G46: 1.5 | H46: =H44*G46 -> #VALUE! | I46: m³/h
G47: 1
A49: Dim. Cast iron pipes | F49: Nominal Pipe Size:
A50: do | B50: Pipe ø outside | C50: =INDEX('Data Castiron pipe'!I3:I115,'Data Castiron pipe'!A3) -> 96.52 | D50: mm
A51: di | B51: Pipe ø inside | C51: =INDEX('Data Castiron pipe'!L$3:L$115,'Data Castiron pipe'!$A$3) -> 76.708 | D51: mm
A52: s | B52: Pipe wallthkn. | C52: =INDEX('Data Castiron pipe'!K$3:K$115,'Data Castiron pipe'!$A$3) -> 9.906 | D52: mm
A53: A | B53: Pipe section | C53: =(PI()/4*(C50^2-C51^2))/100 -> 26.95481106 | D53: cm² | F53: Capacity | G53: v = (m/s)
A54: O | B54: Circumference | C54: =PI()*C50 -> 303.2265229 | D54: mm | F54: C1 | G54: 0.5 | H54: =($C$51/1000)^2*PI()/4*0.5*3600 -> 8.318474806 | I54: m³/h
A55: S | B55: Surface | C55: =C54/1000 -> 0.3032265229 | D55: m²/m¹ | F55: C2 | G55: 1 | H55: =($C$40/1000)^2*PI()/4*0.8*3600 -> #VALUE! | I55: m³/h
A56: W1 | B56: Weight | C56: =C53/10*7.85 -> 21.15952668 | D56: kg/m¹ | F56: C3 | G56: 1.5 | H56: =($C$40/1000)^2*PI()/4*3600 -> #VALUE! | I56: m³/h
A57: W2 | B57: Weight full of water | C57: =((PI()/4*(C51/1000)^2)*1000)+C56 -> 25.78090157 | D57: kg/m¹ | F57: C4 Choose | G57: 2 | H57: =H56*G57 -> #VALUE! | I57: m³/h
L86: PIPE DATA acc ANSI B 16.5
B87: NPS | C87: DN | D87: OD | E87: 5S | F87: 5 | G87: 10S | H87: 10 | I87: 20 | J87: 30 | K87: 40S | L87: Std. | M87: 40 | N87: 60 | O87: 80S | P87: XS | Q87: 80 | R87: 100 | S87: 120 | T87: 140 | U87: 160 | V87: XXS
A88: 25 | B88: 1/8" | C88: 6 | D88: 10.29 | E88: - | F88: - | G88: - | H88: - | I88: - | J88: - | K88: 1.73 | L88: 1.73 | M88: 1.73 | N88: - | O88: 2.41 | P88: 2.41 | Q88: 2.41 | R88: - | S88: - | T88: - | U88: - | V88: -
B89: 1/4" | C89: 10 | D89: 13.72 | E89: - | F89: - | G89: - | H89: - | I89: - | J89: - | K89: 2.24 | L89: 2.24 | M89: 2.24 | N89: - | O89: 3.02 | P89: 3.02 | Q89: 3.02 | R89: - | S89: - | T89: - | U89: - | V89: -
B90: 3/8" | C90: - | D90: 17.15 | E90: - | F90: - | G90: - | H90: - | I90: - | J90: - | K90: 2.31 | L90: 2.31 | M90: 2.31 | N90: - | O90: 3.2 | P90: 3.2 | Q90: 3.2 | R90: - | S90: - | T90: - | U90: - | V90: -
B91: 1/2" | C91: 15 | D91: 21.34 | E91: 1.65 | F91: 1.65 | G91: 2.11 | H91: 2.11 | I91: - | J91: - | K91: 2.77 | L91: 2.77 | M91: 2.77 | N91: - | O91: 3.73 | P91: 3.73 | Q91: 3.73 | R91: - | S91: - | T91: - | U91: 4.75 | V91: 7.47
B92: 3/4" | C92: 20 | D92: 26.67 | E92: 1.65 | F92: 1.65 | G92: 2.11 | H92: 2.11 | I92: - | J92: - | K92: 2.87 | L92: 2.87 | M92: 2.87 | N92: - | O92: 3.91 | P92: 3.91 | Q92: 3.91 | R92: - | S92: - | T92: - | U92: 5.54 | V92: 7.82
B93: 1" | C93: 25 | D93: 33.4 | E93: 1.65 | F93: 1.65 | G93: 2.77 | H93: 2.77 | I93: - | J93: - | K93: 3.38 | L93: 3.38 | M93: 3.38 | N93: - | O93: 4.55 | P93: 4.55 | Q93: 4.55 | R93: - | S93: - | T93: - | U93: 6.35 | V93: 9.09
B94: 1¼" | C94: 32 | D94: 42.16 | E94: 1.65 | F94: 1.65 | G94: 2.77 | H94: 2.77 | I94: - | J94: - | K94: 3.56 | L94: 3.56 | M94: 3.56 | N94: - | O94: 4.85 | P94: 4.85 | Q94: 4.85 | R94: - | S94: - | T94: - | U94: 6.35 | V94: 9.7
B95: 1½" | C95: 40 | D95: 48.26 | E95: 1.65 | F95: 1.65 | G95: 2.77 | H95: 2.77 | I95: - | J95: - | K95: 3.68 | L95: 3.68 | M95: 3.68 | N95: - | O95: 5.08 | P95: 5.08 | Q95: 5.08 | R95: - | S95: - | T95: - | U95: 7.14 | V95: 10.16
B96: 2" | C96: 50 | D96: 60.33 | E96: 1.65 | F96: 1.65 | G96: 2.77 | H96: 2.77 | I96: - | J96: - | K96: 3.91 | L96: 3.91 | M96: 3.91 | N96: - | O96: 5.54 | P96: 5.54 | Q96: 5.54 | R96: - | S96: - | T96: - | U96: 8.71 | V96: 11.07
B97: 2½" | C97: 65 | D97: 73.03 | E97: 2.11 | F97: 2.11 | G97: 3.05 | H97: 3.05 | I97: - | J97: - | K97: 5.16 | L97: 5.16 | M97: 5.16 | N97: - | O97: 7.01 | P97: 7.01 | Q97: 7.01 | R97: - | S97: - | T97: - | U97: 9.53 | V97: 14.02
B98: 3" | C98: 80 | D98: 88.9 | E98: 2.11 | F98: 2.11 | G98: 3.05 | H98: 3.05 | I98: - | J98: - | K98: 5.49 | L98: 5.49 | M98: 5.49 | N98: - | O98: 7.62 | P98: 7.62 | Q98: 7.62 | R98: - | S98: - | T98: - | U98: 11.13 | V98: 15.24
B99: 3½" | C99: - | D99: 101.6 | E99: 2.11 | F99: 2.11 | G99: 3.05 | H99: 3.05 | I99: - | J99: - | K99: 5.74 | L99: 5.74 | M99: 5.74 | N99: - | O99: 8.08 | P99: 8.08 | Q99: 8.08 | R99: - | S99: - | T99: - | U99: - | V99: 16.15
B100: 4" | C100: 100 | D100: 114.3 | E100: 2.11 | F100: 2.11 | G100: 3.05 | H100: 3.05 | I100: - | J100: - | K100: 6.02 | L100: 6.02 | M100: 6.02 | N100: - | O100: 8.56 | P100: 8.56 | Q100: 8.56 | R100: - | S100: 11.13 | T100: - | U100: 13.49 | V100: 17.12
B101: 5" | C101: 125 | D101: 141.3 | E101: 2.77 | F101: 2.77 | G101: 3.4 | H101: 3.4 | I101: - | J101: - | K101: 6.55 | L101: 6.55 | M101: 6.55 | N101: - | O101: 9.53 | P101: 9.53 | Q101: 9.53 | R101: - | S101: 12.7 | T101: - | U101: 15.88 | V101: 19.05
B102: 6" | C102: 150 | D102: 168.28 | E102: 2.77 | F102: 2.77 | G102: 3.4 | H102: 3.4 | I102: - | J102: - | K102: 7.11 | L102: 7.11 | M102: 7.11 | N102: - | O102: 10.97 | P102: 10.97 | Q102: 10.97 | R102: - | S102: 14.27 | T102: - | U102: 18.24 | V102: 21.95
B103: 8" | C103: 200 | D103: 219.08 | E103: 2.77 | F103: 2.77 | G103: 3.76 | H103: 3.76 | I103: 6.35 | J103: 7.04 | K103: 8.18 | L103: 8.18 | M103: 8.18 | N103: 10.31 | O103: 12.7 | P103: 12.7 | Q103: 12.7 | R103: 15.06 | S103: 18.24 | T103: 20.62 | U103: 23.01 | V103: 22.23
B104: 10" | C104: 250 | D104: 273.05 | E104: 3.4 | F104: 3.4 | G104: 4.19 | H104: 4.19 | I104: 6.35 | J104: 7.8 | K104: 9.27 | L104: 9.27 | M104: 9.27 | N104: 12.7 | O104: 12.7 | P104: 12.7 | Q104: 15.06 | R104: 18.24 | S104: 21.41 | T104: 25.4 | U104: 28.58 | V104: 25.4
B105: 12" | C105: 300 | D105: 323.85 | E105: 3.96 | F105: 4.19 | G105: 4.57 | H105: 4.57 | I105: 6.35 | J105: 8.38 | K105: 9.53 | L105: 9.53 | M105: 10.31 | N105: 14.27 | O105: 12.7 | P105: 12.7 | Q105: 17.45 | R105: 21.41 | S105: 25.4 | T105: 28.58 | U105: 33.32 | V105: 25.4
B106: 14" | C106: 350 | D106: 355.6 | E106: 3.96 | F106: - | G106: 4.78 | H106: 6.35 | I106: 7.92 | J106: 9.53 | K106: - | L106: 9.53 | M106: 11.13 | N106: 15.06 | O106: - | P106: 12.7 | Q106: 19.05 | R106: 23.8 | S106: 27.76 | T106: 31.75 | U106: 35.71 | V106: -
B107: 16" | C107: 400 | D107: 406.4 | E107: 4.19 | F107: - | G107: 4.78 | H107: 6.35 | I107: 7.92 | J107: 9.53 | K107: - | L107: 9.53 | M107: 12.7 | N107: 16.66 | O107: - | P107: 12.7 | Q107: 21.41 | R107: 26.19 | S107: 30.94 | T107: 36.53 | U107: 40.46 | V107: -
B108: 18" | C108: 450 | D108: 457.2 | E108: 4.19 | F108: - | G108: 4.78 | H108: 6.35 | I108: 7.92 | J108: 11.13 | K108: - | L108: 9.53 | M108: 14.27 | N108: 19.05 | O108: - | P108: 12.7 | Q108: 23.8 | R108: 29.36 | S108: 34.93 | T108: 39.67 | U108: 45.24 | V108: -
B109: 20" | C109: 500 | D109: 508 | E109: 4.78 | F109: - | G109: 5.54 | H109: 6.35 | I109: 9.35 | J109: 12.7 | K109: - | L109: 9.53 | M109: 15.06 | N109: 20.62 | O109: - | P109: 12.7 | Q109: 26.19 | R109: 32.54 | S109: 38.1 | T109: 44.45 | U109: 49.99 | V109: -
B110: 22" | C110: 550 | D110: 558.8 | E110: 4.78 | F110: - | G110: 5.54 | H110: 6.35 | I110: 9.35 | J110: 12.7 | K110: - | L110: 9.53 | M110: 15.88 | N110: 22.23 | O110: - | P110: 12.7 | Q110: 28.57 | R110: 34.92 | S110: 41.27 | T110: 47.62 | U110: 53.97 | V110: -
B111: 24" | C111: 600 | D111: 609.6 | E111: 5.54 | F111: - | G111: 6.35 | H111: 6.35 | I111: 9.35 | J111: 14.27 | K111: - | L111: 9.53 | M111: 17.45 | N111: 24.59 | O111: - | P111: 12.7 | Q111: 30.94 | R111: 38.89 | S111: 46.02 | T111: 52.37 | U111: 59.51 | V111: -
B112: 26" | C112: 650 | D112: 660.4 | E112: - | F112: - | G112: - | H112: 7.92 | I112: 12.7 | J112: - | K112: - | L112: 9.53 | M112: - | N112: - | O112: - | P112: 12.7 | Q112: - | R112: - | S112: - | T112: - | U112: - | V112: -
B113: 28" | C113: 700 | D113: 711.2 | E113: - | F113: - | G113: - | H113: 7.92 | I113: 12.7 | J113: 15.87 | K113: - | L113: 9.53 | M113: - | N113: - | O113: - | P113: 12.7 | Q113: - | R113: - | S113: - | T113: - | U113: - | V113: -
B114: 30" | C114: 750 | D114: 762 | E114: - | F114: - | G114: - | H114: 7.92 | I114: 12.7 | J114: 15.87 | K114: - | L114: 9.53 | M114: - | N114: - | O114: - | P114: 12.7 | Q114: - | R114: - | S114: - | T114: - | U114: - | V114: -
B115: 32" | C115: 800 | D115: 812.8 | E115: - | F115: - | G115: - | H115: 7.92 | I115: 12.7 | J115: 15.87 | K115: - | L115: 9.53 | M115: 17.45 | N115: - | O115: - | P115: 12.7 | Q115: - | R115: - | S115: - | T115: - | U115: - | V115: -
B116: 34" | C116: 850 | D116: 863.6 | E116: - | F116: - | G116: - | H116: 7.92 | I116: 12.7 | J116: 15.87 | K116: - | L116: 9.53 | M116: 17.45 | N116: - | O116: - | P116: 12.7 | Q116: - | R116: - | S116: - | T116: - | U116: - | V116: -
B117: 36" | C117: 900 | D117: 914.4 | E117: - | F117: - | G117: - | H117: 7.92 | I117: 12.7 | J117: 15.87 | K117: - | L117: 9.53 | M117: 19.05 | N117: - | O117: - | P117: 12.7 | Q117: - | R117: - | S117: - | T117: - | U117: - | V117: -
B118: 38" | C118: 950 | D118: 965.2 | E118: - | F118: - | G118: - | H118: - | I118: - | J118: - | K118: - | L118: 9.53 | M118: - | N118: - | O118: - | P118: 12.7 | Q118: - | R118: - | S118: - | T118: - | U118: - | V118: -
B119: 40" | C119: 1000 | D119: 1016 | E119: - | F119: - | G119: - | H119: - | I119: - | J119: - | K119: - | L119: 9.53 | M119: - | N119: - | O119: - | P119: 12.7 | Q119: - | R119: - | S119: - | T119: - | U119: - | V119: -
B120: 42" | C120: 1050 | D120: 1066.8 | E120: - | F120: - | G120: - | H120: - | I120: - | J120: - | K120: - | L120: 9.53 | M120: - | N120: - | O120: - | P120: 12.7 | Q120: - | R120: - | S120: - | T120: - | U120: - | V120: -
B121: 44" | C121: 1100 | D121: 1117.6 | E121: - | F121: - | G121: - | H121: - | I121: - | J121: - | K121: - | L121: 9.53 | M121: - | N121: - | O121: - | P121: 12.7 | Q121: - | R121: - | S121: - | T121: - | U121: - | V121: -
B122: 46" | C122: 1150 | D122: 1168.4 | E122: - | F122: - | G122: - | H122: - | I122: - | J122: - | K122: - | L122: 9.53 | M122: - | N122: - | O122: - | P122: 12.7 | Q122: - | R122: - | S122: - | T122: - | U122: - | V122: -
B123: 48" | C123: 1200 | D123: 1219.2 | E123: - | F123: - | G123: - | H123: - | I123: - | J123: - | K123: - | L123: 9.53 | M123: - | N123: - | O123: - | P123: 12.7 | Q123: - | R123: - | S123: - | T123: - | U123: - | V123: -
J126: WALLTHICKNESS OF SEAMLESS PIPE acc. DIN 2448
B127: NPS | C127: DN | D127: OD | E127: 1.4 | F127: 1.6 | G127: 1.8 | H127: 2 | I127: 2.3 | J127: 2.6 | K127: 2.9 | L127: 3.2 | M127: 3.6 | N127: 4 | O127: 4.5 | P127: 5 | Q127: 5.6 | R127: 6.3 | S127: 7.1 | T127: 8 | U127: 8.8 | V127: 10 | W127: 11 | X127: 12.5 | Y127: 14.2 | Z127: 16 | AA127: 17.5 | AB127: 20 | AC127: 22.2 | AD127: 25 | AE127: 28 | AF127: 30 | AG127: 32 | AH127: 36 | AI127: 40 | AJ127: 45 | AK127: 50 | AL127: 55 | AM127: 60 | AN127: 65
A128: 1 | B128: 1/8" | C128: - | D128: 10.2 | E128: - | F128: 1.6 | G128: 1.8 | H128: 2 | I128: 2.3 | J128: 2.6 | K128: - | L128: - | M128: - | N128: - | O128: - | P128: - | Q128: - | R128: - | S128: - | T128: - | U128: - | V128: - | W128: - | X128: - | Y128: - | Z128: - | AA128: - | AB128: - | AC128: - | AD128: - | AE128: - | AF128: - | AG128: - | AH128: - | AI128: - | AJ128: - | AK128: - | AL128: - | AM128: - | AN128: -
B129: 1/4" | C129: 10 | D129: 13.5 | E129: - | F129: - | G129: 1.8 | H129: 2 | I129: 2.3 | J129: 2.6 | K129: 2.9 | L129: 3.2 | M129: 3.6 | N129: - | O129: - | P129: - | Q129: - | R129: - | S129: - | T129: - | U129: - | V129: - | W129: - | X129: - | Y129: - | Z129: - | AA129: - | AB129: - | AC129: - | AD129: - | AE129: - | AF129: - | AG129: - | AH129: - | AI129: - | AJ129: - | AK129: - | AL129: - | AM129: - | AN129: -
B130: 3/8" | C130: - | D130: 17.2 | E130: - | F130: - | G130: 1.8 | H130: 2 | I130: 2.3 | J130: 2.6 | K130: 2.9 | L130: 3.2 | M130: 3.6 | N130: 4 | O130: 4.5 | P130: - | Q130: - | R130: - | S130: - | T130: - | U130: - | V130: - | W130: - | X130: - | Y130: - | Z130: - | AA130: - | AB130: - | AC130: - | AD130: - | AE130: - | AF130: - | AG130: - | AH130: - | AI130: - | AJ130: - | AK130: - | AL130: - | AM130: - | AN130: -
B131: 1/2" | C131: 15 | D131: 21.3 | E131: - | F131: - | G131: - | H131: 2 | I131: 2.3 | J131: 2.6 | K131: 2.9 | L131: 3.2 | M131: 3.6 | N131: 4 | O131: 4.5 | P131: 5 | Q131: - | R131: - | S131: - | T131: - | U131: - | V131: - | W131: - | X131: - | Y131: - | Z131: - | AA131: - | AB131: - | AC131: - | AD131: - | AE131: - | AF131: - | AG131: - | AH131: - | AI131: - | AJ131: - | AK131: - | AL131: - | AM131: - | AN131: -
B132: 3/4" | C132: 20 | D132: 26.9 | E132: - | F132: - | G132: - | H132: 2 | I132: 2.3 | J132: 2.6 | K132: 2.9 | L132: 3.2 | M132: 3.6 | N132: 4 | O132: 4.5 | P132: 5 | Q132: 5.6 | R132: 6.3 | S132: 7.1 | T132: - | U132: - | V132: - | W132: - | X132: - | Y132: - | Z132: - | AA132: - | AB132: - | AC132: - | AD132: - | AE132: - | AF132: - | AG132: - | AH132: - | AI132: - | AJ132: - | AK132: - | AL132: - | AM132: - | AN132: -
B133: 1" | C133: 25 | D133: 33.7 | E133: - | F133: - | G133: - | H133: - | I133: 2.3 | J133: 2.6 | K133: 2.9 | L133: 3.2 | M133: 3.6 | N133: 4 | O133: 4.5 | P133: 5 | Q133: 5.6 | R133: 6.3 | S133: 7.1 | T133: 8 | U133: - | V133: - | W133: - | X133: - | Y133: - | Z133: - | AA133: - | AB133: - | AC133: - | AD133: - | AE133: - | AF133: - | AG133: - | AH133: - | AI133: - | AJ133: - | AK133: - | AL133: - | AM133: - | AN133: -
B134: 1¼" | C134: 32 | D134: 42.4 | E134: - | F134: - | G134: - | H134: - | I134: - | J134: 2.6 | K134: 2.9 | L134: 3.2 | M134: 3.6 | N134: 4 | O134: 4.5 | P134: 5 | Q134: 5.6 | R134: 6.3 | S134: 7.1 | T134: 8 | U134: 8.8 | V134: - | W134: - | X134: - | Y134: - | Z134: - | AA134: - | AB134: - | AC134: - | AD134: - | AE134: - | AF134: - | AG134: - | AH134: - | AI134: - | AJ134: - | AK134: - | AL134: - | AM134: - | AN134: -
B135: 1½" | C135: 40 | D135: 48.3 | E135: - | F135: - | G135: - | H135: - | I135: - | J135: 2.6 | K135: 2.9 | L135: 3.2 | M135: 3.6 | N135: 4 | O135: 4.5 | P135: 5 | Q135: 5.6 | R135: 6.3 | S135: 7.1 | T135: 8 | U135: 8.8 | V135: 10 | W135: 11 | X135: 12.5 | Y135: - | Z135: - | AA135: - | AB135: - | AC135: - | AD135: - | AE135: - | AF135: - | AG135: - | AH135: - | AI135: - | AJ135: - | AK135: - | AL135: - | AM135: - | AN135: -
B136: 2" | C136: 50 | D136: 60.3 | E136: - | F136: - | G136: - | H136: - | I136: - | J136: - | K136: 2.9 | L136: 3.2 | M136: 3.6 | N136: 4 | O136: 4.5 | P136: 5 | Q136: 5.6 | R136: 6.3 | S136: 7.1 | T136: 8 | U136: 8.8 | V136: 10 | W136: 11 | X136: 12.5 | Y136: 14.2 | Z136: 16 | AA136: - | AB136: - | AC136: - | AD136: - | AE136: - | AF136: - | AG136: - | AH136: - | AI136: - | AJ136: - | AK136: - | AL136: - | AM136: - | AN136: -
B137: 2½" | C137: 65 | D137: 73 | E137: - | F137: - | G137: - | H137: - | I137: - | J137: - | K137: 2.9 | L137: 3.2 | M137: 3.6 | N137: 4 | O137: 4.5 | P137: 5 | Q137: 5.6 | R137: 6.3 | S137: 7.1 | T137: 8 | U137: 8.8 | V137: 10 | W137: 11 | X137: 12.5 | Y137: 14.2 | Z137: 16 | AA137: 17.5 | AB137: - | AC137: - | AD137: - | AE137: - | AF137: - | AG137: - | AH137: - | AI137: - | AJ137: - | AK137: - | AL137: - | AM137: - | AN137: -
B138: 3" | C138: 80 | D138: 88.9 | E138: - | F138: - | G138: - | H138: - | I138: - | J138: - | K138: - | L138: 3.2 | M138: 3.6 | N138: 4 | O138: 4.5 | P138: 5 | Q138: 5.6 | R138: 6.3 | S138: 7.1 | T138: 8 | U138: 8.8 | V138: 10 | W138: 11 | X138: 12.5 | Y138: 14.2 | Z138: 16 | AA138: 17.5 | AB138: 20 | AC138: 22.2 | AD138: 25 | AE138: - | AF138: - | AG138: - | AH138: - | AI138: - | AJ138: - | AK138: - | AL138: - | AM138: - | AN138: -
B139: 3½" | C139: - | D139: 101.6 | E139: - | F139: - | G139: - | H139: - | I139: - | J139: - | K139: - | L139: - | M139: 3.6 | N139: 4 | O139: 4.5 | P139: 5 | Q139: 5.6 | R139: 6.3 | S139: 7.1 | T139: 8 | U139: 8.8 | V139: 10 | W139: 11 | X139: 12.5 | Y139: 14.2 | Z139: 16 | AA139: 17.5 | AB139: 20 | AC139: 22.2 | AD139: 25 | AE139: 28 | AF139: - | AG139: - | AH139: - | AI139: - | AJ139: - | AK139: - | AL139: - | AM139: - | AN139: -
B140: 4" | C140: 100 | D140: 114.3 | E140: - | F140: - | G140: - | H140: - | I140: - | J140: - | K140: - | L140: - | M140: 3.6 | N140: 4 | O140: 4.5 | P140: 5 | Q140: 5.6 | R140: 6.3 | S140: 7.1 | T140: 8 | U140: 8.8 | V140: 10 | W140: 11 | X140: 12.5 | Y140: 14.2 | Z140: 16 | AA140: 17.5 | AB140: 20 | AC140: 22.2 | AD140: 25 | AE140: 28 | AF140: 30 | AG140: 32 | AH140: - | AI140: - | AJ140: - | AK140: - | AL140: - | AM140: - | AN140: -
B141: 5" | C141: 125 | D141: 139.7 | E141: - | F141: - | G141: - | H141: - | I141: - | J141: - | K141: - | L141: - | M141: - | N141: 4 | O141: 4.5 | P141: 5 | Q141: 5.6 | R141: 6.3 | S141: 7.1 | T141: 8 | U141: 8.8 | V141: 10 | W141: 11 | X141: 12.5 | Y141: 14.2 | Z141: 16 | AA141: 17.5 | AB141: 20 | AC141: 22.2 | AD141: 25 | AE141: 28 | AF141: 30 | AG141: 32 | AH141: 36 | AI141: - | AJ141: - | AK141: - | AL141: - | AM141: - | AN141: -
B142: 6" | C142: 150 | D142: 168.3 | E142: - | F142: - | G142: - | H142: - | I142: - | J142: - | K142: - | L142: - | M142: - | N142: - | O142: 4.5 | P142: 5 | Q142: 5.6 | R142: 6.3 | S142: 7.1 | T142: 8 | U142: 8.8 | V142: 10 | W142: 11 | X142: 12.5 | Y142: 14.2 | Z142: 16 | AA142: 17.5 | AB142: 20 | AC142: 22.2 | AD142: 25 | AE142: 28 | AF142: 30 | AG142: 32 | AH142: 36 | AI142: 40 | AJ142: 45 | AK142: 50 | AL142: - | AM142: - | AN142: -
B143: 8" | C143: 200 | D143: 219.1 | E143: - | F143: - | G143: - | H143: - | I143: - | J143: - | K143: - | L143: - | M143: - | N143: - | O143: - | P143: - | Q143: - | R143: 6.3 | S143: 7.1 | T143: 8 | U143: 8.8 | V143: 10 | W143: 11 | X143: 12.5 | Y143: 14.2 | Z143: 16 | AA143: 17.5 | AB143: 20 | AC143: 22.2 | AD143: 25 | AE143: 28 | AF143: 30 | AG143: 32 | AH143: 36 | AI143: 40 | AJ143: 45 | AK143: 50 | AL143: 55 | AM143: 60 | AN143: -
B144: 10" | C144: 250 | D144: 273 | E144: - | F144: - | G144: - | H144: - | I144: - | J144: - | K144: - | L144: - | M144: - | N144: - | O144: - | P144: - | Q144: - | R144: 6.3 | S144: 7.1 | T144: 8 | U144: 8.8 | V144: 10 | W144: 11 | X144: 12.5 | Y144: 14.2 | Z144: 16 | AA144: 17.5 | AB144: 20 | AC144: 22.2 | AD144: 25 | AE144: 28 | AF144: 30 | AG144: 32 | AH144: 36 | AI144: 40 | AJ144: 45 | AK144: 50 | AL144: 55 | AM144: 60 | AN144: 65
B145: 12" | C145: 300 | D145: 323.9 | E145: - | F145: - | G145: - | H145: - | I145: - | J145: - | K145: - | L145: - | M145: - | N145: - | O145: - | P145: - | Q145: - | R145: - | S145: 7.1 | T145: 8 | U145: 8.8 | V145: 10 | W145: 11 | X145: 12.5 | Y145: 14.2 | Z145: 16 | AA145: 17.5 | AB145: 20 | AC145: 22.2 | AD145: 25 | AE145: 28 | AF145: 30 | AG145: 32 | AH145: 36 | AI145: 40 | AJ145: 45 | AK145: 50 | AL145: 55 | AM145: 60 | AN145: 65
B146: 14" | C146: 350 | D146: 355.6 | E146: - | F146: - | G146: - | H146: - | I146: - | J146: - | K146: - | L146: - | M146: - | N146: - | O146: - | P146: - | Q146: - | R146: - | S146: - | T146: 8 | U146: 8.8 | V146: 10 | W146: 11 | X146: 12.5 | Y146: 14.2 | Z146: 16 | AA146: 17.5 | AB146: 20 | AC146: 22.2 | AD146: 25 | AE146: 28 | AF146: 30 | AG146: 32 | AH146: 36 | AI146: 40 | AJ146: 45 | AK146: 50 | AL146: 55 | AM146: 60 | AN146: 65
B147: 16" | C147: 400 | D147: 406.4 | E147: - | F147: - | G147: - | H147: - | I147: - | J147: - | K147: - | L147: - | M147: - | N147: - | O147: - | P147: - | Q147: - | R147: - | S147: - | T147: - | U147: 8.8 | V147: 10 | W147: 11 | X147: 12.5 | Y147: 14.2 | Z147: 16 | AA147: 17.5 | AB147: 20 | AC147: 22.2 | AD147: 25 | AE147: 28 | AF147: 30 | AG147: 32 | AH147: 36 | AI147: 40 | AJ147: 45 | AK147: 50 | AL147: 55 | AM147: 60 | AN147: 65
B148: 18" | C148: 450 | D148: 457 | E148: - | F148: - | G148: - | H148: - | I148: - | J148: - | K148: - | L148: - | M148: - | N148: - | O148: - | P148: - | Q148: - | R148: - | S148: - | T148: - | U148: - | V148: 10 | W148: 11 | X148: 12.5 | Y148: 14.2 | Z148: 16 | AA148: 17.5 | AB148: 20 | AC148: 22.2 | AD148: 25 | AE148: 28 | AF148: 30 | AG148: 32 | AH148: 36 | AI148: 40 | AJ148: 45 | AK148: 50 | AL148: 55 | AM148: 60 | AN148: 65
B149: 20" | C149: 500 | D149: 508 | E149: - | F149: - | G149: - | H149: - | I149: - | J149: - | K149: - | L149: - | M149: - | N149: - | O149: - | P149: - | Q149: - | R149: - | S149: - | T149: - | U149: - | V149: - | W149: 11 | X149: 12.5 | Y149: 14.2 | Z149: 16 | AA149: 17.5 | AB149: 20 | AC149: 22.2 | AD149: 25 | AE149: 28 | AF149: 30 | AG149: 32 | AH149: 36 | AI149: 40 | AJ149: 45 | AK149: 50 | AL149: 55 | AM149: 60 | AN149: 65
B150: 22" | C150: 550 | D150: 559 | E150: - | F150: - | G150: - | H150: - | I150: - | J150: - | K150: - | L150: - | M150: - | N150: - | O150: - | P150: - | Q150: - | R150: - | S150: - | T150: - | U150: - | V150: - | W150: - | X150: 12.5 | Y150: 14.2 | Z150: 16 | AA150: 17.5 | AB150: 20 | AC150: 22.2 | AD150: 25 | AE150: 28 | AF150: 30 | AG150: 32 | AH150: 36 | AI150: 40 | AJ150: 45 | AK150: 50 | AL150: 55 | AM150: 60 | AN150: 65
B151: 24" | C151: 600 | D151: 610 | E151: - | F151: - | G151: - | H151: - | I151: - | J151: - | K151: - | L151: - | M151: - | N151: - | O151: - | P151: - | Q151: - | R151: - | S151: - | T151: - | U151: - | V151: - | W151: - | X151: 12.5 | Y151: 14.2 | Z151: 16 | AA151: 17.5 | AB151: 20 | AC151: 22.2 | AD151: 25 | AE151: 28 | AF151: 30 | AG151: 32 | AH151: 36 | AI151: 40 | AJ151: 45 | AK151: 50 | AL151: 55 | AM151: 60 | AN151: 65
B152: 28" | C152: 700 | D152: 711 | E152: - | F152: - | G152: - | H152: - | I152: - | J152: - | K152: - | L152: - | M152: - | N152: - | O152: - | P152: - | Q152: - | R152: - | S152: - | T152: - | U152: - | V152: - | W152: - | X152: - | Y152: - | Z152: - | AA152: - | AB152: - | AC152: - | AD152: - | AE152: - | AF152: - | AG152: - | AH152: - | AI152: - | AJ152: - | AK152: - | AL152: - | AM152: - | AN152: -
B153: 32" | C153: 800 | D153: 813 | E153: - | F153: - | G153: - | H153: - | I153: - | J153: - | K153: - | L153: - | M153: - | N153: - | O153: - | P153: - | Q153: - | R153: - | S153: - | T153: - | U153: - | V153: - | W153: - | X153: - | Y153: - | Z153: - | AA153: - | AB153: - | AC153: - | AD153: - | AE153: - | AF153: - | AG153: - | AH153: - | AI153: - | AJ153: - | AK153: - | AL153: - | AM153: - | AN153: -
B154: 36" | C154: 900 | D154: 914 | E154: - | F154: - | G154: - | H154: - | I154: - | J154: - | K154: - | L154: - | M154: - | N154: - | O154: - | P154: - | Q154: - | R154: - | S154: - | T154: - | U154: - | V154: - | W154: - | X154: - | Y154: - | Z154: - | AA154: - | AB154: - | AC154: - | AD154: - | AE154: - | AF154: - | AG154: - | AH154: - | AI154: - | AJ154: - | AK154: - | AL154: - | AM154: - | AN154: -
B155: 40" | C155: 1000 | D155: 1016 | E155: - | F155: - | G155: - | H155: - | I155: - | J155: - | K155: - | L155: - | M155: - | N155: - | O155: - | P155: - | Q155: - | R155: - | S155: - | T155: - | U155: - | V155: - | W155: - | X155: - | Y155: - | Z155: - | AA155: - | AB155: - | AC155: - | AD155: - | AE155: - | AF155: - | AG155: - | AH155: - | AI155: - | AJ155: - | AK155: - | AL155: - | AM155: - | AN155: -
B156: 48" | C156: 1200 | D156: 1220 | E156: - | F156: - | G156: - | H156: - | I156: - | J156: - | K156: - | L156: - | M156: - | N156: - | O156: - | P156: - | Q156: - | R156: - | S156: - | T156: - | U156: - | V156: - | W156: - | X156: - | Y156: - | Z156: - | AA156: - | AB156: - | AC156: - | AD156: - | AE156: - | AF156: - | AG156: - | AH156: - | AI156: - | AJ156: - | AK156: - | AL156: - | AM156: - | AN156: -
B157: 56" | C157: 1400 | D157: 1420 | E157: - | F157: - | G157: - | H157: - | I157: - | J157: - | K157: - | L157: - | M157: - | N157: - | O157: - | P157: - | Q157: - | R157: - | S157: - | T157: - | U157: - | V157: - | W157: - | X157: - | Y157: - | Z157: - | AA157: - | AB157: - | AC157: - | AD157: - | AE157: - | AF157: - | AG157: - | AH157: - | AI157: - | AJ157: - | AK157: - | AL157: - | AM157: - | AN157: -
B158: 64" | C158: 1600 | D158: 1620 | E158: - | F158: - | G158: - | H158: - | I158: - | J158: - | K158: - | L158: - | M158: - | N158: - | O158: - | P158: - | Q158: - | R158: - | S158: - | T158: - | U158: - | V158: - | W158: - | X158: - | Y158: - | Z158: - | AA158: - | AB158: - | AC158: - | AD158: - | AE158: - | AF158: - | AG158: - | AH158: - | AI158: - | AJ158: - | AK158: - | AL158: - | AM158: - | AN158: -
J161: WALLTHICKNESS OF WELDED PIPE acc. DIN 2458
B162: NPS | C162: DN | D162: OD | E162: 1.4 | F162: 1.6 | G162: 1.8 | H162: 2 | I162: 2.3 | J162: 2.6 | K162: 2.9 | L162: 3.2 | M162: 3.6 | N162: 4 | O162: 4.5 | P162: 5 | Q162: 5.6 | R162: 6.3 | S162: 7.1 | T162: 8 | U162: 8.8 | V162: 10 | W162: 11 | X162: 12.5 | Y162: 14.2 | Z162: 16 | AA162: 17.5 | AB162: 20 | AC162: 22.2 | AD162: 25 | AE162: 28 | AF162: 30 | AG162: 32 | AH162: 36 | AI162: 40 | AJ162: 45 | AK162: 50 | AL162: 55 | AM162: 60 | AN162: 65
A163: 2 | B163: 1/8" | C163: - | D163: 10.2 | E163: 1.4 | F163: 1.6 | G163: 1.8 | H163: 2 | I163: 2.3 | J163: 2.6 | K163: - | L163: - | M163: - | N163: - | O163: - | P163: - | Q163: - | R163: - | S163: - | T163: - | U163: - | V163: - | W163: - | X163: - | Y163: - | Z163: - | AA163: - | AB163: - | AC163: - | AD163: - | AE163: - | AF163: - | AG163: - | AH163: - | AI163: - | AJ163: - | AK163: - | AL163: - | AM163: - | AN163: -
B164: 1/4" | C164: 10 | D164: 13.5 | E164: 1.4 | F164: 1.6 | G164: 1.8 | H164: 2 | I164: 2.3 | J164: 2.6 | K164: 2.9 | L164: 3.2 | M164: 3.6 | N164: - | O164: - | P164: - | Q164: - | R164: - | S164: - | T164: - | U164: - | V164: - | W164: - | X164: - | Y164: - | Z164: - | AA164: - | AB164: - | AC164: - | AD164: - | AE164: - | AF164: - | AG164: - | AH164: - | AI164: - | AJ164: - | AK164: - | AL164: - | AM164: - | AN164: -
B165: 3/8" | C165: - | D165: 17.2 | E165: 1.4 | F165: 1.6 | G165: 1.8 | H165: 2 | I165: 2.3 | J165: 2.6 | K165: 2.9 | L165: 3.2 | M165: 3.6 | N165: 4 | O165: - | P165: - | Q165: - | R165: - | S165: - | T165: - | U165: - | V165: - | W165: - | X165: - | Y165: - | Z165: - | AA165: - | AB165: - | AC165: - | AD165: - | AE165: - | AF165: - | AG165: - | AH165: - | AI165: - | AJ165: - | AK165: - | AL165: - | AM165: - | AN165: -
B166: 1/2" | C166: 15 | D166: 21.3 | E166: 1.4 | F166: 1.6 | G166: 1.8 | H166: 2 | I166: 2.3 | J166: 2.6 | K166: 2.9 | L166: 3.2 | M166: 3.6 | N166: 4 | O166: 4.5 | P166: - | Q166: - | R166: - | S166: - | T166: - | U166: - | V166: - | W166: - | X166: - | Y166: - | Z166: - | AA166: - | AB166: - | AC166: - | AD166: - | AE166: - | AF166: - | AG166: - | AH166: - | AI166: - | AJ166: - | AK166: - | AL166: - | AM166: - | AN166: -
B167: 3/4" | C167: 20 | D167: 26.9 | E167: 1.4 | F167: 1.6 | G167: 1.8 | H167: 2 | I167: 2.3 | J167: 2.6 | K167: 2.9 | L167: 3.2 | M167: 3.6 | N167: 4 | O167: 4.5 | P167: 5 | Q167: - | R167: - | S167: - | T167: - | U167: - | V167: - | W167: - | X167: - | Y167: - | Z167: - | AA167: - | AB167: - | AC167: - | AD167: - | AE167: - | AF167: - | AG167: - | AH167: - | AI167: - | AJ167: - | AK167: - | AL167: - | AM167: - | AN167: -
B168: 1" | C168: 25 | D168: 33.7 | E168: 1.4 | F168: 1.6 | G168: 1.8 | H168: 2 | I168: 2.3 | J168: 2.6 | K168: 2.9 | L168: 3.2 | M168: 3.6 | N168: 4 | O168: 4.5 | P168: 5 | Q168: 5.6 | R168: 6.3 | S168: 7.1 | T168: 8 | U168: - | V168: - | W168: - | X168: - | Y168: - | Z168: - | AA168: - | AB168: - | AC168: - | AD168: - | AE168: - | AF168: - | AG168: - | AH168: - | AI168: - | AJ168: - | AK168: - | AL168: - | AM168: - | AN168: -
B169: 1¼" | C169: 32 | D169: 42.4 | E169: 1.4 | F169: 1.6 | G169: 1.8 | H169: 2 | I169: 2.3 | J169: 2.6 | K169: 2.9 | L169: 3.2 | M169: 3.6 | N169: 4 | O169: 4.5 | P169: 5 | Q169: 5.6 | R169: 6.3 | S169: 7.1 | T169: 8 | U169: 8.8 | V169: - | W169: - | X169: - | Y169: - | Z169: - | AA169: - | AB169: - | AC169: - | AD169: - | AE169: - | AF169: - | AG169: - | AH169: - | AI169: - | AJ169: - | AK169: - | AL169: - | AM169: - | AN169: -
B170: 1½" | C170: 40 | D170: 48.3 | E170: 1.4 | F170: 1.6 | G170: 1.8 | H170: 2 | I170: 2.3 | J170: 2.6 | K170: 2.9 | L170: 3.2 | M170: 3.6 | N170: 4 | O170: 4.5 | P170: 5 | Q170: 5.6 | R170: 6.3 | S170: 7.1 | T170: 8 | U170: 8.8 | V170: - | W170: - | X170: - | Y170: - | Z170: - | AA170: - | AB170: - | AC170: - | AD170: - | AE170: - | AF170: - | AG170: - | AH170: - | AI170: - | AJ170: - | AK170: - | AL170: - | AM170: - | AN170: -
B171: 2" | C171: 50 | D171: 60.3 | E171: 1.4 | F171: 1.6 | G171: 1.8 | H171: 2 | I171: 2.3 | J171: 2.6 | K171: 2.9 | L171: 3.2 | M171: 3.6 | N171: 4 | O171: 4.5 | P171: 5 | Q171: 5.6 | R171: 6.3 | S171: 7.1 | T171: 8 | U171: 8.8 | V171: 10 | W171: - | X171: - | Y171: - | Z171: - | AA171: - | AB171: - | AC171: - | AD171: - | AE171: - | AF171: - | AG171: - | AH171: - | AI171: - | AJ171: - | AK171: - | AL171: - | AM171: - | AN171: -
B172: 2½" | C172: 65 | D172: 73 | E172: - | F172: 1.6 | G172: 1.8 | H172: 2 | I172: 2.3 | J172: 2.6 | K172: 2.9 | L172: 3.2 | M172: 3.6 | N172: 4 | O172: 4.5 | P172: 5 | Q172: 5.6 | R172: 6.3 | S172: 7.1 | T172: 8 | U172: 8.8 | V172: 10 | W172: - | X172: - | Y172: - | Z172: - | AA172: - | AB172: - | AC172: - | AD172: - | AE172: - | AF172: - | AG172: - | AH172: - | AI172: - | AJ172: - | AK172: - | AL172: - | AM172: - | AN172: -
B173: 3" | C173: 80 | D173: 88.9 | E173: - | F173: 1.6 | G173: 1.8 | H173: 2 | I173: 2.3 | J173: 2.6 | K173: 2.9 | L173: 3.2 | M173: 3.6 | N173: 4 | O173: 4.5 | P173: 5 | Q173: 5.6 | R173: 6.3 | S173: 7.1 | T173: 8 | U173: 8.8 | V173: 10 | W173: - | X173: - | Y173: - | Z173: - | AA173: - | AB173: - | AC173: - | AD173: - | AE173: - | AF173: - | AG173: - | AH173: - | AI173: - | AJ173: - | AK173: - | AL173: - | AM173: - | AN173: -
B174: 3½" | C174: - | D174: 101.6 | E174: - | F174: - | G174: - | H174: 2 | I174: 2.3 | J174: 2.6 | K174: 2.9 | L174: 3.2 | M174: 3.6 | N174: 4 | O174: 4.5 | P174: 5 | Q174: 5.6 | R174: 6.3 | S174: 7.1 | T174: 8 | U174: 8.8 | V174: 10 | W174: - | X174: - | Y174: - | Z174: - | AA174: - | AB174: - | AC174: - | AD174: - | AE174: - | AF174: - | AG174: - | AH174: - | AI174: - | AJ174: - | AK174: - | AL174: - | AM174: - | AN174: -
B175: 4" | C175: 100 | D175: 114.3 | E175: - | F175: - | G175: - | H175: 2 | I175: 2.3 | J175: 2.6 | K175: 2.9 | L175: 3.2 | M175: 3.6 | N175: 4 | O175: 4.5 | P175: 5 | Q175: 5.6 | R175: 6.3 | S175: 7.1 | T175: 8 | U175: 8.8 | V175: 10 | W175: 11 | X175: - | Y175: - | Z175: - | AA175: - | AB175: - | AC175: - | AD175: - | AE175: - | AF175: - | AG175: - | AH175: - | AI175: - | AJ175: - | AK175: - | AL175: - | AM175: - | AN175: -
B176: 5" | C176: 125 | D176: 139.7 | E176: - | F176: - | G176: - | H176: 2 | I176: 2.3 | J176: 2.6 | K176: 2.9 | L176: 3.2 | M176: 3.6 | N176: 4 | O176: 4.5 | P176: 5 | Q176: 5.6 | R176: 6.3 | S176: 7.1 | T176: 8 | U176: 8.8 | V176: 10 | W176: 11 | X176: - | Y176: - | Z176: - | AA176: - | AB176: - | AC176: - | AD176: - | AE176: - | AF176: - | AG176: - | AH176: - | AI176: - | AJ176: - | AK176: - | AL176: - | AM176: - | AN176: -
B177: 6" | C177: 150 | D177: 168.3 | E177: - | F177: - | G177: - | H177: - | I177: - | J177: - | K177: 2.9 | L177: 3.2 | M177: 3.6 | N177: 4 | O177: 4.5 | P177: 5 | Q177: 5.6 | R177: 6.3 | S177: 7.1 | T177: 8 | U177: 8.8 | V177: 10 | W177: 11 | X177: - | Y177: - | Z177: - | AA177: - | AB177: - | AC177: - | AD177: - | AE177: - | AF177: - | AG177: - | AH177: - | AI177: - | AJ177: - | AK177: - | AL177: - | AM177: - | AN177: -
B178: 8" | C178: 200 | D178: 219.1 | E178: - | F178: - | G178: - | H178: - | I178: - | J178: - | K178: - | L178: 3.2 | M178: 3.6 | N178: 4 | O178: 4.5 | P178: 5 | Q178: 5.6 | R178: 6.3 | S178: 7.1 | T178: 8 | U178: 8.8 | V178: 10 | W178: 11 | X178: 12.5 | Y178: - | Z178: - | AA178: - | AB178: - | AC178: - | AD178: - | AE178: - | AF178: - | AG178: - | AH178: - | AI178: - | AJ178: - | AK178: - | AL178: - | AM178: - | AN178: -
B179: 10" | C179: 250 | D179: 273 | E179: - | F179: - | G179: - | H179: - | I179: - | J179: - | K179: - | L179: 3.2 | M179: 3.6 | N179: 4 | O179: 4.5 | P179: 5 | Q179: 5.6 | R179: 6.3 | S179: 7.1 | T179: 8 | U179: 8.8 | V179: 10 | W179: 11 | X179: 12.5 | Y179: - | Z179: - | AA179: - | AB179: - | AC179: - | AD179: - | AE179: - | AF179: - | AG179: - | AH179: - | AI179: - | AJ179: - | AK179: - | AL179: - | AM179: - | AN179: -
B180: 12" | C180: 300 | D180: 323.9 | E180: - | F180: - | G180: - | H180: - | I180: - | J180: - | K180: - | L180: 3.2 | M180: 3.6 | N180: 4 | O180: 4.5 | P180: 5 | Q180: 5.6 | R180: 6.3 | S180: 7.1 | T180: 8 | U180: 8.8 | V180: 10 | W180: 11 | X180: 12.5 | Y180: - | Z180: - | AA180: - | AB180: - | AC180: - | AD180: - | AE180: - | AF180: - | AG180: - | AH180: - | AI180: - | AJ180: - | AK180: - | AL180: - | AM180: - | AN180: -
B181: 14" | C181: 350 | D181: 355.6 | E181: - | F181: - | G181: - | H181: - | I181: - | J181: - | K181: - | L181: 3.2 | M181: 3.6 | N181: 4 | O181: 4.5 | P181: 5 | Q181: 5.6 | R181: 6.3 | S181: 7.1 | T181: 8 | U181: 8.8 | V181: 10 | W181: 11 | X181: 12.5 | Y181: - | Z181: - | AA181: - | AB181: - | AC181: - | AD181: - | AE181: - | AF181: - | AG181: - | AH181: - | AI181: - | AJ181: - | AK181: - | AL181: - | AM181: - | AN181: -
B182: 16" | C182: 400 | D182: 406.4 | E182: - | F182: - | G182: - | H182: - | I182: - | J182: - | K182: - | L182: - | M182: 3.6 | N182: 4 | O182: 4.5 | P182: 5 | Q182: 5.6 | R182: 6.3 | S182: 7.1 | T182: 8 | U182: 8.8 | V182: 10 | W182: 11 | X182: 12.5 | Y182: - | Z182: - | AA182: - | AB182: - | AC182: - | AD182: - | AE182: - | AF182: - | AG182: - | AH182: - | AI182: - | AJ182: - | AK182: - | AL182: - | AM182: - | AN182: -
B183: 18" | C183: 450 | D183: 457 | E183: - | F183: - | G183: - | H183: - | I183: - | J183: - | K183: - | L183: - | M183: 3.6 | N183: 4 | O183: 4.5 | P183: 5 | Q183: 5.6 | R183: 6.3 | S183: 7.1 | T183: 8 | U183: 8.8 | V183: 10 | W183: 11 | X183: 12.5 | Y183: - | Z183: - | AA183: - | AB183: - | AC183: - | AD183: - | AE183: - | AF183: - | AG183: - | AH183: - | AI183: - | AJ183: - | AK183: - | AL183: - | AM183: - | AN183: -
B184: 20" | C184: 500 | D184: 508 | E184: - | F184: - | G184: - | H184: - | I184: - | J184: - | K184: - | L184: - | M184: 3.6 | N184: 4 | O184: 4.5 | P184: 5 | Q184: 5.6 | R184: 6.3 | S184: 7.1 | T184: 8 | U184: 8.8 | V184: 10 | W184: 11 | X184: 12.5 | Y184: 14.2 | Z184: 16 | AA184: - | AB184: - | AC184: - | AD184: - | AE184: - | AF184: - | AG184: - | AH184: - | AI184: - | AJ184: - | AK184: - | AL184: - | AM184: - | AN184: -
B185: 22" | C185: 550 | D185: 559 | E185: - | F185: - | G185: - | H185: - | I185: - | J185: - | K185: - | L185: - | M185: - | N185: - | O185: 4.5 | P185: 5 | Q185: 5.6 | R185: 6.3 | S185: 7.1 | T185: 8 | U185: 8.8 | V185: 10 | W185: 11 | X185: 12.5 | Y185: 14.2 | Z185: 16 | AA185: 17.5 | AB185: 20 | AC185: - | AD185: - | AE185: - | AF185: - | AG185: - | AH185: - | AI185: - | AJ185: - | AK185: - | AL185: - | AM185: - | AN185: -
B186: 24" | C186: 600 | D186: 610 | E186: - | F186: - | G186: - | H186: - | I186: - | J186: - | K186: - | L186: - | M186: - | N186: - | O186: 4.5 | P186: 5 | Q186: 5.6 | R186: 6.3 | S186: 7.1 | T186: 8 | U186: 8.8 | V186: 10 | W186: 11 | X186: 12.5 | Y186: 14.2 | Z186: 16 | AA186: 17.5 | AB186: 20 | AC186: 22.2 | AD186: 25 | AE186: 28 | AF186: - | AG186: - | AH186: - | AI186: - | AJ186: - | AK186: - | AL186: - | AM186: - | AN186: -
B187: 28" | C187: 700 | D187: 711 | E187: - | F187: - | G187: - | H187: - | I187: - | J187: - | K187: - | L187: - | M187: - | N187: - | O187: - | P187: 5 | Q187: - | R187: - | S187: 7.1 | T187: - | U187: - | V187: - | W187: - | X187: 12.5 | Y187: - | Z187: - | AA187: - | AB187: 20 | AC187: - | AD187: - | AE187: - | AF187: - | AG187: 32 | AH187: - | AI187: - | AJ187: - | AK187: - | AL187: - | AM187: - | AN187: -
B188: 32" | C188: 800 | D188: 813 | E188: - | F188: - | G188: - | H188: - | I188: - | J188: - | K188: - | L188: - | M188: - | N188: - | O188: - | P188: - | Q188: 5.6 | R188: - | S188: - | T188: 8 | U188: - | V188: - | W188: - | X188: 12.5 | Y188: - | Z188: - | AA188: - | AB188: - | AC188: 22.2 | AD188: - | AE188: - | AF188: - | AG188: - | AH188: 36 | AI188: - | AJ188: - | AK188: - | AL188: - | AM188: - | AN188: -
B189: 36" | C189: 900 | D189: 914 | E189: - | F189: - | G189: - | H189: - | I189: - | J189: - | K189: - | L189: - | M189: - | N189: - | O189: - | P189: - | Q189: - | R189: 6.3 | S189: - | T189: - | U189: - | V189: 10 | W189: 6 | X189: 12.5 | Y189: - | Z189: - | AA189: - | AB189: - | AC189: - | AD189: 25 | AE189: - | AF189: - | AG189: - | AH189: - | AI189: 40 | AJ189: - | AK189: - | AL189: - | AM189: - | AN189: -
B190: 40" | C190: 1000 | D190: 1016 | E190: - | F190: - | G190: - | H190: - | I190: - | J190: - | K190: - | L190: - | M190: - | N190: - | O190: - | P190: - | Q190: - | R190: 6.3 | S190: - | T190: - | U190: - | V190: 10 | W190: - | X190: 12.5 | Y190: - | Z190: - | AA190: - | AB190: - | AC190: - | AD190: - | AE190: 28 | AF190: - | AG190: - | AH190: - | AI190: - | AJ190: 45 | AK190: - | AL190: - | AM190: - | AN190: -
B191: 48" | C191: 1200 | D191: 1220 | E191: - | F191: - | G191: - | H191: - | I191: - | J191: - | K191: - | L191: - | M191: - | N191: - | O191: - | P191: - | Q191: - | R191: 6.3 | S191: - | T191: - | U191: - | V191: 10 | W191: - | X191: 12.5 | Y191: - | Z191: - | AA191: - | AB191: - | AC191: - | AD191: - | AE191: - | AF191: - | AG191: - | AH191: - | AI191: - | AJ191: - | AK191: - | AL191: - | AM191: - | AN191: -
B192: 56" | C192: 1400 | D192: 1420 | E192: - | F192: - | G192: - | H192: - | I192: - | J192: - | K192: - | L192: - | M192: - | N192: - | O192: - | P192: - | Q192: - | R192: 6.3 | S192: - | T192: - | U192: - | V192: 10 | W192: - | X192: 12.5 | Y192: - | Z192: - | AA192: - | AB192: - | AC192: - | AD192: - | AE192: - | AF192: - | AG192: - | AH192: - | AI192: - | AJ192: - | AK192: - | AL192: - | AM192: - | AN192: -
B193: 64" | C193: 1600 | D193: 1620 | E193: - | F193: - | G193: - | H193: - | I193: - | J193: - | K193: - | L193: - | M193: - | N193: - | O193: - | P193: - | Q193: - | R193: 6.3 | S193: - | T193: - | U193: - | V193: 10 | W193: - | X193: 12.5 | Y193: - | Z193: - | AA193: - | AB193: - | AC193: - | AD193: - | AE193: - | AF193: - | AG193: - | AH193: - | AI193: - | AJ193: - | AK193: - | AL193: - | AM193: - | AN193: -

Sheet Data pipe acc ASA (hidden)
B1: PIPE DATA acc ANSI B 16.5
B2: NPS | C2: DN | D2: OD | E2: 5S | F2: 5 | G2: 10S | H2: 10 | I2: 20 | J2: 30 | K2: 40S | L2: Std. | M2: 40 | N2: 60 | O2: 80S | P2: XS | Q2: 80 | R2: 100 | S2: 120 | T2: 140 | U2: 160 | V2: XXS
A3: 1 | B3: 1/8" | C3: 6 | D3: 10.29 | E3: - | F3: - | G3: - | H3: - | I3: - | J3: - | K3: 1.73 | L3: 1.73 | M3: 1.73 | N3: - | O3: 2.41 | P3: 2.41 | Q3: 2.41 | R3: - | S3: - | T3: - | U3: - | V3: -
B4: 1/4" | C4: 10 | D4: 13.72 | E4: - | F4: - | G4: - | H4: - | I4: - | J4: - | K4: 2.24 | L4: 2.24 | M4: 2.24 | N4: - | O4: 3.02 | P4: 3.02 | Q4: 3.02 | R4: - | S4: - | T4: - | U4: - | V4: -
B5: 3/8" | C5: - | D5: 17.15 | E5: - | F5: - | G5: - | H5: - | I5: - | J5: - | K5: 2.31 | L5: 2.31 | M5: 2.31 | N5: - | O5: 3.2 | P5: 3.2 | Q5: 3.2 | R5: - | S5: - | T5: - | U5: - | V5: -
B6: 1/2" | C6: 15 | D6: 21.34 | E6: 1.65 | F6: 1.65 | G6: 2.11 | H6: 2.11 | I6: - | J6: - | K6: 2.77 | L6: 2.77 | M6: 2.77 | N6: - | O6: 3.73 | P6: 3.73 | Q6: 3.73 | R6: - | S6: - | T6: - | U6: 4.75 | V6: 7.47
B7: 3/4" | C7: 20 | D7: 26.67 | E7: 1.65 | F7: 1.65 | G7: 2.11 | H7: 2.11 | I7: - | J7: - | K7: 2.87 | L7: 2.87 | M7: 2.87 | N7: - | O7: 3.91 | P7: 3.91 | Q7: 3.91 | R7: - | S7: - | T7: - | U7: 5.54 | V7: 7.82
B8: 1" | C8: 25 | D8: 33.4 | E8: 1.65 | F8: 1.65 | G8: 2.77 | H8: 2.77 | I8: - | J8: - | K8: 3.38 | L8: 3.38 | M8: 3.38 | N8: - | O8: 4.55 | P8: 4.55 | Q8: 4.55 | R8: - | S8: - | T8: - | U8: 6.35 | V8: 9.09
B9: 1¼" | C9: 32 | D9: 42.16 | E9: 1.65 | F9: 1.65 | G9: 2.77 | H9: 2.77 | I9: - | J9: - | K9: 3.56 | L9: 3.56 | M9: 3.56 | N9: - | O9: 4.85 | P9: 4.85 | Q9: 4.85 | R9: - | S9: - | T9: - | U9: 6.35 | V9: 9.7
B10: 1½" | C10: 40 | D10: 48.26 | E10: 1.65 | F10: 1.65 | G10: 2.77 | H10: 2.77 | I10: - | J10: - | K10: 3.68 | L10: 3.68 | M10: 3.68 | N10: - | O10: 5.08 | P10: 5.08 | Q10: 5.08 | R10: - | S10: - | T10: - | U10: 7.14 | V10: 10.16
B11: 2" | C11: 50 | D11: 60.33 | E11: 1.65 | F11: 1.65 | G11: 2.77 | H11: 2.77 | I11: - | J11: - | K11: 3.91 | L11: 3.91 | M11: 3.91 | N11: - | O11: 5.54 | P11: 5.54 | Q11: 5.54 | R11: - | S11: - | T11: - | U11: 8.71 | V11: 11.07
B12: 2½" | C12: 65 | D12: 73.03 | E12: 2.11 | F12: 2.11 | G12: 3.05 | H12: 3.05 | I12: - | J12: - | K12: 5.16 | L12: 5.16 | M12: 5.16 | N12: - | O12: 7.01 | P12: 7.01 | Q12: 7.01 | R12: - | S12: - | T12: - | U12: 9.53 | V12: 14.02
B13: 3" | C13: 80 | D13: 88.9 | E13: 2.11 | F13: 2.11 | G13: 3.05 | H13: 3.05 | I13: - | J13: - | K13: 5.49 | L13: 5.49 | M13: 5.49 | N13: - | O13: 7.62 | P13: 7.62 | Q13: 7.62 | R13: - | S13: - | T13: - | U13: 11.13 | V13: 15.24
B14: 3½" | C14: - | D14: 101.6 | E14: 2.11 | F14: 2.11 | G14: 3.05 | H14: 3.05 | I14: - | J14: - | K14: 5.74 | L14: 5.74 | M14: 5.74 | N14: - | O14: 8.08 | P14: 8.08 | Q14: 8.08 | R14: - | S14: - | T14: - | U14: - | V14: 16.15
B15: 4" | C15: 100 | D15: 114.3 | E15: 2.11 | F15: 2.11 | G15: 3.05 | H15: 3.05 | I15: - | J15: - | K15: 6.02 | L15: 6.02 | M15: 6.02 | N15: - | O15: 8.56 | P15: 8.56 | Q15: 8.56 | R15: - | S15: 11.13 | T15: - | U15: 13.49 | V15: 17.12
B16: 5" | C16: 125 | D16: 141.3 | E16: 2.77 | F16: 2.77 | G16: 3.4 | H16: 3.4 | I16: - | J16: - | K16: 6.55 | L16: 6.55 | M16: 6.55 | N16: - | O16: 9.53 | P16: 9.53 | Q16: 9.53 | R16: - | S16: 12.7 | T16: - | U16: 15.88 | V16: 19.05
B17: 6" | C17: 150 | D17: 168.28 | E17: 2.77 | F17: 2.77 | G17: 3.4 | H17: 3.4 | I17: - | J17: - | K17: 7.11 | L17: 7.11 | M17: 7.11 | N17: - | O17: 10.97 | P17: 10.97 | Q17: 10.97 | R17: - | S17: 14.27 | T17: - | U17: 18.24 | V17: 21.95
B18: 8" | C18: 200 | D18: 219.08 | E18: 2.77 | F18: 2.77 | G18: 3.76 | H18: 3.76 | I18: 6.35 | J18: 7.04 | K18: 8.18 | L18: 8.18 | M18: 8.18 | N18: 10.31 | O18: 12.7 | P18: 12.7 | Q18: 12.7 | R18: 15.06 | S18: 18.24 | T18: 20.62 | U18: 23.01 | V18: 22.23
B19: 10" | C19: 250 | D19: 273.05 | E19: 3.4 | F19: 3.4 | G19: 4.19 | H19: 4.19 | I19: 6.35 | J19: 7.8 | K19: 9.27 | L19: 9.27 | M19: 9.27 | N19: 12.7 | O19: 12.7 | P19: 12.7 | Q19: 15.06 | R19: 18.24 | S19: 21.41 | T19: 25.4 | U19: 28.58 | V19: 25.4
B20: 12" | C20: 300 | D20: 323.85 | E20: 3.96 | F20: 4.19 | G20: 4.57 | H20: 4.57 | I20: 6.35 | J20: 8.38 | K20: 9.53 | L20: 9.53 | M20: 10.31 | N20: 14.27 | O20: 12.7 | P20: 12.7 | Q20: 17.45 | R20: 21.41 | S20: 25.4 | T20: 28.58 | U20: 33.32 | V20: 25.4
B21: 14" | C21: 350 | D21: 355.6 | E21: 3.96 | F21: - | G21: 4.78 | H21: 6.35 | I21: 7.92 | J21: 9.53 | K21: - | L21: 9.53 | M21: 11.13 | N21: 15.06 | O21: - | P21: 12.7 | Q21: 19.05 | R21: 23.8 | S21: 27.76 | T21: 31.75 | U21: 35.71 | V21: -
B22: 16" | C22: 400 | D22: 406.4 | E22: 4.19 | F22: - | G22: 4.78 | H22: 6.35 | I22: 7.92 | J22: 9.53 | K22: - | L22: 9.53 | M22: 12.7 | N22: 16.66 | O22: - | P22: 12.7 | Q22: 21.41 | R22: 26.19 | S22: 30.94 | T22: 36.53 | U22: 40.46 | V22: -
B23: 18" | C23: 450 | D23: 457.2 | E23: 4.19 | F23: - | G23: 4.78 | H23: 6.35 | I23: 7.92 | J23: 11.13 | K23: - | L23: 9.53 | M23: 14.27 | N23: 19.05 | O23: - | P23: 12.7 | Q23: 23.8 | R23: 29.36 | S23: 34.93 | T23: 39.67 | U23: 45.24 | V23: -
B24: 20" | C24: 500 | D24: 508 | E24: 4.78 | F24: - | G24: 5.54 | H24: 6.35 | I24: 9.35 | J24: 12.7 | K24: - | L24: 9.53 | M24: 15.06 | N24: 20.62 | O24: - | P24: 12.7 | Q24: 26.19 | R24: 32.54 | S24: 38.1 | T24: 44.45 | U24: 49.99 | V24: -
B25: 22" | C25: 550 | D25: 558.8 | E25: 4.78 | F25: - | G25: 5.54 | H25: 6.35 | I25: 9.35 | J25: 12.7 | K25: - | L25: 9.53 | M25: 15.88 | N25: 22.23 | O25: - | P25: 12.7 | Q25: 28.57 | R25: 34.92 | S25: 41.27 | T25: 47.62 | U25: 53.97 | V25: -
B26: 24" | C26: 600 | D26: 609.6 | E26: 5.54 | F26: - | G26: 6.35 | H26: 6.35 | I26: 9.35 | J26: 14.27 | K26: - | L26: 9.53 | M26: 17.45 | N26: 24.59 | O26: - | P26: 12.7 | Q26: 30.94 | R26: 38.89 | S26: 46.02 | T26: 52.37 | U26: 59.51 | V26: -
B27: 26" | C27: 650 | D27: 660.4 | E27: - | F27: - | G27: - | H27: 7.92 | I27: 12.7 | J27: - | K27: - | L27: 9.53 | M27: - | N27: - | O27: - | P27: 12.7 | Q27: - | R27: - | S27: - | T27: - | U27: - | V27: -
B28: 28" | C28: 700 | D28: 711.2 | E28: - | F28: - | G28: - | H28: 7.92 | I28: 12.7 | J28: 15.87 | K28: - | L28: 9.53 | M28: - | N28: - | O28: - | P28: 12.7 | Q28: - | R28: - | S28: - | T28: - | U28: - | V28: -
B29: 30" | C29: 750 | D29: 762 | E29: - | F29: - | G29: - | H29: 7.92 | I29: 12.7 | J29: 15.87 | K29: - | L29: 9.53 | M29: - | N29: - | O29: - | P29: 12.7 | Q29: - | R29: - | S29: - | T29: - | U29: - | V29: -
B30: 32" | C30: 800 | D30: 812.8 | E30: - | F30: - | G30: - | H30: 7.92 | I30: 12.7 | J30: 15.87 | K30: - | L30: 9.53 | M30: 17.45 | N30: - | O30: - | P30: 12.7 | Q30: - | R30: - | S30: - | T30: - | U30: - | V30: -
B31: 34" | C31: 850 | D31: 863.6 | E31: - | F31: - | G31: - | H31: 7.92 | I31: 12.7 | J31: 15.87 | K31: - | L31: 9.53 | M31: 17.45 | N31: - | O31: - | P31: 12.7 | Q31: - | R31: - | S31: - | T31: - | U31: - | V31: -
B32: 36" | C32: 900 | D32: 914.4 | E32: - | F32: - | G32: - | H32: 7.92 | I32: 12.7 | J32: 15.87 | K32: - | L32: 9.53 | M32: 19.05 | N32: - | O32: - | P32: 12.7 | Q32: - | R32: - | S32: - | T32: - | U32: - | V32: -
B33: 38" | C33: 950 | D33: 965.2 | E33: - | F33: - | G33: - | H33: - | I33: - | J33: - | K33: - | L33: 9.53 | M33: - | N33: - | O33: - | P33: 12.7 | Q33: - | R33: - | S33: - | T33: - | U33: - | V33: -
B34: 40" | C34: 1000 | D34: 1016 | E34: - | F34: - | G34: - | H34: - | I34: - | J34: - | K34: - | L34: 9.53 | M34: - | N34: - | O34: - | P34: 12.7 | Q34: - | R34: - | S34: - | T34: - | U34: - | V34: -
B35: 42" | C35: 1050 | D35: 1066.8 | E35: - | F35: - | G35: - | H35: - | I35: - | J35: - | K35: - | L35: 9.53 | M35: - | N35: - | O35: - | P35: 12.7 | Q35: - | R35: - | S35: - | T35: - | U35: - | V35: -
B36: 44" | C36: 1100 | D36: 1117.6 | E36: - | F36: - | G36: - | H36: - | I36: - | J36: - | K36: - | L36: 9.53 | M36: - | N36: - | O36: - | P36: 12.7 | Q36: - | R36: - | S36: - | T36: - | U36: - | V36: -
B37: 46" | C37: 1150 | D37: 1168.4 | E37: - | F37: - | G37: - | H37: - | I37: - | J37: - | K37: - | L37: 9.53 | M37: - | N37: - | O37: - | P37: 12.7 | Q37: - | R37: - | S37: - | T37: - | U37: - | V37: -
B38: 48" | C38: 1200 | D38: 1219.2 | E38: - | F38: - | G38: - | H38: - | I38: - | J38: - | K38: - | L38: 9.53 | M38: - | N38: - | O38: - | P38: 12.7 | Q38: - | R38: - | S38: - | T38: - | U38: - | V38: -

Sheet Data pipe acc. DIN (hidden)
D1: WALLTHICKNESS OF SEAMLESS AND WELDED PIPE acc. DIN 2448 / DIN 2458 | AS1: SEAMLESS PIPE acc. DIN 2448 | BS1: WELDED PIPE acc. DIN 2458
B2: NPS | C2: DN | D2: OD | E2: 1.4 | F2: 1.6 | G2: 1.8 | H2: 2 | I2: 2.3 | J2: 2.6 | K2: 2.9 | L2: 3.2 | M2: 3.6 | N2: 4 | O2: 4.5 | P2: 5 | Q2: 5.6 | R2: 6.3 | S2: 7.1 | T2: 8 | U2: 8.8 | V2: 10 | W2: 11 | X2: 12.5 | Y2: 14.2 | Z2: 16 | AA2: 17.5 | AB2: 20 | AC2: 22.2 | AD2: 25 | AE2: 28 | AF2: 30 | AG2: 32 | AH2: 36 | AI2: 40 | AJ2: 45 | AK2: 50 | AL2: 55 | AM2: 60 | AN2: 65 | AQ2: NPS | AR2: DN | AS2: OD | BD2: WALLTHICKNESS | BQ2: NPS | BR2: DN | BS2: OD | CB2: WALLTHICKNESS
A3: 1 | B3: 1/8" | C3: - | D3: 10.2 | E3: 1.4 | F3: 1.6 | G3: 1.8 | H3: 2 | I3: 2.3 | J3: 2.6 | K3: - | L3: - | M3: - | N3: - | O3: - | P3: - | Q3: - | R3: - | S3: - | T3: - | U3: - | V3: - | W3: - | X3: - | Y3: - | Z3: - | AA3: - | AB3: - | AC3: - | AD3: - | AE3: - | AF3: - | AG3: - | AH3: - | AI3: - | AJ3: - | AK3: - | AL3: - | AM3: - | AN3: - | AQ3: 1/8" | AR3: - | AS3: 10.2 | AT3: 1.6 | AU3: 1.8 | AV3: 2 | AW3: 2.3 | AX3: 2.6 | AY3: - | AZ3: - | BA3: - | BB3: - | BC3: - | BD3: - | BE3: - | BF3: - | BG3: - | BH3: - | BI3: - | BJ3: - | BK3: - | BL3: - | BM3: - | BN3: - | BO3: - | BQ3: 1/8" | BR3: - | BS3: 10.2 | BT3: 1.4 | BU3: 1.6 | BV3: 1.8 | BW3: 2 | BX3: 2.3 | BY3: 2.6 | BZ3: - | CA3: - | CB3: - | CC3: - | CD3: - | CE3: - | CF3: - | CG3: - | CH3: - | CI3: - | CJ3: - | CK3: -
B4: 1/4" | C4: 10 | D4: 13.5 | E4: 1.4 | F4: 1.6 | G4: 1.8 | H4: 2 | I4: 2.3 | J4: 2.6 | K4: 2.9 | L4: 3.2 | M4: 3.6 | N4: - | O4: - | P4: - | Q4: - | R4: - | S4: - | T4: - | U4: - | V4: - | W4: - | X4: - | Y4: - | Z4: - | AA4: - | AB4: - | AC4: - | AD4: - | AE4: - | AF4: - | AG4: - | AH4: - | AI4: - | AJ4: - | AK4: - | AL4: - | AM4: - | AN4: - | AQ4: 1/4" | AR4: 10 | AS4: 13.5 | AT4: 1.8 | AU4: 2 | AV4: 2.3 | AW4: 2.6 | AX4: 2.9 | AY4: 3.2 | AZ4: 3.6 | BA4: - | BB4: - | BC4: - | BD4: - | BE4: - | BF4: - | BG4: - | BH4: - | BI4: - | BJ4: - | BK4: - | BL4: - | BM4: - | BN4: - | BO4: - | BQ4: 1/4" | BR4: 10 | BS4: 13.5 | BT4: 1.4 | BU4: 1.6 | BV4: 1.8 | BW4: 2 | BX4: 2.3 | BY4: 2.6 | BZ4: 2.9 | CA4: 3.2 | CB4: 3.6 | CC4: - | CD4: - | CE4: - | CF4: - | CG4: - | CH4: - | CI4: - | CJ4: - | CK4: -
B5: 3/8" | C5: - | D5: 17.2 | E5: 1.4 | F5: 1.6 | G5: 1.8 | H5: 2 | I5: 2.3 | J5: 2.6 | K5: 2.9 | L5: 3.2 | M5: 3.6 | N5: 4 | O5: 4.5 | P5: - | Q5: - | R5: - | S5: - | T5: - | U5: - | V5: - | W5: - | X5: - | Y5: - | Z5: - | AA5: - | AB5: - | AC5: - | AD5: - | AE5: - | AF5: - | AG5: - | AH5: - | AI5: - | AJ5: - | AK5: - | AL5: - | AM5: - | AN5: - | AQ5: 3/8" | AR5: - | AS5: 17.2 | AT5: 1.8 | AU5: 2 | AV5: 2.3 | AW5: 2.6 | AX5: 2.9 | AY5: 3.2 | AZ5: 3.6 | BA5: 4 | BB5: 4.5 | BC5: - | BD5: - | BE5: - | BF5: - | BG5: - | BH5: - | BI5: - | BJ5: - | BK5: - | BL5: - | BM5: - | BN5: - | BO5: - | BQ5: 3/8" | BR5: - | BS5: 17.2 | BT5: 1.4 | BU5: 1.6 | BV5: 1.8 | BW5: 2 | BX5: 2.3 | BY5: 2.6 | BZ5: 2.9 | CA5: 3.2 | CB5: 3.6 | CC5: 4 | CD5: - | CE5: - | CF5: - | CG5: - | CH5: - | CI5: - | CJ5: - | CK5: -
B6: 1/2" | C6: 15 | D6: 21.3 | E6: 1.4 | F6: 1.6 | G6: 1.8 | H6: 2 | I6: 2.3 | J6: 2.6 | K6: 2.9 | L6: 3.2 | M6: 3.6 | N6: 4 | O6: 4.5 | P6: 5 | Q6: - | R6: - | S6: - | T6: - | U6: - | V6: - | W6: - | X6: - | Y6: - | Z6: - | AA6: - | AB6: - | AC6: - | AD6: - | AE6: - | AF6: - | AG6: - | AH6: - | AI6: - | AJ6: - | AK6: - | AL6: - | AM6: - | AN6: - | AQ6: 1/2" | AR6: 15 | AS6: 21.3 | AT6: 2 | AU6: 2.3 | AV6: 2.6 | AW6: 2.9 | AX6: 3.2 | AY6: 3.6 | AZ6: 4 | BA6: 4.5 | BB6: 5 | BC6: - | BD6: - | BE6: - | BF6: - | BG6: - | BH6: - | BI6: - | BJ6: - | BK6: - | BL6: - | BM6: - | BN6: - | BO6: - | BQ6: 1/2" | BR6: 15 | BS6: 21.3 | BT6: 1.4 | BU6: 1.6 | BV6: 1.8 | BW6: 2 | BX6: 2.3 | BY6: 2.6 | BZ6: 2.9 | CA6: 3.2 | CB6: 3.6 | CC6: 4 | CD6: 4.5 | CE6: - | CF6: - | CG6: - | CH6: - | CI6: - | CJ6: - | CK6: -
B7: 3/4" | C7: 20 | D7: 26.9 | E7: 1.4 | F7: 1.6 | G7: 1.8 | H7: 2 | I7: 2.3 | J7: 2.6 | K7: 2.9 | L7: 3.2 | M7: 3.6 | N7: 4 | O7: 4.5 | P7: 5 | Q7: 5.6 | R7: 6.3 | S7: 7.1 | T7: - | U7: - | V7: - | W7: - | X7: - | Y7: - | Z7: - | AA7: - | AB7: - | AC7: - | AD7: - | AE7: - | AF7: - | AG7: - | AH7: - | AI7: - | AJ7: - | AK7: - | AL7: - | AM7: - | AN7: - | AQ7: 3/4" | AR7: 20 | AS7: 26.9 | AT7: 2 | AU7: 2.3 | AV7: 2.6 | AW7: 2.9 | AX7: 3.2 | AY7: 3.6 | AZ7: 4 | BA7: 4.5 | BB7: 5 | BC7: 5.6 | BD7: 6.3 | BE7: 7.1 | BF7: - | BG7: - | BH7: - | BI7: - | BJ7: - | BK7: - | BL7: - | BM7: - | BN7: - | BO7: - | BQ7: 3/4" | BR7: 20 | BS7: 26.9 | BT7: 1.4 | BU7: 1.6 | BV7: 1.8 | BW7: 2 | BX7: 2.3 | BY7: 2.6 | BZ7: 2.9 | CA7: 3.2 | CB7: 3.6 | CC7: 4 | CD7: 4.5 | CE7: 5 | CF7: - | CG7: - | CH7: - | CI7: - | CJ7: - | CK7: -
B8: 1" | C8: 25 | D8: 33.7 | E8: 1.4 | F8: 1.6 | G8: 1.8 | H8: 2 | I8: 2.3 | J8: 2.6 | K8: 2.9 | L8: 3.2 | M8: 3.6 | N8: 4 | O8: 4.5 | P8: 5 | Q8: 5.6 | R8: 6.3 | S8: 7.1 | T8: 8 | U8: - | V8: - | W8: - | X8: - | Y8: - | Z8: - | AA8: - | AB8: - | AC8: - | AD8: - | AE8: - | AF8: - | AG8: - | AH8: - | AI8: - | AJ8: - | AK8: - | AL8: - | AM8: - | AN8: - | AQ8: 1" | AR8: 25 | AS8: 33.7 | AT8: 2 | AU8: 2.3 | AV8: 2.6 | AW8: 2.9 | AX8: 3.2 | AY8: 3.6 | AZ8: 4 | BA8: 4.5 | BB8: 5 | BC8: 5.6 | BD8: 6.3 | BE8: 7.1 | BF8: 8 | BG8: - | BH8: - | BI8: - | BJ8: - | BK8: - | BL8: - | BM8: - | BN8: - | BO8: - | BQ8: 1" | BR8: 25 | BS8: 33.7 | BT8: 1.4 | BU8: 1.6 | BV8: 1.8 | BW8: 2 | BX8: 2.3 | BY8: 2.6 | BZ8: 2.9 | CA8: 3.2 | CB8: 3.6 | CC8: 4 | CD8: 4.5 | CE8: 5 | CF8: 5.6 | CG8: 6.3 | CH8: 7.1 | CI8: 8 | CJ8: - | CK8: -
B9: 1¼" | C9: 32 | D9: 42.4 | E9: 1.4 | F9: 1.6 | G9: 1.8 | H9: 2 | I9: 2.3 | J9: 2.6 | K9: 2.9 | L9: 3.2 | M9: 3.6 | N9: 4 | O9: 4.5 | P9: 5 | Q9: 5.6 | R9: 6.3 | S9: 7.1 | T9: 8 | U9: 8.8 | V9: - | W9: - | X9: - | Y9: - | Z9: - | AA9: - | AB9: - | AC9: - | AD9: - | AE9: - | AF9: - | AG9: - | AH9: - | AI9: - | AJ9: - | AK9: - | AL9: - | AM9: - | AN9: - | AQ9: 1¼" | AR9: 32 | AS9: 42.4 | AT9: 2.6 | AU9: 2.9 | AV9: 3.2 | AW9: 3.6 | AX9: 4 | AY9: 4.5 | AZ9: 5 | BA9: 5.6 | BB9: 6.3 | BC9: 7.1 | BD9: 8 | BE9: 8.8 | BF9: 10 | BG9: - | BH9: - | BI9: - | BJ9: - | BK9: - | BL9: - | BM9: - | BN9: - | BO9: - | BQ9: 1¼" | BR9: 32 | BS9: 42.4 | BT9: 1.4 | BU9: 1.6 | BV9: 1.8 | BW9: 2 | BX9: 2.3 | BY9: 2.6 | BZ9: 2.9 | CA9: 3.2 | CB9: 3.6 | CC9: 4 | CD9: 4.5 | CE9: 5 | CF9: 5.6 | CG9: 6.3 | CH9: 7.1 | CI9: 8 | CJ9: 8.8 | CK9: -
B10: 1½" | C10: 40 | D10: 48.3 | E10: 1.4 | F10: 1.6 | G10: 1.8 | H10: 2 | I10: 2.3 | J10: 2.6 | K10: 2.9 | L10: 3.2 | M10: 3.6 | N10: 4 | O10: 4.5 | P10: 5 | Q10: 5.6 | R10: 6.3 | S10: 7.1 | T10: 8 | U10: 8.8 | V10: 10 | W10: 11 | X10: 12.5 | Y10: - | Z10: - | AA10: - | AB10: - | AC10: - | AD10: - | AE10: - | AF10: - | AG10: - | AH10: - | AI10: - | AJ10: - | AK10: - | AL10: - | AM10: - | AN10: - | AQ10: 1½" | AR10: 40 | AS10: 48.3 | AT10: 2.6 | AU10: 2.9 | AV10: 3.2 | AW10: 3.6 | AX10: 4 | AY10: 4.5 | AZ10: 5 | BA10: 5.6 | BB10: 6.3 | BC10: 7.1 | BD10: 8 | BE10: 8.8 | BF10: 10 | BG10: 11 | BH10: 12.5 | BI10: - | BJ10: - | BK10: - | BL10: - | BM10: - | BN10: - | BO10: - | BQ10: 1½" | BR10: 40 | BS10: 48.3 | BT10: 1.4 | BU10: 1.6 | BV10: 1.8 | BW10: 2 | BX10: 2.3 | BY10: 2.6 | BZ10: 2.9 | CA10: 3.2 | CB10: 3.6 | CC10: 4 | CD10: 4.5 | CE10: 5 | CF10: 5.6 | CG10: 6.3 | CH10: 7.1 | CI10: 8 | CJ10: 8.8 | CK10: -
B11: 2" | C11: 50 | D11: 60.3 | E11: 1.4 | F11: 1.6 | G11: 1.8 | H11: 2 | I11: 2.3 | J11: 2.6 | K11: 2.9 | L11: 3.2 | M11: 3.6 | N11: 4 | O11: 4.5 | P11: 5 | Q11: 5.6 | R11: 6.3 | S11: 7.1 | T11: 8 | U11: 8.8 | V11: 10 | W11: 11 | X11: 12.5 | Y11: 14.2 | Z11: 16 | AA11: - | AB11: - | AC11: - | AD11: - | AE11: - | AF11: - | AG11: - | AH11: - | AI11: - | AJ11: - | AK11: - | AL11: - | AM11: - | AN11: - | AQ11: 2" | AR11: 50 | AS11: 60.3 | AT11: 2.9 | AU11: 3.2 | AV11: 3.6 | AW11: 4 | AX11: 4.5 | AY11: 5 | AZ11: 5.6 | BA11: 6.3 | BB11: 7.1 | BC11: 8 | BD11: 8.8 | BE11: 10 | BF11: 11 | BG11: 12.5 | BH11: 14.2 | BI11: 16 | BJ11: - | BK11: - | BL11: - | BM11: - | BN11: - | BO11: - | BQ11: 2" | BR11: 50 | BS11: 60.3 | BT11: 1.4 | BU11: 1.6 | BV11: 1.8 | BW11: 2 | BX11: 2.3 | BY11: 2.6 | BZ11: 2.9 | CA11: 3.2 | CB11: 3.6 | CC11: 4 | CD11: 4.5 | CE11: 5 | CF11: 5.6 | CG11: 6.3 | CH11: 7.1 | CI11: 8 | CJ11: 8.8 | CK11: 10
B12: 2½" | C12: 65 | D12: 73 | E12: - | F12: 1.6 | G12: 1.8 | H12: 2 | I12: 2.3 | J12: 2.6 | K12: 2.9 | L12: 3.2 | M12: 3.6 | N12: 4 | O12: 4.5 | P12: 5 | Q12: 5.6 | R12: 6.3 | S12: 7.1 | T12: 8 | U12: 8.8 | V12: 10 | W12: 11 | X12: 12.5 | Y12: 14.2 | Z12: 16 | AA12: 17.5 | AB12: - | AC12: - | AD12: - | AE12: - | AF12: - | AG12: - | AH12: - | AI12: - | AJ12: - | AK12: - | AL12: - | AM12: - | AN12: - | AQ12: 2½" | AR12: 65 | AS12: 73 | AT12: 2.9 | AU12: 3.2 | AV12: 3.6 | AW12: 4 | AX12: 4.5 | AY12: 5 | AZ12: 5.6 | BA12: 6.3 | BB12: 7.1 | BC12: 8 | BD12: 8.8 | BE12: 10 | BF12: 11 | BG12: 12.5 | BH12: 14.2 | BI12: 16 | BJ12: 17.5 | BK12: - | BL12: - | BM12: - | BN12: - | BO12: - | BQ12: 2½" | BR12: 65 | BS12: 73 | BT12: 1.6 | BU12: 1.8 | BV12: 2 | BW12: 2.3 | BX12: 2.6 | BY12: 2.9 | BZ12: 3.2 | CA12: 3.6 | CB12: 4 | CC12: 4.5 | CD12: 5 | CE12: 5.6 | CF12: 6.3 | CG12: 7.1 | CH12: 8 | CI12: 8.8 | CJ12: 10 | CK12: -
B13: 3" | C13: 80 | D13: 88.9 | E13: - | F13: 1.6 | G13: 1.8 | H13: 2 | I13: 2.3 | J13: 2.6 | K13: 2.9 | L13: 3.2 | M13: 3.6 | N13: 4 | O13: 4.5 | P13: 5 | Q13: 5.6 | R13: 6.3 | S13: 7.1 | T13: 8 | U13: 8.8 | V13: 10 | W13: 11 | X13: 12.5 | Y13: 14.2 | Z13: 16 | AA13: 17.5 | AB13: 20 | AC13: 22.2 | AD13: 25 | AE13: - | AF13: - | AG13: - | AH13: - | AI13: - | AJ13: - | AK13: - | AL13: - | AM13: - | AN13: - | AQ13: 3" | AR13: 80 | AS13: 88.9 | AT13: 3.2 | AU13: 3.6 | AV13: 4 | AW13: 4.5 | AX13: 5 | AY13: 5.6 | AZ13: 6.3 | BA13: 7.1 | BB13: 8 | BC13: 8.8 | BD13: 10 | BE13: 11 | BF13: 12.5 | BG13: 14.2 | BH13: 16 | BI13: 17.5 | BJ13: 20 | BK13: 22.2 | BL13: 25 | BM13: - | BN13: - | BO13: - | BQ13: 3" | BR13: 80 | BS13: 88.9 | BT13: 1.6 | BU13: 1.8 | BV13: 2 | BW13: 2.3 | BX13: 2.6 | BY13: 2.9 | BZ13: 3.2 | CA13: 3.6 | CB13: 4 | CC13: 4.5 | CD13: 5 | CE13: 5.6 | CF13: 6.3 | CG13: 7.1 | CH13: 8 | CI13: 8.8 | CJ13: 10 | CK13: -
B14: 3½" | C14: - | D14: 101.6 | E14: - | F14: - | G14: - | H14: 2 | I14: 2.3 | J14: 2.6 | K14: 2.9 | L14: 3.2 | M14: 3.6 | N14: 4 | O14: 4.5 | P14: 5 | Q14: 5.6 | R14: 6.3 | S14: 7.1 | T14: 8 | U14: 8.8 | V14: 10 | W14: 11 | X14: 12.5 | Y14: 14.2 | Z14: 16 | AA14: 17.5 | AB14: 20 | AC14: 22.2 | AD14: 25 | AE14: 28 | AF14: - | AG14: - | AH14: - | AI14: - | AJ14: - | AK14: - | AL14: - | AM14: - | AN14: - | AQ14: 3½" | AR14: - | AS14: 101.6 | AT14: 3.6 | AU14: 4 | AV14: 4.5 | AW14: 5 | AX14: 5.6 | AY14: 6.3 | AZ14: 7.1 | BA14: 8 | BB14: 8.8 | BC14: 10 | BD14: 11 | BE14: 12.5 | BF14: 14.2 | BG14: 16 | BH14: 17.5 | BI14: 20 | BJ14: 22.2 | BK14: 25 | BL14: 28 | BM14: - | BN14: - | BO14: - | BQ14: 3½" | BR14: - | BS14: 101.6 | BT14: 2 | BU14: 2.3 | BV14: 2.6 | BW14: 2.9 | BX14: 3.2 | BY14: 3.6 | BZ14: 4 | CA14: 4.5 | CB14: 5 | CC14: 5.6 | CD14: 6.3 | CE14: 7.1 | CF14: 8 | CG14: 8.8 | CH14: 10 | CI14: - | CJ14: - | CK14: -
B15: 4" | C15: 100 | D15: 114.3 | E15: - | F15: - | G15: - | H15: 2 | I15: 2.3 | J15: 2.6 | K15: 2.9 | L15: 3.2 | M15: 3.6 | N15: 4 | O15: 4.5 | P15: 5 | Q15: 5.6 | R15: 6.3 | S15: 7.1 | T15: 8 | U15: 8.8 | V15: 10 | W15: 11 | X15: 12.5 | Y15: 14.2 | Z15: 16 | AA15: 17.5 | AB15: 20 | AC15: 22.2 | AD15: 25 | AE15: 28 | AF15: 30 | AG15: 32 | AH15: - | AI15: - | AJ15: - | AK15: - | AL15: - | AM15: - | AN15: - | AQ15: 4" | AR15: 100 | AS15: 114.3 | AT15: 3.6 | AU15: 4 | AV15: 4.5 | AW15: 5 | AX15: 5.6 | AY15: 6.3 | AZ15: 7.1 | BA15: 8 | BB15: 8.8 | BC15: 10 | BD15: 11 | BE15: 12.5 | BF15: 14.2 | BG15: 16 | BH15: 17.5 | BI15: 20 | BJ15: 22.2 | BK15: 25 | BL15: 28 | BM15: 30 | BN15: 32 | BO15: - | BQ15: 4" | BR15: 100 | BS15: 114.3 | BT15: 2 | BU15: 2.3 | BV15: 2.6 | BW15: 2.9 | BX15: 3.2 | BY15: 3.6 | BZ15: 4 | CA15: 4.5 | CB15: 5 | CC15: 5.6 | CD15: 6.3 | CE15: 7.1 | CF15: 8 | CG15: 8.8 | CH15: 10 | CI15: 11 | CJ15: - | CK15: -
B16: 5" | C16: 125 | D16: 139.7 | E16: - | F16: - | G16: - | H16: 2 | I16: 2.3 | J16: 2.6 | K16: 2.9 | L16: 3.2 | M16: 3.6 | N16: 4 | O16: 4.5 | P16: 5 | Q16: 5.6 | R16: 6.3 | S16: 7.1 | T16: 8 | U16: 8.8 | V16: 10 | W16: 11 | X16: 12.5 | Y16: 14.2 | Z16: 16 | AA16: 17.5 | AB16: 20 | AC16: 22.2 | AD16: 25 | AE16: 28 | AF16: 30 | AG16: 32 | AH16: 36 | AI16: - | AJ16: - | AK16: - | AL16: - | AM16: - | AN16: - | AQ16: 5" | AR16: 125 | AS16: 139.7 | AT16: 4 | AU16: 4.5 | AV16: 5 | AW16: 5.6 | AX16: 6.3 | AY16: 7.1 | AZ16: 8 | BA16: 8.8 | BB16: 10 | BC16: 11 | BD16: 12.5 | BE16: 14.2 | BF16: 16 | BG16: 17.5 | BH16: 20 | BI16: 22.2 | BJ16: 25 | BK16: 28 | BL16: 30 | BM16: 32 | BN16: 36 | BO16: - | BQ16: 5" | BR16: 125 | BS16: 139.7 | BT16: 2 | BU16: 2.3 | BV16: 2.6 | BW16: 2.9 | BX16: 3.2 | BY16: 3.6 | BZ16: 4 | CA16: 4.5 | CB16: 5 | CC16: 5.6 | CD16: 6.3 | CE16: 7.1 | CF16: 8 | CG16: 8.8 | CH16: 10 | CI16: 11 | CJ16: - | CK16: -
B17: 6" | C17: 150 | D17: 168.3 | E17: - | F17: - | G17: - | H17: - | I17: - | J17: - | K17: 2.9 | L17: 3.2 | M17: 3.6 | N17: 4 | O17: 4.5 | P17: 5 | Q17: 5.6 | R17: 6.3 | S17: 7.1 | T17: 8 | U17: 8.8 | V17: 10 | W17: 11 | X17: 12.5 | Y17: 14.2 | Z17: 16 | AA17: 17.5 | AB17: 20 | AC17: 22.2 | AD17: 25 | AE17: 28 | AF17: 30 | AG17: 32 | AH17: 36 | AI17: 40 | AJ17: 45 | AK17: 50 | AL17: - | AM17: - | AN17: - | AQ17: 6" | AR17: 150 | AS17: 168.3 | AT17: 4 | AU17: 4.5 | AV17: 5 | AW17: 5.6 | AX17: 6.3 | AY17: 7.1 | AZ17: 8 | BA17: 8.8 | BB17: 10 | BC17: 11 | BD17: 12.5 | BE17: 14.2 | BF17: 16 | BG17: 17.5 | BH17: 20 | BI17: 22.2 | BJ17: 25 | BK17: 28 | BL17: 30 | BM17: 32 | BN17: 40 | BO17: 45 | BQ17: 6" | BR17: 150 | BS17: 168.3 | BT17: 2.9 | BU17: 3.2 | BV17: 3.6 | BW17: 4 | BX17: 4.5 | BY17: 5 | BZ17: 5.6 | CA17: 6.3 | CB17: 7.1 | CC17: 8 | CD17: 8.8 | CE17: 10 | CF17: 11 | CG17: - | CH17: - | CI17: - | CJ17: - | CK17: -
B18: 8" | C18: 200 | D18: 219.1 | E18: - | F18: - | G18: - | H18: - | I18: - | J18: - | K18: - | L18: 3.2 | M18: 3.6 | N18: 4 | O18: 4.5 | P18: 5 | Q18: 5.6 | R18: 6.3 | S18: 7.1 | T18: 8 | U18: 8.8 | V18: 10 | W18: 11 | X18: 12.5 | Y18: 14.2 | Z18: 16 | AA18: 17.5 | AB18: 20 | AC18: 22.2 | AD18: 25 | AE18: 28 | AF18: 30 | AG18: 32 | AH18: 36 | AI18: 40 | AJ18: 45 | AK18: 50 | AL18: 55 | AM18: 60 | AN18: - | AQ18: 8" | AR18: 200 | AS18: 219.1 | AT18: 6.3 | AU18: 7.1 | AV18: 8 | AW18: 8.8 | AX18: 10 | AY18: 11 | AZ18: 12.5 | BA18: 14.2 | BB18: 16 | BC18: 17.5 | BD18: 20 | BE18: 22.2 | BF18: 25 | BG18: 28 | BH18: 30 | BI18: 32 | BJ18: 40 | BK18: 45 | BL18: 50 | BM18: 55 | BN18: 60 | BO18: - | BQ18: 8" | BR18: 200 | BS18: 219.1 | BT18: 3.2 | BU18: 3.6 | BV18: 4 | BW18: 4.5 | BX18: 5 | BY18: 5.6 | BZ18: 6.3 | CA18: 7.1 | CB18: 8 | CC18: 8.8 | CD18: 10 | CE18: 11 | CF18: 12.5 | CG18: - | CH18: - | CI18: - | CJ18: - | CK18: -
B19: 10" | C19: 250 | D19: 273 | E19: - | F19: - | G19: - | H19: - | I19: - | J19: - | K19: - | L19: 3.2 | M19: 3.6 | N19: 4 | O19: 4.5 | P19: 5 | Q19: 5.6 | R19: 6.3 | S19: 7.1 | T19: 8 | U19: 8.8 | V19: 10 | W19: 11 | X19: 12.5 | Y19: 14.2 | Z19: 16 | AA19: 17.5 | AB19: 20 | AC19: 22.2 | AD19: 25 | AE19: 28 | AF19: 30 | AG19: 32 | AH19: 36 | AI19: 40 | AJ19: 45 | AK19: 50 | AL19: 55 | AM19: 60 | AN19: 65 | AQ19: 10" | AR19: 250 | AS19: 273 | AT19: 6.3 | AU19: 7.1 | AV19: 8 | AW19: 8.8 | AX19: 10 | AY19: 11 | AZ19: 12.5 | BA19: 14.2 | BB19: 16 | BC19: 17.5 | BD19: 20 | BE19: 22.2 | BF19: 25 | BG19: 28 | BH19: 30 | BI19: 32 | BJ19: 40 | BK19: 45 | BL19: 50 | BM19: 55 | BN19: 60 | BO19: 65 | BQ19: 10" | BR19: 250 | BS19: 273 | BT19: 3.2 | BU19: 3.6 | BV19: 4 | BW19: 4.5 | BX19: 5 | BY19: 5.6 | BZ19: 6.3 | CA19: 7.1 | CB19: 8 | CC19: 8.8 | CD19: 10 | CE19: 11 | CF19: 12.5 | CG19: - | CH19: - | CI19: - | CJ19: - | CK19: -
B20: 12" | C20: 300 | D20: 323.9 | E20: - | F20: - | G20: - | H20: - | I20: - | J20: - | K20: - | L20: 3.2 | M20: 3.6 | N20: 4 | O20: 4.5 | P20: 5 | Q20: 5.6 | R20: 6.3 | S20: 7.1 | T20: 8 | U20: 8.8 | V20: 10 | W20: 11 | X20: 12.5 | Y20: 14.2 | Z20: 16 | AA20: 17.5 | AB20: 20 | AC20: 22.2 | AD20: 25 | AE20: 28 | AF20: 30 | AG20: 32 | AH20: 36 | AI20: 40 | AJ20: 45 | AK20: 50 | AL20: 55 | AM20: 60 | AN20: 65 | AQ20: 12" | AR20: 300 | AS20: 323.9 | AT20: 7.1 | AU20: 8 | AV20: 8.8 | AW20: 10 | AX20: 11 | AY20: 12.5 | AZ20: 14.2 | BA20: 16 | BB20: 17.5 | BC20: 20 | BD20: 22.2 | BE20: 25 | BF20: 28 | BG20: 30 | BH20: 32 | BI20: 40 | BJ20: 45 | BK20: 50 | BL20: 55 | BM20: 60 | BN20: 65 | BO20: - | BQ20: 12" | BR20: 300 | BS20: 323.9 | BT20: 3.2 | BU20: 3.6 | BV20: 4 | BW20: 4.5 | BX20: 5 | BY20: 5.6 | BZ20: 6.3 | CA20: 7.1 | CB20: 8 | CC20: 8.8 | CD20: 10 | CE20: 11 | CF20: 12.5 | CG20: - | CH20: - | CI20: - | CJ20: - | CK20: -
B21: 14" | C21: 350 | D21: 355.6 | E21: - | F21: - | G21: - | H21: - | I21: - | J21: - | K21: - | L21: 3.2 | M21: 3.6 | N21: 4 | O21: 4.5 | P21: 5 | Q21: 5.6 | R21: 6.3 | S21: 7.1 | T21: 8 | U21: 8.8 | V21: 10 | W21: 11 | X21: 12.5 | Y21: 14.2 | Z21: 16 | AA21: 17.5 | AB21: 20 | AC21: 22.2 | AD21: 25 | AE21: 28 | AF21: 30 | AG21: 32 | AH21: 36 | AI21: 40 | AJ21: 45 | AK21: 50 | AL21: 55 | AM21: 60 | AN21: 65 | AQ21: 14" | AR21: 350 | AS21: 355.6 | AT21: 8 | AU21: 8.8 | AV21: 10 | AW21: 11 | AX21: 12.5 | AY21: 14.2 | AZ21: 16 | BA21: 17.5 | BB21: 20 | BC21: 22.2 | BD21: 25 | BE21: 28 | BF21: 30 | BG21: 32 | BH21: 40 | BI21: 45 | BJ21: 50 | BK21: 55 | BL21: 60 | BM21: 65 | BN21: - | BO21: - | BQ21: 14" | BR21: 350 | BS21: 355.6 | BT21: 3.2 | BU21: 3.6 | BV21: 4 | BW21: 4.5 | BX21: 5 | BY21: 5.6 | BZ21: 6.3 | CA21: 7.1 | CB21: 8 | CC21: 8.8 | CD21: 10 | CE21: 11 | CF21: 12.5 | CG21: - | CH21: - | CI21: - | CJ21: - | CK21: -
B22: 16" | C22: 400 | D22: 406.4 | E22: - | F22: - | G22: - | H22: - | I22: - | J22: - | K22: - | L22: - | M22: 3.6 | N22: 4 | O22: 4.5 | P22: 5 | Q22: 5.6 | R22: 6.3 | S22: 7.1 | T22: 8 | U22: 8.8 | V22: 10 | W22: 11 | X22: 12.5 | Y22: 14.2 | Z22: 16 | AA22: 17.5 | AB22: 20 | AC22: 22.2 | AD22: 25 | AE22: 28 | AF22: 30 | AG22: 32 | AH22: 36 | AI22: 40 | AJ22: 45 | AK22: 50 | AL22: 55 | AM22: 60 | AN22: 65 | AQ22: 16" | AR22: 400 | AS22: 406.4 | AT22: 8.8 | AU22: 10 | AV22: 11 | AW22: 12.5 | AX22: 14.2 | AY22: 16 | AZ22: 17.5 | BA22: 20 | BB22: 22.2 | BC22: 25 | BD22: 28 | BE22: 30 | BF22: 32 | BG22: 40 | BH22: 45 | BI22: 50 | BJ22: 55 | BK22: 60 | BL22: 65 | BM22: - | BN22: - | BO22: - | BQ22: 16" | BR22: 400 | BS22: 406.4 | BT22: 3.6 | BU22: 4 | BV22: 4.5 | BW22: 5 | BX22: 5.6 | BY22: 6.3 | BZ22: 7.1 | CA22: 8 | CB22: 8.8 | CC22: 10 | CD22: 11 | CE22: 12.5 | CF22: - | CG22: - | CH22: - | CI22: - | CJ22: - | CK22: -
B23: 18" | C23: 450 | D23: 457 | E23: - | F23: - | G23: - | H23: - | I23: - | J23: - | K23: - | L23: - | M23: 3.6 | N23: 4 | O23: 4.5 | P23: 5 | Q23: 5.6 | R23: 6.3 | S23: 7.1 | T23: 8 | U23: 8.8 | V23: 10 | W23: 11 | X23: 12.5 | Y23: 14.2 | Z23: 16 | AA23: 17.5 | AB23: 20 | AC23: 22.2 | AD23: 25 | AE23: 28 | AF23: 30 | AG23: 32 | AH23: 36 | AI23: 40 | AJ23: 45 | AK23: 50 | AL23: 55 | AM23: 60 | AN23: 65 | AQ23: 18" | AR23: 450 | AS23: 457 | AT23: 10 | AU23: 11 | AV23: 12.5 | AW23: 14.2 | AX23: 16 | AY23: 17.5 | AZ23: 20 | BA23: 22.2 | BB23: 25 | BC23: 28 | BD23: 30 | BE23: 32 | BF23: 40 | BG23: 45 | BH23: 50 | BI23: 55 | BJ23: 60 | BK23: 65 | BL23: - | BM23: - | BN23: - | BO23: - | BQ23: 18" | BR23: 450 | BS23: 457 | BT23: 3.6 | BU23: 4 | BV23: 4.5 | BW23: 5 | BX23: 5.6 | BY23: 6.3 | BZ23: 7.1 | CA23: 8 | CB23: 8.8 | CC23: 10 | CD23: 11 | CE23: 12.5 | CF23: - | CG23: - | CH23: - | CI23: - | CJ23: - | CK23: -
B24: 20" | C24: 500 | D24: 508 | E24: - | F24: - | G24: - | H24: - | I24: - | J24: - | K24: - | L24: - | M24: 3.6 | N24: 4 | O24: 4.5 | P24: 5 | Q24: 5.6 | R24: 6.3 | S24: 7.1 | T24: 8 | U24: 8.8 | V24: 10 | W24: 11 | X24: 12.5 | Y24: 14.2 | Z24: 16 | AA24: 17.5 | AB24: 20 | AC24: 22.2 | AD24: 25 | AE24: 28 | AF24: 30 | AG24: 32 | AH24: 36 | AI24: 40 | AJ24: 45 | AK24: 50 | AL24: 55 | AM24: 60 | AN24: 65 | AQ24: 20" | AR24: 500 | AS24: 508 | AT24: 11 | AU24: 12.5 | AV24: 14.2 | AW24: 16 | AX24: 17.5 | AY24: 20 | AZ24: 22.2 | BA24: 25 | BB24: 28 | BC24: 30 | BD24: 32 | BE24: 40 | BF24: 45 | BG24: 50 | BH24: 55 | BI24: 60 | BJ24: 65 | BK24: - | BL24: - | BM24: - | BN24: - | BO24: - | BQ24: 20" | BR24: 500 | BS24: 508 | BT24: 3.6 | BU24: 4 | BV24: 4.5 | BW24: 5 | BX24: 5.6 | BY24: 6.3 | BZ24: 7.1 | CA24: 8 | CB24: 8.8 | CC24: 10 | CD24: 11 | CE24: 12.5 | CF24: 14.2 | CG24: 16 | CH24: - | CI24: - | CJ24: - | CK24: -
B25: 22" | C25: 550 | D25: 559 | E25: - | F25: - | G25: - | H25: - | I25: - | J25: - | K25: - | L25: - | M25: - | N25: - | O25: 4.5 | P25: 5 | Q25: 5.6 | R25: 6.3 | S25: 7.1 | T25: 8 | U25: 8.8 | V25: 10 | W25: 11 | X25: 12.5 | Y25: 14.2 | Z25: 16 | AA25: 17.5 | AB25: 20 | AC25: 22.2 | AD25: 25 | AE25: 28 | AF25: 30 | AG25: 32 | AH25: 36 | AI25: 40 | AJ25: 45 | AK25: 50 | AL25: 55 | AM25: 60 | AN25: 65 | AQ25: 22" | AR25: 550 | AS25: 559 | AT25: 12.5 | AU25: 14.2 | AV25: 16 | AW25: 17.5 | AX25: 20 | AY25: 22.2 | AZ25: 25 | BA25: 28 | BB25: 30 | BC25: 32 | BD25: 40 | BE25: 45 | BF25: 50 | BG25: 55 | BH25: 60 | BI25: 65 | BJ25: - | BK25: - | BL25: - | BM25: - | BN25: - | BO25: - | BQ25: 22" | BR25: 550 | BS25: 559 | BT25: 4.5 | BU25: 5 | BV25: 5.6 | BW25: 6.3 | BX25: 7.1 | BY25: 8 | BZ25: 8.8 | CA25: 10 | CB25: 11 | CC25: 12.5 | CD25: 14.2 | CE25: 16 | CF25: 17.5 | CG25: 20 | CH25: - | CI25: - | CJ25: - | CK25: -
B26: 24" | C26: 600 | D26: 610 | E26: - | F26: - | G26: - | H26: - | I26: - | J26: - | K26: - | L26: - | M26: - | N26: - | O26: 4.5 | P26: 5 | Q26: 5.6 | R26: 6.3 | S26: 7.1 | T26: 8 | U26: 8.8 | V26: 10 | W26: 11 | X26: 12.5 | Y26: 14.2 | Z26: 16 | AA26: 17.5 | AB26: 20 | AC26: 22.2 | AD26: 25 | AE26: 28 | AF26: 30 | AG26: 32 | AH26: 36 | AI26: 40 | AJ26: 45 | AK26: 50 | AL26: 55 | AM26: 60 | AN26: 65 | AQ26: 24" | AR26: 600 | AS26: 610 | AT26: 12.5 | AU26: 14.2 | AV26: 16 | AW26: 17.5 | AX26: 20 | AY26: 22.2 | AZ26: 25 | BA26: 28 | BB26: 30 | BC26: 32 | BD26: 40 | BE26: 45 | BF26: 50 | BG26: 55 | BH26: 60 | BI26: 65 | BJ26: - | BK26: - | BL26: - | BM26: - | BN26: - | BO26: - | BQ26: 24" | BR26: 600 | BS26: 610 | BT26: 4.5 | BU26: 5 | BV26: 5.6 | BW26: 6.3 | BX26: 7.1 | BY26: 8 | BZ26: 8.8 | CA26: 10 | CB26: 11 | CC26: 12.5 | CD26: 14.2 | CE26: 16 | CF26: 17.5 | CG26: 20 | CH26: 22.2 | CI26: 25 | CJ26: 28 | CK26: -
B27: 28" | C27: 700 | D27: 711 | E27: - | F27: - | G27: - | H27: - | I27: - | J27: - | K27: - | L27: - | M27: - | N27: - | O27: - | P27: 5 | Q27: - | R27: - | S27: 7.1 | T27: - | U27: - | V27: - | W27: - | X27: 12.5 | Y27: - | Z27: - | AA27: - | AB27: 20 | AC27: - | AD27: - | AE27: - | AF27: - | AG27: 32 | AH27: - | AI27: - | AJ27: - | AK27: - | AL27: - | AM27: - | AN27: -
B28: 32" | C28: 800 | D28: 813 | E28: - | F28: - | G28: - | H28: - | I28: - | J28: - | K28: - | L28: - | M28: - | N28: - | O28: - | P28: - | Q28: 5.6 | R28: - | S28: - | T28: 8 | U28: - | V28: - | W28: - | X28: 12.5 | Y28: - | Z28: - | AA28: - | AB28: - | AC28: 22.2 | AD28: - | AE28: - | AF28: - | AG28: - | AH28: 36 | AI28: - | AJ28: - | AK28: - | AL28: - | AM28: - | AN28: -
B29: 36" | C29: 900 | D29: 914 | E29: - | F29: - | G29: - | H29: - | I29: - | J29: - | K29: - | L29: - | M29: - | N29: - | O29: - | P29: - | Q29: - | R29: 6.3 | S29: - | T29: - | U29: - | V29: 10 | W29: - | X29: 12.5 | Y29: - | Z29: - | AA29: - | AB29: - | AC29: - | AD29: 25 | AE29: - | AF29: - | AG29: - | AH29: - | AI29: 40 | AJ29: - | AK29: - | AL29: - | AM29: - | AN29: -
B30: 40" | C30: 1000 | D30: 1016 | E30: - | F30: - | G30: - | H30: - | I30: - | J30: - | K30: - | L30: - | M30: - | N30: - | O30: - | P30: - | Q30: - | R30: 6.3 | S30: - | T30: - | U30: - | V30: 10 | W30: - | X30: 12.5 | Y30: - | Z30: - | AA30: - | AB30: - | AC30: - | AD30: - | AE30: 28 | AF30: - | AG30: - | AH30: - | AI30: - | AJ30: 45 | AK30: - | AL30: - | AM30: - | AN30: -
B31: 48" | C31: 1200 | D31: 1220 | E31: - | F31: - | G31: - | H31: - | I31: - | J31: - | K31: - | L31: - | M31: - | N31: - | O31: - | P31: - | Q31: - | R31: 6.3 | S31: - | T31: - | U31: - | V31: 10 | W31: - | X31: 12.5 | Y31: - | Z31: - | AA31: - | AB31: - | AC31: - | AD31: - | AE31: - | AF31: - | AG31: - | AH31: - | AI31: - | AJ31: - | AK31: - | AL31: - | AM31: - | AN31: -
B32: 56" | C32: 1400 | D32: 1420 | E32: - | F32: - | G32: - | H32: - | I32: - | J32: - | K32: - | L32: - | M32: - | N32: - | O32: - | P32: - | Q32: - | R32: 6.3 | S32: - | T32: - | U32: - | V32: 10 | W32: - | X32: 12.5 | Y32: - | Z32: - | AA32: - | AB32: - | AC32: - | AD32: - | AE32: - | AF32: - | AG32: - | AH32: - | AI32: - | AJ32: - | AK32: - | AL32: - | AM32: - | AN32: -
B33: 64" | C33: 1600 | D33: 1620 | E33: - | F33: - | G33: - | H33: - | I33: - | J33: - | K33: - | L33: - | M33: - | N33: - | O33: - | P33: - | Q33: - | R33: 6.3 | S33: - | T33: - | U33: - | V33: 10 | W33: - | X33: 12.5 | Y33: - | Z33: - | AA33: - | AB33: - | AC33: - | AD33: - | AE33: - | AF33: - | AG33: - | AH33: - | AI33: - | AJ33: - | AK33: - | AL33: - | AM33: - | AN33: -

Sheet Data SS pipe (hidden)
A1: Data Stainless steel pipes | C1: Diameter | D1: Wall | E1: Size and schedule | F1: Diameter
B2: x | C2: outside | D2: thickness | F2: inside
A3: 1 | B3: =CONCATENATE(C3,$B$2,D3,E3) -> 1.59 x 0,51 (1/18" OD) | C3: 1.59 | D3: 0,51 | E3: (1/18" OD) | F3: =C3-D3*2 -> #VALUE!
B4: 3,00 x 1,00 | C4: 3,00 | D4: 1,00 | F4: #VALUE!
B5: 3.18 x 0.51 (1/8" OD) | C5: 3.18 | D5: 0.51 | E5: (1/8" OD) | F5: 2.16
B6: 3.18 x 0.71 (1/8" OD) | C6: 3.18 | D6: 0.71 | E6: (1/8" OD) | F6: 1.76
B7: 3.18 x 0.89 (1/8" OD) | C7: 3.18 | D7: 0.89 | E7: (1/8" OD) | F7: 1.4
B8: 4,00 x 0,50 | C8: 4,00 | D8: 0,50 | F8: #VALUE!
B9: 4,00 x 1,00 | C9: 4,00 | D9: 1,00 | F9: #VALUE!
B10: 4.76 x 0,71 (3/16" OD) | C10: 4.76 | D10: 0,71 | E10: (3/16" OD) | F10: #VALUE!
B11: 4.76 x 0.89 (3/16" OD) | C11: 4.76 | D11: 0.89 | E11: (3/16" OD) | F11: 2.98
B12: 4.76 x 1,24 (3/16" OD) | C12: 4.76 | D12: 1,24 | E12: (3/16" OD) | F12: #VALUE!
B13: 5,00 x 0,50 | C13: 5,00 | D13: 0,50 | F13: #VALUE!
B14: 5,00 x 1,00 | C14: 5,00 | D14: 1,00 | F14: #VALUE!
B15: 6,00 x 0,50 | C15: 6,00 | D15: 0,50 | F15: #VALUE!
B16: 6,00 x 1,00 | C16: 6,00 | D16: 1,00 | F16: #VALUE!
B17: 6,00 x 1,50 | C17: 6,00 | D17: 1,50 | F17: #VALUE!
B18: 6,00 x 2,00 | C18: 6,00 | D18: 2,00 | F18: #VALUE!
B19: 6,35 x 0,51 (1/4" OD) | C19: 6,35 | D19: 0,51 | E19: (1/4" OD) | F19: #VALUE!
B20: 6.35 x 0.71 (1/4" OD) | C20: 6.35 | D20: 0.71 | E20: (1/4" OD) | F20: 4.93
B21: 6.35 x 0.89 (1/4" OD) | C21: 6.35 | D21: 0.89 | E21: (1/4" OD) | F21: 4.57
B22: 6.35 x 1.24 (1/4" OD) | C22: 6.35 | D22: 1.24 | E22: (1/4" OD) | F22: 3.87
B23: 6.35 x 1.65 (1/4" OD) | C23: 6.35 | D23: 1.65 | E23: (1/4" OD) | F23: 3.05
B24: 6.35 x 2,03 (1/4" OD) | C24: 6.35 | D24: 2,03 | E24: (1/4" OD) | F24: #VALUE!
B25: 8,00 x 0,50 | C25: 8,00 | D25: 0,50 | F25: #VALUE!
B26: 8,00 x 1,00 | C26: 8,00 | D26: 1,00 | F26: #VALUE!
B27: 8,00 x 1,50 | C27: 8,00 | D27: 1,50 | F27: #VALUE!
B28: 8,00 x 2,00 | C28: 8,00 | D28: 2,00 | F28: #VALUE!
B29: 8,00 x 2,50 | C29: 8,00 | D29: 2,50 | F29: #VALUE!
B30: 9,00 x 1,00 | C30: 9,00 | D30: 1,00 | F30: #VALUE!
B31: 9.53 x 0.71 (3/8" OD) | C31: 9.53 | D31: 0.71 | E31: (3/8" OD) | F31: 8.11
B32: 9.53 x 0.89 (3/8" OD) | C32: 9.53 | D32: 0.89 | E32: (3/8" OD) | F32: 7.75
B33: 9.53 x 1.24 (3/8" OD) | C33: 9.53 | D33: 1.24 | E33: (3/8" OD) | F33: 7.05
B34: 9.53 x 1.65 (3/8" OD) | C34: 9.53 | D34: 1.65 | E34: (3/8" OD) | F34: 6.23
B35: 10,00 x 0,50 | C35: 10,00 | D35: 0,50 | F35: #VALUE!
B36: 10,00 x 0,60 | C36: 10,00 | D36: 0,60 | F36: #VALUE!
B37: 10,00 x 1,00 | C37: 10,00 | D37: 1,00 | F37: #VALUE!
B38: 10,00 x 1,50 | C38: 10,00 | D38: 1,50 | F38: #VALUE!
B39: 10,00 x 2,00 | C39: 10,00 | D39: 2,00 | F39: #VALUE!
B40: 10,00 x 2,50 | C40: 10,00 | D40: 2,50 | F40: #VALUE!
B41: 10,20 x 1,60 | C41: 10,20 | D41: 1,60 | F41: #VALUE!
B42: 10,20 x 2,00 ISO 1/8" Gas | C42: 10,20 | D42: 2,00 | E42: ISO 1/8" Gas | F42: #VALUE!
B43: 10,20 x 2,00 ISO | C43: 10,20 | D43: 2,00 | E43: ISO | F43: #VALUE!
B44: 10,29 x 1,24 1/8" sched 10S | C44: 10,29 | D44: 1,24 | E44: 1/8" sched 10S | F44: #VALUE!
B45: 10,29 x 1,73 1/8" sched 40S | C45: 10,29 | D45: 1,73 | E45: 1/8" sched 40S | F45: #VALUE!
B46: 10,29 x 2,41 1/8" sched 80S | C46: 10,29 | D46: 2,41 | E46: 1/8" sched 80S | F46: #VALUE!
B47: 11,00 x 1,00 | C47: 11,00 | D47: 1,00 | F47: #VALUE!
B48: 11,00 x 1,50 | C48: 11,00 | D48: 1,50 | F48: #VALUE!
B49: 11,00 x 2,00 | C49: 11,00 | D49: 2,00 | F49: #VALUE!
B50: 12,00 x 0,60 | C50: 12,00 | D50: 0,60 | F50: #VALUE!
B51: 12,00 x 1,00 | C51: 12,00 | D51: 1,00 | F51: #VALUE!
B52: 12,00 x 1,50 | C52: 12,00 | D52: 1,50 | F52: #VALUE!
B53: 12,00 x 2,00 | C53: 12,00 | D53: 2,00 | F53: #VALUE!
B54: 12,00 x 2,50 | C54: 12,00 | D54: 2,50 | F54: #VALUE!
B55: 12,00 x 3,00 | C55: 12,00 | D55: 3,00 | F55: #VALUE!
B56: 12,00 x 4,00 | C56: 12,00 | D56: 4,00 | F56: #VALUE!
B57: 12,70 x 0,71 (1/2" OD) | C57: 12,70 | D57: 0,71 | E57: (1/2" OD) | F57: #VALUE!
B58: 12,70 x 0,89 (1/2" OD) | C58: 12,70 | D58: 0,89 | E58: (1/2" OD) | F58: #VALUE!
B59: 12,70 x 1,24 (1/2" OD) | C59: 12,70 | D59: 1,24 | E59: (1/2" OD) | F59: #VALUE!
B60: 12,70 x 1,65 (1/2" OD) | C60: 12,70 | D60: 1,65 | E60: (1/2" OD) | F60: #VALUE!
B61: 12,70 x 2,03 (1/2" OD) | C61: 12,70 | D61: 2,03 | E61: (1/2" OD) | F61: #VALUE!
B62: 12,70 x 2,11 (1/2" OD) | C62: 12,70 | D62: 2,11 | E62: (1/2" OD) | F62: #VALUE!
B63: 13,00 x 1,00 | C63: 13,00 | D63: 1,00 | F63: #VALUE!
B64: 13,00 x 1,50 | C64: 13,00 | D64: 1,50 | F64: #VALUE!
B65: 13,50 x 1,60 ISO | C65: 13,50 | D65: 1,60 | E65: ISO | F65: #VALUE!
B66: 13,50 x 2,00 ISO | C66: 13,50 | D66: 2,00 | E66: ISO | F66: #VALUE!
B67: 13,50 x 2,35 ISO 1/4" Gas | C67: 13,50 | D67: 2,35 | E67: ISO 1/4" Gas | F67: #VALUE!
B68: 13,72 x 1,65 1/4" sched 10S | C68: 13,72 | D68: 1,65 | E68: 1/4" sched 10S | F68: #VALUE!
B69: 13,72 x 2,24 1/4" sched 40S | C69: 13,72 | D69: 2,24 | E69: 1/4" sched 40S | F69: #VALUE!
B70: 13,72 x 3,02 1/4" sched 80S | C70: 13,72 | D70: 3,02 | E70: 1/4" sched 80S | F70: #VALUE!
B71: 14,00 x 1,00 | C71: 14,00 | D71: 1,00 | F71: #VALUE!
B72: 14,00 x 1,50 | C72: 14,00 | D72: 1,50 | F72: #VALUE!
B73: 14,00 x 2,00 | C73: 14,00 | D73: 2,00 | F73: #VALUE!
B74: 14,00 x 2,50 | C74: 14,00 | D74: 2,50 | F74: #VALUE!
B75: 14,00 x 3,00 | C75: 14,00 | D75: 3,00 | F75: #VALUE!
B76: 15,00 x 0,60 | C76: 15,00 | D76: 0,60 | F76: #VALUE!
B77: 15,00 x 1,00 | C77: 15,00 | D77: 1,00 | F77: #VALUE!
B78: 15,00 x 1,50 | C78: 15,00 | D78: 1,50 | F78: #VALUE!
B79: 15,00 x 2,00 | C79: 15,00 | D79: 2,00 | F79: #VALUE!
B80: 15,00 x 2,50 | C80: 15,00 | D80: 2,50 | F80: #VALUE!
B81: 15,00 x 3,00 | C81: 15,00 | D81: 3,00 | F81: #VALUE!
B82: 15,00 x 4,00 | C82: 15,00 | D82: 4,00 | F82: #VALUE!
B83: 15,88 x 0,89 (5/8" OD) | C83: 15,88 | D83: 0,89 | E83: (5/8" OD) | F83: #VALUE!
B84: 15,88 x 1,24 (5/8" OD) | C84: 15,88 | D84: 1,24 | E84: (5/8" OD) | F84: #VALUE!
B85: 15,88 x 1,65 (5/8" OD) | C85: 15,88 | D85: 1,65 | E85: (5/8" OD) | F85: #VALUE!
B86: 15,88 x 2,11 (5/8" OD) | C86: 15,88 | D86: 2,11 | E86: (5/8" OD) | F86: #VALUE!
B87: 16,00 x 1,00 | C87: 16,00 | D87: 1,00 | F87: #VALUE!
B88: 16,00 x 1,50 | C88: 16,00 | D88: 1,50 | F88: #VALUE!
B89: 16,00 x 2,00 | C89: 16,00 | D89: 2,00 | F89: #VALUE!
B90: 16,00 x 2,50 | C90: 16,00 | D90: 2,50 | F90: #VALUE!
B91: 16,00 x 3,00 | C91: 16,00 | D91: 3,00 | F91: #VALUE!
B92: 16,00 x 4,00 | C92: 16,00 | D92: 4,00 | F92: #VALUE!
B93: 17,00 x 1,00 | C93: 17,00 | D93: 1,00 | F93: #VALUE!
B94: 17,00 x 1,50 | C94: 17,00 | D94: 1,50 | F94: #VALUE!
B95: 17,00 x 3,00 | C95: 17,00 | D95: 3,00 | F95: #VALUE!
B96: 17,15 x 1,65 3/8" sched 10S | C96: 17,15 | D96: 1,65 | E96: 3/8" sched 10S | F96: #VALUE!
B97: 17,15 x 2,31 3/8" sched 40S | C97: 17,15 | D97: 2,31 | E97: 3/8" sched 40S | F97: #VALUE!
B98: 17,15 x 3,20 3/8" sched 80S | C98: 17,15 | D98: 3,20 | E98: 3/8" sched 80S | F98: #VALUE!
B99: 17,20 x 1,50 | C99: 17,20 | D99: 1,50 | F99: #VALUE!
B100: 17,20 x 1,60 ISO | C100: 17,20 | D100: 1,60 | E100: ISO | F100: #VALUE!
B101: 17,20 x 2,00 | C101: 17,20 | D101: 2,00 | F101: #VALUE!
B102: 17,20 x 2,30 | C102: 17,20 | D102: 2,30 | F102: #VALUE!
B103: 17,20 x 2,90 | C103: 17,20 | D103: 2,90 | F103: #VALUE!
B104: 17,20 x 3,20 | C104: 17,20 | D104: 3,20 | F104: #VALUE!
B105: 18,00 x 0,70 | C105: 18,00 | D105: 0,70 | F105: #VALUE!
B106: 18,00 x 1,00 ISO | C106: 18,00 | D106: 1,00 | E106: ISO | F106: #VALUE!
B107: 18,00 x 1,50 ISO 3/8" Gas | C107: 18,00 | D107: 1,50 | E107: ISO 3/8" Gas | F107: #VALUE!
B108: 18,00 x 2,00 | C108: 18,00 | D108: 2,00 | F108: #VALUE!
B109: 18,00 x 2,50 | C109: 18,00 | D109: 2,50 | F109: #VALUE!
B110: 18,00 x 3,00 | C110: 18,00 | D110: 3,00 | F110: #VALUE!
B111: 18,00 x 4,00 | C111: 18,00 | D111: 4,00 | F111: #VALUE!
B112: 19,00 x 1,50 | C112: 19,00 | D112: 1,50 | F112: #VALUE!
B113: 19,05 x 0,89 (3/4" OD) | C113: 19,05 | D113: 0,89 | E113: (3/4" OD) | F113: #VALUE!
B114: 19,05 x 1,24 (3/4" OD) | C114: 19,05 | D114: 1,24 | E114: (3/4" OD) | F114: #VALUE!
B115: 19,05 x 1,65 (3/4" OD) | C115: 19,05 | D115: 1,65 | E115: (3/4" OD) | F115: #VALUE!
B116: 19,05 x 2,11 (3/4" OD) | C116: 19,05 | D116: 2,11 | E116: (3/4" OD) | F116: #VALUE!
B117: 20,00 x 1,00 | C117: 20,00 | D117: 1,00 | F117: #VALUE!
B118: 20,00 x 1,50 | C118: 20,00 | D118: 1,50 | F118: #VALUE!
B119: 20,00 x 2,00 | C119: 20,00 | D119: 2,00 | F119: #VALUE!
B120: 20,00 x 2,50 | C120: 20,00 | D120: 2,50 | F120: #VALUE!
B121: 20,00 x 3,00 | C121: 20,00 | D121: 3,00 | F121: #VALUE!
B122: 20,00 x 3,50 | C122: 20,00 | D122: 3,50 | F122: #VALUE!
B123: 20,00 x 4,00 | C123: 20,00 | D123: 4,00 | F123: #VALUE!
B124: 20,00 x 5,00 | C124: 20,00 | D124: 5,00 | F124: #VALUE!
B125: 21,30 x 1,20 | C125: 21,30 | D125: 1,20 | F125: #VALUE!
B126: 21,30 x 1,50 | C126: 21,30 | D126: 1,50 | F126: #VALUE!
B127: 21,30 x 1,60 ISO | C127: 21,30 | D127: 1,60 | E127: ISO | F127: #VALUE!
B128: 21,30 x 2,00 ISO | C128: 21,30 | D128: 2,00 | E128: ISO | F128: #VALUE!
B129: 21,30 x 2,60 ISO 1/2" Gas | C129: 21,30 | D129: 2,60 | E129: ISO 1/2" Gas | F129: #VALUE!
B130: 21,30 x 2,90 | C130: 21,30 | D130: 2,90 | F130: #VALUE!
B131: 21,30 x 3,20 ISO | C131: 21,30 | D131: 3,20 | E131: ISO | F131: #VALUE!
B132: 21,34 x 1,65 1/2" sched 5S | C132: 21,34 | D132: 1,65 | E132: 1/2" sched 5S | F132: #VALUE!
B133: 21,34 x 2,11 1/2" sched 10S | C133: 21,34 | D133: 2,11 | E133: 1/2" sched 10S | F133: #VALUE!
B134: 21,34 x 2,77 1/2" sched 40S | C134: 21,34 | D134: 2,77 | E134: 1/2" sched 40S | F134: #VALUE!
B135: 21,34 x 3,73 1/2" sched 80S | C135: 21,34 | D135: 3,73 | E135: 1/2" sched 80S | F135: #VALUE!
B136: 21,34 x 4,75 1/2" sched 160 | C136: 21,34 | D136: 4,75 | E136: 1/2" sched 160 | F136: #VALUE!
B137: 21,34 x 7,47 1/2" sched XXS | C137: 21,34 | D137: 7,47 | E137: 1/2" sched XXS | F137: #VALUE!
B138: 22,00 x 0,70 | C138: 22,00 | D138: 0,70 | F138: #VALUE!
B139: 22,00 x 1,00 | C139: 22,00 | D139: 1,00 | F139: #VALUE!
B140: 22,00 x 1,20 | C140: 22,00 | D140: 1,20 | F140: #VALUE!
B141: 22,00 x 1,50 | C141: 22,00 | D141: 1,50 | F141: #VALUE!
B142: 22,00 x 2,00 | C142: 22,00 | D142: 2,00 | F142: #VALUE!
B143: 22,00 x 2,50 | C143: 22,00 | D143: 2,50 | F143: #VALUE!
B144: 22,00 x 3,00 | C144: 22,00 | D144: 3,00 | F144: #VALUE!
B145: 22,00 x 4,00 | C145: 22,00 | D145: 4,00 | F145: #VALUE!
B146: 23,00 x 1,50 | C146: 23,00 | D146: 1,50 | F146: #VALUE!
B147: 24,00 x 2,00 | C147: 24,00 | D147: 2,00 | F147: #VALUE!
B148: 24,00 x 3,50 | C148: 24,00 | D148: 3,50 | F148: #VALUE!
B149: 24,00 x 4,00 | C149: 24,00 | D149: 4,00 | F149: #VALUE!
B150: 24,00 x 7,00 | C150: 24,00 | D150: 7,00 | F150: #VALUE!
B151: 25,00 x 1,00 | C151: 25,00 | D151: 1,00 | F151: #VALUE!
B152: 25,00 x 1,50 | C152: 25,00 | D152: 1,50 | F152: #VALUE!
B153: 25,00 x 2,00 | C153: 25,00 | D153: 2,00 | F153: #VALUE!
B154: 25,00 x 2,50 | C154: 25,00 | D154: 2,50 | F154: #VALUE!
B155: 25,00 x 3,00 | C155: 25,00 | D155: 3,00 | F155: #VALUE!
B156: 25,00 x 3,50 | C156: 25,00 | D156: 3,50 | F156: #VALUE!
B157: 25,00 x 4,00 | C157: 25,00 | D157: 4,00 | F157: #VALUE!
B158: 25,00 x 5,00 | C158: 25,00 | D158: 5,00 | F158: #VALUE!
B159: 25,40 x 1,25 (1" OD) | C159: 25,40 | D159: 1,25 | E159: (1" OD) | F159: #VALUE!
B160: 25,40 x 1,65 (1" OD) | C160: 25,40 | D160: 1,65 | E160: (1" OD) | F160: #VALUE!
B161: 25,40 x 2,11 (1" OD) | C161: 25,40 | D161: 2,11 | E161: (1" OD) | F161: #VALUE!
B162: 25,40 x 3,40 (1" OD) | C162: 25,40 | D162: 3,40 | E162: (1" OD) | F162: #VALUE!
B163: 26,67 x 1,65 3/4" sched 5S | C163: 26,67 | D163: 1,65 | E163: 3/4" sched 5S | F163: #VALUE!
B164: 26,67 x 2,11 3/4" sched 10S | C164: 26,67 | D164: 2,11 | E164: 3/4" sched 10S | F164: #VALUE!
B165: 26,67 x 2,87 3/4" sched 40S | C165: 26,67 | D165: 2,87 | E165: 3/4" sched 40S | F165: #VALUE!
B166: 26,67 x 3,91 3/4" sched 80S | C166: 26,67 | D166: 3,91 | E166: 3/4" sched 80S | F166: #VALUE!
B167: 26,67 x 5,54 3/4" sched 160 | C167: 26,67 | D167: 5,54 | E167: 3/4" sched 160 | F167: #VALUE!
B168: 26,67 x 7,82 3/4" sched XXS | C168: 26,67 | D168: 7,82 | E168: 3/4" sched XXS | F168: #VALUE!
B169: 26,90 x 1,20 | C169: 26,90 | D169: 1,20 | F169: #VALUE!
B170: 26,90 x 1,50 | C170: 26,90 | D170: 1,50 | F170: #VALUE!
B171: 26,90 x 1,60 ISO | C171: 26,90 | D171: 1,60 | E171: ISO | F171: #VALUE!
B172: 26,90 x 2,00 ISO | C172: 26,90 | D172: 2,00 | E172: ISO | F172: #VALUE!
B173: 26,90 x 2,30 ISO | C173: 26,90 | D173: 2,30 | E173: ISO | F173: #VALUE!
B174: 26,90 x 2,60 ISO 3/4" Gas | C174: 26,90 | D174: 2,60 | E174: ISO 3/4" Gas | F174: #VALUE!
B175: 26,90 x 3,20 ISO | C175: 26,90 | D175: 3,20 | E175: ISO | F175: #VALUE!
B176: 26,90 x 4,00 ISO | C176: 26,90 | D176: 4,00 | E176: ISO | F176: #VALUE!
B177: 28,00 x 0,80 | C177: 28,00 | D177: 0,80 | F177: #VALUE!
B178: 28,00 x 1,00 | C178: 28,00 | D178: 1,00 | F178: #VALUE!
B179: 28,00 x 1,50 | C179: 28,00 | D179: 1,50 | F179: #VALUE!
B180: 28,00 x 2,00 | C180: 28,00 | D180: 2,00 | F180: #VALUE!
B181: 28,00 x 3,00 | C181: 28,00 | D181: 3,00 | F181: #VALUE!
B182: 28,00 x 3,50 | C182: 28,00 | D182: 3,50 | F182: #VALUE!
B183: 28,00 x 4,00 | C183: 28,00 | D183: 4,00 | F183: #VALUE!
B184: 28,00 x 5,00 | C184: 28,00 | D184: 5,00 | F184: #VALUE!
B185: 30,00 x 1,00 | C185: 30,00 | D185: 1,00 | F185: #VALUE!
B186: 30,00 x 1,50 | C186: 30,00 | D186: 1,50 | F186: #VALUE!
B187: 30,00 x 2,00 | C187: 30,00 | D187: 2,00 | F187: #VALUE!
B188: 30,00 x 2,50 | C188: 30,00 | D188: 2,50 | F188: #VALUE!
B189: 30,00 x 2,60 | C189: 30,00 | D189: 2,60 | F189: #VALUE!
B190: 30,00 x 3,00 | C190: 30,00 | D190: 3,00 | F190: #VALUE!
B191: 30,00 x 3,50 | C191: 30,00 | D191: 3,50 | F191: #VALUE!
B192: 30,00 x 4,00 | C192: 30,00 | D192: 4,00 | F192: #VALUE!
B193: 30,00 x 5,00 | C193: 30,00 | D193: 5,00 | F193: #VALUE!
B194: 31,75 x 1,65 (1¼" OD) | C194: 31,75 | D194: 1,65 | E194: (1¼" OD) | F194: #VALUE!
B195: 31,80 x 1,25 | C195: 31,80 | D195: 1,25 | F195: #VALUE!
B196: 32,00 x 1,20 | C196: 32,00 | D196: 1,20 | F196: #VALUE!
B197: 32,00 x 1,50 | C197: 32,00 | D197: 1,50 | F197: #VALUE!
B198: 32,00 x 2,00 | C198: 32,00 | D198: 2,00 | F198: #VALUE!
B199: 32,00 x 2,50 | C199: 32,00 | D199: 2,50 | F199: #VALUE!
B200: 32,00 x 3,00 | C200: 32,00 | D200: 3,00 | F200: #VALUE!
... 404 more rows

Sheet Data Castiron pipe (hidden)
A1: Cast iron pipe | C1: Class | D1: Rating | F1: Size | G1: Size | H1: OD | I1: OD | J1: Wallth. | K1: Wallth. | L1: Di
A2: " | F2: NPS | G2: DN | H2: Inch | I2: mm | J2: Inch | K2: mm
A3: 1 | B3: =CONCATENATE($A$1,$C$2,$C$1,$C$2,D3,$C$2,E3,$C$2,$F$1,$C$2,F3,$A$2) -> Cast iron pipe Class 100 ft (43# ) Size 3" | C3: A | D3: 100 ft | E3: (43# ) | F3: 3 | G3: 80 | H3: 3.8 | I3: =H3*25.4 -> 96.52 | J3: 0.39 | K3: =J3*25.4 -> 9.906 | L3: =I3-(2*K3) -> 76.708
B4: Cast iron pipe Class 100 ft (43# ) Size 4" | C4: A | D4: 100 ft | E4: (43# ) | F4: 4 | G4: 100 | H4: 4.8 | I4: 121.92 | J4: 0.42 | K4: 10.668 | L4: 100.584
B5: Cast iron pipe Class 100 ft (43# ) Size 6" | C5: A | D5: 100 ft | E5: (43# ) | F5: 6 | G5: 150 | H5: 6.9 | I5: 175.26 | J5: 0.44 | K5: 11.176 | L5: 152.908
B6: Cast iron pipe Class 100 ft (43# ) Size 8" | C6: A | D6: 100 ft | E6: (43# ) | F6: 8 | G6: 200 | H6: 9.05 | I6: 229.87 | J6: 0.46 | K6: 11.684 | L6: 206.502
B7: Cast iron pipe Class 100 ft (43# ) Size 10" | C7: A | D7: 100 ft | E7: (43# ) | F7: 10 | G7: 250 | H7: 11.1 | I7: 281.94 | J7: 0.5 | K7: 12.7 | L7: 256.54
B8: Cast iron pipe Class 100 ft (43# ) Size 12" | C8: A | D8: 100 ft | E8: (43# ) | F8: 12 | G8: 300 | H8: 13.2 | I8: 335.28 | J8: 0.54 | K8: 13.716 | L8: 307.848
B9: Cast iron pipe Class 100 ft (43# ) Size 14" | C9: A | D9: 100 ft | E9: (43# ) | F9: 14 | G9: 350 | H9: 15.3 | I9: 388.62 | J9: 0.57 | K9: 14.478 | L9: 359.664
B10: Cast iron pipe Class 100 ft (43# ) Size 16" | C10: A | D10: 100 ft | E10: (43# ) | F10: 16 | G10: 400 | H10: 17.4 | I10: 441.96 | J10: 0.6 | K10: 15.24 | L10: 411.48
B11: Cast iron pipe Class 100 ft (43# ) Size 18" | C11: A | D11: 100 ft | E11: (43# ) | F11: 18 | G11: 450 | H11: 19.5 | I11: 495.3 | J11: 0.64 | K11: 16.256 | L11: 462.788
B12: Cast iron pipe Class 100 ft (43# ) Size 20" | C12: A | D12: 100 ft | E12: (43# ) | F12: 20 | G12: 500 | H12: 21.6 | I12: 548.64 | J12: 0.67 | K12: 17.018 | L12: 514.604
B13: Cast iron pipe Class 100 ft (43# ) Size 24" | C13: A | D13: 100 ft | E13: (43# ) | F13: 24 | G13: 600 | H13: 25.8 | I13: 655.32 | J13: 0.76 | K13: 19.304 | L13: 616.712
B14: Cast iron pipe Class 100 ft (43# ) Size 30" | C14: A | D14: 100 ft | E14: (43# ) | F14: 30 | G14: 750 | H14: 31.74 | I14: 806.196 | J14: 0.88 | K14: 22.352 | L14: 761.492
B15: Cast iron pipe Class 100 ft (43# ) Size 36" | C15: A | D15: 100 ft | E15: (43# ) | F15: 36 | G15: 900 | H15: 37.96 | I15: 964.184 | J15: 0.99 | K15: 25.146 | L15: 913.892
B16: Cast iron pipe Class 100 ft (43# ) Size 42" | C16: A | D16: 100 ft | E16: (43# ) | F16: 42 | G16: 1050 | H16: 44.2 | I16: 1122.68 | J16: 1.1 | K16: 27.94 | L16: 1066.8
B17: Cast iron pipe Class 100 ft (43# ) Size 48" | C17: A | D17: 100 ft | E17: (43# ) | F17: 48 | G17: 1200 | H17: 50.5 | I17: 1282.7 | J17: 1.26 | K17: 32.004 | L17: 1218.692
B18: Cast iron pipe Class 100 ft (43# ) Size 54" | C18: A | D18: 100 ft | E18: (43# ) | F18: 54 | G18: 1350 | H18: 56.66 | I18: 1439.164 | J18: 1.35 | K18: 34.29 | L18: 1370.584
B19: Cast iron pipe Class 100 ft (43# ) Size 60" | C19: A | D19: 100 ft | E19: (43# ) | F19: 60 | G19: 1500 | H19: 62.8 | I19: 1595.12 | J19: 1.39 | K19: 35.306 | L19: 1524.508
B20: Cast iron pipe Class 100 ft (43# ) Size 72" | C20: A | D20: 100 ft | E20: (43# ) | F20: 72 | G20: 1800 | H20: 75.34 | I20: 1913.636 | J20: 1.62 | K20: 41.148 | L20: 1831.34
B21: Cast iron pipe Class 100 ft (43# ) Size 84" | C21: A | D21: 100 ft | E21: (43# ) | F21: 84 | G21: 2100 | H21: 87.54 | I21: 2223.516 | J21: 1.72 | K21: 43.688 | L21: 2136.14
B22: Cast iron pipe Class 200 ft (86# ) Size 3" | C22: B | D22: 200 ft | E22: (86# ) | F22: 3 | G22: 80 | H22: 3.96 | I22: 100.584 | J22: 0.42 | K22: 10.668 | L22: 79.248
B23: Cast iron pipe Class 200 ft (86# ) Size 4" | C23: B | D23: 200 ft | E23: (86# ) | F23: 4 | G23: 100 | H23: 5 | I23: 127 | J23: 0.45 | K23: 11.43 | L23: 104.14
B24: Cast iron pipe Class 200 ft (86# ) Size 6" | C24: B | D24: 200 ft | E24: (86# ) | F24: 6 | G24: 150 | H24: 7.1 | I24: 180.34 | J24: 0.48 | K24: 12.192 | L24: 155.956
B25: Cast iron pipe Class 200 ft (86# ) Size 8" | C25: B | D25: 200 ft | E25: (86# ) | F25: 8 | G25: 200 | H25: 9.05 | I25: 229.87 | J25: 0.51 | K25: 12.954 | L25: 203.962
B26: Cast iron pipe Class 200 ft (86# ) Size 10" | C26: B | D26: 200 ft | E26: (86# ) | F26: 10 | G26: 250 | H26: 11.1 | I26: 281.94 | J26: 0.57 | K26: 14.478 | L26: 252.984
B27: Cast iron pipe Class 200 ft (86# ) Size 12" | C27: B | D27: 200 ft | E27: (86# ) | F27: 12 | G27: 300 | H27: 13.2 | I27: 335.28 | J27: 0.62 | K27: 15.748 | L27: 303.784
B28: Cast iron pipe Class 200 ft (86# ) Size 14" | C28: B | D28: 200 ft | E28: (86# ) | F28: 14 | G28: 350 | H28: 15.3 | I28: 388.62 | J28: 0.66 | K28: 16.764 | L28: 355.092
B29: Cast iron pipe Class 200 ft (86# ) Size 16" | C29: B | D29: 200 ft | E29: (86# ) | F29: 16 | G29: 400 | H29: 17.4 | I29: 441.96 | J29: 0.7 | K29: 17.78 | L29: 406.4
B30: Cast iron pipe Class 200 ft (86# ) Size 18" | C30: B | D30: 200 ft | E30: (86# ) | F30: 18 | G30: 450 | H30: 19.5 | I30: 495.3 | J30: 0.75 | K30: 19.05 | L30: 457.2
B31: Cast iron pipe Class 200 ft (86# ) Size 20" | C31: B | D31: 200 ft | E31: (86# ) | F31: 20 | G31: 500 | H31: 21.6 | I31: 548.64 | J31: 0.8 | K31: 20.32 | L31: 508
B32: Cast iron pipe Class 200 ft (86# ) Size 24" | C32: B | D32: 200 ft | E32: (86# ) | F32: 24 | G32: 600 | H32: 25.8 | I32: 655.32 | J32: 0.89 | K32: 22.606 | L32: 610.108
B33: Cast iron pipe Class 200 ft (86# ) Size 30" | C33: B | D33: 200 ft | E33: (86# ) | F33: 30 | G33: 750 | H33: 32 | I33: 812.8 | J33: 1.03 | K33: 26.162 | L33: 760.476
B34: Cast iron pipe Class 200 ft (86# ) Size 36" | C34: B | D34: 200 ft | E34: (86# ) | F34: 36 | G34: 900 | H34: 38.3 | I34: 972.82 | J34: 1.15 | K34: 29.21 | L34: 914.4
B35: Cast iron pipe Class 200 ft (86# ) Size 42" | C35: B | D35: 200 ft | E35: (86# ) | F35: 42 | G35: 1050 | H35: 44.5 | I35: 1130.3 | J35: 1.28 | K35: 32.512 | L35: 1065.276
B36: Cast iron pipe Class 200 ft (86# ) Size 48" | C36: B | D36: 200 ft | E36: (86# ) | F36: 48 | G36: 1200 | H36: 50.8 | I36: 1290.32 | J36: 1.42 | K36: 36.068 | L36: 1218.184
B37: Cast iron pipe Class 200 ft (86# ) Size 54" | C37: B | D37: 200 ft | E37: (86# ) | F37: 54 | G37: 1350 | H37: 57.1 | I37: 1450.34 | J37: 1.55 | K37: 39.37 | L37: 1371.6
B38: Cast iron pipe Class 200 ft (86# ) Size 60" | C38: B | D38: 200 ft | E38: (86# ) | F38: 60 | G38: 1500 | H38: 63.4 | I38: 1610.36 | J38: 1.67 | K38: 42.418 | L38: 1525.524
B39: Cast iron pipe Class 200 ft (86# ) Size 72" | C39: B | D39: 200 ft | E39: (86# ) | F39: 72 | G39: 1800 | H39: 76 | I39: 1930.4 | J39: 1.95 | K39: 49.53 | L39: 1831.34
B40: Cast iron pipe Class 200 ft (86# ) Size 84" | C40: B | D40: 200 ft | E40: (86# ) | F40: 84 | G40: 2100 | H40: 88.54 | I40: 2248.916 | J40: 2.22 | K40: 56.388 | L40: 2136.14
B41: Cast iron pipe Class 300 ft (130# ) Size 3" | C41: C | D41: 300 ft | E41: (130# ) | F41: 3 | G41: 80 | H41: 3.96 | I41: 100.584 | J41: 0.45 | K41: 11.43 | L41: 77.724
B42: Cast iron pipe Class 300 ft (130# ) Size 4" | C42: C | D42: 300 ft | E42: (130# ) | F42: 4 | G42: 100 | H42: 5 | I42: 127 | J42: 0.48 | K42: 12.192 | L42: 102.616
B43: Cast iron pipe Class 300 ft (130# ) Size 6" | C43: C | D43: 300 ft | E43: (130# ) | F43: 6 | G43: 150 | H43: 7.1 | I43: 180.34 | J43: 0.51 | K43: 12.954 | L43: 154.432
B44: Cast iron pipe Class 300 ft (130# ) Size 8" | C44: C | D44: 300 ft | E44: (130# ) | F44: 8 | G44: 200 | H44: 9.3 | I44: 236.22 | J44: 0.56 | K44: 14.224 | L44: 207.772
B45: Cast iron pipe Class 300 ft (130# ) Size 10" | C45: C | D45: 300 ft | E45: (130# ) | F45: 10 | G45: 250 | H45: 11.4 | I45: 289.56 | J45: 0.62 | K45: 15.748 | L45: 258.064
B46: Cast iron pipe Class 300 ft (130# ) Size 12" | C46: C | D46: 300 ft | E46: (130# ) | F46: 12 | G46: 300 | H46: 13.5 | I46: 342.9 | J46: 0.68 | K46: 17.272 | L46: 308.356
B47: Cast iron pipe Class 300 ft (130# ) Size 14" | C47: C | D47: 300 ft | E47: (130# ) | F47: 14 | G47: 350 | H47: 15.65 | I47: 397.51 | J47: 0.74 | K47: 18.796 | L47: 359.918
B48: Cast iron pipe Class 300 ft (130# ) Size 16" | C48: C | D48: 300 ft | E48: (130# ) | F48: 16 | G48: 400 | H48: 17.8 | I48: 452.12 | J48: 0.8 | K48: 20.32 | L48: 411.48
B49: Cast iron pipe Class 300 ft (130# ) Size 18" | C49: C | D49: 300 ft | E49: (130# ) | F49: 18 | G49: 450 | H49: 19.92 | I49: 505.968 | J49: 0.87 | K49: 22.098 | L49: 461.772
B50: Cast iron pipe Class 300 ft (130# ) Size 20" | C50: C | D50: 300 ft | E50: (130# ) | F50: 20 | G50: 500 | H50: 22.06 | I50: 560.324 | J50: 0.92 | K50: 23.368 | L50: 513.588
B51: Cast iron pipe Class 300 ft (130# ) Size 24" | C51: C | D51: 300 ft | E51: (130# ) | F51: 24 | G51: 600 | H51: 26.32 | I51: 668.528 | J51: 1.04 | K51: 26.416 | L51: 615.696
B52: Cast iron pipe Class 300 ft (130# ) Size 30" | C52: C | D52: 300 ft | E52: (130# ) | F52: 30 | G52: 750 | H52: 32.4 | I52: 822.96 | J52: 1.2 | K52: 30.48 | L52: 762
B53: Cast iron pipe Class 300 ft (130# ) Size 36" | C53: C | D53: 300 ft | E53: (130# ) | F53: 36 | G53: 900 | H53: 38.7 | I53: 982.98 | J53: 1.36 | K53: 34.544 | L53: 913.892
B54: Cast iron pipe Class 300 ft (130# ) Size 42" | C54: C | D54: 300 ft | E54: (130# ) | F54: 42 | G54: 1050 | H54: 45.1 | I54: 1145.54 | J54: 1.54 | K54: 39.116 | L54: 1067.308
B55: Cast iron pipe Class 300 ft (130# ) Size 48" | C55: C | D55: 300 ft | E55: (130# ) | F55: 48 | G55: 1200 | H55: 51.4 | I55: 1305.56 | J55: 1.71 | K55: 43.434 | L55: 1218.692
B56: Cast iron pipe Class 300 ft (130# ) Size 54" | C56: C | D56: 300 ft | E56: (130# ) | F56: 54 | G56: 1350 | H56: 57.8 | I56: 1468.12 | J56: 1.9 | K56: 48.26 | L56: 1371.6
B57: Cast iron pipe Class 300 ft (130# ) Size 60" | C57: C | D57: 300 ft | E57: (130# ) | F57: 60 | G57: 1500 | H57: 64.2 | I57: 1630.68 | J57: 2 | K57: 50.8 | L57: 1529.08
B58: Cast iron pipe Class 300 ft (130# ) Size 72" | C58: C | D58: 300 ft | E58: (130# ) | F58: 72 | G58: 1800 | H58: 76.88 | I58: 1952.752 | J58: 2.39 | K58: 60.706 | L58: 1831.34
B59: Cast iron pipe Class 400 ft (173# ) Size 3" | C59: D | D59: 400 ft | E59: (173# ) | F59: 3 | G59: 80 | H59: 3.96 | I59: 100.584 | J59: 0.48 | K59: 12.192 | L59: 76.2
B60: Cast iron pipe Class 400 ft (173# ) Size 4" | C60: D | D60: 400 ft | E60: (173# ) | F60: 4 | G60: 100 | H60: 5 | I60: 127 | J60: 0.52 | K60: 13.208 | L60: 100.584
B61: Cast iron pipe Class 400 ft (173# ) Size 6" | C61: D | D61: 400 ft | E61: (173# ) | F61: 6 | G61: 150 | H61: 7.1 | I61: 180.34 | J61: 0.55 | K61: 13.97 | L61: 152.4
B62: Cast iron pipe Class 400 ft (173# ) Size 8" | C62: D | D62: 400 ft | E62: (173# ) | F62: 8 | G62: 200 | H62: 9.3 | I62: 236.22 | J62: 0.6 | K62: 15.24 | L62: 205.74
B63: Cast iron pipe Class 400 ft (173# ) Size 10" | C63: D | D63: 400 ft | E63: (173# ) | F63: 10 | G63: 250 | H63: 11.4 | I63: 289.56 | J63: 0.68 | K63: 17.272 | L63: 255.016
B64: Cast iron pipe Class 400 ft (173# ) Size 12" | C64: D | D64: 400 ft | E64: (173# ) | F64: 12 | G64: 300 | H64: 13.5 | I64: 342.9 | J64: 0.75 | K64: 19.05 | L64: 304.8
B65: Cast iron pipe Class 400 ft (173# ) Size 14" | C65: D | D65: 400 ft | E65: (173# ) | F65: 14 | G65: 350 | H65: 15.65 | I65: 397.51 | J65: 0.82 | K65: 20.828 | L65: 355.854
B66: Cast iron pipe Class 400 ft (173# ) Size 16" | C66: D | D66: 400 ft | E66: (173# ) | F66: 16 | G66: 400 | H66: 17.8 | I66: 452.12 | J66: 0.89 | K66: 22.606 | L66: 406.908
B67: Cast iron pipe Class 400 ft (173# ) Size 18" | C67: D | D67: 400 ft | E67: (173# ) | F67: 18 | G67: 450 | H67: 19.92 | I67: 505.968 | J67: 0.96 | K67: 24.384 | L67: 457.2
B68: Cast iron pipe Class 400 ft (173# ) Size 20" | C68: D | D68: 400 ft | E68: (173# ) | F68: 20 | G68: 500 | H68: 22.06 | I68: 560.324 | J68: 1.03 | K68: 26.162 | L68: 508
B69: Cast iron pipe Class 400 ft (173# ) Size 24" | C69: D | D69: 400 ft | E69: (173# ) | F69: 24 | G69: 600 | H69: 26.32 | I69: 668.528 | J69: 1.16 | K69: 29.464 | L69: 609.6
B70: Cast iron pipe Class 400 ft (173# ) Size 30" | C70: D | D70: 400 ft | E70: (173# ) | F70: 30 | G70: 750 | H70: 32.74 | I70: 831.596 | J70: 1.37 | K70: 34.798 | L70: 762
B71: Cast iron pipe Class 400 ft (173# ) Size 36" | C71: D | D71: 400 ft | E71: (173# ) | F71: 36 | G71: 900 | H71: 39.16 | I71: 994.664 | J71: 1.58 | K71: 40.132 | L71: 914.4
B72: Cast iron pipe Class 400 ft (173# ) Size 42" | C72: D | D72: 400 ft | E72: (173# ) | F72: 42 | G72: 1050 | H72: 45.58 | I72: 1157.732 | J72: 1.78 | K72: 45.212 | L72: 1067.308
B73: Cast iron pipe Class 400 ft (173# ) Size 48" | C73: D | D73: 400 ft | E73: (173# ) | F73: 48 | G73: 1200 | H73: 51.98 | I73: 1320.292 | J73: 1.96 | K73: 49.784 | L73: 1220.724
B74: Cast iron pipe Class 400 ft (173# ) Size 54" | C74: D | D74: 400 ft | E74: (173# ) | F74: 54 | G74: 1350 | H74: 58.4 | I74: 1483.36 | J74: 2.23 | K74: 56.642 | L74: 1370.076
B75: Cast iron pipe Class 400 ft (173# ) Size 60" | C75: D | D75: 400 ft | E75: (173# ) | F75: 60 | G75: 1500 | H75: 64.82 | I75: 1646.428 | J75: 2.38 | K75: 60.452 | L75: 1525.524
B76: Cast iron pipe Class 500 ft (217# ) Size 4" | C76: E | D76: 500 ft | E76: (217# ) | F76: 4 | G76: 100 | H76: 7.22 | I76: 183.388 | J76: 0.58 | K76: 14.732 | L76: 153.924
B77: Cast iron pipe Class 500 ft (217# ) Size 6" | C77: E | D77: 500 ft | E77: (217# ) | F77: 6 | G77: 150 | H77: 9.42 | I77: 239.268 | J77: 0.66 | K77: 16.764 | L77: 205.74
B78: Cast iron pipe Class 500 ft (217# ) Size 8" | C78: E | D78: 500 ft | E78: (217# ) | F78: 8 | G78: 200 | H78: 11.6 | I78: 294.64 | J78: 0.74 | K78: 18.796 | L78: 257.048
B79: Cast iron pipe Class 500 ft (217# ) Size 10" | C79: E | D79: 500 ft | E79: (217# ) | F79: 10 | G79: 250 | H79: 13.78 | I79: 350.012 | J79: 0.82 | K79: 20.828 | L79: 308.356
B80: Cast iron pipe Class 500 ft (217# ) Size 12" | C80: E | D80: 500 ft | E80: (217# ) | F80: 12 | G80: 300 | H80: 15.98 | I80: 405.892 | J80: 0.9 | K80: 22.86 | L80: 360.172
B81: Cast iron pipe Class 500 ft (217# ) Size 14" | C81: E | D81: 500 ft | E81: (217# ) | F81: 14 | G81: 350 | H81: 18.16 | I81: 461.264 | J81: 0.98 | K81: 24.892 | L81: 411.48
B82: Cast iron pipe Class 500 ft (217# ) Size 16" | C82: E | D82: 500 ft | E82: (217# ) | F82: 16 | G82: 400 | H82: 20.34 | I82: 516.636 | J82: 1.07 | K82: 27.178 | L82: 462.28
B83: Cast iron pipe Class 500 ft (217# ) Size 18" | C83: E | D83: 500 ft | E83: (217# ) | F83: 18 | G83: 450 | H83: 22.54 | I83: 572.516 | J83: 1.15 | K83: 29.21 | L83: 514.096
B84: Cast iron pipe Class 500 ft (217# ) Size 20" | C84: E | D84: 500 ft | E84: (217# ) | F84: 20 | G84: 500 | H84: 26.9 | I84: 683.26 | J84: 1.31 | K84: 33.274 | L84: 616.712
B85: Cast iron pipe Class 500 ft (217# ) Size 24" | C85: E | D85: 500 ft | E85: (217# ) | F85: 24 | G85: 600 | H85: 33.1 | I85: 840.74 | J85: 1.55 | K85: 39.37 | L85: 762
B86: Cast iron pipe Class 500 ft (217# ) Size 30" | C86: E | D86: 500 ft | E86: (217# ) | F86: 30 | G86: 750 | H86: 39.6 | I86: 1005.84 | J86: 1.8 | K86: 45.72 | L86: 914.4
B87: Cast iron pipe Class 600 ft (260# ) Size 4" | C87: F | D87: 600 ft | E87: (260# ) | F87: 4 | G87: 100 | H87: 7.22 | I87: 183.388 | J87: 0.61 | K87: 15.494 | L87: 152.4
B88: Cast iron pipe Class 600 ft (260# ) Size 6" | C88: F | D88: 600 ft | E88: (260# ) | F88: 6 | G88: 150 | H88: 9.42 | I88: 239.268 | J88: 0.71 | K88: 18.034 | L88: 203.2
B89: Cast iron pipe Class 600 ft (260# ) Size 8" | C89: F | D89: 600 ft | E89: (260# ) | F89: 8 | G89: 200 | H89: 11.6 | I89: 294.64 | J89: 0.8 | K89: 20.32 | L89: 254
B90: Cast iron pipe Class 600 ft (260# ) Size 10" | C90: F | D90: 600 ft | E90: (260# ) | F90: 10 | G90: 250 | H90: 13.78 | I90: 350.012 | J90: 0.89 | K90: 22.606 | L90: 304.8
B91: Cast iron pipe Class 600 ft (260# ) Size 12" | C91: F | D91: 600 ft | E91: (260# ) | F91: 12 | G91: 300 | H91: 15.98 | I91: 405.892 | J91: 0.99 | K91: 25.146 | L91: 355.6
B92: Cast iron pipe Class 600 ft (260# ) Size 14" | C92: F | D92: 600 ft | E92: (260# ) | F92: 14 | G92: 350 | H92: 18.16 | I92: 461.264 | J92: 1.08 | K92: 27.432 | L92: 406.4
B93: Cast iron pipe Class 600 ft (260# ) Size 16" | C93: F | D93: 600 ft | E93: (260# ) | F93: 16 | G93: 400 | H93: 20.34 | I93: 516.636 | J93: 1.17 | K93: 29.718 | L93: 457.2
B94: Cast iron pipe Class 600 ft (260# ) Size 18" | C94: F | D94: 600 ft | E94: (260# ) | F94: 18 | G94: 450 | H94: 22.54 | I94: 572.516 | J94: 1.27 | K94: 32.258 | L94: 508
B95: Cast iron pipe Class 600 ft (260# ) Size 20" | C95: F | D95: 600 ft | E95: (260# ) | F95: 20 | G95: 500 | H95: 26.9 | I95: 683.26 | J95: 1.45 | K95: 36.83 | L95: 609.6
B96: Cast iron pipe Class 600 ft (260# ) Size 24" | C96: F | D96: 600 ft | E96: (260# ) | F96: 24 | G96: 600 | H96: 33.46 | I96: 849.884 | J96: 1.73 | K96: 43.942 | L96: 762
B97: Cast iron pipe Class 600 ft (260# ) Size 30" | C97: F | D97: 600 ft | E97: (260# ) | F97: 30 | G97: 750 | H97: 40.04 | I97: 1017.016 | J97: 2.02 | K97: 51.308 | L97: 914.4
B98: Cast iron pipe Class 700 ft (304# ) Size 4" | C98: G | D98: 700 ft | E98: (304# ) | F98: 4 | G98: 100 | H98: 7.38 | I98: 187.452 | J98: 0.65 | K98: 16.51 | L98: 154.432
B99: Cast iron pipe Class 700 ft (304# ) Size 6" | C99: G | D99: 700 ft | E99: (304# ) | F99: 6 | G99: 150 | H99: 9.6 | I99: 243.84 | J99: 0.75 | K99: 19.05 | L99: 205.74
B100: Cast iron pipe Class 700 ft (304# ) Size 8" | C100: G | D100: 700 ft | E100: (304# ) | F100: 8 | G100: 200 | H100: 11.84 | I100: 300.736 | J100: 0.86 | K100: 21.844 | L100: 257.048
B101: Cast iron pipe Class 700 ft (304# ) Size 10" | C101: G | D101: 700 ft | E101: (304# ) | F101: 10 | G101: 250 | H101: 14.08 | I101: 357.632 | J101: 0.97 | K101: 24.638 | L101: 308.356
B102: Cast iron pipe Class 700 ft (304# ) Size 12" | C102: G | D102: 700 ft | E102: (304# ) | F102: 12 | G102: 300 | H102: 16.32 | I102: 414.528 | J102: 1.07 | K102: 27.178 | L102: 360.172
B103: Cast iron pipe Class 700 ft (304# ) Size 14" | C103: G | D103: 700 ft | E103: (304# ) | F103: 14 | G103: 350 | H103: 18.54 | I103: 470.916 | J103: 1.18 | K103: 29.972 | L103: 410.972
B104: Cast iron pipe Class 700 ft (304# ) Size 16" | C104: G | D104: 700 ft | E104: (304# ) | F104: 16 | G104: 400 | H104: 20.78 | I104: 527.812 | J104: 1.28 | K104: 32.512 | L104: 462.788
B105: Cast iron pipe Class 700 ft (304# ) Size 18" | C105: G | D105: 700 ft | E105: (304# ) | F105: 18 | G105: 450 | H105: 23.02 | I105: 584.708 | J105: 1.39 | K105: 35.306 | L105: 514.096
B106: Cast iron pipe Class 700 ft (304# ) Size 20" | C106: G | D106: 700 ft | E106: (304# ) | F106: 20 | G106: 500 | H106: 27.76 | I106: 705.104 | J106: 1.75 | K106: 44.45 | L106: 616.204
B107: Cast iron pipe Class 800 ft (347# ) Size 4" | C107: H | D107: 800 ft | E107: (347# ) | F107: 4 | G107: 100 | H107: 7.38 | I107: 187.452 | J107: 0.69 | K107: 17.526 | L107: 152.4
B108: Cast iron pipe Class 800 ft (347# ) Size 6" | C108: H | D108: 800 ft | E108: (347# ) | F108: 6 | G108: 150 | H108: 9.6 | I108: 243.84 | J108: 0.8 | K108: 20.32 | L108: 203.2
B109: Cast iron pipe Class 800 ft (347# ) Size 8" | C109: H | D109: 800 ft | E109: (347# ) | F109: 8 | G109: 200 | H109: 11.84 | I109: 300.736 | J109: 0.92 | K109: 23.368 | L109: 254
B110: Cast iron pipe Class 800 ft (347# ) Size 10" | C110: H | D110: 800 ft | E110: (347# ) | F110: 10 | G110: 250 | H110: 14.08 | I110: 357.632 | J110: 1.04 | K110: 26.416 | L110: 304.8
B111: Cast iron pipe Class 800 ft (347# ) Size 12" | C111: H | D111: 800 ft | E111: (347# ) | F111: 12 | G111: 300 | H111: 16.32 | I111: 414.528 | J111: 1.16 | K111: 29.464 | L111: 355.6
B112: Cast iron pipe Class 800 ft (347# ) Size 14" | C112: H | D112: 800 ft | E112: (347# ) | F112: 14 | G112: 350 | H112: 18.54 | I112: 470.916 | J112: 1.27 | K112: 32.258 | L112: 406.4
B113: Cast iron pipe Class 800 ft (347# ) Size 16" | C113: H | D113: 800 ft | E113: (347# ) | F113: 16 | G113: 400 | H113: 20.78 | I113: 527.812 | J113: 1.39 | K113: 35.306 | L113: 457.2
B114: Cast iron pipe Class 800 ft (347# ) Size 18" | C114: H | D114: 800 ft | E114: (347# ) | F114: 18 | G114: 450 | H114: 23.02 | I114: 584.708 | J114: 1.51 | K114: 38.354 | L114: 508
B115: Cast iron pipe Class 800 ft (347# ) Size 20" | C115: H | D115: 800 ft | E115: (347# ) | F115: 20 | G115: 500 | H115: 27.76 | I115: 705.104 | J115: 1.88 | K115: 47.752 | L115: 609.6

Sheet WN Flanges
A1: WELDING NECK FLANGE & PIPE DIMENSIONS
A20: Flange dimensions
A21: D | B21: Flange diam. | C21: =INDEX('Data WN flanges'!H$3:H$1755,'Data WN flanges'!$A$3) -> 1073.1 | D21: mm
A22: H | B22: Flange length | C22: =INDEX('Data WN flanges'!I$3:I$1755,'Data WN flanges'!$A$3) -> 93.7 | D22: mm
A23: b | B23: Flange thkn. incl. RF | C23: =INDEX('Data WN flanges'!J$3:J$1755,'Data WN flanges'!$A$3) -> 60.5 | D23: mm | F23: Include data of following WN flanges:
A24: d1 | B24: Diam. raced face | C24: =INDEX('Data WN flanges'!K$3:K$1755,'Data WN flanges'!$A$3) -> 1000.3 | D24: mm | F24: ANSI B 16.5 | H24: 125-2500#
A25: k | B25: Pitch circle | C25: =INDEX('Data WN flanges'!L$3:L$1755,'Data WN flanges'!$A$3) -> 1025.7 | D25: mm | F25: ANSI B 16.5 Long WN fl. | H25: 150-2500#
A26: n | B26: Number of bolts | C26: =INDEX('Data WN flanges'!M$3:M$1755,'Data WN flanges'!$A$3) -> 36 | D26: pce | F26: ANSI B 16.31 Cast iron | H26: 25-800#
A27: d2 | B27: Diam. boltholes | C27: =INDEX('Data WN flanges'!N$3:N$1755,'Data WN flanges'!$A$3) -> 25.4 | D27: mm | F27: ANSI B 16.47 - API Std. 605 | H27: 75-900#
A28: d3 | B28: Diameter hub | C28: =INDEX('Data WN flanges'!O$3:O$1755,'Data WN flanges'!$A$3) -> 962.2 | D28: mm | F28: ANSI B 16.47 - MSS SP-44 | H28: 150-900#
A29: f | B29: Raced face height | C29: =INDEX('Data WN flanges'!P$3:P$1755,'Data WN flanges'!$A$3) -> 1.6 | D29: mm | F29: BS 10 tables A-T | H29: 43-1400#
A30: r | B30: Round off | C30: =INDEX('Data WN flanges'!Q$3:Q$1755,'Data WN flanges'!$A$3) -> - | D30: mm | F30: BS 10 Cast iron | H30: 200#
A31: g | B31: Thickness of gasket | C31: =INDEX('Data WN flanges'!R$3:R$1755,'Data WN flanges'!$A$3) -> 7 | D31: mm | F31: BS 3293 | H31: 150-600#
A32: L | B32: Required stud length | C32: =INDEX('Data WN flanges'!S$3:S$1755,'Data WN flanges'!$A$3) -> 182 | D32: mm 1) | F32: BS 4772 Cast iron | H32: PN 10 -12
A33: bt | B33: Bolt | C33: =INDEX('Data WN flanges'!T$3:T$1755,'Data WN flanges'!$A$3) -> M24 | F33: BS 4504 | H33: PN 6 - 100
A34: m | B34: Nut height | C34: =INDEX('Data WN flanges'!U$3:U$1755,'Data WN flanges'!$A$3) -> 19 | D34: mm | F34: DIN 2630-2638 | H34: PN 1-160
A35: W | B35: Weight | C35: =INDEX('Data WN flanges'!V$3:V$1755,'Data WN flanges'!$A$3) -> - | D35: kg | F35: DIN 2627-2629 | H35: PN 250-400
F36: DIN Cast iron 2532-33 | H36: PN 10-16
A37: Surface finish | F37: DIN Cast iron 28604-07 | H37: PN 10-40
B38: Stock DN < 24" | C38: 6,3-12,5 | D38: µm | F38: NEN 5831-5835 | H38: PN 6 - 40
B39: Stock DN > 24" | C39: 12,5-25,0 | D39: µm | F39: JIS B 2210-2213 | H39: PN 5-40
B40: Smooth | C40: 3,2-6,3 | D40: µm | F40: Pressure vessels DIN 28034 | H40: -
A42: 1) | B42: for flange / flange connection

Sheet Data WN flanges (hidden)
A1: Data WN fanges | F1: Size | G1: Size | H1: Fl. diam. | I1: Fl. height | J1: Fl. thickn. | K1: Diam. RF | L1: Pitch circle | M1: No. of bolts | N1: Bolt hole | O1: Diam. Hub | P1: RF height | Q1: Round of | R1: Gasket th. | S1: Stud length | T1: Bolt | U1: Nut height | V1: Weight
B2: Type / Size / Rating | C2: Type | D2: Rating | E2: Norm | F2: NPS | G2: DN | H2: D | I2: H | J2: b | K2: d1 | L2: k | M2: n | N2: d2 | O2: d3 | P2: f | Q2: r | R2: g | S2: L | T2: bt | U2: m | V2: W
A3: 48 | B3: =CONCATENATE(C3,D3,$C$1,E3,$C$1,$F$1,$C$1,F3) -> WNRF 125# ANSI B16.5 Size 26" | C3: WNRF | D3: 125# | E3: ANSI B16.5 | F3: 26" | G3: 650 | H3: 870 | I3: 125.4 | J3: 50.8 | K3: 749.3 | L3: 806.5 | M3: 24 | N3: 35.1 | O3: 723.9 | P3: 1.6 | Q3: - | R3: 7 | S3: =(J3+U3+8)*2+R3 -> 176.6 | T3: M33 | U3: 26 | V3: -
B4: WNRF 125# ANSI B16.5 Size 28" | C4: WNRF | D4: 125# | E4: ANSI B16.5 | F4: 28" | G4: 700 | H4: 927.1 | I4: 126.9 | J4: 52.3 | K4: 800.1 | L4: 863.6 | M4: 28 | N4: 35.1 | O4: 781.1 | P4: 1.6 | Q4: - | R4: 7 | S4: 179.6 | T4: M33 | U4: 26 | V4: -
B5: WNRF 125# ANSI B16.5 Size 30" | C5: WNRF | D5: 125# | E5: ANSI B16.5 | F5: 30" | G5: 750 | H5: 984.3 | I5: 128.7 | J5: 54.1 | K5: 857.3 | L5: 914.4 | M5: 28 | N5: 35.1 | O5: 831.9 | P5: 1.6 | Q5: - | R5: 7 | S5: 183.2 | T5: M33 | U5: 26 | V5: -
B6: WNRF 125# ANSI B16.5 Size 32" | C6: WNRF | D6: 125# | E6: ANSI B16.5 | F6: 32" | G6: 800 | H6: 1060.5 | I6: 131.8 | J6: 57.2 | K6: 914.4 | L6: 977.9 | M6: 28 | N6: 41.4 | O6: 889 | P6: 1.6 | Q6: - | R6: 7 | S6: 189.4 | T6: M36 | U6: 26 | V6: -
B7: WNRF 125# ANSI B16.5 Size 34" | C7: WNRF | D7: 125# | E7: ANSI B16.5 | F7: 34" | G7: 850 | H7: 1111.3 | I7: 133.3 | J7: 58.7 | K7: 965.2 | L7: 1028.7 | M7: 32 | N7: 41.4 | O7: 939.8 | P7: 1.6 | Q7: - | R7: 7 | S7: 192.4 | T7: M36 | U7: 26 | V7: -
B8: WNRF 125# ANSI B16.5 Size 36" | C8: WNRF | D8: 125# | E8: ANSI B16.5 | F8: 36" | G8: 900 | H8: 1168.4 | I8: 135.1 | J8: 60.5 | K8: 1022.4 | L8: 1086 | M8: 32 | N8: 41.4 | O8: 997 | P8: 1.6 | Q8: - | R8: 7 | S8: 196 | T8: M36 | U8: 26 | V8: -
B9: WNRF 125# ANSI B16.5 Size 38" | C9: WNRF | D9: 125# | E9: ANSI B16.5 | F9: 38" | G9: 950 | H9: 1238.3 | I9: 135.1 | J9: 60.5 | K9: 1073.2 | L9: 1149.4 | M9: 32 | N9: 41.4 | O9: 1060.5 | P9: 1.6 | Q9: - | R9: 7 | S9: 196 | T9: M36 | U9: 26 | V9: -
B10: WNRF 125# ANSI B16.5 Size 40" | C10: WNRF | D10: 125# | E10: ANSI B16.5 | F10: 40" | G10: 1000 | H10: 1289.1 | I10: 138.1 | J10: 63.5 | K10: 1124 | L10: 1200.2 | M10: 36 | N10: 41.4 | O10: 1111.3 | P10: 1.6 | Q10: - | R10: 7 | S10: 208 | T10: M36 | U10: 29 | V10: -
B11: WNRF 125# ANSI B16.5 Size 42" | C11: WNRF | D11: 125# | E11: ANSI B16.5 | F11: 42" | G11: 1050 | H11: 1346.2 | I11: 141.4 | J11: 66.8 | K11: 1193.8 | L11: 1257.3 | M11: 36 | N11: 41.4 | O11: 1168.4 | P11: 1.6 | Q11: - | R11: 7 | S11: 214.6 | T11: M36 | U11: 29 | V11: -
B12: WNRF 125# ANSI B16.5 Size 44" | C12: WNRF | D12: 125# | E12: ANSI B16.5 | F12: 44" | G12: 1100 | H12: 1403.4 | I12: 141.4 | J12: 66.8 | K12: 1244.6 | L12: 1314.5 | M12: 40 | N12: 41.4 | O12: 1219.2 | P12: 1.6 | Q12: - | R12: 7 | S12: 214.6 | T12: M36 | U12: 29 | V12: -
B13: WNRF 125# ANSI B16.5 Size 46" | C13: WNRF | D13: 125# | E13: ANSI B16.5 | F13: 46" | G13: 1150 | H13: 1454.2 | I13: 142.7 | J13: 68.1 | K13: 1295.4 | L13: 1365.3 | M13: 40 | N13: 41.4 | O13: 1270 | P13: 1.6 | Q13: - | R13: 7 | S13: 217.2 | T13: M36 | U13: 29 | V13: -
B14: WNRF 125# ANSI B16.5 Size 48" | C14: WNRF | D14: 125# | E14: ANSI B16.5 | F14: 48" | G14: 1200 | H14: 1511.3 | I14: 144.5 | J14: 69.85 | K14: 1358.9 | L14: 1422.4 | M14: 44 | N14: 41.4 | O14: 1327.2 | P14: 1.6 | Q14: - | R14: 7 | S14: 220.7 | T14: M36 | U14: 29 | V14: -
B15: WNRF 125# ANSI B16.5 Size 50" | C15: WNRF | D15: 125# | E15: ANSI B16.5 | F15: 50" | G15: 1250 | H15: 1568.5 | I15: 144.5 | J15: 69.9 | K15: 1409.7 | L15: 1479.6 | M15: 44 | N15: 47.8 | O15: 1378 | P15: 1.6 | Q15: - | R15: 7 | S15: 226.8 | T15: M39 | U15: 32 | V15: -
B16: WNRF 125# ANSI B16.5 Size 52" | C16: WNRF | D16: 125# | E16: ANSI B16.5 | F16: 52" | G16: 1300 | H16: 1625.6 | I16: 147.8 | J16: 73.2 | K16: 1460.5 | L16: 1536.7 | M16: 44 | N16: 47.8 | O16: 1435.1 | P16: 1.6 | Q16: - | R16: 7 | S16: 233.4 | T16: M39 | U16: 32 | V16: -
B17: WNRF 125# ANSI B16.5 Size 54" | C17: WNRF | D17: 125# | E17: ANSI B16.5 | F17: 54" | G17: 1350 | H17: 1682.8 | I17: 150.8 | J17: 76.2 | K17: 1517.7 | L17: 1593.9 | M17: 44 | N17: 47.8 | O17: 1492.3 | P17: 1.6 | Q17: - | R17: 7 | S17: 239.4 | T17: M39 | U17: 32 | V17: -
B18: WNRF 125# ANSI B16.5 Size 60" | C18: WNRF | D18: 125# | E18: ANSI B16.5 | F18: 60" | G18: 1500 | H18: 1854.2 | I18: 154.1 | J18: 79.5 | K18: 1676.4 | L18: 1759 | M18: 52 | N18: 47.8 | O18: 1657.4 | P18: 1.6 | Q18: - | R18: 7 | S18: 246 | T18: M39 | U18: 32 | V18: -
B19: WNRF 150# ANSI B16.5 Size 1/2" | C19: WNRF | D19: 150# | E19: ANSI B16.5 | F19: 1/2" | G19: 15 | H19: 88.9 | I19: 47.8 | J19: 11.2 | K19: 35.1 | L19: 60.5 | M19: 4 | N19: 15.7 | O19: 30.2 | P19: 1.6 | Q19: 3 | R19: 3 | S19: 61.4 | T19: M12 | U19: 10 | V19: 0.48
B20: WNRF 150# ANSI B16.5 Size 3/4" | C20: WNRF | D20: 150# | E20: ANSI B16.5 | F20: 3/4" | G20: 20 | H20: 98.6 | I20: 52.3 | J20: 12.7 | K20: 42.9 | L20: 69.9 | M20: 4 | N20: 15.7 | O20: 38.1 | P20: 1.6 | Q20: 3 | R20: 3 | S20: 64.4 | T20: M12 | U20: 10 | V20: 0.71
B21: WNRF 150# ANSI B16.5 Size 1" | C21: WNRF | D21: 150# | E21: ANSI B16.5 | F21: 1" | G21: 25 | H21: 108 | I21: 55.6 | J21: 14.2 | K21: 50.8 | L21: 79.2 | M21: 4 | N21: 15.7 | O21: 49.3 | P21: 1.6 | Q21: 3 | R21: 3 | S21: 67.4 | T21: M12 | U21: 10 | V21: 1.01
B22: WNRF 150# ANSI B16.5 Size 1¼" | C22: WNRF | D22: 150# | E22: ANSI B16.5 | F22: 1¼" | G22: 32 | H22: 117.3 | I22: 57.2 | J22: 15.7 | K22: 63.5 | L22: 88.9 | M22: 4 | N22: 15.7 | O22: 58.7 | P22: 1.6 | Q22: 4.8 | R22: 3 | S22: 70.4 | T22: M12 | U22: 10 | V22: 1.33
B23: WNRF 150# ANSI B16.5 Size 1½" | C23: WNRF | D23: 150# | E23: ANSI B16.5 | F23: 1½" | G23: 40 | H23: 127 | I23: 62 | J23: 17.5 | K23: 73.2 | L23: 98.6 | M23: 4 | N23: 15.7 | O23: 65 | P23: 1.6 | Q23: 6.35 | R23: 3 | S23: 74 | T23: M12 | U23: 10 | V23: 1.72
B24: WNRF 150# ANSI B16.5 Size 2" | C24: WNRF | D24: 150# | E24: ANSI B16.5 | F24: 2" | G24: 50 | H24: 152.4 | I24: 63.5 | J24: 19.1 | K24: 91.9 | L24: 120.7 | M24: 4 | N24: 19.1 | O24: 77.7 | P24: 1.6 | Q24: 7.87 | R24: 4 | S24: 84.2 | T24: M16 | U24: 13 | V24: 2.58
B25: WNRF 150# ANSI B16.5 Size 2½" | C25: WNRF | D25: 150# | E25: ANSI B16.5 | F25: 2½" | G25: 65 | H25: 117.8 | I25: 69.9 | J25: 22.4 | K25: 104.6 | L25: 139.7 | M25: 4 | N25: 19.1 | O25: 90.4 | P25: 1.6 | Q25: 7.87 | R25: 4 | S25: 90.8 | T25: M16 | U25: 13 | V25: 4.11
B26: WNRF 150# ANSI B16.5 Size 3" | C26: WNRF | D26: 150# | E26: ANSI B16.5 | F26: 3" | G26: 80 | H26: 190.5 | I26: 69.9 | J26: 23.9 | K26: 127 | L26: 152.4 | M26: 4 | N26: 19.1 | O26: 108 | P26: 1.6 | Q26: 9.65 | R26: 4 | S26: 93.8 | T26: M16 | U26: 13 | V26: 4.92
B27: WNRF 150# ANSI B16.5 Size 3½" | C27: WNRF | D27: 150# | E27: ANSI B16.5 | F27: 3½" | G27: - | H27: 215.9 | I27: 71.4 | J27: 23.9 | K27: 139.7 | L27: 177.8 | M27: 8 | N27: 19.1 | O27: 122.2 | P27: 1.6 | Q27: 9.65 | R27: 4 | S27: 93.8 | T27: M16 | U27: 13 | V27: 6.08
B28: WNRF 150# ANSI B16.5 Size 4" | C28: WNRF | D28: 150# | E28: ANSI B16.5 | F28: 4" | G28: 100 | H28: 228.6 | I28: 76.2 | J28: 23.9 | K28: 157.2 | L28: 190.5 | M28: 8 | N28: 19.1 | O28: 134.9 | P28: 1.6 | Q28: 11.18 | R28: 5 | S28: 94.8 | T28: M16 | U28: 13 | V28: 6.84
B29: WNRF 150# ANSI B16.5 Size 5" | C29: WNRF | D29: 150# | E29: ANSI B16.5 | F29: 5" | G29: 125 | H29: 254 | I29: 88.9 | J29: 23.9 | K29: 185.7 | L29: 215.9 | M29: 8 | N29: 22.4 | O29: 163.6 | P29: 1.6 | Q29: 11.18 | R29: 5 | S29: 100.8 | T29: M20 | U29: 16 | V29: 8.56
B30: WNRF 150# ANSI B16.5 Size 6" | C30: WNRF | D30: 150# | E30: ANSI B16.5 | F30: 6" | G30: 150 | H30: 279.4 | I30: 88.9 | J30: 25.4 | K30: 215.9 | L30: 241.3 | M30: 8 | N30: 22.4 | O30: 192 | P30: 1.6 | Q30: 12.7 | R30: 6 | S30: 104.8 | T30: M20 | U30: 16 | V30: 10.6
B31: WNRF 150# ANSI B16.5 Size 8" | C31: WNRF | D31: 150# | E31: ANSI B16.5 | F31: 8" | G31: 200 | H31: 342.9 | I31: 101.6 | J31: 28.4 | K31: 269.7 | L31: 298.5 | M31: 8 | N31: 22.4 | O31: 246.1 | P31: 1.6 | Q31: 12.7 | R31: 6 | S31: 110.8 | T31: M20 | U31: 16 | V31: 17.6
B32: WNRF 150# ANSI B16.5 Size 10" | C32: WNRF | D32: 150# | E32: ANSI B16.5 | F32: 10" | G32: 250 | H32: 406.4 | I32: 101.6 | J32: 30.2 | K32: 323.9 | L32: 362 | M32: 12 | N32: 25.4 | O32: 304.8 | P32: 1.6 | Q32: 12.7 | R32: 6 | S32: 120.4 | T32: M24 | U32: 19 | V32: 24
B33: WNRF 150# ANSI B16.5 Size 12" | C33: WNRF | D33: 150# | E33: ANSI B16.5 | F33: 12" | G33: 300 | H33: 482.6 | I33: 114.3 | J33: 31.8 | K33: 381 | L33: 431.8 | M33: 12 | N33: 25.4 | O33: 365.3 | P33: 1.6 | Q33: 12.7 | R33: 6 | S33: 123.6 | T33: M24 | U33: 19 | V33: 36.5
B34: WNRF 150# ANSI B16.5 Size 14" | C34: WNRF | D34: 150# | E34: ANSI B16.5 | F34: 14" | G34: 350 | H34: 533.4 | I34: 127 | J34: 35.1 | K34: 412.8 | L34: 476.3 | M34: 12 | N34: 28.4 | O34: 400.1 | P34: 1.6 | Q34: 12.7 | R34: 7 | S34: 137.2 | T34: M27 | U34: 22 | V34: 48.4
B35: WNRF 150# ANSI B16.5 Size 16" | C35: WNRF | D35: 150# | E35: ANSI B16.5 | F35: 16" | G35: 400 | H35: 596.9 | I35: 127 | J35: 36.6 | K35: 469.9 | L35: 539.8 | M35: 16 | N35: 28.4 | O35: 457.2 | P35: 1.6 | Q35: 12.7 | R35: 7 | S35: 140.2 | T35: M27 | U35: 22 | V35: 60.6
B36: WNRF 150# ANSI B16.5 Size 18" | C36: WNRF | D36: 150# | E36: ANSI B16.5 | F36: 18" | G36: 450 | H36: 635 | I36: 139.7 | J36: 39.6 | K36: 533.4 | L36: 577.9 | M36: 16 | N36: 31.8 | O36: 505 | P36: 1.6 | Q36: 12.7 | R36: 7 | S36: 150.2 | T36: M30 | U36: 24 | V36: 68.3
B37: WNRF 150# ANSI B16.5 Size 20" | C37: WNRF | D37: 150# | E37: ANSI B16.5 | F37: 20" | G37: 500 | H37: 698.5 | I37: 144.5 | J37: 42.9 | K37: 584.2 | L37: 635 | M37: 20 | N37: 31.8 | O37: 558.8 | P37: 1.6 | Q37: 12.7 | R37: 7 | S37: 156.8 | T37: M30 | U37: 24 | V37: 84.5
B38: WNRF 150# ANSI B16.5 Size 22" | C38: WNRF | D38: 150# | E38: ANSI B16.5 | F38: 22" | G38: 550 | H38: 749.3 | I38: 149.2 | J38: 46 | K38: 641.2 | L38: 692.1 | M38: 20 | N38: 34.9 | O38: 609.6 | P38: 1.6 | Q38: 12.7 | R38: 7 | S38: 167 | T38: M33 | U38: 26 | V38: 102
B39: WNRF 150# ANSI B16.5 Size 24" | C39: WNRF | D39: 150# | E39: ANSI B16.5 | F39: 24" | G39: 600 | H39: 812.8 | I39: 152.4 | J39: 47.8 | K39: 692.2 | L39: 749.3 | M39: 20 | N39: 35.1 | O39: 663.4 | P39: 1.6 | Q39: 12.7 | R39: 7 | S39: 170.6 | T39: M33 | U39: 26 | V39: 115
B40: WNRF 150# ANSI B16.5 Size 26" | C40: WNRF | D40: 150# | E40: ANSI B16.5 | F40: 26" | G40: 650 | H40: 869.9 | I40: 127 | J40: 50.8 | K40: 742.9 | L40: 806.4 | M40: 24 | N40: 34.9 | O40: 723.9 | P40: 1.6 | Q40: 12.7 | R40: 7 | S40: 176.6 | T40: M33 | U40: 26 | V40: 118
B41: WNRF 150# ANSI B16.5 Size 30" | C41: WNRF | D41: 150# | E41: ANSI B16.5 | F41: 30" | G41: 750 | H41: 984.2 | I41: 130.2 | J41: 54 | K41: 857.2 | L41: 914.4 | M41: 28 | N41: 34.9 | O41: 831.8 | P41: 1.6 | Q41: 12.7 | R41: 7 | S41: 183 | T41: M33 | U41: 26 | V41: 153
B42: WNRF 150# ANSI B16.5 Size 34" | C42: WNRF | D42: 150# | E42: ANSI B16.5 | F42: 34" | G42: 850 | H42: 1111.2 | I42: 150.8 | J42: 58.8 | K42: 958.8 | L42: 1028.7 | M42: 32 | N42: 41.3 | O42: 911.2 | P42: 1.6 | Q42: 12.7 | R42: 7 | S42: 202.6 | T42: M39 | U42: 31 | V42: 212
B43: WNRF 150# ANSI B16.5 Size 36" | C43: WNRF | D43: 150# | E43: ANSI B16.5 | F43: 36" | G43: 900 | H43: 1168.4 | I43: 161.9 | J43: 60.3 | K43: 1022.3 | L43: 1085.8 | M43: 32 | N43: 41.3 | O43: 966.8 | P43: 1.6 | Q43: 12.7 | R43: 7 | S43: 205.6 | T43: M39 | U43: 31 | V43: 242
B44: WNRF 150# ANSI B16.5 Size 42" | C44: WNRF | D44: 150# | E44: ANSI B16.5 | F44: 42" | G44: 1050 | H44: 1344.2 | I44: 193.7 | J44: 64.7 | K44: 1193.8 | L44: 1257.3 | M44: 36 | N44: 41.3 | O44: 1131.9 | P44: 1.6 | Q44: 12.7 | R44: 7 | S44: 214.4 | T44: M39 | U44: 31 | V44: 358
B45: WNRF 175# ANSI B16.5 Size 26" | C45: WNRF | D45: 175# | E45: ANSI B16.5 | F45: 26" | G45: 650 | H45: 800.1 | I45: 84.3 | J45: 46 | K45: 736.6 | L45: 759 | M45: 28 | N45: 22.4 | O45: 701.8 | P45: 1.6 | Q45: - | R45: 7 | S45: 147 | T45: M20 | U45: 16 | V45: -
B46: WNRF 175# ANSI B16.5 Size 28" | C46: WNRF | D46: 175# | E46: ANSI B16.5 | F46: 28" | G46: 700 | H46: 850.9 | I46: 84.3 | J46: 47.8 | K46: 787.4 | L46: 809.8 | M46: 28 | N46: 22.4 | O46: 752.6 | P46: 1.6 | Q46: - | R46: 7 | S46: 150.6 | T46: M20 | U46: 16 | V46: -
B47: WNRF 175# ANSI B16.5 Size 30" | C47: WNRF | D47: 175# | E47: ANSI B16.5 | F47: 30" | G47: 750 | H47: 908 | I47: 90.6 | J47: 50.8 | K47: 844.5 | L47: 866.9 | M47: 36 | N47: 22.4 | O47: 809.8 | P47: 1.6 | Q47: - | R47: 7 | S47: 156.6 | T47: M20 | U47: 16 | V47: -
B48: WNRF 175# ANSI B16.5 Size 32" | C48: WNRF | D48: 175# | E48: ANSI B16.5 | F48: 32" | G48: 800 | H48: 958.8 | I48: 90.6 | J48: 53.8 | K48: 895.3 | L48: 917.7 | M48: 36 | N48: 22.4 | O48: 860.6 | P48: 1.6 | Q48: - | R48: 7 | S48: 162.6 | T48: M20 | U48: 16 | V48: -
B49: WNRF 175# ANSI B16.5 Size 34" | C49: WNRF | D49: 175# | E49: ANSI B16.5 | F49: 34" | G49: 850 | H49: 1022.3 | I49: 93.7 | J49: 57.1 | K49: 949.5 | L49: 974.9 | M49: 36 | N49: 25.4 | O49: 911.4 | P49: 1.6 | Q49: - | R49: 7 | S49: 175.2 | T49: M24 | U49: 19 | V49: -
B50: WNRF 175# ANSI B16.5 Size 36" | C50: WNRF | D50: 175# | E50: ANSI B16.5 | F50: 36" | G50: 900 | H50: 1073.1 | I50: 93.7 | J50: 60.5 | K50: 1000.3 | L50: 1025.7 | M50: 36 | N50: 25.4 | O50: 962.2 | P50: 1.6 | Q50: - | R50: 7 | S50: 182 | T50: M24 | U50: 19 | V50: -
B51: WNRF 175# ANSI B16.5 Size 38" | C51: WNRF | D51: 175# | E51: ANSI B16.5 | F51: 38" | G51: 950 | H51: 1124 | I51: 103.3 | J51: 63.5 | K51: 1051.1 | L51: 1076.5 | M51: 36 | N51: 25.4 | O51: 1013 | P51: 1.6 | Q51: - | R51: 7 | S51: 188 | T51: M24 | U51: 19 | V51: -
B52: WNRF 175# ANSI B16.5 Size 40" | C52: WNRF | D52: 175# | E52: ANSI B16.5 | F52: 40" | G52: 1000 | H52: 1174.8 | I52: 103.3 | J52: 66.5 | K52: 1101.9 | L52: 1127.3 | M52: 40 | N52: 25.4 | O52: 1063.8 | P52: 1.6 | Q52: - | R52: 7 | S52: 194 | T52: M24 | U52: 19 | V52: -
B53: WNRF 175# ANSI B16.5 Size 42" | C53: WNRF | D53: 175# | E53: ANSI B16.5 | F53: 42" | G53: 1050 | H53: 1244.6 | I53: 112.7 | J53: 69.8 | K53: 1162.1 | L53: 1190.8 | M53: 40 | N53: 28.7 | O53: 1120.9 | P53: 1.6 | Q53: - | R53: 7 | S53: 206.6 | T53: M27 | U53: 22 | V53: -
B54: WNRF 175# ANSI B16.5 Size 44" | C54: WNRF | D54: 175# | E54: ANSI B16.5 | F54: 44" | G54: 1100 | H54: 1295.4 | I54: 112.7 | J54: 73.2 | K54: 1212.8 | L54: 1241.6 | M54: 40 | N54: 28.7 | O54: 1171.7 | P54: 1.6 | Q54: - | R54: 7 | S54: 213.4 | T54: M27 | U54: 22 | V54: -
B55: WNRF 175# ANSI B16.5 Size 46" | C55: WNRF | D55: 175# | E55: ANSI B16.5 | F55: 46" | G55: 1150 | H55: 1346.2 | I55: 112.7 | J55: 76.2 | K55: 1263.6 | L55: 1292.4 | M55: 40 | N55: 28.7 | O55: 1222.5 | P55: 1.6 | Q55: - | R55: 7 | S55: 219.4 | T55: M27 | U55: 22 | V55: -
B56: WNRF 175# ANSI B16.5 Size 48" | C56: WNRF | D56: 175# | E56: ANSI B16.5 | F56: 48" | G56: 1200 | H56: 1397 | I56: 122.4 | J56: 79.2 | K56: 1314.4 | L56: 1343.2 | M56: 44 | N56: 28.7 | O56: 1273.3 | P56: 1.6 | Q56: - | R56: 7 | S56: 225.4 | T56: M27 | U56: 22 | V56: -
B57: WNRF 175# ANSI B16.5 Size 50" | C57: WNRF | D57: 175# | E57: ANSI B16.5 | F57: 50" | G57: 1250 | H57: 1447.8 | I57: 122.4 | J57: 82.5 | K57: 1365.3 | L57: 1394.3 | M57: 44 | N57: 28.7 | O57: 1324.1 | P57: 1.6 | Q57: - | R57: 7 | S57: 232 | T57: M27 | U57: 22 | V57: -
B58: WNRF 175# ANSI B16.5 Size 52" | C58: WNRF | D58: 175# | E58: ANSI B16.5 | F58: 52" | G58: 1300 | H58: 1511.3 | I58: 135.1 | J58: 85.9 | K58: 1422.4 | L58: 1454.1 | M58: 44 | N58: 31.8 | O58: 1377.9 | P58: 1.6 | Q58: - | R58: 7 | S58: 242.8 | T58: M30 | U58: 24 | V58: -
B59: WNRF 175# ANSI B16.5 Size 54" | C59: WNRF | D59: 175# | E59: ANSI B16.5 | F59: 54" | G59: 1350 | H59: 1562.1 | I59: 135.1 | J59: 88.9 | K59: 1473.2 | L59: 1504.9 | M59: 44 | N59: 31.8 | O59: 1428.8 | P59: 1.6 | Q59: - | R59: 7 | S59: 248.8 | T59: M30 | U59: 24 | V59: -
B60: WNRF 175# ANSI B16.5 Size 60" | C60: WNRF | D60: 175# | E60: ANSI B16.5 | F60: 60" | G60: 1500 | H60: 1714.5 | I60: 144.4 | J60: 98.6 | K60: 1625.6 | L60: 1657.3 | M60: 48 | N60: 31.8 | O60: 1581.1 | P60: 1.6 | Q60: - | R60: 7 | S60: 268.2 | T60: M30 | U60: 24 | V60: -
B61: WNRF 175# ANSI B16.5 Size 66" | C61: WNRF | D61: 175# | E61: ANSI B16.5 | F61: 66" | G61: 1650 | H61: 1866.9 | I61: 154.1 | J61: 107.9 | K61: 1778 | L61: 1809.9 | M61: 56 | N61: 31.8 | O61: 1739.9 | P61: 1.6 | Q61: - | R61: 7 | S61: 286.8 | T61: M30 | U61: 24 | V61: -
B62: WNRF 175# ANSI B16.5 Size 72" | C62: WNRF | D62: 175# | E62: ANSI B16.5 | F62: 72" | G62: 1800 | H62: 2032 | I62: 166.8 | J62: 114.3 | K62: 1943.1 | L62: 1974.8 | M62: 64 | N62: 31.8 | O62: 1892.3 | P62: 1.6 | Q62: - | R62: 7 | S62: 299.6 | T62: M30 | U62: 24 | V62: -
B63: WNRF 300# ANSI B16.5 Size 1/2" | C63: WNRF | D63: 300# | E63: ANSI B16.5 | F63: 1/2" | G63: 15 | H63: 95.2 | I63: 52.4 | J63: 14.3 | K63: 35 | L63: 66.5 | M63: 4 | N63: 15.7 | O63: 38.1 | P63: 1.6 | Q63: 3 | R63: 3 | S63: 67.6 | T63: M12 | U63: 10 | V63: 0.75
B64: WNRF 300# ANSI B16.5 Size 3/4" | C64: WNRF | D64: 300# | E64: ANSI B16.5 | F64: 3/4" | G64: 20 | H64: 117.5 | I64: 57.1 | J64: 15.9 | K64: 42.9 | L64: 82.5 | M64: 4 | N64: 19 | O64: 47.7 | P64: 1.6 | Q64: 3 | R64: 3 | S64: 76.8 | T64: M16 | U64: 13 | V64: 1.26
B65: WNRF 300# ANSI B16.5 Size 1" | C65: WNRF | D65: 300# | E65: ANSI B16.5 | F65: 1" | G65: 25 | H65: 123.8 | I65: 61.9 | J65: 17.5 | K65: 50.8 | L65: 88.9 | M65: 4 | N65: 19 | O65: 53.8 | P65: 1.6 | Q65: 3 | R65: 3 | S65: 80 | T65: M16 | U65: 13 | V65: 1.52
B66: WNRF 300# ANSI B16.5 Size 1¼" | C66: WNRF | D66: 300# | E66: ANSI B16.5 | F66: 1¼" | G66: 32 | H66: 133.3 | I66: 65.1 | J66: 19 | K66: 63.5 | L66: 98.5 | M66: 4 | N66: 19 | O66: 63.5 | P66: 1.6 | Q66: 4.8 | R66: 3 | S66: 83 | T66: M16 | U66: 13 | V66: 2.03
B67: WNRF 300# ANSI B16.5 Size 1½" | C67: WNRF | D67: 300# | E67: ANSI B16.5 | F67: 1½" | G67: 40 | H67: 155.6 | I67: 68.3 | J67: 20.6 | K67: 73.1 | L67: 114.3 | M67: 4 | N67: 22.3 | O67: 69.8 | P67: 1.6 | Q67: 6.35 | R67: 3 | S67: 92.2 | T67: M20 | U67: 16 | V67: 2.89
B68: WNRF 300# ANSI B16.5 Size 2" | C68: WNRF | D68: 300# | E68: ANSI B16.5 | F68: 2" | G68: 50 | H68: 165.1 | I68: 69.8 | J68: 22.3 | K68: 91.9 | L68: 127 | M68: 8 | N68: 19 | O68: 84 | P68: 1.6 | Q68: 7.87 | R68: 4 | S68: 90.6 | T68: M16 | U68: 13 | V68: 3.4
B69: WNRF 300# ANSI B16.5 Size 2½" | C69: WNRF | D69: 300# | E69: ANSI B16.5 | F69: 2½" | G69: 65 | H69: 190.5 | I69: 76.2 | J69: 25.4 | K69: 104.6 | L69: 149.3 | M69: 8 | N69: 22.3 | O69: 100 | P69: 1.6 | Q69: 7.87 | R69: 4 | S69: 102.8 | T69: M20 | U69: 16 | V69: 5.17
B70: WNRF 300# ANSI B16.5 Size 3" | C70: WNRF | D70: 300# | E70: ANSI B16.5 | F70: 3" | G70: 80 | H70: 209.5 | I70: 79.4 | J70: 28.4 | K70: 127 | L70: 168.1 | M70: 8 | N70: 22.3 | O70: 117.3 | P70: 1.6 | Q70: 9.65 | R70: 4 | S70: 108.8 | T70: M20 | U70: 16 | V70: 6.93
B71: WNRF 300# ANSI B16.5 Size 3½" | C71: WNRF | D71: 300# | E71: ANSI B16.5 | F71: 3½" | G71: - | H71: 228.6 | I71: 81 | J71: 30.2 | K71: 139.7 | L71: 184.1 | M71: 8 | N71: 22.3 | O71: 133.3 | P71: 1.6 | Q71: 9.65 | R71: 4 | S71: 112.4 | T71: M20 | U71: 16 | V71: 8.67
B72: WNRF 300# ANSI B16.5 Size 4" | C72: WNRF | D72: 300# | E72: ANSI B16.5 | F72: 4" | G72: 100 | H72: 254 | I72: 85.7 | J72: 31.7 | K72: 157.2 | L72: 200.1 | M72: 8 | N72: 22.3 | O72: 146 | P72: 1.6 | Q72: 11.18 | R72: 5 | S72: 116.4 | T72: M20 | U72: 16 | V72: 11.2
B73: WNRF 300# ANSI B16.5 Size 5" | C73: WNRF | D73: 300# | E73: ANSI B16.5 | F73: 5" | G73: 125 | H73: 279.4 | I73: 98.4 | J73: 35 | K73: 185.6 | L73: 234.9 | M73: 8 | N73: 22.3 | O73: 177.8 | P73: 1.6 | Q73: 11.18 | R73: 5 | S73: 123 | T73: M20 | U73: 16 | V73: 15.1
B74: WNRF 300# ANSI B16.5 Size 6" | C74: WNRF | D74: 300# | E74: ANSI B16.5 | F74: 6" | G74: 150 | H74: 317.5 | I74: 98.4 | J74: 36.5 | K74: 215.9 | L74: 269.7 | M74: 12 | N74: 22.3 | O74: 206.2 | P74: 1.6 | Q74: 12.7 | R74: 6 | S74: 127 | T74: M20 | U74: 16 | V74: 19.1
B75: WNRF 300# ANSI B16.5 Size 8" | C75: WNRF | D75: 300# | E75: ANSI B16.5 | F75: 8" | G75: 200 | H75: 381 | I75: 111.1 | J75: 41.1 | K75: 269.7 | L75: 330.2 | M75: 12 | N75: 25.4 | O75: 260.3 | P75: 1.6 | Q75: 12.7 | R75: 6 | S75: 142.2 | T75: M24 | U75: 19 | V75: 29.9
B76: WNRF 300# ANSI B16.5 Size 10" | C76: WNRF | D76: 300# | E76: ANSI B16.5 | F76: 10" | G76: 250 | H76: 444.5 | I76: 117.5 | J76: 47.7 | K76: 323.8 | L76: 387.3 | M76: 16 | N76: 28.4 | O76: 320.5 | P76: 1.6 | Q76: 12.7 | R76: 6 | S76: 161.4 | T76: M27 | U76: 22 | V76: 42.7
B77: WNRF 300# ANSI B16.5 Size 12" | C77: WNRF | D77: 300# | E77: ANSI B16.5 | F77: 12" | G77: 300 | H77: 520.7 | I77: 130.2 | J77: 50.8 | K77: 381 | L77: 450.8 | M77: 16 | N77: 31.7 | O77: 374.6 | P77: 1.6 | Q77: 12.7 | R77: 6 | S77: 171.6 | T77: M30 | U77: 24 | V77: 61.8
B78: WNRF 300# ANSI B16.5 Size 14" | C78: WNRF | D78: 300# | E78: ANSI B16.5 | F78: 14" | G78: 350 | H78: 584.2 | I78: 142.9 | J78: 53.8 | K78: 412.7 | L78: 514.3 | M78: 20 | N78: 31.7 | O78: 425.4 | P78: 1.6 | Q78: 12.7 | R78: 7 | S78: 178.6 | T78: M30 | U78: 24 | V78: 85.8
B79: WNRF 300# ANSI B16.5 Size 16" | C79: WNRF | D79: 300# | E79: ANSI B16.5 | F79: 16" | G79: 400 | H79: 647.7 | I79: 146 | J79: 57.1 | K79: 469.9 | L79: 571.5 | M79: 20 | N79: 35 | O79: 482.6 | P79: 1.6 | Q79: 12.7 | R79: 7 | S79: 189.2 | T79: M33 | U79: 26 | V79: 106
B80: WNRF 300# ANSI B16.5 Size 18" | C80: WNRF | D80: 300# | E80: ANSI B16.5 | F80: 18" | G80: 450 | H80: 711.2 | I80: 158.7 | J80: 60.4 | K80: 533.4 | L80: 628.6 | M80: 24 | N80: 35 | O80: 533.4 | P80: 1.6 | Q80: 12.7 | R80: 7 | S80: 195.8 | T80: M33 | U80: 26 | V80: 131
B81: WNRF 300# ANSI B16.5 Size 20" | C81: WNRF | D81: 300# | E81: ANSI B16.5 | F81: 20" | G81: 500 | H81: 774.7 | I81: 161.9 | J81: 63.5 | K81: 584.2 | L81: 685.8 | M81: 24 | N81: 35 | O81: 587.2 | P81: 1.6 | Q81: 12.7 | R81: 7 | S81: 202 | T81: M33 | U81: 26 | V81: 158
B82: WNRF 300# ANSI B16.5 Size 22" | C82: WNRF | D82: 300# | E82: ANSI B16.5 | F82: 22" | G82: 550 | H82: 838.2 | I82: 165.1 | J82: 66.7 | K82: 641.2 | L82: 742.9 | M82: 24 | N82: 41.3 | O82: 641.2 | P82: 1.6 | Q82: 12.7 | R82: 7 | S82: 218.4 | T82: M39 | U82: 31 | V82: 195
B83: WNRF 300# ANSI B16.5 Size 24" | C83: WNRF | D83: 300# | E83: ANSI B16.5 | F83: 24" | G83: 600 | H83: 914.4 | I83: 168.3 | J83: 69.8 | K83: 692.1 | L83: 812.8 | M83: 24 | N83: 41.1 | O83: 701.5 | P83: 1.6 | Q83: 12.7 | R83: 7 | S83: 224.6 | T83: M39 | U83: 31 | V83: 230
B84: WNRF 300# ANSI B16.5 Size 26" | C84: WNRF | D84: 300# | E84: ANSI B16.5 | F84: 26" | G84: 650 | H84: 971.5 | I84: 184.1 | J84: 79.4 | K84: 749.3 | L84: 876.3 | M84: 28 | N84: 44.4 | O84: 720.7 | P84: 1.6 | Q84: 12.7 | R84: 7 | S84: 249.8 | T84: M42 | U84: 34 | V84: 279
B85: WNRF 300# ANSI B16.5 Size 30" | C85: WNRF | D85: 300# | E85: ANSI B16.5 | F85: 30" | G85: 750 | H85: 1092.2 | I85: 209.5 | J85: 92.1 | K85: 857.2 | L85: 996.9 | M85: 28 | N85: 47.6 | O85: 827.1 | P85: 1.6 | Q85: 12.7 | R85: 7 | S85: 279.2 | T85: M45 | U85: 36 | V85: 390
B86: WNRF 300# ANSI B16.5 Size 34" | C86: WNRF | D86: 300# | E86: ANSI B16.5 | F86: 34" | G86: 850 | H86: 1206.5 | I86: 231.8 | J86: 1016 | K86: 965.2 | L86: 1104.9 | M86: 28 | N86: 50.8 | O86: 936.6 | P86: 1.6 | Q86: 12.7 | R86: 7 | S86: 2131 | T86: M48 | U86: 38 | V86: 504
B87: WNRF 300# ANSI B16.5 Size 36" | C87: WNRF | D87: 300# | E87: ANSI B16.5 | F87: 36" | G87: 900 | H87: 1270 | I87: 241.3 | J87: 104.8 | K87: 1022.3 | L87: 1168.4 | M87: 32 | N87: 54 | O87: 990.6 | P87: 1.6 | Q87: 12.7 | R87: 7 | S87: 316.6 | T87: M52 | U87: 42 | V87: 560
B88: WNRF 300# ANSI B16.5 Size 42" | C88: WNRF | D88: 300# | E88: ANSI B16.5 | F88: 42" | G88: 1050 | H88: 1447.8 | I88: 276.2 | J88: 117.5 | K88: 1193.8 | L88: 1339.8 | M88: 36 | N88: 54 | O88: 1154.1 | P88: 1.6 | Q88: 12.7 | R88: 7 | S88: 342 | T88: M52 | U88: 42 | V88: 790
B89: WNRF 350# ANSI B16.5 Size 26" | C89: WNRF | D89: 350# | E89: ANSI B16.5 | F89: 26" | G89: 650 | H89: 831.8 | I89: 125.4 | J89: 63.5 | K89: 749.3 | L89: 777.7 | M89: 28 | N89: 28.4 | O89: 708.2 | P89: 1.6 | Q89: - | R89: 7 | S89: 194 | T89: M27 | U89: 22 | V89: -
B90: WNRF 350# ANSI B16.5 Size 28" | C90: WNRF | D90: 350# | E90: ANSI B16.5 | F90: 28" | G90: 700 | H90: 882.6 | I90: 125.4 | J90: 63.5 | K90: 800.1 | L90: 828.5 | M90: 28 | N90: 28.4 | O90: 759 | P90: 1.6 | Q90: - | R90: 7 | S90: 194 | T90: M27 | U90: 22 | V90: -
B91: WNRF 350# ANSI B16.5 Size 30" | C91: WNRF | D91: 350# | E91: ANSI B16.5 | F91: 30" | G91: 750 | H91: 939.8 | I91: 131.7 | J91: 66.5 | K91: 857.3 | L91: 886 | M91: 32 | N91: 28.4 | O91: 815.8 | P91: 1.6 | Q91: - | R91: 7 | S91: 200 | T91: M27 | U91: 22 | V91: -
B92: WNRF 350# ANSI B16.5 Size 32" | C92: WNRF | D92: 350# | E92: ANSI B16.5 | F92: 32" | G92: 800 | H92: 990.6 | I92: 138.1 | J92: 69.8 | K92: 908 | L92: 936.8 | M92: 36 | N92: 28.4 | O92: 866.6 | P92: 1.6 | Q92: - | R92: 7 | S92: 206.6 | T92: M27 | U92: 22 | V92: -
B93: WNRF 350# ANSI B16.5 Size 34" | C93: WNRF | D93: 350# | E93: ANSI B16.5 | F93: 34" | G93: 850 | H93: 1041.4 | I93: 144.4 | J93: 73.2 | K93: 958.8 | L93: 987.6 | M93: 40 | N93: 28.4 | O93: 917.4 | P93: 1.6 | Q93: - | R93: 7 | S93: 213.4 | T93: M27 | U93: 22 | V93: -
B94: WNRF 350# ANSI B16.5 Size 36" | C94: WNRF | D94: 350# | E94: ANSI B16.5 | F94: 36" | G94: 900 | H94: 1111.3 | I94: 153.8 | J94: 79.2 | K94: 1022.3 | L94: 1054.1 | M94: 40 | N94: 31.8 | O94: 977.9 | P94: 1.6 | Q94: - | R94: 7 | S94: 229.4 | T94: M30 | U94: 24 | V94: -
B95: WNRF 350# ANSI B16.5 Size 38" | C95: WNRF | D95: 350# | E95: ANSI B16.5 | F95: 38" | G95: 950 | H95: 1162.1 | I95: 153.8 | J95: 79.2 | K95: 1073.1 | L95: 1104.9 | M95: 40 | N95: 31.8 | O95: 1028.7 | P95: 1.6 | Q95: - | R95: 7 | S95: 229.4 | T95: M30 | U95: 24 | V95: -
B96: WNRF 350# ANSI B16.5 Size 40" | C96: WNRF | D96: 350# | E96: ANSI B16.5 | F96: 40" | G96: 1000 | H96: 1212.8 | I96: 157.2 | J96: 82.5 | K96: 1124 | L96: 1155.7 | M96: 44 | N96: 31.8 | O96: 1079.5 | P96: 1.6 | Q96: - | R96: 7 | S96: 236 | T96: M30 | U96: 24 | V96: -
B97: WNRF 350# ANSI B16.5 Size 42" | C97: WNRF | D97: 350# | E97: ANSI B16.5 | F97: 42" | G97: 1050 | H97: 1270 | I97: 163.5 | J97: 88.9 | K97: 1181.1 | L97: 1212.8 | M97: 48 | N97: 31.8 | O97: 1136.6 | P97: 1.6 | Q97: - | R97: 7 | S97: 248.8 | T97: M30 | U97: 24 | V97: -
B98: WNRF 350# ANSI B16.5 Size 44" | C98: WNRF | D98: 350# | E98: ANSI B16.5 | F98: 44" | G98: 1100 | H98: 1339.8 | I98: 169.36 | J98: 95.3 | K98: 1241.6 | L98: 1276.3 | M98: 44 | N98: 35.1 | O98: 1187.5 | P98: 1.6 | Q98: - | R98: 7 | S98: 265.6 | T98: M33 | U98: 26 | V98: -
B99: WNRF 350# ANSI B16.5 Size 46" | C99: WNRF | D99: 350# | E99: ANSI B16.5 | F99: 46" | G99: 1150 | H99: 1390.6 | I99: 182.5 | J99: 107.9 | K99: 1292.4 | L99: 1327.1 | M99: 48 | N99: 35.1 | O99: 1238.3 | P99: 1.6 | Q99: - | R99: 7 | S99: 290.8 | T99: M33 | U99: 26 | V99: -
B100: WNRF 350# ANSI B16.5 Size 48" | C100: WNRF | D100: 350# | E100: ANSI B16.5 | F100: 48" | G100: 1200 | H100: 1441.4 | I100: 182.5 | J100: 107.9 | K100: 1343.2 | L100: 1377.9 | M100: 48 | N100: 35.1 | O100: 1289.1 | P100: 1.6 | Q100: - | R100: 7 | S100: 290.8 | T100: M33 | U100: 26 | V100: -
B101: WNRF 400# ANSI B16.5 Size 1/2" | C101: WNRF | D101: 400# | E101: ANSI B16.5 | F101: 1/2" | G101: 15 | H101: 95.3 | I101: 58.7 | J101: 20.6 | K101: 35.1 | L101: 66.5 | M101: 4 | N101: 15.7 | O101: 38.1 | P101: 6.4 | Q101: 3 | R101: 3 | S101: 80.2 | T101: M12 | U101: 10 | V101: 0.87
B102: WNRF 400# ANSI B16.5 Size 3/4" | C102: WNRF | D102: 400# | E102: ANSI B16.5 | F102: 3/4" | G102: 20 | H102: 117.3 | I102: 63.6 | J102: 22.1 | K102: 42.9 | L102: 82.6 | M102: 4 | N102: 19.1 | O102: 47.8 | P102: 6.4 | Q102: 3 | R102: 3 | S102: 89.2 | T102: M16 | U102: 13 | V102: 1.45
B103: WNRF 400# ANSI B16.5 Size 1" | C103: WNRF | D103: 400# | E103: ANSI B16.5 | F103: 1" | G103: 25 | H103: 124 | I103: 68.4 | J103: 23.9 | K103: 50.8 | L103: 88.9 | M103: 4 | N103: 19.1 | O103: 53.8 | P103: 6.4 | Q103: 3 | R103: 3 | S103: 92.8 | T103: M16 | U103: 13 | V103: 1.76
B104: WNRF 400# ANSI B16.5 Size 1¼" | C104: WNRF | D104: 400# | E104: ANSI B16.5 | F104: 1¼" | G104: 32 | H104: 133.4 | I104: 72.9 | J104: 27 | K104: 63.5 | L104: 98.6 | M104: 4 | N104: 19.1 | O104: 63.5 | P104: 6.4 | Q104: 4.8 | R104: 3 | S104: 99 | T104: M16 | U104: 13 | V104: 2.49
B105: WNRF 400# ANSI B16.5 Size 1½" | C105: WNRF | D105: 400# | E105: ANSI B16.5 | F105: 1½" | G105: 40 | H105: 155.4 | I105: 76.3 | J105: 28.4 | K105: 73.2 | L105: 114.3 | M105: 4 | N105: 22.4 | O105: 69.9 | P105: 6.4 | Q105: 6.35 | R105: 3 | S105: 107.8 | T105: M20 | U105: 16 | V105: 3.49
B106: WNRF 400# ANSI B16.5 Size 2" | C106: WNRF | D106: 400# | E106: ANSI B16.5 | F106: 2" | G106: 50 | H106: 165.1 | I106: 79.6 | J106: 31.8 | K106: 91.9 | L106: 127 | M106: 8 | N106: 19.1 | O106: 84.1 | P106: 6.4 | Q106: 7.87 | R106: 4 | S106: 109.6 | T106: M16 | U106: 13 | V106: 4.36
B107: WNRF 400# ANSI B16.5 Size 2½" | C107: WNRF | D107: 400# | E107: ANSI B16.5 | F107: 2½" | G107: 65 | H107: 190.5 | I107: 85.6 | J107: 34.8 | K107: 104.6 | L107: 149.4 | M107: 8 | N107: 22.4 | O107: 100.1 | P107: 6.4 | Q107: 7.87 | R107: 4 | S107: 121.6 | T107: M20 | U107: 16 | V107: 6.43
B108: WNRF 400# ANSI B16.5 Size 3" | C108: WNRF | D108: 400# | E108: ANSI B16.5 | F108: 3" | G108: 80 | H108: 209.6 | I108: 89 | J108: 38.4 | K108: 127 | L108: 168.1 | M108: 8 | N108: 22.4 | O108: 117.3 | P108: 6.4 | Q108: 9.65 | R108: 4 | S108: 128.8 | T108: M20 | U108: 16 | V108: 8.53
B109: WNRF 400# ANSI B16.5 Size 3½" | C109: WNRF | D109: 400# | E109: ANSI B16.5 | F109: 3½" | G109: - | H109: 228.6 | I109: 92.3 | J109: 41.5 | K109: 139.7 | L109: 184.2 | M109: 8 | N109: 25.4 | O109: 133.4 | P109: 6.4 | Q109: 9.65 | R109: 4 | S109: 141 | T109: M24 | U109: 19 | V109: 10.7
B110: WNRF 400# ANSI B16.5 Size 4" | C110: WNRF | D110: 400# | E110: ANSI B16.5 | F110: 4" | G110: 100 | H110: 254 | I110: 95.3 | J110: 41.5 | K110: 157.2 | L110: 200.2 | M110: 8 | N110: 25.4 | O110: 146.1 | P110: 6.4 | Q110: 11.18 | R110: 5 | S110: 142 | T110: M24 | U110: 19 | V110: 12.8
B111: WNRF 400# ANSI B16.5 Size 5" | C111: WNRF | D111: 400# | E111: ANSI B16.5 | F111: 5" | G111: 125 | H111: 279.4 | I111: 108 | J111: 44.5 | K111: 185.7 | L111: 235 | M111: 8 | N111: 25.4 | O111: 177.8 | P111: 6.4 | Q111: 11.18 | R111: 5 | S111: 148 | T111: M24 | U111: 19 | V111: 16.9
B112: WNRF 400# ANSI B16.5 Size 6" | C112: WNRF | D112: 400# | E112: ANSI B16.5 | F112: 6" | G112: 150 | H112: 317.5 | I112: 109.5 | J112: 47.5 | K112: 215.9 | L112: 269.7 | M112: 12 | N112: 25.4 | O112: 206.2 | P112: 6.4 | Q112: 12.7 | R112: 6 | S112: 155 | T112: M24 | U112: 19 | V112: 22
B113: WNRF 400# ANSI B16.5 Size 8" | C113: WNRF | D113: 400# | E113: ANSI B16.5 | F113: 8" | G113: 200 | H113: 381 | I113: 123.7 | J113: 54.4 | K113: 269.7 | L113: 330.2 | M113: 12 | N113: 28.4 | O113: 260.4 | P113: 6.4 | Q113: 12.7 | R113: 6 | S113: 174.8 | T113: M27 | U113: 22 | V113: 34.7
B114: WNRF 400# ANSI B16.5 Size 10" | C114: WNRF | D114: 400# | E114: ANSI B16.5 | F114: 10" | G114: 250 | H114: 444.5 | I114: 130.4 | J114: 60.2 | K114: 323.9 | L114: 387.4 | M114: 16 | N114: 31.8 | O114: 320.5 | P114: 6.4 | Q114: 12.7 | R114: 6 | S114: 190.4 | T114: M30 | U114: 24 | V114: 48.5
B115: WNRF 400# ANSI B16.5 Size 12" | C115: WNRF | D115: 400# | E115: ANSI B16.5 | F115: 12" | G115: 300 | H115: 520.7 | I115: 143.1 | J115: 63.6 | K115: 381 | L115: 450.9 | M115: 16 | N115: 35.1 | O115: 374.7 | P115: 6.4 | Q115: 12.7 | R115: 6 | S115: 201.2 | T115: M33 | U115: 26 | V115: 69.6
B116: WNRF 400# ANSI B16.5 Size 14" | C116: WNRF | D116: 400# | E116: ANSI B16.5 | F116: 14" | G116: 350 | H116: 584.2 | I116: 155.8 | J116: 66.9 | K116: 412.8 | L116: 514.4 | M116: 20 | N116: 35.1 | O116: 425.5 | P116: 6.4 | Q116: 12.7 | R116: 7 | S116: 208.8 | T116: M33 | U116: 26 | V116: 95.5
B117: WNRF 400# ANSI B16.5 Size 16" | C117: WNRF | D117: 400# | E117: ANSI B16.5 | F117: 16" | G117: 400 | H117: 647.7 | I117: 158.8 | J117: 69.9 | K117: 469.9 | L117: 571.5 | M117: 20 | N117: 38.1 | O117: 482.6 | P117: 6.4 | Q117: 12.7 | R117: 7 | S117: 220.8 | T117: M36 | U117: 29 | V117: 118
B118: WNRF 400# ANSI B16.5 Size 18" | C118: WNRF | D118: 400# | E118: ANSI B16.5 | F118: 18" | G118: 450 | H118: 711.2 | I118: 171.5 | J118: 72.9 | K118: 533.4 | L118: 628.7 | M118: 24 | N118: 38.1 | O118: 533.4 | P118: 6.4 | Q118: 12.7 | R118: 7 | S118: 226.8 | T118: M36 | U118: 29 | V118: 145
B119: WNRF 400# ANSI B16.5 Size 20" | C119: WNRF | D119: 400# | E119: ANSI B16.5 | F119: 20" | G119: 500 | H119: 774.7 | I119: 174.5 | J119: 76.3 | K119: 584.2 | L119: 685.8 | M119: 24 | N119: 41.1 | O119: 587.2 | P119: 6.4 | Q119: 12.7 | R119: 7 | S119: 237.6 | T119: M39 | U119: 31 | V119: 173
B120: WNRF 400# ANSI B16.5 Size 24" | C120: WNRF | D120: 400# | E120: ANSI B16.5 | F120: 24" | G120: 600 | H120: 914.4 | I120: 181.2 | J120: 82.6 | K120: 692.2 | L120: 812.8 | M120: 24 | N120: 47.8 | O120: 701.5 | P120: 6.4 | Q120: 12.7 | R120: 7 | S120: 260.2 | T120: M45 | U120: 36 | V120: 249
B121: WNRF 600# ANSI B16.5 Size 1/2" | C121: WNRF | D121: 600# | E121: ANSI B16.5 | F121: 1/2" | G121: 15 | H121: 95.3 | I121: 58.7 | J121: 20.6 | K121: 35.1 | L121: 66.5 | M121: 4 | N121: 15.7 | O121: 38.1 | P121: 6.4 | Q121: 3 | R121: 3 | S121: 80.2 | T121: M12 | U121: 10 | V121: 0.87
B122: WNRF 600# ANSI B16.5 Size 3/4" | C122: WNRF | D122: 600# | E122: ANSI B16.5 | F122: 3/4" | G122: 20 | H122: 117.3 | I122: 63.6 | J122: 22.1 | K122: 42.9 | L122: 82.6 | M122: 4 | N122: 19.1 | O122: 47.8 | P122: 6.4 | Q122: 3 | R122: 3 | S122: 89.2 | T122: M16 | U122: 13 | V122: 1.45
B123: WNRF 600# ANSI B16.5 Size 1" | C123: WNRF | D123: 600# | E123: ANSI B16.5 | F123: 1" | G123: 25 | H123: 124 | I123: 68.4 | J123: 23.9 | K123: 50.8 | L123: 88.9 | M123: 4 | N123: 19.1 | O123: 53.8 | P123: 6.4 | Q123: 3 | R123: 3 | S123: 92.8 | T123: M16 | U123: 13 | V123: 1.76
B124: WNRF 600# ANSI B16.5 Size 1¼" | C124: WNRF | D124: 600# | E124: ANSI B16.5 | F124: 1¼" | G124: 32 | H124: 133.4 | I124: 72.9 | J124: 27 | K124: 63.5 | L124: 98.6 | M124: 4 | N124: 19.1 | O124: 63.5 | P124: 6.4 | Q124: 4.8 | R124: 3 | S124: 99 | T124: M16 | U124: 13 | V124: 2.49
B125: WNRF 600# ANSI B16.5 Size 1½" | C125: WNRF | D125: 600# | E125: ANSI B16.5 | F125: 1½" | G125: 40 | H125: 155.4 | I125: 76.3 | J125: 28.4 | K125: 73.2 | L125: 114.3 | M125: 4 | N125: 22.3 | O125: 69.9 | P125: 6.4 | Q125: 6.35 | R125: 3 | S125: 107.8 | T125: M20 | U125: 16 | V125: 3.49
B126: WNRF 600# ANSI B16.5 Size 2" | C126: WNRF | D126: 600# | E126: ANSI B16.5 | F126: 2" | G126: 50 | H126: 165.1 | I126: 79.6 | J126: 31.8 | K126: 91.9 | L126: 127 | M126: 8 | N126: 19.1 | O126: 84.1 | P126: 6.4 | Q126: 7.87 | R126: 4 | S126: 109.6 | T126: M16 | U126: 13 | V126: 4.36
B127: WNRF 600# ANSI B16.5 Size 2½" | C127: WNRF | D127: 600# | E127: ANSI B16.5 | F127: 2½" | G127: 65 | H127: 190.5 | I127: 85.6 | J127: 34.8 | K127: 104.6 | L127: 149.4 | M127: 8 | N127: 22.4 | O127: 100.1 | P127: 6.4 | Q127: 7.87 | R127: 4 | S127: 121.6 | T127: M20 | U127: 16 | V127: 6.43
B128: WNRF 600# ANSI B16.5 Size 3" | C128: WNRF | D128: 600# | E128: ANSI B16.5 | F128: 3" | G128: 80 | H128: 209.6 | I128: 89 | J128: 38.4 | K128: 127 | L128: 168.1 | M128: 8 | N128: 22.4 | O128: 117.3 | P128: 6.4 | Q128: 9.65 | R128: 4 | S128: 128.8 | T128: M20 | U128: 16 | V128: 8.53
B129: WNRF 600# ANSI B16.5 Size 3½" | C129: WNRF | D129: 600# | E129: ANSI B16.5 | F129: 3½" | G129: - | H129: 228.6 | I129: 92.3 | J129: 41.5 | K129: 139.7 | L129: 184.2 | M129: 8 | N129: 25.4 | O129: 133.4 | P129: 6.4 | Q129: 9.65 | R129: 4 | S129: 141 | T129: M24 | U129: 19 | V129: 10.7
B130: WNRF 600# ANSI B16.5 Size 4" | C130: WNRF | D130: 600# | E130: ANSI B16.5 | F130: 4" | G130: 100 | H130: 273.1 | I130: 108 | J130: 44.5 | K130: 157.2 | L130: 215.9 | M130: 8 | N130: 25.4 | O130: 152.4 | P130: 6.4 | Q130: 11.18 | R130: 5 | S130: 148 | T130: M24 | U130: 19 | V130: 17.4
B131: WNRF 600# ANSI B16.5 Size 5" | C131: WNRF | D131: 600# | E131: ANSI B16.5 | F131: 5" | G131: 125 | H131: 330.2 | I131: 120.7 | J131: 50.9 | K131: 185.7 | L131: 266.7 | M131: 8 | N131: 28.4 | O131: 189 | P131: 6.4 | Q131: 11.18 | R131: 5 | S131: 166.8 | T131: M27 | U131: 22 | V131: 29.2
B132: WNRF 600# ANSI B16.5 Size 6" | C132: WNRF | D132: 600# | E132: ANSI B16.5 | F132: 6" | G132: 150 | H132: 355.6 | I132: 133.7 | J132: 54.2 | K132: 215.9 | L132: 292.1 | M132: 12 | N132: 28.4 | O132: 222.3 | P132: 6.4 | Q132: 12.7 | R132: 6 | S132: 174.4 | T132: M27 | U132: 22 | V132: 34.9
B133: WNRF 600# ANSI B16.5 Size 8" | C133: WNRF | D133: 600# | E133: ANSI B16.5 | F133: 8" | G133: 200 | H133: 419.1 | I133: 139.8 | J133: 62 | K133: 269.7 | L133: 349.3 | M133: 12 | N133: 31.8 | O133: 273.1 | P133: 6.4 | Q133: 12.7 | R133: 6 | S133: 194 | T133: M30 | U133: 24 | V133: 53.9
B134: WNRF 600# ANSI B16.5 Size 10" | C134: WNRF | D134: 600# | E134: ANSI B16.5 | F134: 10" | G134: 250 | H134: 508 | I134: 158.8 | J134: 69.9 | K134: 323.9 | L134: 431.8 | M134: 16 | N134: 35.1 | O134: 342.9 | P134: 6.4 | Q134: 12.7 | R134: 6 | S134: 213.8 | T134: M33 | U134: 26 | V134: 86.5
B135: WNRF 600# ANSI B16.5 Size 12" | C135: WNRF | D135: 600# | E135: ANSI B16.5 | F135: 12" | G135: 300 | H135: 558.8 | I135: 161.8 | J135: 72.9 | K135: 381 | L135: 489 | M135: 20 | N135: 35.1 | O135: 400.1 | P135: 6.4 | Q135: 12.7 | R135: 6 | S135: 219.8 | T135: M33 | U135: 26 | V135: 103
B136: WNRF 600# ANSI B16.5 Size 14" | C136: WNRF | D136: 600# | E136: ANSI B16.5 | F136: 14" | G136: 350 | H136: 603.3 | I136: 171.5 | J136: 76.3 | K136: 412.8 | L136: 527.1 | M136: 20 | N136: 38.1 | O136: 431.8 | P136: 6.4 | Q136: 12.7 | R136: 7 | S136: 233.6 | T136: M36 | U136: 29 | V136: 158
B137: WNRF 600# ANSI B16.5 Size 16" | C137: WNRF | D137: 600# | E137: ANSI B16.5 | F137: 16" | G137: 400 | H137: 685.8 | I137: 184.2 | J137: 82.6 | K137: 469.9 | L137: 603.3 | M137: 20 | N137: 41.1 | O137: 495.3 | P137: 6.4 | Q137: 12.7 | R137: 7 | S137: 250.2 | T137: M39 | U137: 31 | V137: 219
B138: WNRF 600# ANSI B16.5 Size 18" | C138: WNRF | D138: 600# | E138: ANSI B16.5 | F138: 18" | G138: 450 | H138: 743 | I138: 190.6 | J138: 89 | K138: 533.4 | L138: 654.1 | M138: 20 | N138: 44.5 | O138: 546.1 | P138: 6.4 | Q138: 12.7 | R138: 7 | S138: 269 | T138: M42 | U138: 34 | V138: 252
B139: WNRF 600# ANSI B16.5 Size 20" | C139: WNRF | D139: 600# | E139: ANSI B16.5 | F139: 20" | G139: 500 | H139: 812.8 | I139: 196.9 | J139: 95.3 | K139: 584.2 | L139: 723.9 | M139: 24 | N139: 44.5 | O139: 609.6 | P139: 6.4 | Q139: 12.7 | R139: 7 | S139: 281.6 | T139: M42 | U139: 34 | V139: 313
B140: WNRF 600# ANSI B16.5 Size 22" | C140: WNRF | D140: 600# | E140: ANSI B16.5 | F140: 22" | G140: 550 | H140: 869.9 | I140: 203.2 | J140: 99.6 | K140: 641.2 | L140: 777.9 | M140: 24 | N140: 47.6 | O140: 666.7 | P140: 6.4 | Q140: 12.7 | R140: 7 | S140: 294.2 | T140: M45 | U140: 36 | V140: 380
B141: WNRF 600# ANSI B16.5 Size 24" | C141: WNRF | D141: 600# | E141: ANSI B16.5 | F141: 24" | G141: 600 | H141: 939.8 | I141: 209.6 | J141: 108 | K141: 692.2 | L141: 838.2 | M141: 24 | N141: 50.8 | O141: 717.6 | P141: 6.4 | Q141: 12.7 | R141: 7 | S141: 315 | T141: M48 | U141: 38 | V141: 444
B142: WNRF 600# ANSI B16.5 Size 26" | C142: WNRF | D142: 600# | E142: ANSI B16.5 | F142: 26" | G142: 650 | H142: 1016 | I142: 228.6 | J142: 114.3 | K142: 749.3 | L142: 914.4 | M142: 28 | N142: 50.8 | O142: 747.7 | P142: 6.4 | Q142: 12.7 | R142: 8 | S142: 328.6 | T142: M48 | U142: 38 | V142: 487
B143: WNRF 600# ANSI B16.5 Size 30" | C143: WNRF | D143: 600# | E143: ANSI B16.5 | F143: 30" | G143: 750 | H143: 1130.3 | I143: 254 | J143: 120.7 | K143: 857.2 | L143: 1022.3 | M143: 28 | N143: 54 | O143: 862 | P143: 6.4 | Q143: 12.7 | R143: 9 | S143: 350.4 | T143: M52 | U143: 42 | V143: 559
B144: WNRF 600# ANSI B16.5 Size 34" | C144: WNRF | D144: 600# | E144: ANSI B16.5 | F144: 34" | G144: 850 | H144: 1244.6 | I144: 276.3 | J144: 127 | K144: 965.2 | L144: 1130.3 | M144: 28 | N144: 60.3 | O144: 973.1 | P144: 6.4 | Q144: 12.7 | R144: 10 | S144: 370 | T144: M56 | U144: 45 | V144: 689
B145: WNRF 600# ANSI B16.5 Size 36" | C145: WNRF | D145: 600# | E145: ANSI B16.5 | F145: 36" | G145: 900 | H145: 1314.4 | I145: 289 | J145: 130.2 | K145: 1022.3 | L145: 1193.8 | M145: 28 | N145: 66.7 | O145: 1031.9 | P145: 6.4 | Q145: 12.7 | R145: 11 | S145: 389.4 | T145: M64 | U145: 51 | V145: 780
B146: WNRF 600# ANSI B16.5 Size 42" | C146: WNRF | D146: 600# | E146: ANSI B16.5 | F146: 42" | G146: 1050 | H146: 1492.2 | I146: 330.2 | J146: 146.1 | K146: 1193.8 | L146: 1365.2 | M146: 28 | N146: 73 | O146: 1201.7 | P146: 6.4 | Q146: 12.7 | R146: 12 | S146: 430.2 | T146: M68 | U146: 55 | V146: 1096
B147: WNRF 900# ANSI B16.5 Size 1/2" | C147: WNRF | D147: 900# | E147: ANSI B16.5 | F147: 1/2" | G147: 15 | H147: 120.6 | I147: 66.8 | J147: 28.7 | K147: 35 | L147: 82.5 | M147: 4 | N147: 22.3 | O147: 38.1 | P147: 6.4 | Q147: 3 | R147: 3 | S147: 108.4 | T147: M20 | U147: 16 | V147: 1.87
B148: WNRF 900# ANSI B16.5 Size 3/4" | C148: WNRF | D148: 900# | E148: ANSI B16.5 | F148: 3/4" | G148: 20 | H148: 130 | I148: 76.2 | J148: 31.8 | K148: 42.9 | L148: 88.9 | M148: 4 | N148: 22.3 | O148: 44.4 | P148: 6.4 | Q148: 3 | R148: 3 | S148: 114.6 | T148: M20 | U148: 16 | V148: 2.56
B149: WNRF 900# ANSI B16.5 Size 1" | C149: WNRF | D149: 900# | E149: ANSI B16.5 | F149: 1" | G149: 25 | H149: 149.3 | I149: 79.5 | J149: 34.8 | K149: 50.8 | L149: 101.6 | M149: 4 | N149: 25.4 | O149: 52.3 | P149: 6.4 | Q149: 3 | R149: 3 | S149: 126.6 | T149: M24 | U149: 19 | V149: 3.74
B150: WNRF 900# ANSI B16.5 Size 1¼" | C150: WNRF | D150: 900# | E150: ANSI B16.5 | F150: 1¼" | G150: 32 | H150: 158.7 | I150: 79.5 | J150: 34.8 | K150: 63.5 | L150: 111.2 | M150: 4 | N150: 25.4 | O150: 63.5 | P150: 6.4 | Q150: 4.8 | R150: 3 | S150: 126.6 | T150: M24 | U150: 19 | V150: 4.33
B151: WNRF 900# ANSI B16.5 Size 1½" | C151: WNRF | D151: 900# | E151: ANSI B16.5 | F151: 1½" | G151: 40 | H151: 177.8 | I151: 88.9 | J151: 38.1 | K151: 73.1 | L151: 123.9 | M151: 4 | N151: 28.4 | O151: 69.8 | P151: 6.4 | Q151: 6.35 | R151: 3 | S151: 139.2 | T151: M27 | U151: 22 | V151: 5.94
B152: WNRF 900# ANSI B16.5 Size 2" | C152: WNRF | D152: 900# | E152: ANSI B16.5 | F152: 2" | G152: 50 | H152: 215.9 | I152: 108 | J152: 44.5 | K152: 91.9 | L152: 165.1 | M152: 8 | N152: 25.4 | O152: 104.6 | P152: 6.4 | Q152: 7.87 | R152: 4 | S152: 147 | T152: M24 | U152: 19 | V152: 10.8
B153: WNRF 900# ANSI B16.5 Size 2½" | C153: WNRF | D153: 900# | E153: ANSI B16.5 | F153: 2½" | G153: 65 | H153: 244.3 | I153: 111 | J153: 47.5 | K153: 104.6 | L153: 190.5 | M153: 8 | N153: 28.4 | O153: 123.9 | P153: 6.4 | Q153: 7.87 | R153: 4 | S153: 159 | T153: M27 | U153: 22 | V153: 15
B154: WNRF 900# ANSI B16.5 Size 3" | C154: WNRF | D154: 900# | E154: ANSI B16.5 | F154: 3" | G154: 80 | H154: 241.3 | I154: 108 | J154: 44.5 | K154: 127 | L154: 190.5 | M154: 8 | N154: 25.4 | O154: 127 | P154: 6.4 | Q154: 9.65 | R154: 4 | S154: 141 | T154: M20 | U154: 16 | V154: 13.7
B155: WNRF 900# ANSI B16.5 Size 4" | C155: WNRF | D155: 900# | E155: ANSI B16.5 | F155: 4" | G155: 100 | H155: 292.1 | I155: 120.7 | J155: 50.8 | K155: 157.2 | L155: 234.9 | M155: 8 | N155: 31.7 | O155: 158.7 | P155: 6.4 | Q155: 11.18 | R155: 5 | S155: 166.6 | T155: M27 | U155: 22 | V155: 22.5
B156: WNRF 900# ANSI B16.5 Size 5" | C156: WNRF | D156: 900# | E156: ANSI B16.5 | F156: 5" | G156: 125 | H156: 349.2 | I156: 133.4 | J156: 57.2 | K156: 185.6 | L156: 279.4 | M156: 8 | N156: 35 | O156: 190.5 | P156: 6.4 | Q156: 11.18 | R156: 5 | S156: 187.4 | T156: M33 | U156: 26 | V156: 37.4
B157: WNRF 900# ANSI B16.5 Size 6" | C157: WNRF | D157: 900# | E157: ANSI B16.5 | F157: 6" | G157: 150 | H157: 381 | I157: 146.1 | J157: 62 | K157: 215.9 | L157: 317.5 | M157: 12 | N157: 31.7 | O157: 234.9 | P157: 6.4 | Q157: 12.7 | R157: 6 | S157: 190 | T157: M27 | U157: 22 | V157: 47.7
B158: WNRF 900# ANSI B16.5 Size 8" | C158: WNRF | D158: 900# | E158: ANSI B16.5 | F158: 8" | G158: 200 | H158: 469.9 | I158: 168.4 | J158: 69.9 | K158: 269.7 | L158: 393.7 | M158: 12 | N158: 38.1 | O158: 298.4 | P158: 6.4 | Q158: 12.7 | R158: 6 | S158: 219.8 | T158: M36 | U158: 29 | V158: 81.3
B159: WNRF 900# ANSI B16.5 Size 10" | C159: WNRF | D159: 900# | E159: ANSI B16.5 | F159: 10" | G159: 250 | H159: 546.1 | I159: 190.5 | J159: 76.2 | K159: 323.8 | L159: 169.9 | M159: 16 | N159: 38.1 | O159: 368.3 | P159: 6.4 | Q159: 12.7 | R159: 6 | S159: 232.4 | T159: M36 | U159: 29 | V159: 119
B160: WNRF 900# ANSI B16.5 Size 12" | C160: WNRF | D160: 900# | E160: ANSI B16.5 | F160: 12" | G160: 300 | H160: 609.6 | I160: 206.5 | J160: 85.6 | K160: 381 | L160: 533.4 | M160: 20 | N160: 38.1 | O160: 419.1 | P160: 6.4 | Q160: 12.7 | R160: 6 | S160: 251.2 | T160: M36 | U160: 29 | V160: 157
B161: WNRF 900# ANSI B16.5 Size 14" | C161: WNRF | D161: 900# | E161: ANSI B16.5 | F161: 14" | G161: 350 | H161: 641.3 | I161: 219.2 | J161: 92.2 | K161: 412.7 | L161: 558.8 | M161: 20 | N161: 41.1 | O161: 450.8 | P161: 6.4 | Q161: 12.7 | R161: 7 | S161: 265.4 | T161: M39 | U161: 29 | V161: 180
B162: WNRF 900# ANSI B16.5 Size 16" | C162: WNRF | D162: 900# | E162: ANSI B16.5 | F162: 16" | G162: 400 | H162: 704.8 | I162: 222.3 | J162: 95.3 | K162: 469.9 | L162: 615.9 | M162: 20 | N162: 44.4 | O162: 508 | P162: 6.4 | Q162: 12.7 | R162: 7 | S162: 281.6 | T162: M42 | U162: 34 | V162: 217
B163: WNRF 900# ANSI B16.5 Size 18" | C163: WNRF | D163: 900# | E163: ANSI B16.5 | F163: 18" | G163: 450 | H163: 787.4 | I163: 235 | J163: 108 | K163: 533.4 | L163: 685.8 | M163: 20 | N163: 50.8 | O163: 565.1 | P163: 6.4 | Q163: 12.7 | R163: 7 | S163: 315 | T163: M48 | U163: 38 | V163: 292
B164: WNRF 900# ANSI B16.5 Size 20" | C164: WNRF | D164: 900# | E164: ANSI B16.5 | F164: 20" | G164: 500 | H164: 857.2 | I164: 254 | J164: 114.3 | K164: 584.2 | L164: 749.3 | M164: 20 | N164: 53.8 | O164: 622.3 | P164: 6.4 | Q164: 12.7 | R164: 7 | S164: 335.6 | T164: M52 | U164: 42 | V164: 362
B165: WNRF 900# ANSI B16.5 Size 24" | C165: WNRF | D165: 900# | E165: ANSI B16.5 | F165: 24" | G165: 600 | H165: 1041.4 | I165: 298.5 | J165: 146.1 | K165: 692.1 | L165: 901.7 | M165: 20 | N165: 66.5 | O165: 749.3 | P165: 6.4 | Q165: 12.7 | R165: 7 | S165: 417.2 | T165: M64 | U165: 51 | V165: 665
B166: WNRF 1500# ANSI B16.5 Size 1/2" | C166: WNRF | D166: 1500# | E166: ANSI B16.5 | F166: 1/2" | G166: 15 | H166: 120.6 | I166: 66.8 | J166: 28.7 | K166: 35 | L166: 82.5 | M166: 4 | N166: 22.3 | O166: 38.1 | P166: 6.4 | Q166: 3 | R166: 3 | S166: 108.4 | T166: M20 | U166: 16 | V166: 1.87
B167: WNRF 1500# ANSI B16.5 Size 3/4" | C167: WNRF | D167: 1500# | E167: ANSI B16.5 | F167: 3/4" | G167: 20 | H167: 130 | I167: 76.2 | J167: 31.8 | K167: 42.9 | L167: 88.9 | M167: 4 | N167: 22.3 | O167: 44.4 | P167: 6.4 | Q167: 3 | R167: 3 | S167: 114.6 | T167: M20 | U167: 16 | V167: 2.56
B168: WNRF 1500# ANSI B16.5 Size 1" | C168: WNRF | D168: 1500# | E168: ANSI B16.5 | F168: 1" | G168: 25 | H168: 149.3 | I168: 79.5 | J168: 34.8 | K168: 50.8 | L168: 101.6 | M168: 4 | N168: 25.4 | O168: 52.3 | P168: 6.4 | Q168: 3 | R168: 3 | S168: 126.6 | T168: M24 | U168: 19 | V168: 3.74
B169: WNRF 1500# ANSI B16.5 Size 1¼" | C169: WNRF | D169: 1500# | E169: ANSI B16.5 | F169: 1¼" | G169: 32 | H169: 158.7 | I169: 79.5 | J169: 34.8 | K169: 63.5 | L169: 111.2 | M169: 4 | N169: 25.4 | O169: 63.5 | P169: 6.4 | Q169: 4.8 | R169: 3 | S169: 126.6 | T169: M24 | U169: 19 | V169: 4.33
B170: WNRF 1500# ANSI B16.5 Size 1½" | C170: WNRF | D170: 1500# | E170: ANSI B16.5 | F170: 1½" | G170: 40 | H170: 177.8 | I170: 88.9 | J170: 38.1 | K170: 73.1 | L170: 123.9 | M170: 4 | N170: 28.4 | O170: 69.8 | P170: 6.4 | Q170: 6.35 | R170: 3 | S170: 139.2 | T170: M27 | U170: 22 | V170: 5.94
B171: WNRF 1500# ANSI B16.5 Size 2" | C171: WNRF | D171: 1500# | E171: ANSI B16.5 | F171: 2" | G171: 50 | H171: 215.9 | I171: 108 | J171: 44.5 | K171: 91.9 | L171: 165.1 | M171: 8 | N171: 25.4 | O171: 104.6 | P171: 6.4 | Q171: 7.87 | R171: 4 | S171: 147 | T171: M24 | U171: 19 | V171: 10.8
B172: WNRF 1500# ANSI B16.5 Size 2½" | C172: WNRF | D172: 1500# | E172: ANSI B16.5 | F172: 2½" | G172: 65 | H172: 244.3 | I172: 111 | J172: 47.5 | K172: 104.6 | L172: 190.5 | M172: 8 | N172: 28.4 | O172: 123.9 | P172: 6.4 | Q172: 7.87 | R172: 4 | S172: 159 | T172: M27 | U172: 22 | V172: 15
B173: WNRF 1500# ANSI B16.5 Size 3" | C173: WNRF | D173: 1500# | E173: ANSI B16.5 | F173: 3" | G173: 80 | H173: 266.7 | I173: 123.7 | J173: 54.1 | K173: 127 | L173: 203.2 | M173: 8 | N173: 31.7 | O173: 133.3 | P173: 6.4 | Q173: 9.65 | R173: 4 | S173: 176.2 | T173: M30 | U173: 24 | V173: 19.9
B174: WNRF 1500# ANSI B16.5 Size 4" | C174: WNRF | D174: 1500# | E174: ANSI B16.5 | F174: 4" | G174: 100 | H174: 311.1 | I174: 130.3 | J174: 60.2 | K174: 157.2 | L174: 241.3 | M174: 8 | N174: 35 | O174: 162 | P174: 6.4 | Q174: 11.18 | R174: 5 | S174: 193.4 | T174: M33 | U174: 26 | V174: 29.9
B175: WNRF 1500# ANSI B16.5 Size 5" | C175: WNRF | D175: 1500# | E175: ANSI B16.5 | F175: 5" | G175: 125 | H175: 374.6 | I175: 161.8 | J175: 79.5 | K175: 185.6 | L175: 292.1 | M175: 8 | N175: 41.1 | O175: 196.8 | P175: 6.4 | Q175: 11.18 | R175: 5 | S175: 242 | T175: M39 | U175: 31 | V175: 55.4
B176: WNRF 1500# ANSI B16.5 Size 6" | C176: WNRF | D176: 1500# | E176: ANSI B16.5 | F176: 6" | G176: 150 | H176: 393.7 | I176: 177.8 | J176: 86.9 | K176: 215.9 | L176: 317.5 | M176: 12 | N176: 38.1 | O176: 228.6 | P176: 6.4 | Q176: 12.7 | R176: 6 | S176: 253.8 | T176: M36 | U176: 29 | V176: 68.4
B177: WNRF 1500# ANSI B16.5 Size 8" | C177: WNRF | D177: 1500# | E177: ANSI B16.5 | F177: 8" | G177: 200 | H177: 482.6 | I177: 219.2 | J177: 98.3 | K177: 269.7 | L177: 393.7 | M177: 12 | N177: 44.4 | O177: 292.1 | P177: 6.4 | Q177: 12.7 | R177: 6 | S177: 286.6 | T177: M42 | U177: 34 | V177: 117
B178: WNRF 1500# ANSI B16.5 Size 10" | C178: WNRF | D178: 1500# | E178: ANSI B16.5 | F178: 10" | G178: 250 | H178: 584.2 | I178: 260.4 | J178: 114.3 | K178: 323.8 | L178: 485.6 | M178: 12 | N178: 50.8 | O178: 368.3 | P178: 6.4 | Q178: 12.7 | R178: 6 | S178: 326.6 | T178: M48 | U178: 38 | V178: 194
B179: WNRF 1500# ANSI B16.5 Size 12" | C179: WNRF | D179: 1500# | E179: ANSI B16.5 | F179: 12" | G179: 300 | H179: 673.1 | I179: 288.8 | J179: 130.3 | K179: 381 | L179: 571.5 | M179: 16 | N179: 53.8 | O179: 450.8 | P179: 6.4 | Q179: 12.7 | R179: 6 | S179: 366.6 | T179: M52 | U179: 42 | V179: 288
B180: WNRF 1500# ANSI B16.5 Size 14" | C180: WNRF | D180: 1500# | E180: ANSI B16.5 | F180: 14" | G180: 350 | H180: 749.3 | I180: 304.8 | J180: 139.7 | K180: 412.7 | L180: 635 | M180: 16 | N180: 60.4 | O180: 495.3 | P180: 6.4 | Q180: 12.7 | R180: 7 | S180: 392.4 | T180: M56 | U180: 45 | V180: 380
B181: WNRF 1500# ANSI B16.5 Size 16" | C181: WNRF | D181: 1500# | E181: ANSI B16.5 | F181: 16" | G181: 400 | H181: 825.5 | I181: 317.5 | J181: 152.4 | K181: 469.9 | L181: 704.8 | M181: 16 | N181: 66.5 | O181: 552.4 | P181: 6.4 | Q181: 12.7 | R181: 7 | S181: 423.8 | T181: M60 | U181: 48 | V181: 485
B182: WNRF 1500# ANSI B16.5 Size 18" | C182: WNRF | D182: 1500# | E182: ANSI B16.5 | F182: 18" | G182: 450 | H182: 914.4 | I182: 333.5 | J182: 168.4 | K182: 533.4 | L182: 774.7 | M182: 16 | N182: 73.1 | O182: 596.9 | P182: 6.4 | Q182: 12.7 | R182: 7 | S182: 467.8 | T182: M68 | U182: 54 | V182: 644
B183: WNRF 1500# ANSI B16.5 Size 20" | C183: WNRF | D183: 1500# | E183: ANSI B16.5 | F183: 20" | G183: 500 | H183: 984.2 | I183: 362 | J183: 184.2 | K183: 584.2 | L183: 831.8 | M183: 16 | N183: 79.2 | O183: 641.3 | P183: 6.4 | Q183: 12.7 | R183: 7 | S183: 513.4 | T183: M76 | U183: 61 | V183: 775
B184: WNRF 1500# ANSI B16.5 Size 24" | C184: WNRF | D184: 1500# | E184: ANSI B16.5 | F184: 24" | G184: 600 | H184: 1168.4 | I184: 412.8 | J184: 209.6 | K184: 692.1 | L184: 990.6 | M184: 16 | N184: 91.9 | O184: 762 | P184: 6.4 | Q184: 12.7 | R184: 7 | S184: 570.2 | T184: M80 | U184: 64 | V184: 1232
B185: WNRF 2500# ANSI B16.5 Size 1/2" | C185: WNRF | D185: 2500# | E185: ANSI B16.5 | F185: 1/2" | G185: 15 | H185: 133.4 | I185: 79.6 | J185: 36.6 | K185: 35.1 | L185: 88.9 | M185: 4 | N185: 22.4 | O185: 42.9 | P185: 6.4 | Q185: 3 | R185: 3 | S185: 124.2 | T185: M20 | U185: 16 | V185: 3.12
B186: WNRF 2500# ANSI B16.5 Size 3/4" | C186: WNRF | D186: 2500# | E186: ANSI B16.5 | F186: 3/4" | G186: 20 | H186: 139.7 | I186: 85.6 | J186: 38.2 | K186: 42.9 | L186: 95.3 | M186: 4 | N186: 22.4 | O186: 50.8 | P186: 6.4 | Q186: 3 | R186: 3 | S186: 127.4 | T186: M20 | U186: 16 | V186: 3.7
B187: WNRF 2500# ANSI B16.5 Size 1" | C187: WNRF | D187: 2500# | E187: ANSI B16.5 | F187: 1" | G187: 25 | H187: 158.8 | I187: 95.3 | J187: 41.5 | K187: 50.8 | L187: 108 | M187: 4 | N187: 25.4 | O187: 57.2 | P187: 6.4 | Q187: 3 | R187: 3 | S187: 140 | T187: M24 | U187: 19 | V187: 5.24
B188: WNRF 2500# ANSI B16.5 Size 1¼" | C188: WNRF | D188: 2500# | E188: ANSI B16.5 | F188: 1¼" | G188: 32 | H188: 184.2 | I188: 101.7 | J188: 44.5 | K188: 63.5 | L188: 130 | M188: 4 | N188: 28.4 | O188: 73.2 | P188: 6.4 | Q188: 4.8 | R188: 3 | S188: 152 | T188: M27 | U188: 22 | V188: 7.474
B189: WNRF 2500# ANSI B16.5 Size 1½" | C189: WNRF | D189: 2500# | E189: ANSI B16.5 | F189: 1½" | G189: 40 | H189: 203.2 | I189: 117.7 | J189: 50.9 | K189: 73.1 | L189: 146.1 | M189: 4 | N189: 31.8 | O189: 79.2 | P189: 6.4 | Q189: 6.35 | R189: 3 | S189: 168.8 | T189: M30 | U189: 24 | V189: 10.9
B190: WNRF 2500# ANSI B16.5 Size 2" | C190: WNRF | D190: 2500# | E190: ANSI B16.5 | F190: 2" | G190: 50 | H190: 235 | I190: 133.4 | J190: 57.2 | K190: 91.9 | L190: 171.5 | M190: 8 | N190: 28.4 | O190: 95.3 | P190: 6.4 | Q190: 7.87 | R190: 4 | S190: 178.4 | T190: M27 | U190: 22 | V190: 16.2
B191: WNRF 2500# ANSI B16.5 Size 2½" | C191: WNRF | D191: 2500# | E191: ANSI B16.5 | F191: 2½" | G191: 65 | H191: 266.7 | I191: 149.1 | J191: 63.6 | K191: 104.6 | L191: 196.9 | M191: 8 | N191: 31.8 | O191: 114.3 | P191: 6.4 | Q191: 7.87 | R191: 4 | S191: 195.2 | T191: M30 | U191: 24 | V191: 23.7
B192: WNRF 2500# ANSI B16.5 Size 3" | C192: WNRF | D192: 2500# | E192: ANSI B16.5 | F192: 3" | G192: 80 | H192: 304.8 | I192: 174.5 | J192: 72.9 | K192: 127 | L192: 228.6 | M192: 8 | N192: 35.1 | O192: 133.4 | P192: 6.4 | Q192: 9.7 | R192: 4 | S192: 217.8 | T192: M33 | U192: 26 | V192: 36.2
B193: WNRF 2500# ANSI B16.5 Size 4" | C193: WNRF | D193: 2500# | E193: ANSI B16.5 | F193: 4" | G193: 100 | H193: 355.6 | I193: 196.9 | J193: 82.6 | K193: 157.2 | L193: 273.1 | M193: 8 | N193: 41.1 | O193: 165.1 | P193: 6.4 | Q193: 11.18 | R193: 5 | S193: 248.2 | T193: M39 | U193: 31 | V193: 55.3
B194: WNRF 2500# ANSI B16.5 Size 5" | C194: WNRF | D194: 2500# | E194: ANSI B16.5 | F194: 5" | G194: 125 | H194: 419.1 | I194: 235 | J194: 98.3 | K194: 185.6 | L194: 323.9 | M194: 8 | N194: 47.8 | O194: 203.2 | P194: 6.4 | Q194: 11.18 | R194: 5 | S194: 289.6 | T194: M45 | U194: 36 | V194: 92.5
B195: WNRF 2500# ANSI B16.5 Size 6" | C195: WNRF | D195: 2500# | E195: ANSI B16.5 | F195: 6" | G195: 150 | H195: 482.6 | I195: 279.5 | J195: 114.4 | K195: 215.9 | L195: 368.3 | M195: 8 | N195: 53.8 | O195: 235 | P195: 6.4 | Q195: 12.7 | R195: 6 | S195: 326.8 | T195: M48 | U195: 38 | V195: 143
B196: WNRF 2500# ANSI B16.5 Size 8" | C196: WNRF | D196: 2500# | E196: ANSI B16.5 | F196: 8" | G196: 200 | H196: 552.5 | I196: 323.9 | J196: 133.4 | K196: 269.7 | L196: 438.2 | M196: 12 | N196: 53.8 | O196: 304.8 | P196: 6.4 | Q196: 12.7 | R196: 6 | S196: 364.8 | T196: M48 | U196: 38 | V196: 215
B197: WNRF 2500# ANSI B16.5 Size 10" | C197: WNRF | D197: 2500# | E197: ANSI B16.5 | F197: 10" | G197: 250 | H197: 673.1 | I197: 125.5 | J197: 171.5 | K197: 323.8 | L197: 539.8 | M197: 12 | N197: 66.5 | O197: 374.7 | P197: 6.4 | Q197: 12.7 | R197: 6 | S197: 461 | T197: M60 | U197: 48 | V197: 406
B198: WNRF 2500# ANSI B16.5 Size 12" | C198: WNRF | D198: 2500# | E198: ANSI B16.5 | F198: 12" | G198: 300 | H198: 762 | I198: 470 | J198: 190.6 | K198: 381 | L198: 619.3 | M198: 12 | N198: 73.2 | O198: 441.5 | P198: 6.4 | Q198: 12.7 | R198: 6 | S198: 505.2 | T198: M64 | U198: 51 | V198: 572
B199: Smls Lg WNRF 150# ANSI B16.5 Size 1/2" | C199: Smls Lg WNRF | D199: 150# | E199: ANSI B16.5 | F199: 1/2" | G199: 15 | H199: 88.9 | I199: 228.6 | J199: 11.2 | K199: 35.1 | L199: 60.5 | M199: 4 | N199: 15.7 | O199: 30.23 | P199: 1.6 | Q199: - | R199: 3 | S199: 61.4 | T199: M12 | U199: 10 | V199: -
B200: Smls Lg WNRF 150# ANSI B16.5 Size 3/4" | C200: Smls Lg WNRF | D200: 150# | E200: ANSI B16.5 | F200: 3/4" | G200: 20 | H200: 98.6 | I200: 228.6 | J200: 12.7 | K200: 42.9 | L200: 69.9 | M200: 4 | N200: 15.7 | O200: 38.1 | P200: 1.6 | Q200: - | R200: 3 | S200: 64.4 | T200: M12 | U200: 10 | V200: -
... 1555 more rows

Sheet Blind & Slip-on fl. (hidden)
A1: BLIND & SLIP ON FLANGES
A3: Blind flange acc.:
A4: ANSI B 16.5, MSS-SP44
A5: BS 3293, DIN 2527
A13: Slip-on flange acc.:
A14: DIN 1882, NEN 5818/19
A15: DIN 2573/76
A23: Slip-on flange acc.:
A24: ANSI B 16.5, MSS-SP44
A25: BS 3293, DIN 86029/30
A39: Flange dimensions
A40: D | B40: Flange diameter | D40: =INDEX('Data Slip-on & Bl.fl.'!H$3:H$1121,'Data Slip-on & Bl.fl.'!$A$3) -> 209.6 | E40: mm
A41: h | B41: Flange height | D41: =INDEX('Data Slip-on & Bl.fl.'!I$3:I$1121,'Data Slip-on & Bl.fl.'!$A$3) -> 52.4 | E41: mm
A42: b / b1 | B42: Flange thickness | D42: =INDEX('Data Slip-on & Bl.fl.'!J$3:J$1121,'Data Slip-on & Bl.fl.'!$A$3) -> 38.2 | E42: mm | F42: Include data of following flanges:
A43: d1 | B43: Diameter RF | D43: =INDEX('Data Slip-on & Bl.fl.'!K$3:K$1121,'Data Slip-on & Bl.fl.'!$A$3) -> 127 | E43: mm | F43: SO/BL RF ANSI B 16.5 | I43: 125-1500#
A44: k | B44: Pitch circle bolts | D44: =INDEX('Data Slip-on & Bl.fl.'!L$3:L$1121,'Data Slip-on & Bl.fl.'!$A$3) -> 168.1 | E44: mm | F44: SO/BL RF ANSI B 16.47-MSS SP-44 | I44: 150-900#
A45: n | B45: Number of bolts | D45: =INDEX('Data Slip-on & Bl.fl.'!M$3:M$1121,'Data Slip-on & Bl.fl.'!$A$3) -> 8 | E45: pce | F45: SO/BL RF ANSI B 16.47-API 650 | I45: 75-900#
A46: d2 | B46: Diameter boltholes | D46: =INDEX('Data Slip-on & Bl.fl.'!N$3:N$1121,'Data Slip-on & Bl.fl.'!$A$3) -> 22.4 | E46: mm | F46: SORF BS 3293 | I46: 150-600#
A47: d3 | B47: Diameter hub | D47: =INDEX('Data Slip-on & Bl.fl.'!O$3:O$1121,'Data Slip-on & Bl.fl.'!$A$3) -> 117.3 | E47: mm | F47: SO DIN 2573 | I47: PN 6
A48: f | B48: Heigt of RF | D48: =INDEX('Data Slip-on & Bl.fl.'!P$3:P$1121,'Data Slip-on & Bl.fl.'!$A$3) -> 6.4 | E48: mm | F48: SO DIN 2576 | I48: PN 10
A49: d4 | B49: Diameter pipe hole | D49: =INDEX('Data Slip-on & Bl.fl.'!Q$3:Q$1121,'Data Slip-on & Bl.fl.'!$A$3) -> 90.7 | E49: mm | F49: SO DIN 2641-42 | I49: PN 6-10
A50: g | B50: Thickness of gasket | D50: =INDEX('Data Slip-on & Bl.fl.'!R$3:R$1121,'Data Slip-on & Bl.fl.'!$A$3) -> 4 | E50: mm | F50: SO DIN 2655-56 | I50: PN 16-25
A51: L | B51: Required stud length | D51: =INDEX('Data Slip-on & Bl.fl.'!S$3:S$1121,'Data Slip-on & Bl.fl.'!$A$3) -> 122.4 | E51: mm 1) | F51: BL DIN 2527 | I51: PN 6-100
A52: bt | B52: Bolt | D52: =INDEX('Data Slip-on & Bl.fl.'!T$3:T$1121,'Data Slip-on & Bl.fl.'!$A$3) -> M20 | F52: SORF DIN 86029-30 | I52: PN 10-16
A53: m | B53: Nut height | D53: =INDEX('Data Slip-on & Bl.fl.'!U$3:U$1121,'Data Slip-on & Bl.fl.'!$A$3) -> 16 | E53: mm | F53: SO DIN 1882 | I53: PN 10
A54: W | B54: Weight | D54: =INDEX('Data Slip-on & Bl.fl.'!V$3:V$1121,'Data Slip-on & Bl.fl.'!$A$3) -> 7 | E54: kg | F54: SO NEN 5818-19 | I54: PN 6-10
A55: 1) | B55: for flange / flange connection | F55: Pressure vessels DIN 28031-32-36

Sheet Data Slip-on & Bl.fl. (hidden)
A1: Data Slip-on & Blind flanges | C1: Type | D1: Rating | E1: Norm | F1: Size | G1: Size | H1: Outside | I1: Height | J1: Fl thickn. | K1: Diam. RF | L1: Pitch circle | M1: No. Of bolts | N1: D bolthole | O1: Diam hub | P1: RF thickn. | Q1: D pipehole | R1: Gasket | S1: Studlength | T1: Bolt | U1: Nut height | V1: Weight
A2: / | B2: Type / Size / Rating | F2: NPS | G2: DN | H2: D | I2: h | J2: b-b1 | K2: d1 | L2: k | M2: n | N2: d2 | O2: d3 | P2: f | Q2: d4 | R2: g | S2: L | T2: bt | U2: m | V2: W
A3: 110 | B3: =CONCATENATE(C3,$C$2,D3,$C$2,E3,$C$2,$F$1,$C$2,F3) -> SORF 125# ANSI B16.5 Size 26" | C3: SORF | D3: 125# | E3: ANSI B16.5 | F3: 26" | G3: 650 | H3: 870 | I3: 85.9 | J3: 50.8 | K3: 749.3 | L3: 806.5 | M3: 24 | N3: 35.1 | O3: 723.9 | P3: 1.6 | Q3: specify | R3: 7 | S3: =(J3+U3+5)*2+R3 -> 170.6 | T3: M33 | U3: 26 | V3: -
B4: SORF 125# ANSI B16.5 Size 28" | C4: SORF | D4: 125# | E4: ANSI B16.5 | F4: 28" | G4: 700 | H4: 927.1 | I4: 87.4 | J4: 52.3 | K4: 800.1 | L4: 863.6 | M4: 28 | N4: 35.1 | O4: 781.1 | P4: 1.6 | Q4: specify | R4: 7 | S4: 173.6 | T4: M33 | U4: 26 | V4: -
B5: SORF 125# ANSI B16.5 Size 30" | C5: SORF | D5: 125# | E5: ANSI B16.5 | F5: 30" | G5: 750 | H5: 984.3 | I5: 88.9 | J5: 54.1 | K5: 857.3 | L5: 914.4 | M5: 28 | N5: 35.1 | O5: 831.9 | P5: 1.6 | Q5: specify | R5: 7 | S5: 177.2 | T5: M33 | U5: 26 | V5: -
B6: SORF 125# ANSI B16.5 Size 32" | C6: SORF | D6: 125# | E6: ANSI B16.5 | F6: 32" | G6: 800 | H6: 1060.5 | I6: 92.2 | J6: 57.2 | K6: 914.4 | L6: 977.9 | M6: 28 | N6: 41.4 | O6: 889 | P6: 1.6 | Q6: specify | R6: 7 | S6: 183.4 | T6: M36 | U6: 26 | V6: -
B7: SORF 125# ANSI B16.5 Size 34" | C7: SORF | D7: 125# | E7: ANSI B16.5 | F7: 34" | G7: 850 | H7: 1111.3 | I7: 93.5 | J7: 58.7 | K7: 965.2 | L7: 1028.7 | M7: 32 | N7: 41.4 | O7: 939.8 | P7: 1.6 | Q7: specify | R7: 7 | S7: 186.4 | T7: M36 | U7: 26 | V7: -
B8: SORF 125# ANSI B16.5 Size 36" | C8: SORF | D8: 125# | E8: ANSI B16.5 | F8: 36" | G8: 900 | H8: 1168.4 | I8: 95.3 | J8: 60.5 | K8: 1022.4 | L8: 1086 | M8: 32 | N8: 41.4 | O8: 997 | P8: 1.6 | Q8: specify | R8: 7 | S8: 190 | T8: M36 | U8: 26 | V8: -
B9: SORF 125# ANSI B16.5 Size 38" | C9: SORF | D9: 125# | E9: ANSI B16.5 | F9: 38" | G9: 950 | H9: 1238.3 | I9: 95.3 | J9: 60.5 | K9: 1073.2 | L9: 1149.4 | M9: 32 | N9: 41.4 | O9: 1060.5 | P9: 1.6 | Q9: specify | R9: 7 | S9: 190 | T9: M36 | U9: 26 | V9: -
B10: SORF 125# ANSI B16.5 Size 40" | C10: SORF | D10: 125# | E10: ANSI B16.5 | F10: 40" | G10: 1000 | H10: 1289.1 | I10: 98.6 | J10: 63.5 | K10: 1124 | L10: 1200.2 | M10: 36 | N10: 41.4 | O10: 1111.3 | P10: 1.6 | Q10: specify | R10: 7 | S10: 202 | T10: M36 | U10: 29 | V10: -
B11: SORF 125# ANSI B16.5 Size 42" | C11: SORF | D11: 125# | E11: ANSI B16.5 | F11: 42" | G11: 1050 | H11: 1346.2 | I11: 101.6 | J11: 66.8 | K11: 1193.8 | L11: 1257.3 | M11: 36 | N11: 41.4 | O11: 1168.4 | P11: 1.6 | Q11: specify | R11: 7 | S11: 208.6 | T11: M36 | U11: 29 | V11: -
B12: SORF 125# ANSI B16.5 Size 44" | C12: SORF | D12: 125# | E12: ANSI B16.5 | F12: 44" | G12: 1100 | H12: 1403.4 | I12: 101.6 | J12: 66.8 | K12: 1244.6 | L12: 1314.5 | M12: 40 | N12: 41.4 | O12: 1219.2 | P12: 1.6 | Q12: specify | R12: 7 | S12: 208.6 | T12: M36 | U12: 29 | V12: -
B13: SORF 125# ANSI B16.5 Size 46" | C13: SORF | D13: 125# | E13: ANSI B16.5 | F13: 46" | G13: 1150 | H13: 1454.2 | I13: 103.1 | J13: 68.1 | K13: 1295.4 | L13: 1365.3 | M13: 40 | N13: 41.4 | O13: 1270 | P13: 1.6 | Q13: specify | R13: 7 | S13: 211.2 | T13: M36 | U13: 29 | V13: -
B14: SORF 125# ANSI B16.5 Size 48" | C14: SORF | D14: 125# | E14: ANSI B16.5 | F14: 48" | G14: 1200 | H14: 1511.3 | I14: 104.9 | J14: 69.85 | K14: 1358.9 | L14: 1422.4 | M14: 44 | N14: 41.4 | O14: 1327.2 | P14: 1.6 | Q14: specify | R14: 7 | S14: 214.7 | T14: M36 | U14: 29 | V14: -
B15: SORF 125# ANSI B16.5 Size 50" | C15: SORF | D15: 125# | E15: ANSI B16.5 | F15: 50" | G15: 1250 | H15: 1568.5 | I15: 104.9 | J15: 69.9 | K15: 1409.7 | L15: 1479.6 | M15: 44 | N15: 47.8 | O15: 1378 | P15: 1.6 | Q15: specify | R15: 7 | S15: 220.8 | T15: M39 | U15: 32 | V15: -
B16: SORF 125# ANSI B16.5 Size 52" | C16: SORF | D16: 125# | E16: ANSI B16.5 | F16: 52" | G16: 1300 | H16: 1625.6 | I16: 108 | J16: 73.2 | K16: 1460.5 | L16: 1536.7 | M16: 44 | N16: 47.8 | O16: 1435.1 | P16: 1.6 | Q16: specify | R16: 7 | S16: 227.4 | T16: M39 | U16: 32 | V16: -
B17: SORF 125# ANSI B16.5 Size 54" | C17: SORF | D17: 125# | E17: ANSI B16.5 | F17: 54" | G17: 1350 | H17: 1682.8 | I17: 111.3 | J17: 76.2 | K17: 1517.7 | L17: 1593.9 | M17: 44 | N17: 47.8 | O17: 1492.3 | P17: 1.6 | Q17: specify | R17: 7 | S17: 233.4 | T17: M39 | U17: 32 | V17: -
B18: SORF 125# ANSI B16.5 Size 60" | C18: SORF | D18: 125# | E18: ANSI B16.5 | F18: 60" | G18: 1500 | H18: 1854.2 | I18: 114.3 | J18: 79.5 | K18: 1676.4 | L18: 1759 | M18: 52 | N18: 47.8 | O18: 1657.4 | P18: 1.6 | Q18: specify | R18: 7 | S18: 240 | T18: M39 | U18: 32 | V18: -
B19: SORF 125# ANSI B16.5 Size 66" | C19: SORF | D19: 125# | E19: ANSI B16.5 | F19: 66" | G19: 1650 | H19: 2032 | I19: 124 | J19: 85.9 | K19: 1854.2 | L19: 1930.4 | M19: 52 | N19: 47.8 | O19: 1816.1 | P19: 1.6 | Q19: specify | R19: 7 | S19: 252.8 | T19: M39 | U19: 32 | V19: -
B20: SORF 125# ANSI B16.5 Size 72" | C20: SORF | D20: 125# | E20: ANSI B16.5 | F20: 72" | G20: 1800 | H20: 2197.1 | I20: 127 | J20: 88.9 | K20: 2019.3 | L20: 2095.5 | M20: 60 | N20: 47.8 | O20: 1993.9 | P20: 1.6 | Q20: specify | R20: 7 | S20: 258.8 | T20: M39 | U20: 32 | V20: -
B21: SORF 125# ANSI B16.5 Size 84" | C21: SORF | D21: 125# | E21: ANSI B16.5 | F21: 84" | G21: 2100 | H21: 2533.7 | I21: 136.7 | J21: 98.6 | K21: 2349.5 | L21: 2525.7 | M21: 64 | N21: 54.1 | O21: 2298.7 | P21: 1.6 | Q21: specify | R21: 7 | S21: 298.2 | T21: M52 | U21: 42 | V21: -
B22: SORF 125# ANSI B16.5 Size 96" | C22: SORF | D22: 125# | E22: ANSI B16.5 | F22: 96" | G22: 2400 | H22: 2876.6 | I22: 146.1 | J22: 108 | K22: 2679.7 | L22: 2755.9 | M22: 66 | N22: 60.5 | O22: 2609.9 | P22: 1.6 | Q22: specify | R22: 7 | S22: 323 | T22: M56 | U22: 45 | V22: -
B23: SORF 150# ANSI B16.5 Size 1/2" | C23: SORF | D23: 150# | E23: ANSI B16.5 | F23: 1/2" | G23: 15 | H23: 88.9 | I23: 15.9 | J23: 11.1 | K23: 35.1 | L23: 60.5 | M23: 4 | N23: 15.7 | O23: 30.2 | P23: 1.6 | Q23: 22.3 | R23: 3 | S23: 55.2 | T23: M12 | U23: 10 | V23: 0.8
B24: SORF 150# ANSI B16.5 Size 3/4" | C24: SORF | D24: 150# | E24: ANSI B16.5 | F24: 3/4" | G24: 20 | H24: 98.6 | I24: 15.9 | J24: 12.7 | K24: 42.9 | L24: 69.9 | M24: 4 | N24: 15.7 | O24: 38.1 | P24: 1.6 | Q24: 27.7 | R24: 3 | S24: 58.4 | T24: M12 | U24: 10 | V24: 0.9
B25: SORF 150# ANSI B16.5 Size 1" | C25: SORF | D25: 150# | E25: ANSI B16.5 | F25: 1" | G25: 25 | H25: 108 | I25: 17.5 | J25: 14.3 | K25: 50.8 | L25: 79.2 | M25: 4 | N25: 15.7 | O25: 49.3 | P25: 1.6 | Q25: 34.5 | R25: 3 | S25: 61.6 | T25: M12 | U25: 10 | V25: 1
B26: SORF 150# ANSI B16.5 Size 1¼" | C26: SORF | D26: 150# | E26: ANSI B16.5 | F26: 1¼" | G26: 32 | H26: 117.3 | I26: 20.6 | J26: 15.9 | K26: 63.5 | L26: 88.9 | M26: 4 | N26: 15.7 | O26: 58.7 | P26: 1.6 | Q26: 43.2 | R26: 3 | S26: 64.8 | T26: M12 | U26: 10 | V26: 1.3
B27: SORF 150# ANSI B16.5 Size 1½" | C27: SORF | D27: 150# | E27: ANSI B16.5 | F27: 1½" | G27: 40 | H27: 127 | I27: 22.2 | J27: 17.5 | K27: 73.2 | L27: 98.6 | M27: 4 | N27: 15.7 | O27: 65 | P27: 1.6 | Q27: 49.5 | R27: 3 | S27: 68 | T27: M12 | U27: 10 | V27: 1.4
B28: SORF 150# ANSI B16.5 Size 2" | C28: SORF | D28: 150# | E28: ANSI B16.5 | F28: 2" | G28: 50 | H28: 152.4 | I28: 25.4 | J28: 19 | K28: 91.9 | L28: 120.7 | M28: 4 | N28: 19.1 | O28: 77.7 | P28: 1.6 | Q28: 62 | R28: 4 | S28: 78 | T28: M16 | U28: 13 | V28: 2.3
B29: SORF 150# ANSI B16.5 Size 2½" | C29: SORF | D29: 150# | E29: ANSI B16.5 | F29: 2½" | G29: 65 | H29: 117.8 | I29: 28.6 | J29: 22.2 | K29: 104.6 | L29: 139.7 | M29: 4 | N29: 19.1 | O29: 90.4 | P29: 1.6 | Q29: 74.7 | R29: 4 | S29: 84.4 | T29: M16 | U29: 13 | V29: 3.2
B30: SORF 150# ANSI B16.5 Size 3" | C30: SORF | D30: 150# | E30: ANSI B16.5 | F30: 3" | G30: 80 | H30: 190.5 | I30: 30.2 | J30: 23.8 | K30: 127 | L30: 152.4 | M30: 4 | N30: 19.1 | O30: 108 | P30: 1.6 | Q30: 90.7 | R30: 4 | S30: 87.6 | T30: M16 | U30: 13 | V30: 3.6
B31: SORF 150# ANSI B16.5 Size 3½" | C31: SORF | D31: 150# | E31: ANSI B16.5 | F31: 3½" | G31: - | H31: 215.9 | I31: 31.7 | J31: 23.8 | K31: 139.7 | L31: 177.8 | M31: 8 | N31: 19.1 | O31: 122.2 | P31: 1.6 | Q31: 101.4 | R31: 4 | S31: 87.6 | T31: M16 | U31: 13 | V31: 5
B32: SORF 150# ANSI B16.5 Size 4" | C32: SORF | D32: 150# | E32: ANSI B16.5 | F32: 4" | G32: 100 | H32: 228.6 | I32: 33.3 | J32: 23.8 | K32: 157.2 | L32: 190.5 | M32: 8 | N32: 19.1 | O32: 134.9 | P32: 1.6 | Q32: 116.1 | R32: 5 | S32: 88.6 | T32: M16 | U32: 13 | V32: 5.9
B33: SORF 150# ANSI B16.5 Size 5" | C33: SORF | D33: 150# | E33: ANSI B16.5 | F33: 5" | G33: 125 | H33: 254 | I33: 36.5 | J33: 23.8 | K33: 185.7 | L33: 215.9 | M33: 8 | N33: 22.4 | O33: 163.6 | P33: 1.6 | Q33: 143.8 | R33: 5 | S33: 94.6 | T33: M20 | U33: 16 | V33: 6.8
B34: SORF 150# ANSI B16.5 Size 6" | C34: SORF | D34: 150# | E34: ANSI B16.5 | F34: 6" | G34: 150 | H34: 279.4 | I34: 39.7 | J34: 25.4 | K34: 215.9 | L34: 241.3 | M34: 8 | N34: 22.4 | O34: 192 | P34: 1.6 | Q34: 170.7 | R34: 6 | S34: 98.8 | T34: M20 | U34: 16 | V34: 8.6
B35: SORF 150# ANSI B16.5 Size 8" | C35: SORF | D35: 150# | E35: ANSI B16.5 | F35: 8" | G35: 200 | H35: 342.9 | I35: 44.4 | J35: 28.6 | K35: 269.7 | L35: 298.5 | M35: 8 | N35: 22.4 | O35: 246.1 | P35: 1.6 | Q35: 221.5 | R35: 6 | S35: 105.2 | T35: M20 | U35: 16 | V35: 13.6
B36: SORF 150# ANSI B16.5 Size 10" | C36: SORF | D36: 150# | E36: ANSI B16.5 | F36: 10" | G36: 250 | H36: 406.4 | I36: 49.2 | J36: 30.2 | K36: 323.9 | L36: 362 | M36: 12 | N36: 25.4 | O36: 304.8 | P36: 1.6 | Q36: 276.3 | R36: 6 | S36: 114.4 | T36: M24 | U36: 19 | V36: 19.5
B37: SORF 150# ANSI B16.5 Size 12" | C37: SORF | D37: 150# | E37: ANSI B16.5 | F37: 12" | G37: 300 | H37: 482.6 | I37: 55.6 | J37: 31.7 | K37: 381 | L37: 431.8 | M37: 12 | N37: 25.4 | O37: 365.3 | P37: 1.6 | Q37: 327.1 | R37: 6 | S37: 117.4 | T37: M24 | U37: 19 | V37: 29.1
B38: SORF 150# ANSI B16.5 Size 14" | C38: SORF | D38: 150# | E38: ANSI B16.5 | F38: 14" | G38: 350 | H38: 533.4 | I38: 57.1 | J38: 34.9 | K38: 412.8 | L38: 476.3 | M38: 12 | N38: 28.4 | O38: 400.1 | P38: 1.6 | Q38: 359.1 | R38: 7 | S38: 130.8 | T38: M27 | U38: 22 | V38: 38.6
B39: SORF 150# ANSI B16.5 Size 16" | C39: SORF | D39: 150# | E39: ANSI B16.5 | F39: 16" | G39: 400 | H39: 596.9 | I39: 63.5 | J39: 36.5 | K39: 469.9 | L39: 539.8 | M39: 16 | N39: 28.4 | O39: 457.2 | P39: 1.6 | Q39: 410.5 | R39: 7 | S39: 134 | T39: M27 | U39: 22 | V39: 42.2
B40: SORF 150# ANSI B16.5 Size 18" | C40: SORF | D40: 150# | E40: ANSI B16.5 | F40: 18" | G40: 450 | H40: 635 | I40: 68.3 | J40: 39.7 | K40: 533.4 | L40: 577.9 | M40: 16 | N40: 31.8 | O40: 505 | P40: 1.6 | Q40: 461.8 | R40: 7 | S40: 144.4 | T40: M30 | U40: 24 | V40: 54.5
B41: SORF 150# ANSI B16.5 Size 20" | C41: SORF | D41: 150# | E41: ANSI B16.5 | F41: 20" | G41: 500 | H41: 698.5 | I41: 73 | J41: 42.9 | K41: 584.2 | L41: 635 | M41: 20 | N41: 31.8 | O41: 558.8 | P41: 1.6 | Q41: 513.1 | R41: 7 | S41: 150.8 | T41: M30 | U41: 24 | V41: 70
B42: SORF 150# ANSI B16.5 Size 22" | C42: SORF | D42: 150# | E42: ANSI B16.5 | F42: 22" | G42: 550 | H42: 749.3 | I42: 79.4 | J42: 46 | K42: 641.2 | L42: 692.1 | M42: 20 | N42: 34.9 | O42: 609.6 | P42: 1.6 | Q42: 564.4 | R42: 7 | S42: 161 | T42: M33 | U42: 26 | V42: 72
B43: SORF 150# ANSI B16.5 Size 24" | C43: SORF | D43: 150# | E43: ANSI B16.5 | F43: 24" | G43: 600 | H43: 812.8 | I43: 82.5 | J43: 47.6 | K43: 692.2 | L43: 749.3 | M43: 20 | N43: 35.1 | O43: 663.4 | P43: 1.6 | Q43: 615.9 | R43: 7 | S43: 164.2 | T43: M33 | U43: 26 | V43: 95
B44: SORF 150# ANSI B16.5 Size 26" | C44: SORF | D44: 150# | E44: ANSI B16.5 | F44: 26" | G44: 650 | H44: 869.9 | I44: 85.7 | J44: 50.8 | K44: 742.9 | L44: 806.4 | M44: 24 | N44: 34.9 | O44: 723.9 | P44: 1.6 | Q44: 717.5 | R44: 7 | S44: 170.6 | T44: M33 | U44: 26 | V44: 123
B45: SORF 150# ANSI B16.5 Size 30" | C45: SORF | D45: 150# | E45: ANSI B16.5 | F45: 30" | G45: 750 | H45: 984.2 | I45: 88.9 | J45: 54 | K45: 857.2 | L45: 914.4 | M45: 28 | N45: 34.9 | O45: 831.8 | P45: 1.6 | Q45: 768.3 | R45: 7 | S45: 177 | T45: M33 | U45: 26 | V45: 138
B46: SORF 150# ANSI B16.5 Size 34" | C46: SORF | D46: 150# | E46: ANSI B16.5 | F46: 34" | G46: 850 | H46: 1111.2 | I46: 150.8 | J46: 58.8 | K46: 958.8 | L46: 1028.7 | M46: 32 | N46: 41.3 | O46: 911.2 | P46: 1.6 | Q46: 869.9 | R46: 7 | S46: 196.6 | T46: M39 | U46: 31 | V46: 186
B47: SORF 150# ANSI B16.5 Size 36" | C47: SORF | D47: 150# | E47: ANSI B16.5 | F47: 36" | G47: 900 | H47: 1168.4 | I47: 161.9 | J47: 60.3 | K47: 1022.3 | L47: 1085.8 | M47: 32 | N47: 41.3 | O47: 966.8 | P47: 1.6 | Q47: 920.7 | R47: 7 | S47: 199.6 | T47: M39 | U47: 31 | V47: 211
B48: SORF 150# ANSI B16.5 Size 42" | C48: SORF | D48: 150# | E48: ANSI B16.5 | F48: 42" | G48: 1050 | H48: 1344.2 | I48: 193.7 | J48: 66.7 | K48: 1193.8 | L48: 1257.3 | M48: 36 | N48: 41.3 | O48: 1131.9 | P48: 1.6 | Q48: 1073.1 | R48: 7 | S48: 212.4 | T48: M39 | U48: 31 | V48: 313
B49: SORF 175# ANSI B16.5 Size 26" | C49: SORF | D49: 175# | E49: ANSI B16.5 | F49: 26" | G49: 650 | H49: 812.8 | I49: 69.8 | J49: 46 | K49: 736.6 | L49: 759 | M49: 28 | N49: 22.4 | O49: 701.8 | P49: 1.6 | Q49: specify | R49: 7 | S49: 141 | T49: M20 | U49: 16 | V49: -
B50: SORF 175# ANSI B16.5 Size 28" | C50: SORF | D50: 175# | E50: ANSI B16.5 | F50: 28" | G50: 700 | H50: 863.6 | I50: 69.8 | J50: 49.3 | K50: 787.4 | L50: 809.8 | M50: 28 | N50: 22.4 | O50: 752.6 | P50: 1.6 | Q50: specify | R50: 8 | S50: 148.6 | T50: M20 | U50: 16 | V50: -
B51: SORF 175# ANSI B16.5 Size 30" | C51: SORF | D51: 175# | E51: ANSI B16.5 | F51: 30" | G51: 750 | H51: 927.1 | I51: 69.8 | J51: 53.8 | K51: 844.5 | L51: 866.9 | M51: 36 | N51: 22.4 | O51: 809.8 | P51: 1.6 | Q51: specify | R51: 9 | S51: 158.6 | T51: M20 | U51: 16 | V51: -
B52: SORF 175# ANSI B16.5 Size 32" | C52: SORF | D52: 175# | E52: ANSI B16.5 | F52: 32" | G52: 800 | H52: 977.9 | I52: 69.8 | J52: 57.1 | K52: 895.3 | L52: 917.7 | M52: 36 | N52: 22.4 | O52: 860.6 | P52: 1.6 | Q52: specify | R52: 10 | S52: 166.2 | T52: M20 | U52: 16 | V52: -
B53: SORF 175# ANSI B16.5 Size 34" | C53: SORF | D53: 175# | E53: ANSI B16.5 | F53: 34" | G53: 850 | H53: 1041.4 | I53: 85.9 | J53: 60.5 | K53: 949.5 | L53: 974.9 | M53: 36 | N53: 25.4 | O53: 911.4 | P53: 1.6 | Q53: specify | R53: 11 | S53: 180 | T53: M24 | U53: 19 | V53: -
B54: SORF 175# ANSI B16.5 Size 36" | C54: SORF | D54: 175# | E54: ANSI B16.5 | F54: 36" | G54: 900 | H54: 1092.2 | I54: 85.9 | J54: 63.5 | K54: 1000.3 | L54: 1025.7 | M54: 36 | N54: 25.4 | O54: 962.2 | P54: 1.6 | Q54: specify | R54: 12 | S54: 187 | T54: M24 | U54: 19 | V54: -
B55: SORF 175# ANSI B16.5 Size 38" | C55: SORF | D55: 175# | E55: ANSI B16.5 | F55: 38" | G55: 950 | H55: 1149.3 | I55: 95.3 | J55: 66.5 | K55: 1051.1 | L55: 1076.5 | M55: 36 | N55: 25.4 | O55: 1013 | P55: 1.6 | Q55: specify | R55: 13 | S55: 194 | T55: M24 | U55: 19 | V55: -
B56: SORF 175# ANSI B16.5 Size 40" | C56: SORF | D56: 175# | E56: ANSI B16.5 | F56: 40" | G56: 1000 | H56: 1200.1 | I56: 101.6 | J56: 69.8 | K56: 1101.9 | L56: 1127.3 | M56: 40 | N56: 25.4 | O56: 1063.8 | P56: 1.6 | Q56: specify | R56: 14 | S56: 201.6 | T56: M24 | U56: 19 | V56: -
B57: SORF 175# ANSI B16.5 Size 42" | C57: SORF | D57: 175# | E57: ANSI B16.5 | F57: 42" | G57: 1050 | H57: 1263.6 | I57: 111.3 | J57: 73.2 | K57: 1162.1 | L57: 1190.8 | M57: 40 | N57: 28.7 | O57: 1120.9 | P57: 1.6 | Q57: specify | R57: 15 | S57: 215.4 | T57: M27 | U57: 22 | V57: -
B58: SORF 175# ANSI B16.5 Size 44" | C58: SORF | D58: 175# | E58: ANSI B16.5 | F58: 44" | G58: 1100 | H58: 1314.4 | I58: 111.3 | J58: 76.2 | K58: 1212.8 | L58: 1241.6 | M58: 40 | N58: 28.7 | O58: 1171.7 | P58: 1.6 | Q58: specify | R58: 16 | S58: 222.4 | T58: M27 | U58: 22 | V58: -
B59: SORF 175# ANSI B16.5 Size 46" | C59: SORF | D59: 175# | E59: ANSI B16.5 | F59: 46" | G59: 1150 | H59: 1371.6 | I59: 117.3 | J59: 79.2 | K59: 1263.6 | L59: 1292.4 | M59: 40 | N59: 28.7 | O59: 1222.5 | P59: 1.6 | Q59: specify | R59: 17 | S59: 229.4 | T59: M27 | U59: 22 | V59: -
B60: SORF 175# ANSI B16.5 Size 48" | C60: SORF | D60: 175# | E60: ANSI B16.5 | F60: 48" | G60: 1200 | H60: 1422.4 | I60: 124 | J60: 82.5 | K60: 1314.4 | L60: 1343.2 | M60: 44 | N60: 28.7 | O60: 1273.3 | P60: 1.6 | Q60: specify | R60: 18 | S60: 237 | T60: M27 | U60: 22 | V60: -
B61: SORF 175# ANSI B16.5 Size 50" | C61: SORF | D61: 175# | E61: ANSI B16.5 | F61: 50" | G61: 1250 | H61: 1479.6 | I61: 124 | J61: 85.9 | K61: 1365.3 | L61: 1394.3 | M61: 44 | N61: 28.7 | O61: 1324.1 | P61: 1.6 | Q61: specify | R61: 19 | S61: 244.8 | T61: M27 | U61: 22 | V61: -
B62: SORF 175# ANSI B16.5 Size 52" | C62: SORF | D62: 175# | E62: ANSI B16.5 | F62: 52" | G62: 1300 | H62: 1543.1 | I62: 136.7 | J62: 88.9 | K62: 1422.4 | L62: 1454.1 | M62: 44 | N62: 31.8 | O62: 1377.9 | P62: 1.6 | Q62: specify | R62: 20 | S62: 255.8 | T62: M30 | U62: 24 | V62: -
B63: SORF 175# ANSI B16.5 Size 54" | C63: SORF | D63: 175# | E63: ANSI B16.5 | F63: 54" | G63: 1350 | H63: 1600.2 | I63: 136.7 | J63: 91.9 | K63: 1473.2 | L63: 1504.9 | M63: 44 | N63: 31.8 | O63: 1428.8 | P63: 1.6 | Q63: specify | R63: 21 | S63: 262.8 | T63: M30 | U63: 24 | V63: -
B64: SORF 175# ANSI B16.5 Size 60" | C64: SORF | D64: 175# | E64: ANSI B16.5 | F64: 60" | G64: 1500 | H64: 1752.6 | I64: 149.4 | J64: 101.6 | K64: 1625.6 | L64: 1657.3 | M64: 48 | N64: 31.8 | O64: 1581.1 | P64: 1.6 | Q64: specify | R64: 22 | S64: 283.2 | T64: M30 | U64: 24 | V64: -
B65: SORF 175# ANSI B16.5 Size 66" | C65: SORF | D65: 175# | E65: ANSI B16.5 | F65: 66" | G65: 1650 | H65: 1905 | I65: 174.8 | J65: 111.3 | K65: 1778 | L65: 1809.9 | M65: 56 | N65: 31.8 | O65: 1739.9 | P65: 1.6 | Q65: specify | R65: 23 | S65: 303.6 | T65: M30 | U65: 24 | V65: -
B66: SORF 175# ANSI B16.5 Size 72" | C66: SORF | D66: 175# | E66: ANSI B16.5 | F66: 72" | G66: 1800 | H66: 2057.4 | I66: 203.2 | J66: 127 | K66: 1943.1 | L66: 1974.8 | M66: 64 | N66: 31.8 | O66: 1892.3 | P66: 1.6 | Q66: specify | R66: 24 | S66: 336 | T66: M30 | U66: 24 | V66: -
B67: SORF 300# ANSI B16.5 Size 1/2" | C67: SORF | D67: 300# | E67: ANSI B16.5 | F67: 1/2" | G67: 15 | H67: 95.2 | I67: 22.2 | J67: 14.3 | K67: 35 | L67: 66.5 | M67: 4 | N67: 15.7 | O67: 38.1 | P67: 1.6 | Q67: 22.3 | R67: 3 | S67: 61.6 | T67: M12 | U67: 10 | V67: 1.2
B68: SORF 300# ANSI B16.5 Size 3/4" | C68: SORF | D68: 300# | E68: ANSI B16.5 | F68: 3/4" | G68: 20 | H68: 117.5 | I68: 25.4 | J68: 15.9 | K68: 42.9 | L68: 82.5 | M68: 4 | N68: 19 | O68: 47.7 | P68: 1.6 | Q68: 27.7 | R68: 3 | S68: 70.8 | T68: M16 | U68: 13 | V68: 1.3
B69: SORF 300# ANSI B16.5 Size 1" | C69: SORF | D69: 300# | E69: ANSI B16.5 | F69: 1" | G69: 25 | H69: 123.8 | I69: 27 | J69: 17.5 | K69: 50.8 | L69: 88.9 | M69: 4 | N69: 19 | O69: 53.8 | P69: 1.6 | Q69: 34.5 | R69: 3 | S69: 74 | T69: M16 | U69: 13 | V69: 1.4
B70: SORF 300# ANSI B16.5 Size 1¼" | C70: SORF | D70: 300# | E70: ANSI B16.5 | F70: 1¼" | G70: 32 | H70: 133.3 | I70: 27 | J70: 19 | K70: 63.5 | L70: 98.5 | M70: 4 | N70: 19 | O70: 63.5 | P70: 1.6 | Q70: 43.2 | R70: 3 | S70: 77 | T70: M16 | U70: 13 | V70: 1.8
B71: SORF 300# ANSI B16.5 Size 1½" | C71: SORF | D71: 300# | E71: ANSI B16.5 | F71: 1½" | G71: 40 | H71: 155.6 | I71: 3.2 | J71: 20.6 | K71: 73.1 | L71: 114.3 | M71: 4 | N71: 22.3 | O71: 69.8 | P71: 1.6 | Q71: 49.5 | R71: 3 | S71: 86.2 | T71: M20 | U71: 16 | V71: 2.7
B72: SORF 300# ANSI B16.5 Size 2" | C72: SORF | D72: 300# | E72: ANSI B16.5 | F72: 2" | G72: 50 | H72: 165.1 | I72: 33.3 | J72: 22.2 | K72: 91.9 | L72: 127 | M72: 8 | N72: 19 | O72: 84 | P72: 1.6 | Q72: 62 | R72: 4 | S72: 84.4 | T72: M16 | U72: 13 | V72: 3.2
B73: SORF 300# ANSI B16.5 Size 2½" | C73: SORF | D73: 300# | E73: ANSI B16.5 | F73: 2½" | G73: 65 | H73: 190.5 | I73: 38.1 | J73: 25.4 | K73: 104.6 | L73: 149.3 | M73: 8 | N73: 22.3 | O73: 100 | P73: 1.6 | Q73: 74.7 | R73: 4 | S73: 96.8 | T73: M20 | U73: 16 | V73: 4.5
B74: SORF 300# ANSI B16.5 Size 3" | C74: SORF | D74: 300# | E74: ANSI B16.5 | F74: 3" | G74: 80 | H74: 209.5 | I74: 42.9 | J74: 28.6 | K74: 127 | L74: 168.1 | M74: 8 | N74: 22.3 | O74: 117.3 | P74: 1.6 | Q74: 90.7 | R74: 4 | S74: 103.2 | T74: M20 | U74: 16 | V74: 5.9
B75: SORF 300# ANSI B16.5 Size 3½" | C75: SORF | D75: 300# | E75: ANSI B16.5 | F75: 3½" | G75: - | H75: 228.6 | I75: 44.4 | J75: 30.2 | K75: 139.7 | L75: 184.1 | M75: 8 | N75: 22.3 | O75: 133.3 | P75: 1.6 | Q75: 101.4 | R75: 4 | S75: 106.4 | T75: M20 | U75: 16 | V75: 7.7
B76: SORF 300# ANSI B16.5 Size 4" | C76: SORF | D76: 300# | E76: ANSI B16.5 | F76: 4" | G76: 100 | H76: 254 | I76: 47.6 | J76: 31.7 | K76: 157.2 | L76: 200.1 | M76: 8 | N76: 22.3 | O76: 146 | P76: 1.6 | Q76: 116.1 | R76: 5 | S76: 110.4 | T76: M20 | U76: 16 | V76: 10
B77: SORF 300# ANSI B16.5 Size 5" | C77: SORF | D77: 300# | E77: ANSI B16.5 | F77: 5" | G77: 125 | H77: 279.4 | I77: 50.8 | J77: 34.9 | K77: 185.6 | L77: 234.9 | M77: 8 | N77: 22.3 | O77: 177.8 | P77: 1.6 | Q77: 143.8 | R77: 5 | S77: 116.8 | T77: M20 | U77: 16 | V77: 12.7
B78: SORF 300# ANSI B16.5 Size 6" | C78: SORF | D78: 300# | E78: ANSI B16.5 | F78: 6" | G78: 150 | H78: 317.5 | I78: 52.4 | J78: 36.5 | K78: 215.9 | L78: 269.7 | M78: 12 | N78: 22.3 | O78: 206.2 | P78: 1.6 | Q78: 170.7 | R78: 6 | S78: 121 | T78: M20 | U78: 16 | V78: 17.7
B79: SORF 300# ANSI B16.5 Size 8" | C79: SORF | D79: 300# | E79: ANSI B16.5 | F79: 8" | G79: 200 | H79: 381 | I79: 61.9 | J79: 41.3 | K79: 269.7 | L79: 330.2 | M79: 12 | N79: 25.4 | O79: 260.3 | P79: 1.6 | Q79: 221.5 | R79: 6 | S79: 136.6 | T79: M24 | U79: 19 | V79: 26.3
B80: SORF 300# ANSI B16.5 Size 10" | C80: SORF | D80: 300# | E80: ANSI B16.5 | F80: 10" | G80: 250 | H80: 444.5 | I80: 66.7 | J80: 47.6 | K80: 323.8 | L80: 387.3 | M80: 16 | N80: 28.4 | O80: 320.5 | P80: 1.6 | Q80: 276.3 | R80: 6 | S80: 155.2 | T80: M27 | U80: 22 | V80: 36.8
B81: SORF 300# ANSI B16.5 Size 12" | C81: SORF | D81: 300# | E81: ANSI B16.5 | F81: 12" | G81: 300 | H81: 520.7 | I81: 73 | J81: 50.8 | K81: 381 | L81: 450.8 | M81: 16 | N81: 31.7 | O81: 374.6 | P81: 1.6 | Q81: 327.1 | R81: 6 | S81: 165.6 | T81: M30 | U81: 24 | V81: 52
B82: SORF 300# ANSI B16.5 Size 14" | C82: SORF | D82: 300# | E82: ANSI B16.5 | F82: 14" | G82: 350 | H82: 584.2 | I82: 76.2 | J82: 54 | K82: 412.7 | L82: 514.3 | M82: 20 | N82: 31.7 | O82: 425.4 | P82: 1.6 | Q82: 359.1 | R82: 7 | S82: 173 | T82: M30 | U82: 24 | V82: 74
B83: SORF 300# ANSI B16.5 Size 16" | C83: SORF | D83: 300# | E83: ANSI B16.5 | F83: 16" | G83: 400 | H83: 647.7 | I83: 82.5 | J83: 27.1 | K83: 469.9 | L83: 571.5 | M83: 20 | N83: 35 | O83: 482.6 | P83: 1.6 | Q83: 410.5 | R83: 7 | S83: 123.2 | T83: M33 | U83: 26 | V83: 100
B84: SORF 300# ANSI B16.5 Size 18" | C84: SORF | D84: 300# | E84: ANSI B16.5 | F84: 18" | G84: 450 | H84: 711.2 | I84: 88.9 | J84: 60.3 | K84: 533.4 | L84: 628.6 | M84: 24 | N84: 35 | O84: 533.4 | P84: 1.6 | Q84: 461.8 | R84: 7 | S84: 189.6 | T84: M33 | U84: 26 | V84: 127
B85: SORF 300# ANSI B16.5 Size 20" | C85: SORF | D85: 300# | E85: ANSI B16.5 | F85: 20" | G85: 500 | H85: 774.7 | I85: 95.2 | J85: 63.5 | K85: 584.2 | L85: 685.8 | M85: 24 | N85: 35 | O85: 587.2 | P85: 1.6 | Q85: 513.1 | R85: 7 | S85: 196 | T85: M33 | U85: 26 | V85: 148
B86: SORF 300# ANSI B16.5 Size 22" | C86: SORF | D86: 300# | E86: ANSI B16.5 | F86: 22" | G86: 550 | H86: 838.2 | I86: 101.6 | J86: 64.7 | K86: 641.2 | L86: 742.9 | M86: 24 | N86: 41.3 | O86: 641.2 | P86: 1.6 | Q86: 564.4 | R86: 7 | S86: 208.4 | T86: M39 | U86: 31 | V86: 197
B87: SORF 300# ANSI B16.5 Size 24" | C87: SORF | D87: 300# | E87: ANSI B16.5 | F87: 24" | G87: 600 | H87: 914.4 | I87: 106.4 | J87: 69.8 | K87: 692.1 | L87: 812.8 | M87: 24 | N87: 41.1 | O87: 701.5 | P87: 1.6 | Q87: 615.9 | R87: 7 | S87: 218.6 | T87: M39 | U87: 31 | V87: 222
B88: SORF 300# ANSI B16.5 Size 26" | C88: SORF | D88: 300# | E88: ANSI B16.5 | F88: 26" | G88: 650 | H88: 971.5 | I88: 184.1 | J88: 79.6 | K88: 749.3 | L88: 876.3 | M88: 28 | N88: 44.4 | O88: 720.7 | P88: 1.6 | Q88: 717.5 | R88: 7 | S88: 244.2 | T88: M42 | U88: 34 | V88: 251
B89: SORF 300# ANSI B16.5 Size 30" | C89: SORF | D89: 300# | E89: ANSI B16.5 | F89: 30" | G89: 750 | H89: 1092.2 | I89: 29.5 | J89: 92.1 | K89: 857.2 | L89: 996.9 | M89: 28 | N89: 47.6 | O89: 827.1 | P89: 1.6 | Q89: 768.3 | R89: 7 | S89: 273.2 | T89: M45 | U89: 36 | V89: 354
B90: SORF 300# ANSI B16.5 Size 34" | C90: SORF | D90: 300# | E90: ANSI B16.5 | F90: 34" | G90: 850 | H90: 1206.5 | I90: 231.8 | J90: 101.6 | K90: 965.2 | L90: 1104.9 | M90: 28 | N90: 50.8 | O90: 936.6 | P90: 1.6 | Q90: 869.9 | R90: 7 | S90: 296.2 | T90: M48 | U90: 38 | V90: 460
B91: SORF 300# ANSI B16.5 Size 36" | C91: SORF | D91: 300# | E91: ANSI B16.5 | F91: 36" | G91: 900 | H91: 1270 | I91: 241.3 | J91: 104.8 | K91: 1022.3 | L91: 1168.4 | M91: 32 | N91: 54 | O91: 990.6 | P91: 1.6 | Q91: 920.7 | R91: 7 | S91: 310.6 | T91: M52 | U91: 42 | V91: 513
B92: SORF 300# ANSI B16.5 Size 42" | C92: SORF | D92: 300# | E92: ANSI B16.5 | F92: 42" | G92: 1050 | H92: 1447.8 | I92: 276.2 | J92: 117.3 | K92: 1193.8 | L92: 1339.8 | M92: 36 | N92: 54 | O92: 1154.1 | P92: 1.6 | Q92: 1073.1 | R92: 7 | S92: 335.6 | T92: M52 | U92: 42 | V92: 731
B93: SORF 350# ANSI B16.5 Size 26" | C93: SORF | D93: 350# | E93: ANSI B16.5 | F93: 26" | G93: 650 | H93: 850.9 | I93: 114.3 | J93: 63.5 | K93: 749.3 | L93: 777.7 | M93: 28 | N93: 28.4 | P93: 1.6 | Q93: specify | R93: 7 | S93: 188 | T93: M27 | U93: 22 | V93: -
B94: SORF 350# ANSI B16.5 Size 28" | C94: SORF | D94: 350# | E94: ANSI B16.5 | F94: 28" | G94: 700 | H94: 901.7 | I94: 114.3 | J94: 63.5 | K94: 800.1 | L94: 828.5 | M94: 28 | N94: 28.4 | P94: 1.6 | Q94: specify | R94: 7 | S94: 188 | T94: M27 | U94: 22 | V94: -
B95: SORF 350# ANSI B16.5 Size 30" | C95: SORF | D95: 350# | E95: ANSI B16.5 | F95: 30" | G95: 750 | H95: 958.8 | I95: 120.6 | J95: 66.5 | K95: 857.3 | L95: 886 | M95: 32 | N95: 28.4 | P95: 1.6 | Q95: specify | R95: 7 | S95: 194 | T95: M27 | U95: 22 | V95: -
B96: SORF 350# ANSI B16.5 Size 32" | C96: SORF | D96: 350# | E96: ANSI B16.5 | F96: 32" | G96: 800 | H96: 1009.7 | I96: 127 | J96: 69.8 | K96: 908 | L96: 936.8 | M96: 36 | N96: 28.4 | P96: 1.6 | Q96: specify | R96: 7 | S96: 200.6 | T96: M27 | U96: 22 | V96: -
B97: SORF 350# ANSI B16.5 Size 34" | C97: SORF | D97: 350# | E97: ANSI B16.5 | F97: 34" | G97: 850 | H97: 1073.1 | I97: 130 | J97: 73.2 | K97: 958.8 | L97: 987.6 | M97: 40 | N97: 28.4 | P97: 1.6 | Q97: specify | R97: 7 | S97: 207.4 | T97: M27 | U97: 22 | V97: -
B98: SORF 350# ANSI B16.5 Size 36" | C98: SORF | D98: 350# | E98: ANSI B16.5 | F98: 36" | G98: 900 | H98: 1136.6 | I98: 142.7 | J98: 79.2 | K98: 1022.3 | L98: 1054.1 | M98: 40 | N98: 31.8 | P98: 1.6 | Q98: specify | R98: 7 | S98: 223.4 | T98: M30 | U98: 24 | V98: -
B99: SORF 350# ANSI B16.5 Size 38" | C99: SORF | D99: 350# | E99: ANSI B16.5 | F99: 38" | G99: 950 | H99: 1187.5 | I99: 142.7 | J99: 79.2 | K99: 1073.1 | L99: 1104.9 | M99: 40 | N99: 31.8 | P99: 1.6 | Q99: specify | R99: 7 | S99: 223.4 | T99: M30 | U99: 24 | V99: -
B100: SORF 350# ANSI B16.5 Size 40" | C100: SORF | D100: 350# | E100: ANSI B16.5 | F100: 40" | G100: 1000 | H100: 1238.3 | I100: 149.4 | J100: 82.5 | K100: 1124 | L100: 1155.7 | M100: 44 | N100: 31.8 | P100: 1.6 | Q100: specify | R100: 7 | S100: 230 | T100: M30 | U100: 24 | V100: -
B101: SORF 350# ANSI B16.5 Size 42" | C101: SORF | D101: 350# | E101: ANSI B16.5 | F101: 42" | G101: 1050 | H101: 1301.8 | I101: 155.4 | J101: 88.9 | K101: 1181.1 | L101: 1212.8 | M101: 48 | N101: 31.8 | P101: 1.6 | Q101: specify | R101: 7 | S101: 242.8 | T101: M30 | U101: 24 | V101: -
B102: SORF 350# ANSI B16.5 Size 44" | C102: SORF | D102: 350# | E102: ANSI B16.5 | F102: 44" | G102: 1100 | H102: 1371.6 | I102: 171.4 | J102: 95.3 | K102: 1241.6 | L102: 1276.3 | M102: 44 | N102: 35.1 | P102: 1.6 | Q102: specify | R102: 7 | S102: 259.6 | T102: M33 | U102: 26 | V102: -
B103: SORF 350# ANSI B16.5 Size 46" | C103: SORF | D103: 350# | E103: ANSI B16.5 | F103: 46" | G103: 1150 | H103: 1422.4 | I103: 184.1 | J103: 107.9 | K103: 1292.4 | L103: 1327.1 | M103: 48 | N103: 35.1 | P103: 1.6 | Q103: specify | R103: 7 | S103: 284.8 | T103: M33 | U103: 26 | V103: -
B104: SORF 350# ANSI B16.5 Size 48" | C104: SORF | D104: 350# | E104: ANSI B16.5 | F104: 48" | G104: 1200 | H104: 1479.6 | I104: 184.1 | J104: 107.9 | K104: 1343.2 | L104: 1377.9 | M104: 48 | N104: 35.1 | P104: 1.6 | Q104: specify | R104: 7 | S104: 284.8 | T104: M33 | U104: 26 | V104: -
B105: SORF 400# ANSI B16.5 Size 1/2" | C105: SORF | D105: 400# | E105: ANSI B16.5 | F105: 1/2" | G105: 15 | H105: 95.3 | I105: 28.8 | J105: 20.6 | K105: 35.1 | L105: 66.5 | M105: 4 | N105: 15.7 | O105: 38.1 | P105: 6.4 | Q105: 22.3 | R105: 3 | S105: 74.2 | T105: M12 | U105: 10 | V105: 0.74
B106: SORF 400# ANSI B16.5 Size 3/4" | C106: SORF | D106: 400# | E106: ANSI B16.5 | F106: 3/4" | G106: 20 | H106: 117.3 | I106: 31.8 | J106: 22.1 | K106: 42.9 | L106: 82.6 | M106: 4 | N106: 19.1 | O106: 47.8 | P106: 6.4 | Q106: 27.7 | R106: 3 | S106: 83.2 | T106: M16 | U106: 13 | V106: 1.27
B107: SORF 400# ANSI B16.5 Size 1" | C107: SORF | D107: 400# | E107: ANSI B16.5 | F107: 1" | G107: 25 | H107: 124 | I107: 33.3 | J107: 23.9 | K107: 50.8 | L107: 88.9 | M107: 4 | N107: 19.1 | O107: 53.8 | P107: 6.4 | Q107: 34.5 | R107: 3 | S107: 86.8 | T107: M16 | U107: 13 | V107: 1.52
B108: SORF 400# ANSI B16.5 Size 1¼" | C108: SORF | D108: 400# | E108: ANSI B16.5 | F108: 1¼" | G108: 32 | H108: 133.4 | I108: 34.8 | J108: 27 | K108: 63.5 | L108: 98.6 | M108: 4 | N108: 19.1 | O108: 63.5 | P108: 6.4 | Q108: 43.2 | R108: 3 | S108: 93 | T108: M16 | U108: 13 | V108: 2.03
B109: SORF 400# ANSI B16.5 Size 1½" | C109: SORF | D109: 400# | E109: ANSI B16.5 | F109: 1½" | G109: 40 | H109: 155.4 | I109: 38.2 | J109: 28.8 | K109: 73.2 | L109: 114.3 | M109: 4 | N109: 22.4 | O109: 69.9 | P109: 6.4 | Q109: 49.5 | R109: 3 | S109: 102.6 | T109: M20 | U109: 16 | V109: 2.96
B110: SORF 400# ANSI B16.5 Size 2" | C110: SORF | D110: 400# | E110: ANSI B16.5 | F110: 2" | G110: 50 | H110: 165.1 | I110: 43 | J110: 31.8 | K110: 91.9 | L110: 127 | M110: 8 | N110: 19.1 | O110: 84.1 | P110: 6.4 | Q110: 62 | R110: 4 | S110: 103.6 | T110: M16 | U110: 13 | V110: 3.62
B111: SORF 400# ANSI B16.5 Size 2½" | C111: SORF | D111: 400# | E111: ANSI B16.5 | F111: 2½" | G111: 65 | H111: 190.5 | I111: 47.5 | J111: 34.8 | K111: 104.6 | L111: 149.4 | M111: 8 | N111: 22.4 | O111: 100.1 | P111: 6.4 | Q111: 74.7 | R111: 4 | S111: 115.6 | T111: M20 | U111: 16 | V111: 5.28
B112: SORF 400# ANSI B16.5 Size 3" | C112: SORF | D112: 400# | E112: ANSI B16.5 | F112: 3" | G112: 80 | H112: 209.6 | I112: 52.4 | J112: 38.2 | K112: 127 | L112: 168.1 | M112: 8 | N112: 22.4 | O112: 117.3 | P112: 6.4 | Q112: 90.7 | R112: 4 | S112: 122.4 | T112: M20 | U112: 16 | V112: 7
B113: SORF 400# ANSI B16.5 Size 3½" | C113: SORF | D113: 400# | E113: ANSI B16.5 | F113: 3½" | G113: - | H113: 228.6 | I113: 55.7 | J113: 41.5 | K113: 139.7 | L113: 184.2 | M113: 8 | N113: 25.4 | O113: 133.4 | P113: 6.4 | Q113: 101.4 | R113: 4 | S113: 135 | T113: M24 | U113: 19 | V113: 8.84
B114: SORF 400# ANSI B16.5 Size 4" | C114: SORF | D114: 400# | E114: ANSI B16.5 | F114: 4" | G114: 100 | H114: 254 | I114: 57.2 | J114: 41.5 | K114: 157.2 | L114: 200.2 | M114: 8 | N114: 25.4 | O114: 146.1 | P114: 6.4 | Q114: 116.1 | R114: 5 | S114: 136 | T114: M24 | U114: 19 | V114: 11.1
B115: SORF 400# ANSI B16.5 Size 5" | C115: SORF | D115: 400# | E115: ANSI B16.5 | F115: 5" | G115: 125 | H115: 279.4 | I115: 60.2 | J115: 44.5 | K115: 185.7 | L115: 235 | M115: 8 | N115: 25.4 | O115: 177.8 | P115: 6.4 | Q115: 143.8 | R115: 5 | S115: 142 | T115: M24 | U115: 19 | V115: 13.9
B116: SORF 400# ANSI B16.5 Size 6" | C116: SORF | D116: 400# | E116: ANSI B16.5 | F116: 6" | G116: 150 | H116: 317.5 | I116: 63.6 | J116: 47.5 | K116: 215.9 | L116: 269.7 | M116: 12 | N116: 25.4 | O116: 206.2 | P116: 6.4 | Q116: 170.7 | R116: 6 | S116: 149 | T116: M24 | U116: 19 | V116: 18.3
B117: SORF 400# ANSI B16.5 Size 8" | C117: SORF | D117: 400# | E117: ANSI B16.5 | F117: 8" | G117: 200 | H117: 381 | I117: 74.7 | J117: 54.2 | K117: 269.7 | L117: 330.2 | M117: 12 | N117: 28.4 | O117: 260.4 | P117: 6.4 | Q117: 221.5 | R117: 6 | S117: 168.4 | T117: M27 | U117: 22 | V117: 28.6
B118: SORF 400# ANSI B16.5 Size 10" | C118: SORF | D118: 400# | E118: ANSI B16.5 | F118: 10" | G118: 250 | H118: 444.5 | I118: 79.6 | J118: 60.2 | K118: 323.9 | L118: 387.4 | M118: 16 | N118: 31.8 | O118: 320.5 | P118: 6.4 | Q118: 276.3 | R118: 6 | S118: 184.4 | T118: M30 | U118: 24 | V118: 39.2
B119: SORF 400# ANSI B16.5 Size 12" | C119: SORF | D119: 400# | E119: ANSI B16.5 | F119: 12" | G119: 300 | H119: 520.7 | I119: 85.6 | J119: 63.6 | K119: 381 | L119: 450.9 | M119: 16 | N119: 35.1 | O119: 374.7 | P119: 6.4 | Q119: 327.1 | R119: 6 | S119: 195.2 | T119: M33 | U119: 26 | V119: 57
B120: SORF 400# ANSI B16.5 Size 14" | C120: SORF | D120: 400# | E120: ANSI B16.5 | F120: 14" | G120: 350 | H120: 584.2 | I120: 90.5 | J120: 66.9 | K120: 412.8 | L120: 514.4 | M120: 20 | N120: 35.1 | O120: 425.5 | P120: 6.4 | Q120: 359.1 | R120: 7 | S120: 202.8 | T120: M33 | U120: 26 | V120: 79.1
B121: SORF 400# ANSI B16.5 Size 16" | C121: SORF | D121: 400# | E121: ANSI B16.5 | F121: 16" | G121: 400 | H121: 647.7 | I121: 100.1 | J121: 69.9 | K121: 469.9 | L121: 571.5 | M121: 20 | N121: 38.1 | O121: 482.6 | P121: 6.4 | Q121: 410.5 | R121: 7 | S121: 214.8 | T121: M36 | U121: 29 | V121: 101
B122: SORF 400# ANSI B16.5 Size 18" | C122: SORF | D122: 400# | E122: ANSI B16.5 | F122: 18" | G122: 450 | H122: 711.2 | I122: 105 | J122: 72.9 | K122: 533.4 | L122: 628.7 | M122: 24 | N122: 38.1 | O122: 533.4 | P122: 6.4 | Q122: 461.8 | R122: 7 | S122: 220.8 | T122: M36 | U122: 29 | V122: 123
B123: SORF 400# ANSI B16.5 Size 20" | C123: SORF | D123: 400# | E123: ANSI B16.5 | F123: 20" | G123: 500 | H123: 774.7 | I123: 108 | J123: 76.3 | K123: 584.2 | L123: 685.8 | M123: 24 | N123: 41.1 | O123: 587.2 | P123: 6.4 | Q123: 513.1 | R123: 7 | S123: 231.6 | T123: M39 | U123: 31 | V123: 146
B124: SORF 400# ANSI B16.5 Size 24" | C124: SORF | D124: 400# | E124: ANSI B16.5 | F124: 24" | G124: 600 | H124: 914.4 | I124: 120.7 | J124: 82.6 | K124: 692.2 | L124: 812.8 | M124: 24 | N124: 47.8 | O124: 701.5 | P124: 6.4 | Q124: 616 | R124: 7 | S124: 254.2 | T124: M45 | U124: 36 | V124: 219
B125: SORF 600# ANSI B16.5 Size 1/2" | C125: SORF | D125: 600# | E125: ANSI B16.5 | F125: 1/2" | G125: 15 | H125: 95.3 | I125: 28.8 | J125: 20.6 | K125: 35.1 | L125: 66.5 | M125: 4 | N125: 15.7 | O125: 38.1 | P125: 6.4 | Q125: 22.3 | R125: 3 | S125: 74.2 | T125: M12 | U125: 10 | V125: 0.74
B126: SORF 600# ANSI B16.5 Size 3/4" | C126: SORF | D126: 600# | E126: ANSI B16.5 | F126: 3/4" | G126: 20 | H126: 117.3 | I126: 31.8 | J126: 22.1 | K126: 42.9 | L126: 82.6 | M126: 4 | N126: 19.1 | O126: 47.8 | P126: 6.4 | Q126: 27.7 | R126: 3 | S126: 83.2 | T126: M16 | U126: 13 | V126: 1.27
B127: SORF 600# ANSI B16.5 Size 1" | C127: SORF | D127: 600# | E127: ANSI B16.5 | F127: 1" | G127: 25 | H127: 124 | I127: 33.3 | J127: 23.9 | K127: 50.8 | L127: 88.9 | M127: 4 | N127: 19.1 | O127: 53.8 | P127: 6.4 | Q127: 34.5 | R127: 3 | S127: 86.8 | T127: M16 | U127: 13 | V127: 1.52
B128: SORF 600# ANSI B16.5 Size 1¼" | C128: SORF | D128: 600# | E128: ANSI B16.5 | F128: 1¼" | G128: 32 | H128: 133.4 | I128: 34.8 | J128: 27 | K128: 63.5 | L128: 98.6 | M128: 4 | N128: 19.1 | O128: 63.5 | P128: 6.4 | Q128: 43.2 | R128: 3 | S128: 93 | T128: M16 | U128: 13 | V128: 2.03
B129: SORF 600# ANSI B16.5 Size 1½" | C129: SORF | D129: 600# | E129: ANSI B16.5 | F129: 1½" | G129: 40 | H129: 155.4 | I129: 38.2 | J129: 28.8 | K129: 73.2 | L129: 114.3 | M129: 4 | N129: 22.3 | O129: 69.9 | P129: 6.4 | Q129: 49.5 | R129: 3 | S129: 102.6 | T129: M20 | U129: 16 | V129: 2.96
B130: SORF 600# ANSI B16.5 Size 2" | C130: SORF | D130: 600# | E130: ANSI B16.5 | F130: 2" | G130: 50 | H130: 165.1 | I130: 43 | J130: 31.8 | K130: 91.9 | L130: 127 | M130: 8 | N130: 19.1 | O130: 84.1 | P130: 6.4 | Q130: 62 | R130: 4 | S130: 103.6 | T130: M16 | U130: 13 | V130: 3.62
B131: SORF 600# ANSI B16.5 Size 2½" | C131: SORF | D131: 600# | E131: ANSI B16.5 | F131: 2½" | G131: 65 | H131: 190.5 | I131: 47.5 | J131: 34.8 | K131: 104.6 | L131: 149.4 | M131: 8 | N131: 22.4 | O131: 100.1 | P131: 6.4 | Q131: 74.7 | R131: 4 | S131: 115.6 | T131: M20 | U131: 16 | V131: 5.28
B132: SORF 600# ANSI B16.5 Size 3" | C132: SORF | D132: 600# | E132: ANSI B16.5 | F132: 3" | G132: 80 | H132: 209.6 | I132: 52.4 | J132: 38.2 | K132: 127 | L132: 168.1 | M132: 8 | N132: 22.4 | O132: 117.3 | P132: 6.4 | Q132: 90.7 | R132: 4 | S132: 122.4 | T132: M20 | U132: 16 | V132: 7
B133: SORF 600# ANSI B16.5 Size 3½" | C133: SORF | D133: 600# | E133: ANSI B16.5 | F133: 3½" | G133: - | H133: 228.6 | I133: 55.7 | J133: 41.5 | K133: 139.7 | L133: 184.2 | M133: 8 | N133: 25.4 | O133: 133.4 | P133: 6.4 | Q133: 101.4 | R133: 4 | S133: 135 | T133: M24 | U133: 19 | V133: 8.84
B134: SORF 600# ANSI B16.5 Size 4" | C134: SORF | D134: 600# | E134: ANSI B16.5 | F134: 4" | G134: 100 | H134: 273.1 | I134: 60.2 | J134: 44.5 | K134: 157.2 | L134: 215.9 | M134: 8 | N134: 25.4 | O134: 152.4 | P134: 6.4 | Q134: 116.1 | R134: 5 | S134: 142 | T134: M24 | U134: 19 | V134: 14.5
B135: SORF 600# ANSI B16.5 Size 5" | C135: SORF | D135: 600# | E135: ANSI B16.5 | F135: 5" | G135: 125 | H135: 330.2 | I135: 66.9 | J135: 50.9 | K135: 185.7 | L135: 266.7 | M135: 8 | N135: 28.4 | O135: 189 | P135: 6.4 | Q135: 143.8 | R135: 5 | S135: 160.8 | T135: M27 | U135: 22 | V135: 24.4
B136: SORF 600# ANSI B16.5 Size 6" | C136: SORF | D136: 600# | E136: ANSI B16.5 | F136: 6" | G136: 150 | H136: 355.6 | I136: 72.9 | J136: 54.2 | K136: 215.9 | L136: 292.1 | M136: 12 | N136: 28.4 | O136: 222.3 | P136: 6.4 | Q136: 170.7 | R136: 6 | S136: 168.4 | T136: M27 | U136: 22 | V136: 28.7
B137: SORF 600# ANSI B16.5 Size 8" | C137: SORF | D137: 600# | E137: ANSI B16.5 | F137: 8" | G137: 200 | H137: 419.1 | I137: 82.6 | J137: 62 | K137: 269.7 | L137: 349.3 | M137: 12 | N137: 31.8 | O137: 273.1 | P137: 6.4 | Q137: 221.5 | R137: 6 | S137: 188 | T137: M30 | U137: 24 | V137: 43.4
B138: SORF 600# ANSI B16.5 Size 10" | C138: SORF | D138: 600# | E138: ANSI B16.5 | F138: 10" | G138: 250 | H138: 508 | I138: 92.3 | J138: 69.9 | K138: 323.9 | L138: 431.8 | M138: 16 | N138: 35.1 | O138: 342.9 | P138: 6.4 | Q138: 276.3 | R138: 6 | S138: 207.8 | T138: M33 | U138: 26 | V138: 70.3
B139: SORF 600# ANSI B16.5 Size 12" | C139: SORF | D139: 600# | E139: ANSI B16.5 | F139: 12" | G139: 300 | H139: 558.8 | I139: 98.3 | J139: 72.9 | K139: 381 | L139: 489 | M139: 20 | N139: 35.1 | O139: 400.1 | P139: 6.4 | Q139: 327.1 | R139: 6 | S139: 213.8 | T139: M33 | U139: 26 | V139: 84.2
B140: SORF 600# ANSI B16.5 Size 14" | C140: SORF | D140: 600# | E140: ANSI B16.5 | F140: 14" | G140: 350 | H140: 603.3 | I140: 100.1 | J140: 76.3 | K140: 412.8 | L140: 527.1 | M140: 20 | N140: 38.1 | O140: 431.8 | P140: 6.4 | Q140: 359.1 | R140: 7 | S140: 227.6 | T140: M36 | U140: 29 | V140: 98.7
B141: SORF 600# ANSI B16.5 Size 16" | C141: SORF | D141: 600# | E141: ANSI B16.5 | F141: 16" | G141: 400 | H141: 685.8 | I141: 112.8 | J141: 82.6 | K141: 469.9 | L141: 603.3 | M141: 20 | N141: 41.1 | O141: 495.3 | P141: 6.4 | Q141: 410.5 | R141: 7 | S141: 244.2 | T141: M39 | U141: 31 | V141: 142
B142: SORF 600# ANSI B16.5 Size 18" | C142: SORF | D142: 600# | E142: ANSI B16.5 | F142: 18" | G142: 450 | H142: 743 | I142: 123.7 | J142: 89 | K142: 533.4 | L142: 654.1 | M142: 20 | N142: 44.5 | O142: 546.1 | P142: 6.4 | Q142: 461.8 | R142: 7 | S142: 263 | T142: M42 | U142: 34 | V142: 173
B143: SORF 600# ANSI B16.5 Size 20" | C143: SORF | D143: 600# | E143: ANSI B16.5 | F143: 20" | G143: 500 | H143: 812.8 | I143: 133.4 | J143: 95.3 | K143: 584.2 | L143: 723.9 | M143: 24 | N143: 44.5 | O143: 609.6 | P143: 6.4 | Q143: 513.1 | R143: 7 | S143: 275.6 | T143: M42 | U143: 34 | V143: 220
B144: SORF 600# ANSI B16.5 Size 22" | C144: SORF | D144: 600# | E144: ANSI B16.5 | F144: 22" | G144: 550 | H144: 869.9 | I144: 139.7 | J144: 101.6 | K144: 641.2 | L144: 777.9 | M144: 24 | N144: 47.6 | O144: 666.7 | P144: 6.4 | Q144: 564.4 | R144: 7 | S144: 292.2 | T144: M45 | U144: 36 | V144: 292
B145: SORF 600# ANSI B16.5 Size 24" | C145: SORF | D145: 600# | E145: ANSI B16.5 | F145: 24" | G145: 600 | H145: 939.8 | I145: 146.1 | J145: 108 | K145: 692.2 | L145: 838.2 | M145: 24 | N145: 50.8 | O145: 717.6 | P145: 6.4 | Q145: 615.9 | R145: 7 | S145: 309 | T145: M48 | U145: 38 | V145: 398
B146: SORF 600# ANSI B16.5 Size 26" | C146: SORF | D146: 600# | E146: ANSI B16.5 | F146: 26" | G146: 650 | H146: 1016 | I146: 228.6 | J146: 114.3 | K146: 749.3 | L146: 914.4 | M146: 28 | N146: 50.8 | O146: 747.7 | P146: 6.4 | Q146: 717.5 | R146: 7 | S146: 321.6 | T146: M48 | U146: 38 | V146: 408
B147: SORF 600# ANSI B16.5 Size 30" | C147: SORF | D147: 600# | E147: ANSI B16.5 | F147: 30" | G147: 750 | H147: 1130.3 | I147: 254 | J147: 120.7 | K147: 857.2 | L147: 1022.3 | M147: 28 | N147: 54 | O147: 862 | P147: 6.4 | Q147: 768.3 | R147: 7 | S147: 342.4 | T147: M52 | U147: 42 | V147: 576
B148: SORF 600# ANSI B16.5 Size 34" | C148: SORF | D148: 600# | E148: ANSI B16.5 | F148: 34" | G148: 850 | H148: 1244.6 | I148: 276.3 | J148: 127 | K148: 965.2 | L148: 1130.3 | M148: 28 | N148: 60.3 | O148: 973.1 | P148: 6.4 | Q148: 869.9 | R148: 7 | S148: 361 | T148: M56 | U148: 45 | V148: 652
B149: SORF 600# ANSI B16.5 Size 36" | C149: SORF | D149: 600# | E149: ANSI B16.5 | F149: 36" | G149: 900 | H149: 1314.4 | I149: 287 | J149: 130.2 | K149: 1022.3 | L149: 1193.8 | M149: 28 | N149: 66.7 | O149: 1031.9 | P149: 6.4 | Q149: 920.7 | R149: 7 | S149: 379.4 | T149: M64 | U149: 51 | V149: 744
B150: SORF 600# ANSI B16.5 Size 42" | C150: SORF | D150: 600# | E150: ANSI B16.5 | F150: 42" | G150: 1050 | H150: 1492.2 | I150: 330.2 | J150: 146.1 | K150: 1193.8 | L150: 1365.2 | M150: 28 | N150: 73 | O150: 1201.7 | P150: 6.4 | Q150: 1073.1 | R150: 7 | S150: 419.2 | T150: M68 | U150: 55 | V150: 1058
B151: SORF 900# ANSI B16.5 Size 1/2" | C151: SORF | D151: 900# | E151: ANSI B16.5 | F151: 1/2" | G151: 15 | H151: 120.6 | I151: 38.1 | J151: 28.7 | K151: 35 | L151: 82.5 | M151: 4 | N151: 22.3 | O151: 38.1 | P151: 6.4 | Q151: 22.3 | R151: 3 | S151: 102.4 | T151: M20 | U151: 16 | V151: 1.74
B152: SORF 900# ANSI B16.5 Size 3/4" | C152: SORF | D152: 900# | E152: ANSI B16.5 | F152: 3/4" | G152: 20 | H152: 130 | I152: 41.4 | J152: 31.8 | K152: 42.9 | L152: 88.9 | M152: 4 | N152: 22.3 | O152: 44.4 | P152: 6.4 | Q152: 27.7 | R152: 3 | S152: 108.6 | T152: M20 | U152: 16 | V152: 2.34
B153: SORF 900# ANSI B16.5 Size 1" | C153: SORF | D153: 900# | E153: ANSI B16.5 | F153: 1" | G153: 25 | H153: 149.3 | I153: 47.5 | J153: 35 | K153: 50.8 | L153: 101.6 | M153: 4 | N153: 25.4 | O153: 52.3 | P153: 6.4 | Q153: 34.5 | R153: 3 | S153: 121 | T153: M24 | U153: 19 | V153: 3.44
B154: SORF 900# ANSI B16.5 Size 1¼" | C154: SORF | D154: 900# | E154: ANSI B16.5 | F154: 1¼" | G154: 32 | H154: 158.7 | I154: 47.5 | J154: 35 | K154: 63.5 | L154: 111.2 | M154: 4 | N154: 25.4 | O154: 63.5 | P154: 6.4 | Q154: 43.2 | R154: 3 | S154: 121 | T154: M24 | U154: 19 | V154: 3.91
B155: SORF 900# ANSI B16.5 Size 1½" | C155: SORF | D155: 900# | E155: ANSI B16.5 | F155: 1½" | G155: 40 | H155: 177.8 | I155: 50.9 | J155: 38.1 | K155: 73.1 | L155: 123.9 | M155: 4 | N155: 28.4 | O155: 69.8 | P155: 6.4 | Q155: 49.5 | R155: 3 | S155: 133.2 | T155: M27 | U155: 22 | V155: 5.36
B156: SORF 900# ANSI B16.5 Size 2" | C156: SORF | D156: 900# | E156: ANSI B16.5 | F156: 2" | G156: 50 | H156: 215.9 | I156: 63.5 | J156: 44.5 | K156: 91.9 | L156: 165.1 | M156: 8 | N156: 25.4 | O156: 104.6 | P156: 6.4 | Q156: 62 | R156: 4 | S156: 141 | T156: M24 | U156: 19 | V156: 9.85
B157: SORF 900# ANSI B16.5 Size 2½" | C157: SORF | D157: 900# | E157: ANSI B16.5 | F157: 2½" | G157: 65 | H157: 244.3 | I157: 69.9 | J157: 47.5 | K157: 104.6 | L157: 190.5 | M157: 8 | N157: 28.4 | O157: 123.9 | P157: 6.4 | Q157: 74.7 | R157: 4 | S157: 153 | T157: M27 | U157: 22 | V157: 13.7
B158: SORF 900# ANSI B16.5 Size 3" | C158: SORF | D158: 900# | E158: ANSI B16.5 | F158: 3" | G158: 80 | H158: 241.3 | I158: 60.2 | J158: 44.5 | K158: 127 | L158: 190.5 | M158: 8 | N158: 25.4 | O158: 127 | P158: 6.4 | Q158: 90.7 | R158: 4 | S158: 135 | T158: M20 | U158: 16 | V158: 11.6
B159: SORF 900# ANSI B16.5 Size 4" | C159: SORF | D159: 900# | E159: ANSI B16.5 | F159: 4" | G159: 100 | H159: 292.1 | I159: 76.2 | J159: 50.8 | K159: 157.2 | L159: 234.9 | M159: 8 | N159: 31.7 | O159: 158.7 | P159: 6.4 | Q159: 116.1 | R159: 5 | S159: 160.6 | T159: M27 | U159: 22 | V159: 19.7
B160: SORF 900# ANSI B16.5 Size 5" | C160: SORF | D160: 900# | E160: ANSI B16.5 | F160: 5" | G160: 125 | H160: 349.2 | I160: 85.6 | J160: 57.2 | K160: 185.6 | L160: 279.4 | M160: 8 | N160: 35 | O160: 190.5 | P160: 6.4 | Q160: 143.8 | R160: 5 | S160: 181.4 | T160: M33 | U160: 26 | V160: 31.9
B161: SORF 900# ANSI B16.5 Size 6" | C161: SORF | D161: 900# | E161: ANSI B16.5 | F161: 6" | G161: 150 | H161: 381 | I161: 92.2 | J161: 62 | K161: 215.9 | L161: 317.5 | M161: 12 | N161: 31.7 | O161: 234.9 | P161: 6.4 | Q161: 170.7 | R161: 6 | S161: 184 | T161: M27 | U161: 22 | V161: 41.1
B162: SORF 900# ANSI B16.5 Size 8" | C162: SORF | D162: 900# | E162: ANSI B16.5 | F162: 8" | G162: 200 | H162: 469.9 | I162: 108 | J162: 69.9 | K162: 269.7 | L162: 393.7 | M162: 12 | N162: 38.1 | O162: 298.4 | P162: 6.4 | Q162: 221.5 | R162: 6 | S162: 213.8 | T162: M36 | U162: 29 | V162: 70.7
B163: SORF 900# ANSI B16.5 Size 10" | C163: SORF | D163: 900# | E163: ANSI B16.5 | F163: 10" | G163: 250 | H163: 546.1 | I163: 114.3 | J163: 76.2 | K163: 323.8 | L163: 169.9 | M163: 16 | N163: 38.1 | O163: 368.3 | P163: 6.4 | Q163: 276.3 | R163: 6 | S163: 226.4 | T163: M36 | U163: 29 | V163: 101
B164: SORF 900# ANSI B16.5 Size 12" | C164: SORF | D164: 900# | E164: ANSI B16.5 | F164: 12" | G164: 300 | H164: 609.6 | I164: 123.7 | J164: 85.6 | K164: 381 | L164: 533.4 | M164: 20 | N164: 38.1 | O164: 419.1 | P164: 6.4 | Q164: 327.1 | R164: 6 | S164: 245.2 | T164: M36 | U164: 29 | V164: 133
B165: SORF 900# ANSI B16.5 Size 14" | C165: SORF | D165: 900# | E165: ANSI B16.5 | F165: 14" | G165: 350 | H165: 641.3 | I165: 136.4 | J165: 92.2 | K165: 412.7 | L165: 558.8 | M165: 20 | N165: 41.1 | O165: 450.8 | P165: 6.4 | Q165: 359.1 | R165: 7 | S165: 259.4 | T165: M39 | U165: 29 | V165: 153
B166: SORF 900# ANSI B16.5 Size 16" | C166: SORF | D166: 900# | E166: ANSI B16.5 | F166: 16" | G166: 400 | H166: 704.8 | I166: 139.7 | J166: 95.3 | K166: 469.9 | L166: 615.9 | M166: 20 | N166: 44.4 | O166: 508 | P166: 6.4 | Q166: 410.5 | R166: 7 | S166: 275.6 | T166: M42 | U166: 34 | V166: 185
B167: SORF 900# ANSI B16.5 Size 18" | C167: SORF | D167: 900# | E167: ANSI B16.5 | F167: 18" | G167: 450 | H167: 787.4 | I167: 158.8 | J167: 108 | K167: 533.4 | L167: 685.8 | M167: 20 | N167: 50.8 | O167: 565.1 | P167: 6.4 | Q167: 461.8 | R167: 7 | S167: 309 | T167: M48 | U167: 38 | V167: 258
B168: SORF 900# ANSI B16.5 Size 20" | C168: SORF | D168: 900# | E168: ANSI B16.5 | F168: 20" | G168: 500 | H168: 857.2 | I168: 165.1 | J168: 114.3 | K168: 584.2 | L168: 749.3 | M168: 20 | N168: 53.8 | O168: 622.3 | P168: 6.4 | Q168: 513.1 | R168: 7 | S168: 329.6 | T168: M52 | U168: 42 | V168: 317
B169: SORF 900# ANSI B16.5 Size 24" | C169: SORF | D169: 900# | E169: ANSI B16.5 | F169: 24" | G169: 600 | H169: 1041.4 | I169: 209.6 | J169: 146.1 | K169: 692.1 | L169: 901.7 | M169: 20 | N169: 66.5 | O169: 749.3 | P169: 6.4 | Q169: 615.9 | R169: 7 | S169: 411.2 | T169: M64 | U169: 51 | V169: 606
B170: SORF 1500# ANSI B16.5 Size 1/2" | C170: SORF | D170: 1500# | E170: ANSI B16.5 | F170: 1/2" | G170: 15 | H170: 120.6 | I170: 38.1 | J170: 28.7 | K170: 35 | L170: 82.5 | M170: 4 | N170: 22.3 | O170: 38.1 | P170: 6.4 | Q170: 22.3 | R170: 3 | S170: 102.4 | T170: M20 | U170: 16 | V170: 3.2
B171: SORF 1500# ANSI B16.5 Size 3/4" | C171: SORF | D171: 1500# | E171: ANSI B16.5 | F171: 3/4" | G171: 20 | H171: 130 | I171: 41.4 | J171: 31.8 | K171: 42.9 | L171: 88.9 | M171: 4 | N171: 22.3 | O171: 44.4 | P171: 6.4 | Q171: 27.7 | R171: 3 | S171: 108.6 | T171: M20 | U171: 16 | V171: 3.6
B172: SORF 1500# ANSI B16.5 Size 1" | C172: SORF | D172: 1500# | E172: ANSI B16.5 | F172: 1" | G172: 25 | H172: 149.3 | I172: 47.5 | J172: 35 | K172: 50.8 | L172: 101.6 | M172: 4 | N172: 25.4 | O172: 52.3 | P172: 6.4 | Q172: 34.5 | R172: 3 | S172: 121 | T172: M24 | U172: 19 | V172: 4.1
B173: SORF 1500# ANSI B16.5 Size 1¼" | C173: SORF | D173: 1500# | E173: ANSI B16.5 | F173: 1¼" | G173: 32 | H173: 158.7 | I173: 47.5 | J173: 35 | K173: 63.5 | L173: 111.2 | M173: 4 | N173: 25.4 | O173: 63.5 | P173: 6.4 | Q173: 43.2 | R173: 3 | S173: 121 | T173: M24 | U173: 19 | V173: 4.5
B174: SORF 1500# ANSI B16.5 Size 1½" | C174: SORF | D174: 1500# | E174: ANSI B16.5 | F174: 1½" | G174: 40 | H174: 177.8 | I174: 50.9 | J174: 38.1 | K174: 73.1 | L174: 123.9 | M174: 4 | N174: 28.4 | O174: 69.8 | P174: 6.4 | Q174: 49.5 | R174: 3 | S174: 133.2 | T174: M27 | U174: 22 | V174: 6.4
B175: SORF 1500# ANSI B16.5 Size 2" | C175: SORF | D175: 1500# | E175: ANSI B16.5 | F175: 2" | G175: 50 | H175: 215.9 | I175: 63.5 | J175: 44.5 | K175: 91.9 | L175: 165.1 | M175: 8 | N175: 25.4 | O175: 104.6 | P175: 6.4 | Q175: 62 | R175: 4 | S175: 141 | T175: M24 | U175: 19 | V175: 11.3
B176: SORF 1500# ANSI B16.5 Size 2½" | C176: SORF | D176: 1500# | E176: ANSI B16.5 | F176: 2½" | G176: 65 | H176: 244.3 | I176: 69.9 | J176: 47.5 | K176: 104.6 | L176: 190.5 | M176: 8 | N176: 28.4 | O176: 123.9 | P176: 6.4 | Q176: 74.7 | R176: 4 | S176: 153 | T176: M27 | U176: 22 | V176: 16.3
B177: SORF 1500# ANSI B16.5 Size 3" | C177: SORF | D177: 1500# | E177: ANSI B16.5 | F177: 3" | G177: 80 | H177: 266.7 | I177: 79.4 | J177: 54 | K177: 127 | L177: 203.2 | M177: 8 | N177: 31.7 | O177: 133.3 | P177: 6.4 | Q177: 90.7 | R177: 4 | S177: 170 | T177: M30 | U177: 24 | V177: 21.8
B178: SORF 1500# ANSI B16.5 Size 4" | C178: SORF | D178: 1500# | E178: ANSI B16.5 | F178: 4" | G178: 100 | H178: 311.1 | I178: 96.9 | J178: 60.4 | K178: 157.2 | L178: 241.3 | M178: 8 | N178: 35 | O178: 162 | P178: 6.4 | Q178: 116.1 | R178: 5 | S178: 187.8 | T178: M33 | U178: 26 | V178: 33
B179: SORF 1500# ANSI B16.5 Size 5" | C179: SORF | D179: 1500# | E179: ANSI B16.5 | F179: 5" | G179: 125 | H179: 374.6 | I179: 111.2 | J179: 79.4 | K179: 185.6 | L179: 292.1 | M179: 8 | N179: 41.1 | O179: 196.8 | P179: 6.4 | Q179: 143.8 | R179: 5 | S179: 235.8 | T179: M39 | U179: 31 | V179: 60
B180: SORF 1500# ANSI B16.5 Size 6" | C180: SORF | D180: 1500# | E180: ANSI B16.5 | F180: 6" | G180: 150 | H180: 393.7 | I180: 125.5 | J180: 88.9 | K180: 215.9 | L180: 317.5 | M180: 12 | N180: 38.1 | O180: 228.6 | P180: 6.4 | Q180: 170.7 | R180: 6 | S180: 251.8 | T180: M36 | U180: 29 | V180: 74
B181: SORF 1500# ANSI B16.5 Size 8" | C181: SORF | D181: 1500# | E181: ANSI B16.5 | F181: 8" | G181: 200 | H181: 482.6 | I181: 149.3 | J181: 98.5 | K181: 269.7 | L181: 393.7 | M181: 12 | N181: 44.4 | O181: 292.1 | P181: 6.4 | Q181: 221.5 | R181: 6 | S181: 281 | T181: M42 | U181: 34 | V181: 117
B182: SORF 1500# ANSI B16.5 Size 10" | C182: SORF | D182: 1500# | E182: ANSI B16.5 | F182: 10" | G182: 250 | H182: 584.2 | I182: 165.1 | J182: 114.3 | K182: 323.8 | L182: 485.6 | M182: 12 | N182: 50.8 | O182: 368.3 | P182: 6.4 | Q182: 276.3 | R182: 6 | S182: 320.6 | T182: M48 | U182: 38 | V182: 198
B183: SORF 1500# ANSI B16.5 Size 12" | C183: SORF | D183: 1500# | E183: ANSI B16.5 | F183: 12" | G183: 300 | H183: 673.1 | I183: 187.4 | J183: 130.2 | K183: 381 | L183: 571.5 | M183: 16 | N183: 53.8 | O183: 450.8 | P183: 6.4 | Q183: 327.1 | R183: 6 | S183: 360.4 | T183: M52 | U183: 42 | V183: 303
B184: SORF 1500# ANSI B16.5 Size 14" | C184: SORF | D184: 1500# | E184: ANSI B16.5 | F184: 14" | G184: 350 | H184: 749.3 | I184: - | J184: 139.7 | K184: 412.7 | L184: 635 | M184: 16 | N184: 60.4 | O184: 495.3 | P184: 6.4 | Q184: 359.1 | R184: 7 | S184: 386.4 | T184: M56 | U184: 45 | V184: -
B185: SORF 1500# ANSI B16.5 Size 16" | C185: SORF | D185: 1500# | E185: ANSI B16.5 | F185: 16" | G185: 400 | H185: 825.5 | I185: - | J185: 152.4 | K185: 469.9 | L185: 704.8 | M185: 16 | N185: 66.5 | O185: 552.4 | P185: 6.4 | Q185: 410.5 | R185: 7 | S185: 417.8 | T185: M60 | U185: 48 | V185: -
B186: SORF 1500# ANSI B16.5 Size 18" | C186: SORF | D186: 1500# | E186: ANSI B16.5 | F186: 18" | G186: 450 | H186: 914.4 | I186: - | J186: 176.3 | K186: 533.4 | L186: 774.7 | M186: 16 | N186: 73.1 | O186: 596.9 | P186: 6.4 | Q186: 461.8 | R186: 7 | S186: 477.6 | T186: M68 | U186: 54 | V186: -
B187: SORF 1500# ANSI B16.5 Size 20" | C187: SORF | D187: 1500# | E187: ANSI B16.5 | F187: 20" | G187: 500 | H187: 984.2 | I187: - | J187: 184.2 | K187: 584.2 | L187: 831.8 | M187: 16 | N187: 79.2 | O187: 641.3 | P187: 6.4 | Q187: 513.1 | R187: 7 | S187: 507.4 | T187: M76 | U187: 61 | V187: -
B188: SORF 1500# ANSI B16.5 Size 24" | C188: SORF | D188: 1500# | E188: ANSI B16.5 | F188: 24" | G188: 600 | H188: 1168.4 | I188: - | J188: 209.6 | K188: 692.1 | L188: 990.6 | M188: 16 | N188: 91.9 | O188: 762 | P188: 6.4 | Q188: 615.9 | R188: 7 | S188: 564.2 | T188: M80 | U188: 64 | V188: -
B189: BLRF 125# ANSI B16.5 Size 26" | C189: BLRF | D189: 125# | E189: ANSI B16.5 | F189: 26" | G189: 650 | H189: 870 | I189: - | J189: 50.8 | K189: 749.3 | L189: 806.5 | M189: 24 | N189: 35.1 | O189: - | P189: 1.6 | Q189: - | R189: 7 | S189: 170.6 | T189: M33 | U189: 26 | V189: -
B190: BLRF 125# ANSI B16.5 Size 28" | C190: BLRF | D190: 125# | E190: ANSI B16.5 | F190: 28" | G190: 700 | H190: 927.1 | I190: - | J190: 52.3 | K190: 800.1 | L190: 863.6 | M190: 28 | N190: 35.1 | O190: - | P190: 1.6 | Q190: - | R190: 7 | S190: 173.6 | T190: M33 | U190: 26 | V190: -
B191: BLRF 125# ANSI B16.5 Size 30" | C191: BLRF | D191: 125# | E191: ANSI B16.5 | F191: 30" | G191: 750 | H191: 984.3 | I191: - | J191: 54.1 | K191: 857.3 | L191: 914.4 | M191: 28 | N191: 35.1 | O191: - | P191: 1.6 | Q191: - | R191: 7 | S191: 177.2 | T191: M33 | U191: 26 | V191: -
B192: BLRF 125# ANSI B16.5 Size 32" | C192: BLRF | D192: 125# | E192: ANSI B16.5 | F192: 32" | G192: 800 | H192: 1060.5 | I192: - | J192: 57.2 | K192: 914.4 | L192: 977.9 | M192: 28 | N192: 41.4 | O192: - | P192: 1.6 | Q192: - | R192: 7 | S192: 183.4 | T192: M36 | U192: 26 | V192: -
B193: BLRF 125# ANSI B16.5 Size 34" | C193: BLRF | D193: 125# | E193: ANSI B16.5 | F193: 34" | G193: 850 | H193: 1111.3 | I193: - | J193: 58.7 | K193: 965.2 | L193: 1028.7 | M193: 32 | N193: 41.4 | O193: - | P193: 1.6 | Q193: - | R193: 7 | S193: 186.4 | T193: M36 | U193: 26 | V193: -
B194: BLRF 125# ANSI B16.5 Size 36" | C194: BLRF | D194: 125# | E194: ANSI B16.5 | F194: 36" | G194: 900 | H194: 1168.4 | I194: - | J194: 60.5 | K194: 1022.4 | L194: 1086 | M194: 32 | N194: 41.4 | O194: - | P194: 1.6 | Q194: - | R194: 7 | S194: 190 | T194: M36 | U194: 26 | V194: -
B195: BLRF 125# ANSI B16.5 Size 38" | C195: BLRF | D195: 125# | E195: ANSI B16.5 | F195: 38" | G195: 950 | H195: 1238.3 | I195: - | J195: 60.5 | K195: 1073.2 | L195: 1149.4 | M195: 32 | N195: 41.4 | O195: - | P195: 1.6 | Q195: - | R195: 7 | S195: 190 | T195: M36 | U195: 26 | V195: -
B196: BLRF 125# ANSI B16.5 Size 40" | C196: BLRF | D196: 125# | E196: ANSI B16.5 | F196: 40" | G196: 1000 | H196: 1289.1 | I196: - | J196: 63.5 | K196: 1124 | L196: 1200.2 | M196: 36 | N196: 41.4 | O196: - | P196: 1.6 | Q196: - | R196: 7 | S196: 202 | T196: M36 | U196: 29 | V196: -
B197: BLRF 125# ANSI B16.5 Size 42" | C197: BLRF | D197: 125# | E197: ANSI B16.5 | F197: 42" | G197: 1050 | H197: 1346.2 | I197: - | J197: 66.8 | K197: 1193.8 | L197: 1257.3 | M197: 36 | N197: 41.4 | O197: - | P197: 1.6 | Q197: - | R197: 7 | S197: 208.6 | T197: M36 | U197: 29 | V197: -
B198: BLRF 125# ANSI B16.5 Size 44" | C198: BLRF | D198: 125# | E198: ANSI B16.5 | F198: 44" | G198: 1100 | H198: 1403.4 | I198: - | J198: 66.8 | K198: 1244.6 | L198: 1314.5 | M198: 40 | N198: 41.4 | O198: - | P198: 1.6 | Q198: - | R198: 7 | S198: 208.6 | T198: M36 | U198: 29 | V198: -
B199: BLRF 125# ANSI B16.5 Size 46" | C199: BLRF | D199: 125# | E199: ANSI B16.5 | F199: 46" | G199: 1150 | H199: 1454.2 | I199: - | J199: 68.1 | K199: 1295.4 | L199: 1365.3 | M199: 40 | N199: 41.4 | O199: - | P199: 1.6 | Q199: - | R199: 7 | S199: 211.2 | T199: M36 | U199: 29 | V199: -
B200: BLRF 125# ANSI B16.5 Size 48" | C200: BLRF | D200: 125# | E200: ANSI B16.5 | F200: 48" | G200: 1200 | H200: 1511.3 | I200: - | J200: 69.85 | K200: 1358.9 | L200: 1422.4 | M200: 44 | N200: 41.4 | O200: - | P200: 1.6 | Q200: - | R200: 7 | S200: 214.7 | T200: M36 | U200: 29 | V200: -
... 921 more rows

Sheet Lapjoint fl. (hidden)
A1: LAPJOINT FLANGE & STUB-END DIMENSIONS | X1: PIPE DATA acc ANSI B 16.5 | AH1: ASA Stub end weights | AR1: MSS Stub end weights
T2: NPS | U2: DN | V2: OD | W2: 5S | X2: 10S | Y2: 40S | Z2: Std. | AA2: 80S | AB2: XS | AD2: NPS | AE2: DN | AF2: OD | AG2: 5S | AH2: 10S | AI2: 40S | AJ2: Std. | AK2: 80S | AL2: XS | AN2: NPS | AO2: DN | AP2: OD | AQ2: 5S | AR2: 10S | AS2: 40S | AT2: Std. | AU2: 80S | AV2: XS
T3: 1/2" | U3: 15 | V3: 21.34 | W3: 1.65 | X3: 2.11 | Y3: 2.77 | Z3: 2.77 | AA3: 3.73 | AB3: 3.73 | AD3: 1/2" | AE3: 15 | AF3: 21.34 | AG3: 0.07076538671 | AH3: 0.09 | AI3: 0.11 | AJ3: - | AK3: 0.14 | AL3: - | AN3: 1/2" | AO3: 15 | AP3: 21.34 | AQ3: 0.05 | AR3: 0.06 | AS3: 0.08 | AT3: - | AU3: 0.1 | AV3: -
T4: 3/4" | U4: 20 | V4: 26.67 | W4: 1.65 | X4: 2.11 | Y4: 2.87 | Z4: 2.87 | AA4: 3.91 | AB4: 3.91 | AD4: 3/4" | AE4: 20 | AF4: 26.67 | AG4: 0.09 | AH4: 0.12 | AI4: 0.15 | AJ4: - | AK4: 0.2 | AL4: - | AN4: 3/4" | AO4: 20 | AP4: 26.67 | AQ4: 0.06 | AR4: 0.08 | AS4: 0.1 | AT4: - | AU4: 0.14 | AV4: -
T5: 1" | U5: 25 | V5: 33.4 | W5: 1.65 | X5: 2.77 | Y5: 3.38 | Z5: 3.38 | AA5: 4.55 | AB5: 4.55 | AD5: 1" | AE5: 25 | AF5: 33.4 | AG5: 0.1503188902 | AH5: 0.2443593066 | AI5: 0.2928584643 | AJ5: - | AK5: 0.3805150221 | AL5: - | AN5: 1" | AO5: 25 | AP5: 33.4 | AQ5: 0.08 | AR5: 0.13 | AS5: 0.16 | AT5: - | AU5: 0.2 | AV5: -
T6: 1¼" | U6: 32 | V6: 42.16 | W6: 1.65 | X6: 2.77 | Y6: 3.56 | Z6: 3.56 | AA6: 4.85 | AB6: 4.85 | AD6: 1¼" | AE6: 32 | AF6: 42.16 | AG6: 0.1959603105 | AH6: 0.3209815698 | AI6: 0.405278094 | AJ6: - | AK6: 0.5360128136 | AL6: - | AN6: 1¼" | AO6: 32 | AP6: 42.16 | AQ6: 0.11 | AR6: 0.17 | AS6: 0.22 | AT6: - | AU6: 0.29 | AV6: -
T7: 1½" | U7: 40 | V7: 48.26 | W7: 1.65 | X7: 2.77 | Y7: 3.68 | Z7: 3.68 | AA7: 5.08 | AB7: 5.08 | AD7: 1½" | AE7: 40 | AF7: 48.26 | AG7: 0.2299159673 | AH7: 0.3779859149 | AI7: 0.4935326485 | AJ7: - | AK7: 0.6629635247 | AL7: - | AN7: 1½" | AO7: 40 | AP7: 48.26 | AQ7: 0.13 | AR7: 0.21 | AS7: 0.27 | AT7: - | AU7: 0.37 | AV7: -
T8: 2" | U8: 50 | V8: 60.33 | W8: 1.65 | X8: 2.77 | Y8: 3.91 | Z8: 3.91 | AA8: 5.54 | AB8: 5.54 | AD8: 2" | AE8: 50 | AF8: 60.33 | AG8: 0.42 | AH8: 0.7 | AI8: 0.97 | AJ8: - | AK8: 1.34 | AL8: - | AN8: 2" | AO8: 50 | AP8: 60.33 | AQ8: 0.2 | AR8: 0.33 | AS8: 0.46 | AT8: - | AU8: 0.64 | AV8: -
T9: 2½" | U9: 65 | V9: 73.03 | W9: 2.11 | X9: 3.05 | Y9: 5.16 | Z9: 5.16 | AA9: 7.01 | AB9: 7.01 | AD9: 2½" | AE9: 65 | AF9: 73.03 | AG9: 0.65 | AH9: 0.93 | AI9: 1.536979269 | AJ9: - | AK9: 2.037902443 | AL9: - | AN9: 2½" | AO9: 65 | AP9: 73.03 | AQ9: 0.31 | AR9: 0.44 | AS9: 0.72 | AT9: - | AU9: 0.96 | AV9: -
T10: 3" | U10: 80 | V10: 88.9 | W10: 2.11 | X10: 3.05 | Y10: 5.49 | Z10: 5.49 | AA10: 7.62 | AB10: 7.62 | AD10: 3" | AE10: 80 | AF10: 88.9 | AG10: 0.8178672406 | AH10: 1.171143685 | AI10: 2.05628222 | AJ10: - | AK10: 2.791340575 | AL10: - | AN10: 3" | AO10: 80 | AP10: 88.9 | AQ10: 0.39 | AR10: 0.56 | AS10: 0.99 | AT10: - | AU10: 1.35 | AV10: -
T11: 3½" | U11: - | V11: 101.6 | W11: 2.11 | X11: 3.05 | Y11: 5.74 | Z11: 5.74 | AA11: 8.08 | AB11: 8.08 | AD11: 3½" | AE11: - | AF11: 101.6 | AG11: 0.93 | AH11: 1.34 | AI11: 2.46 | AJ11: - | AK11: 3.39 | AL11: - | AN11: 3½" | AO11: - | AP11: 101.6 | AQ11: 0.51 | AR11: 0.73 | AS11: 1.35 | AT11: - | AU11: 1.87 | AV11: -
T12: 4" | U12: 100 | V12: 114.3 | W12: 2.11 | X12: 3.05 | Y12: 6.02 | Z12: 6.02 | AA12: 8.56 | AB12: 8.56 | AD12: 4" | AE12: 100 | AF12: 114.3 | AG12: 1.07 | AH12: 1.54 | AI12: 2.96 | AJ12: - | AK12: 4.13 | AL12: - | AN12: 4" | AO12: 100 | AP12: 114.3 | AQ12: 0.59 | AR12: 0.85 | AS12: 1.65 | AT12: - | AU12: 2.3 | AV12: -
T13: 5" | U13: 125 | V13: 141.3 | W13: 2.77 | X13: 3.4 | Y13: 6.55 | Z13: 6.55 | AA13: 9.53 | AB13: 9.53 | AD13: 5" | AE13: 125 | AF13: 141.3 | AG13: 2.23 | AH13: 2.73 | AI13: 5.15 | AJ13: - | AK13: 7.35 | AL13: - | AN13: 5" | AO13: 125 | AP13: 141.3 | AQ13: 0.96 | AR13: 1.18 | AS13: 2.23 | AT13: - | AU13: 3.19 | AV13: -
T14: 6" | U14: 150 | V14: 168.28 | W14: 2.77 | X14: 3.4 | Y14: 7.11 | Z14: 7.11 | AA14: 10.97 | AB14: 10.97 | AD14: 6" | AE14: 150 | AF14: 168.28 | AG14: 2.68 | AH14: 3.28 | AI14: 6.73 | AJ14: - | AK14: 10.17 | AL14: - | AN14: 6" | AO14: 150 | AP14: 168.28 | AQ14: 1.31 | AR14: 1.6 | AS14: 3.29 | AT14: - | AU14: 4.99 | AV14: -
T15: 8" | U15: 200 | V15: 219.08 | W15: 2.77 | X15: 3.76 | Y15: 8.18 | Z15: 8.18 | AA15: 12.7 | AB15: 12.7 | AD15: 8" | AE15: 200 | AF15: 219.08 | AG15: 3.52 | AH15: 4.76 | AI15: 10.17 | AJ15: - | AK15: 15.5 | AL15: - | AN15: 8" | AO15: 200 | AP15: 219.08 | AQ15: 1.91 | AR15: 2.59 | AS15: 5.53 | AT15: - | AU15: 8.45 | AV15: -
T16: 10" | U16: 250 | V16: 273.05 | W16: 3.4 | X16: 4.19 | Y16: 9.27 | Z16: 9.27 | AA16: 12.7 | AB16: 12.7 | AD16: 10" | AE16: 250 | AF16: 273.05 | AG16: 6.56 | AH16: 8.06 | AI16: 17.53 | AJ16: - | AK16: 23.74 | AL16: - | AN16: 10" | AO16: 250 | AP16: 273.05 | AQ16: 3.49 | AR16: 4.29 | AS16: 9.33 | AT16: - | AU16: 12.65 | AV16: -
T17: 12" | U17: 300 | V17: 323.85 | W17: 3.96 | X17: 4.57 | Y17: 9.53 | Z17: 9.53 | AA17: 12.7 | AB17: 12.7 | AD17: 12" | AE17: 300 | AF17: 323.85 | AG17: 9.17 | AH17: 10.57 | AI17: 21.73 | AJ17: - | AK17: 28.69833472 | AL17: - | AN17: 12" | AO17: 300 | AP17: 323.85 | AQ17: 5.71 | AR17: 6.58 | AS17: 13.54 | AT17: - | AU17: 17.89 | AV17: -
T18: 14" | U18: 350 | V18: 355.6 | W18: 3.96 | X18: 4.78 | Y18: - | Z18: 9.53 | AA18: - | AB18: 12.7 | AD18: 14" | AE18: 350 | AF18: 355.6 | AG18: 11.86806365 | AH18: 14.56106206 | AI18: - | AJ18: 28.15093058 | AK18: - | AL18: 37.20366465 | AN18: 14" | AO18: 350 | AP18: 355.6 | AQ18: 6.27 | AR18: 7.69 | AS18: - | AT18: 14.88 | AU18: - | AV18: 19.68
T19: 16" | U19: 400 | V19: 406.4 | W19: 4.19 | X19: 4.78 | Y19: - | Z19: 9.53 | AA19: - | AB19: 12.7 | AD19: 16" | AE19: 400 | AF19: 406.4 | AG19: 14.51 | AH19: 16.53 | AI19: - | AJ19: 32.6 | AK19: - | AL19: 43.13 | AN19: 16" | AO19: 400 | AP19: 406.4 | AQ19: 7.72 | AR19: 8.8 | AS19: - | AT19: 17.37 | AU19: - | AV19: 23
T20: 18" | U20: 450 | V20: 457.2 | W20: 4.19 | X20: 4.78 | Y20: - | Z20: 9.53 | AA20: - | AB20: 12.7 | AD20: 18" | AE20: 450 | AF20: 457.2 | AG20: 16.68 | AH20: 19.01 | AI20: - | AJ20: 37.54 | AK20: - | AL20: 49.72 | AN20: 18" | AO20: 450 | AP20: 457.2 | AQ20: 9.03 | AR20: 10.29 | AS20: - | AT20: 20.34 | AU20: - | AV20: 26.95
T21: 20" | U21: 500 | V21: 508 | W21: 4.78 | X21: 5.54 | Y21: - | Z21: 9.53 | AA21: - | AB21: 12.7 | AD21: 20" | AE21: 500 | AF21: 508 | AG21: 21.12 | AH21: 24.44 | AI21: - | AJ21: 41.75 | AK21: - | AL21: 55.33 | AN21: 20" | AO21: 500 | AP21: 508 | AQ21: 11.42 | AR21: 13.22 | AS21: - | AT21: 22.6 | AU21: - | AV21: 29.97
T22: 22" | U22: 550 | V22: 558.8 | W22: 4.78 | X22: 5.54 | Y22: - | Z22: 9.53 | AA22: - | AB22: 12.7 | AD22: 22" | AE22: 550 | AF22: 558.8 | AG22: 23.48 | AH22: 27.18 | AI22: - | AJ22: 46.46 | AK22: - | AL22: 61.6 | AN22: 22" | AO22: 550 | AP22: 558.8 | AQ22: - | AR22: - | AS22: - | AT22: - | AU22: - | AV22: -
T23: 24" | U23: 600 | V23: 609.6 | W23: 5.54 | X23: 6.35 | Y23: - | Z23: 9.53 | AA23: - | AB23: 12.7 | AD23: 24" | AE23: 600 | AF23: 609.6 | AG23: 29.65 | AH23: 33.94 | AI23: - | AJ23: 50.7 | AK23: - | AL23: 67.26 | AN23: 24" | AO23: 600 | AP23: 609.6 | AQ23: 16.15 | AR23: 18.49 | AS23: - | AT23: 27.63 | AU23: - | AV23: 36.68
A34: Flange dimensions
A35: D | B35: Flange diameter | C35: =INDEX('Data Lapjoint fl.'!$I$4:$I$270,'Data Lapjoint fl.'!$A$4) -> 584.2 | D35: mm
A36: h | B36: Flange height | C36: =INDEX('Data Lapjoint fl.'!$J$4:$J$270,'Data Lapjoint fl.'!$A$4) -> 111.3 | D36: mm
A37: b1 | B37: Flange thickness | C37: =INDEX('Data Lapjoint fl.'!$K$4:$K$270,'Data Lapjoint fl.'!$A$4) -> 53.8 | D37: mm | F37: Include data of following LJ flanges:
A38: b2 | B38: Stub-end height ASA | C38: =INDEX('Data Lapjoint fl.'!$W$4:$W$270,'Data Lapjoint fl.'!$A$4) -> 304.8 | D38: mm | F38: ANSI B 16.5 | H38: 150 #
A39: b2 | B39: Stub-end height MSS | C39: =INDEX('Data Lapjoint fl.'!$X$4:$X$270,'Data Lapjoint fl.'!$A$4) -> 152.4 | D39: mm | F39: ANSI B 16.5 | H39: 300 #
A40: b2 | B40: Collar height | C40: =INDEX('Data Lapjoint fl.'!$Y$4:$Y$270,'Data Lapjoint fl.'!$A$4) -> - | D40: mm | F40: MSS SP-44 | H40: 150 #
A41: k | B41: Pitch circle | C41: =INDEX('Data Lapjoint fl.'!$N$4:$N$270,'Data Lapjoint fl.'!$A$4) -> 514.3 | D41: mm | F41: MSS SP-44 | H41: 300 #
A42: n | B42: Number of bolts | C42: =INDEX('Data Lapjoint fl.'!$P$4:$P$270,'Data Lapjoint fl.'!$A$4) -> 20 | D42: pce | F42: DIN 2641 Carbon steel | H42: PN 6
A43: bt | B43: Bolt | C43: =INDEX('Data Lapjoint fl.'!$Q$4:$Q$270,'Data Lapjoint fl.'!$A$4) -> M30 | D43: - | F43: DIN 2641 Aluminium | H43: PN 6
A44: L | B44: Required bolt length | C44: =INDEX('Data Lapjoint fl.'!$S$4:$S$270,'Data Lapjoint fl.'!$A$4) -> 170.6 | D44: mm | F44: DIN 2642 Carbon steel | H44: PN 10
A45: s | B45: Thickn. Stubend fl. | D45: mm | F45: Din 2642 Aluminium | H45: PN 10
A46: s | B46: Thickn. Collar flange | C46: =INDEX('Data Lapjoint fl.'!$Z$4:$Z$270,'Data Lapjoint fl.'!$A$4) ->  | D46: mm
A47: g | B47: Thickness of gasket | C47: =INDEX('Data Lapjoint fl.'!$T$4:$T$270,'Data Lapjoint fl.'!$A$4) -> 7 | D47: mm
A48: m | B48: Thickness of nut | C48: =INDEX('Data Lapjoint fl.'!$R$4:$R$270,'Data Lapjoint fl.'!$A$4) -> 24 | D48: mm
A49: s1 | B49: Thickness pipe | C49: =INDEX('Data Lapjoint fl.'!$AA$4:$AA$270,'Data Lapjoint fl.'!$A$4) ->  | D49: mm
A50: d1 | B50: Stub-end/collar diam. | C50: =INDEX('Data Lapjoint fl.'!$U$4:$U$270,'Data Lapjoint fl.'!$A$4) -> 355.6 | D50: mm
A51: d2 | B51: Diam. boltholes | C51: =INDEX('Data Lapjoint fl.'!$O$4:$O$270,'Data Lapjoint fl.'!$A$4) -> 31.7 | D51: mm | F51: W1 | G51: Weight flange | H51: =INDEX('Data Lapjoint fl.'!$AB$4:$AB$270,'Data Lapjoint fl.'!$A$4) -> 70.9 | I51: kg
A52: d3 | B52: Diam. flangehole | C52: =INDEX('Data Lapjoint fl.'!$L$4:$L$270,'Data Lapjoint fl.'!$A$4) -> 360.2 | D52: mm | F52: W2 | G52: Weight collar | H52: =INDEX('Data Lapjoint fl.'!$AE$4:$AE$270,'Data Lapjoint fl.'!$A$4) -> - | I52: kg
A53: d4 | B53: Diameter rim | C53: =INDEX('Data Lapjoint fl.'!$V$4:$V$270,'Data Lapjoint fl.'!$A$4) -> 412.8 | D53: mm | F53: W2 | G53: Weight stub / collar | I53: kg
A54: d5 | B54: Diameter hub | C54: =INDEX('Data Lapjoint fl.'!$M$4:$M$270,'Data Lapjoint fl.'!$A$4) -> 425.4 | D54: mm | F54: W2 | G54: Weight stub MSS | I54: kg

Sheet Data Lapjoint fl. (hidden)
A1: Data Lap joint flanges: | I1: Flange | N1: Studs | U1: Collar/Stub end | AB1: Weight | AF1: Ansi
F2: Size | G2: Size | I2: diam. | J2: height | K2: thickn. | L2: pipehole | M2: hubdiam. | N2: pitch | O2: bolthole | P2: no. | Q2: boltsize | R2: nut hght | S2: length | T2: gasket | U2: Pipe ø | V2: Flange ø | W2: height | X2: height | Y2: height | Z2: fl.height | AA2: Pipe th | AB2: Flange | AC2: Stub ASA | AD2: Stub MSS | AE2: Collar | AF2: Sch.
B3: Type / Size / Rating | C3: Type | D3: Rating | E3: Norm | F3: NPS | G3: DN | H3: Mat. | I3: D | J3: h | K3: b1 | L3: d3 | M3: d5 | N3: k | O3: d2 | P3: n | Q3: bt | R3: m | S3: L | T3: g | U3: d1 | V3: d4 | W3: b2-ASA | X3: b2-MSS | Y3: b2 (C) | Z3: s | AA3: s1 | AB3: kg
A4: 100 | B4: =CONCATENATE($C4,$D4,$E4,$F$2,$F4,$AF$2,AF4) -> LJ 150# ANSI B16.5 Size 1/2" Sch. 5S | C4: LJ | D4: 150# | E4: ANSI B16.5 | F4: 1/2" | G4: 15 | H4: SS | I4: 88.9 | J4: 15.7 | K4: 11.2 | L4: 22.9 | M4: 30.2 | N4: 60.5 | O4: 15.7 | P4: 4 | Q4: M12 | R4: 10 | S4: =(K4+R4+Z4+4)*2+T4 -> 53.4 | T4: 3 | U4: 21.34 | V4: 35.05 | W4: 76.2 | X4: 50.8 | Y4: - | Z4: =AA4 ->  | AA4: ='Lapjoint fl.'!$C$45 ->  | AB4: 0.38 | AC4: 0.07076538671 | AD4: 0.04819219033 | AE4: - | AF4: 5S
B5: LJ 150# ANSI B16.5 Size 1/2" Sch. 10S | C5: LJ | D5: 150# | E5: ANSI B16.5 | F5: 1/2" | G5: 15 | H5: SS | I5: 88.9 | J5: 15.7 | K5: 11.2 | L5: 22.9 | M5: 30.2 | N5: 60.5 | O5: 15.7 | P5: 4 | Q5: M12 | R5: 10 | S5: 53.4 | T5: 3 | U5: 21.34 | V5: 35.05 | W5: 76.2 | X5: 50.8 | Y5: - | AA5: ='Lapjoint fl.'!$C$45 ->  | AB5: 0.38 | AC5: 0.08861814661 | AD5: 0.06041936202 | AE5: - | AF5: 10S
B6: LJ 150# ANSI B16.5 Size 1/2" Sch. 40S | C6: LJ | D6: 150# | E6: ANSI B16.5 | F6: 1/2" | G6: 15 | H6: SS | I6: 88.9 | J6: 15.7 | K6: 11.2 | L6: 22.9 | M6: 30.2 | N6: 60.5 | O6: 15.7 | P6: 4 | Q6: M12 | R6: 10 | S6: 53.4 | T6: 3 | U6: 21.34 | V6: 35.05 | W6: 76.2 | X6: 50.8 | Y6: - | AA6: ='Lapjoint fl.'!$C$45 ->  | AB6: 0.38 | AC6: 0.1128044053 | AD6: 0.07704252091 | AE6: - | AF6: 40S
B7: LJ 150# ANSI B16.5 Size 1/2" Sch. 80S | C7: LJ | D7: 150# | E7: ANSI B16.5 | F7: 1/2" | G7: 15 | H7: SS | I7: 88.9 | J7: 15.7 | K7: 11.2 | L7: 22.9 | M7: 30.2 | N7: 60.5 | O7: 15.7 | P7: 4 | Q7: M12 | R7: 10 | S7: 53.4 | T7: 3 | U7: 21.34 | V7: 35.05 | W7: 76.2 | X7: 50.8 | Y7: - | AA7: ='Lapjoint fl.'!$C$45 ->  | AB7: 0.38 | AC7: 0.1449788535 | AD7: 0.09928570979 | AE7: - | AF7: 80S
B8: LJ 150# ANSI B16.5 Size 3/4" Sch. 5S | C8: LJ | D8: 150# | E8: ANSI B16.5 | F8: 3/4" | G8: 20 | H8: SS | I8: 98.6 | J8: 15.7 | K8: 12.7 | L8: 28.2 | M8: 38.1 | N8: 69.9 | O8: 15.7 | P8: 4 | Q8: M12 | R8: 10 | S8: 56.4 | T8: 3 | U8: 26.67 | V8: 42.9 | W8: 76.2 | X8: 50.8 | Y8: - | AA8: ='Lapjoint fl.'!$C$45 ->  | AB8: 0.55 | AC8: 0.09167474174 | AD8: 0.0628487718 | AE8: - | AF8: 5S
B9: LJ 150# ANSI B16.5 Size 3/4" Sch. 10S | C9: LJ | D9: 150# | E9: ANSI B16.5 | F9: 3/4" | G9: 20 | H9: SS | I9: 98.6 | J9: 15.7 | K9: 12.7 | L9: 28.2 | M9: 38.1 | N9: 69.9 | O9: 15.7 | P9: 4 | Q9: M12 | R9: 10 | S9: 56.4 | T9: 3 | U9: 26.67 | V9: 42.9 | W9: 76.2 | X9: 50.8 | Y9: - | AA9: ='Lapjoint fl.'!$C$45 ->  | AB9: 0.55 | AC9: 0.1153567764 | AD9: 0.07916202075 | AE9: - | AF9: 10S
B10: LJ 150# ANSI B16.5 Size 3/4" Sch. 40S | C10: LJ | D10: 150# | E10: ANSI B16.5 | F10: 3/4" | G10: 20 | H10: SS | I10: 98.6 | J10: 15.7 | K10: 12.7 | L10: 28.2 | M10: 38.1 | N10: 69.9 | O10: 15.7 | P10: 4 | Q10: M12 | R10: 10 | S10: 56.4 | T10: 3 | U10: 26.67 | V10: 42.9 | W10: 76.2 | X10: 50.8 | Y10: - | AA10: ='Lapjoint fl.'!$C$45 ->  | AB10: 0.55 | AC10: 0.1526917185 | AD10: 0.1049601437 | AE10: - | AF10: 40S
B11: LJ 150# ANSI B16.5 Size 3/4" Sch. 80S | C11: LJ | D11: 150# | E11: ANSI B16.5 | F11: 3/4" | G11: 20 | H11: SS | I11: 98.6 | J11: 15.7 | K11: 12.7 | L11: 28.2 | M11: 38.1 | N11: 69.9 | O11: 15.7 | P11: 4 | Q11: M12 | R11: 10 | S11: 56.4 | T11: 3 | U11: 26.67 | V11: 42.9 | W11: 76.2 | X11: 50.8 | Y11: - | AA11: ='Lapjoint fl.'!$C$45 ->  | AB11: 0.55 | AC11: 0.2001638302 | AD11: 0.1379325264 | AE11: - | AF11: 80S
B12: LJ 150# ANSI B16.5 Size 1" Sch. 5S | C12: LJ | D12: 150# | E12: ANSI B16.5 | F12: 1" | G12: 25 | H12: SS | I12: 108 | J12: 17.5 | K12: 14.2 | L12: 35.1 | M12: 49.3 | N12: 79.2 | O12: 15.7 | P12: 4 | Q12: M12 | R12: 10 | S12: 59.4 | T12: 3 | U12: 33.4 | V12: 50.8 | W12: 101.6 | X12: 50.8 | Y12: - | AA12: ='Lapjoint fl.'!$C$45 ->  | AB12: 0.76 | AC12: 0.1503188902 | AD12: 0.08002239015 | AE12: - | AF12: 5S
B13: LJ 150# ANSI B16.5 Size Sch. 10S | C13: LJ | D13: 150# | E13: ANSI B16.5 | AC13: 0.2443593066 | AD13: 0.1304786745 | AE13: - | AF13: 10S
B14: LJ 150# ANSI B16.5 Size Sch. 40S | C14: LJ | D14: 150# | E14: ANSI B16.5 | AC14: 0.2928584643 | AD14: 0.156645666 | AE14: - | AF14: 40S
B15: LJ 150# ANSI B16.5 Size Sch. 80S | C15: LJ | D15: 150# | E15: ANSI B16.5 | AC15: 0.3805150221 | AD15: 0.2042423416 | AE15: - | AF15: 80S
B16: LJ 150# ANSI B16.5 Size 1¼" Sch. 5S | C16: LJ | D16: 150# | E16: ANSI B16.5 | F16: 1¼" | G16: 32 | H16: SS | I16: 117.3 | J16: 20.6 | K16: 15.7 | L16: 43.7 | M16: 58.7 | N16: 88.9 | O16: 15.7 | P16: 4 | Q16: M12 | R16: 10 | S16: =(K16+R16+Z16+4)*2+T16 -> 62.4 | T16: 3 | U16: 42.16 | V16: 63.5 | W16: 101.6 | X16: 50.8 | Y16: - | Z16: =AA16 ->  | AA16: ='Lapjoint fl.'!$C$45 ->  | AB16: 1.01 | AC16: 0.1959603105 | AD16: 0.1060455265 | AE16: - | AF16: 5S
B17: LJ 150# ANSI B16.5 Size Sch. 10S | C17: LJ | D17: 150# | E17: ANSI B16.5 | AC17: 0.3209815698 | AD17: 0.1741660004 | AE17: - | AF17: 10S
B18: LJ 150# ANSI B16.5 Size Sch. 40S | C18: LJ | D18: 150# | E18: ANSI B16.5 | AC18: 0.405278094 | AD18: 0.2203369474 | AE18: - | AF18: 40S
B19: LJ 150# ANSI B16.5 Size Sch. 80S | C19: LJ | D19: 150# | E19: ANSI B16.5 | AC19: 0.5360128136 | AD19: 0.292389899 | AE19: - | AF19: 80S
B20: LJ 150# ANSI B16.5 Size 1½" Sch. 5S | C20: LJ | D20: 150# | E20: ANSI B16.5 | F20: 1½" | G20: 40 | H20: SS | I20: 127 | J20: 22.4 | K20: 17.5 | L20: 50 | M20: 65 | N20: 98.6 | O20: 15.7 | P20: 4 | Q20: M12 | R20: 10 | S20: =(K20+R20+Z20+4)*2+T20 -> 66 | T20: 3 | U20: 48.26 | V20: 73.15 | W20: 101.6 | X20: 50.8 | Y20: - | Z20: =AA20 ->  | AA20: ='Lapjoint fl.'!$C$45 ->  | AB20: 1.3 | AC20: 0.2299159673 | AD20: 0.1263237641 | AE20: - | AF20: 5S
B21: LJ 150# ANSI B16.5 Size Sch. 10S | C21: LJ | D21: 150# | E21: ANSI B16.5 | AC21: 0.3779859149 | AD21: 0.2082088599 | AE21: - | AF21: 10S
B22: LJ 150# ANSI B16.5 Size Sch. 40S | C22: LJ | D22: 150# | E22: ANSI B16.5 | AC22: 0.4935326485 | AD22: 0.2724409356 | AE22: - | AF22: 40S
B23: LJ 150# ANSI B16.5 Size Sch. 80S | C23: LJ | D23: 150# | E23: ANSI B16.5 | AC23: 0.6629635247 | AD23: 0.3672337506 | AE23: - | AF23: 80S
B24: LJ 150# ANSI B16.5 Size 2" Sch. 5S | C24: LJ | D24: 150# | E24: ANSI B16.5 | F24: 2" | G24: 50 | H24: SS | I24: 152.4 | J24: 25.4 | K24: 19.1 | L24: 62.5 | M24: 77.7 | N24: 120.7 | O24: 19.1 | P24: 4 | Q24: M16 | R24: 13 | S24: =(K24+R24+Z24+4)*2+T24 -> 76.2 | T24: 4 | U24: 60.33 | V24: 91.95 | W24: 152.4 | X24: 63.5 | Y24: - | Z24: =AA24 ->  | AA24: ='Lapjoint fl.'!$C$45 ->  | AB24: 2.03 | AC24: 0.4244558715 | AD24: 0.1992888989 | AE24: - | AF24: 5S
B25: LJ 150# ANSI B16.5 Size Sch. 10S | C25: LJ | D25: 150# | E25: ANSI B16.5 | AC25: 0.7005800358 | AD25: 0.3297363577 | AE25: - | AF25: 10S
B26: LJ 150# ANSI B16.5 Size Sch. 40S | C26: LJ | D26: 150# | E26: ANSI B16.5 | AC26: 0.9716767375 | AD26: 0.4585042776 | AE26: - | AF26: 40S
B27: LJ 150# ANSI B16.5 Size Sch. 80S | C27: LJ | D27: 150# | E27: ANSI B16.5 | AC27: 1.341845783 | AD27: 0.6355941774 | AE27: - | AF27: 80S
B28: LJ 150# ANSI B16.5 Size 2½" Sch. 5S | C28: LJ | D28: 150# | E28: ANSI B16.5 | F28: 2½" | G28: 65 | H28: SS | I28: 117.8 | J28: 28.4 | K28: 22.4 | L28: 75.4 | M28: 90.4 | N28: 139.7 | O28: 19.1 | P28: 4 | Q28: M16 | R28: 13 | S28: =(K28+R28+Z28+4)*2+T28 -> 82.8 | T28: 4 | U28: 73.03 | V28: 104.65 | W28: 152.4 | X28: 63.5 | Y28: - | Z28: =AA28 ->  | AA28: ='Lapjoint fl.'!$C$45 ->  | AB28: 3.25 | AC28: 0.6533678307 | AD28: 0.3054263105 | AE28: - | AF28: 5S
B29: LJ 150# ANSI B16.5 Size Sch. 10S | C29: LJ | D29: 150# | E29: ANSI B16.5 | AC29: 0.9333601782 | AD29: 0.4370318677 | AE29: - | AF29: 10S
B30: LJ 150# ANSI B16.5 Size Sch. 40S | C30: LJ | D30: 150# | E30: ANSI B16.5 | AC30: 1.536979269 | AD30: 0.7224305053 | AE30: - | AF30: 40S
B31: LJ 150# ANSI B16.5 Size Sch. 80S | C31: LJ | D31: 150# | E31: ANSI B16.5 | AC31: 2.037902443 | AD31: 0.9612620563 | AE31: - | AF31: 80S
B32: LJ 150# ANSI B16.5 Size 3" Sch. 5S | C32: LJ | D32: 150# | E32: ANSI B16.5 | F32: 3" | G32: 80 | H32: SS | I32: 190.5 | J32: 30.2 | K32: 23.9 | L32: 91.4 | M32: 108 | N32: 152.4 | O32: 19.1 | P32: 4 | Q32: M16 | R32: 13 | S32: =(K32+R32+Z32+4)*2+T32 -> 85.8 | T32: 4 | U32: 88.9 | V32: 127 | W32: 152.4 | X32: 63.5 | Y32: - | Z32: =AA32 ->  | AA32: ='Lapjoint fl.'!$C$45 ->  | AB32: 3.81 | AC32: 0.8178672406 | AD32: 0.3912783483 | AE32: - | AF32: 5S
B33: LJ 150# ANSI B16.5 Size Sch. 10S | C33: LJ | D33: 150# | E33: ANSI B16.5 | AC33: 1.171143685 | AD33: 0.5611307849 | AE33: - | AF33: 10S
B34: LJ 150# ANSI B16.5 Size Sch. 40S | C34: LJ | D34: 150# | E34: ANSI B16.5 | AC34: 2.05628222 | AD34: 0.9891914461 | AE34: - | AF34: 40S
B35: LJ 150# ANSI B16.5 Size Sch. 80S | C35: LJ | D35: 150# | E35: ANSI B16.5 | AC35: 2.791340575 | AD35: 1.347720791 | AE35: - | AF35: 80S
B36: LJ 150# ANSI B16.5 Size 3½" Sch. 5S | C36: LJ | D36: 150# | E36: ANSI B16.5 | F36: 3½" | G36: - | H36: SS | I36: 215.9 | J36: 31.8 | K36: 23.9 | L36: 104.1 | M36: 122.2 | N36: 177.8 | O36: 19.1 | P36: 8 | Q36: M16 | R36: 13 | S36: =(K36+R36+Z36+4)*2+T36 -> 85.8 | T36: 4 | U36: 101.6 | V36: 139.7 | W36: 152.4 | X36: 76.2 | Y36: - | Z36: =AA36 ->  | AA36: ='Lapjoint fl.'!$C$45 ->  | AB36: 4.76 | AC36: 0.934389391 | AD36: 0.5108140069 | AE36: - | AF36: 5S
B37: LJ 150# ANSI B16.5 Size Sch. 10S | C37: LJ | D37: 150# | E37: ANSI B16.5 | AC37: 1.339576178 | AD37: 0.733027068 | AE37: - | AF37: 10S
B38: LJ 150# ANSI B16.5 Size Sch. 40S | C38: LJ | D38: 150# | E38: ANSI B16.5 | AC38: 2.461357738 | AD38: 1.350701648 | AE38: - | AF38: 40S
B39: LJ 150# ANSI B16.5 Size Sch. 80S | C39: LJ | D39: 150# | E39: ANSI B16.5 | AC39: 3.391688641 | AD39: 1.866031895 | AE39: - | AF39: 80S
B40: LJ 150# ANSI B16.5 Size 4" Sch. 5S | C40: LJ | D40: 150# | E40: ANSI B16.5 | F40: 4" | G40: 100 | H40: SS | I40: 228.6 | J40: 33.3 | K40: 23.9 | L40: 116.8 | M40: 134.9 | N40: 190.5 | O40: 19.1 | P40: 8 | Q40: M16 | R40: 13 | S40: =(K40+R40+Z40+4)*2+T40 -> 86.8 | T40: 5 | U40: 114.3 | V40: 157.2 | W40: 152.4 | X40: 76.2 | Y40: - | Z40: =AA40 ->  | AA40: ='Lapjoint fl.'!$C$45 ->  | AB40: 5.25 | AC40: 1.070793057 | AD40: 0.5925686379 | AE40: - | AF40: 5S
B41: LJ 150# ANSI B16.5 Size Sch. 10S | C41: LJ | D41: 150# | E41: ANSI B16.5 | AC41: 1.536747353 | AD41: 0.8512031934 | AE41: - | AF41: 10S
B42: LJ 150# ANSI B16.5 Size Sch. 40S | C42: LJ | D42: 150# | E42: ANSI B16.5 | AC42: 2.964079469 | AD42: 1.646694668 | AE42: - | AF42: 40S
B43: LJ 150# ANSI B16.5 Size Sch. 80S | C43: LJ | D43: 150# | E43: ANSI B16.5 | AC43: 4.130666058 | AD43: 2.300881248 | AE43: - | AF43: 80S
B44: LJ 150# ANSI B16.5 Size 5" Sch. 5S | C44: LJ | D44: 150# | E44: ANSI B16.5 | F44: 5" | G44: 125 | H44: SS | I44: 254 | J44: 36.6 | K44: 23.9 | L44: 144.5 | M44: 163.6 | N44: 215.9 | O44: 22.4 | P44: 8 | Q44: M20 | R44: 16 | S44: =(K44+R44+Z44+4)*2+T44 -> 92.8 | T44: 5 | U44: 141.3 | V44: 185.7 | W44: 203.2 | X44: 76.2 | Y44: - | Z44: =AA44 ->  | AA44: ='Lapjoint fl.'!$C$45 ->  | AB44: 6.02 | AC44: 2.232568365 | AD44: 0.9628853674 | AE44: - | AF44: 5S
B45: LJ 150# ANSI B16.5 Size Sch. 10S | C45: LJ | D45: 150# | E45: ANSI B16.5 | AC45: 2.729297665 | AD45: 1.177881335 | AE45: - | AF45: 10S
B46: LJ 150# ANSI B16.5 Size Sch. 40S | C46: LJ | D46: 150# | E46: ANSI B16.5 | AC46: 5.15158056 | AD46: 2.23062798 | AE46: - | AF46: 40S
B47: LJ 150# ANSI B16.5 Size Sch. 80S | C47: LJ | D47: 150# | E47: ANSI B16.5 | AC47: 7.348994676 | AD47: 3.192450162 | AE47: - | AF47: 80S
B48: LJ 150# ANSI B16.5 Size 6" Sch. 5S | C48: LJ | D48: 150# | E48: ANSI B16.5 | F48: 6" | G48: 150 | H48: SS | I48: 279.4 | J48: 39.6 | K48: 25.4 | L48: 171.5 | M48: 192 | N48: 241.3 | O48: 22.4 | P48: 8 | Q48: M20 | R48: 16 | S48: =(K48+R48+Z48+4)*2+T48 -> 96.8 | T48: 6 | U48: 168.28 | V48: 215.9 | W48: 203.2 | X48: 88.9 | Y48: - | Z48: =AA48 ->  | AA48: ='Lapjoint fl.'!$C$45 ->  | AB48: 7.4 | AC48: 2.684202129 | AD48: 1.30918906 | AE48: - | AF48: 5S
B49: LJ 150# ANSI B16.5 Size Sch. 10S | C49: LJ | D49: 150# | E49: ANSI B16.5 | AC49: 3.283649579 | AD49: 1.602280636 | AE49: - | AF49: 10S
B50: LJ 150# ANSI B16.5 Size Sch. 40S | C50: LJ | D50: 150# | E50: ANSI B16.5 | AC50: 6.730749242 | AD50: 3.293188373 | AE50: - | AF50: 40S
B51: LJ 150# ANSI B16.5 Size Sch. 80S | C51: LJ | D51: 150# | E51: ANSI B16.5 | AC51: 10.16663104 | AD51: 4.988807106 | AE51: - | AF51: 80S
B52: LJ 150# ANSI B16.5 Size 8" Sch. 5S | C52: LJ | D52: 150# | E52: ANSI B16.5 | F52: 8" | G52: 200 | H52: SS | I52: 342.9 | J52: 44.5 | K52: 28.4 | L52: 222.3 | M52: 246.1 | N52: 298.5 | O52: 22.4 | P52: 8 | Q52: M20 | R52: 16 | S52: =(K52+R52+Z52+4)*2+T52 -> 102.8 | T52: 6 | U52: 219.08 | V52: 269.7 | W52: 203.2 | X52: 101.6 | Y52: - | Z52: =AA52 ->  | AA52: ='Lapjoint fl.'!$C$45 ->  | AB52: 12.1 | AC52: 3.522593865 | AD52: 1.911589548 | AE52: - | AF52: 5S
B53: LJ 150# ANSI B16.5 Size Sch. 10S | C53: LJ | D53: 150# | E53: ANSI B16.5 | AC53: 4.762387791 | AD53: 2.585525562 | AE53: - | AF53: 10S
B54: LJ 150# ANSI B16.5 Size Sch. 40S | C54: LJ | D54: 150# | E54: ANSI B16.5 | AC54: 10.17439607 | AD54: 5.534878611 | AE54: - | AF54: 40S
B55: LJ 150# ANSI B16.5 Size Sch. 80S | C55: LJ | D55: 150# | E55: ANSI B16.5 | AC55: 15.50059822 | AD55: 8.450355362 | AE55: - | AF55: 80S
B56: LJ 150# ANSI B16.5 Size 10" Sch. 5S | C56: LJ | D56: 150# | E56: ANSI B16.5 | F56: 10" | G56: 250 | H56: SS | I56: 406.4 | J56: 49.3 | K56: 30.2 | L56: 277.4 | M56: 304.8 | N56: 362 | O56: 25.4 | P56: 12 | Q56: M24 | R56: 19 | S56: =(K56+R56+Z56+4)*2+T56 -> 112.4 | T56: 6 | U56: 273.05 | V56: 323.9 | W56: 254 | X56: 127 | Y56: - | Z56: =AA56 ->  | AA56: ='Lapjoint fl.'!$C$45 ->  | AB56: 16.4 | AC56: 6.559937827 | AD56: 3.48546396 | AE56: - | AF56: 5S
B57: LJ 150# ANSI B16.5 Size Sch. 10S | C57: LJ | D57: 150# | E57: ANSI B16.5 | AC57: 8.062835118 | AD57: 4.285020527 | AE57: - | AF57: 10S
B58: LJ 150# ANSI B16.5 Size Sch. 40S | C58: LJ | D58: 150# | E58: ANSI B16.5 | AC58: 17.53493852 | AD58: 9.333672447 | AE58: - | AF58: 40S
B59: LJ 150# ANSI B16.5 Size Sch. 80S | C59: LJ | D59: 150# | E59: ANSI B16.5 | AC59: 23.74243637 | AD59: 12.65166742 | AE59: - | AF59: 80S
B60: LJ 150# ANSI B16.5 Size 12" Sch. 5S | C60: LJ | D60: 150# | E60: ANSI B16.5 | F60: 12" | G60: 300 | H60: SS | I60: 482.6 | J60: 55.6 | K60: 31.8 | L60: 328.2 | M60: 365.3 | N60: 431.8 | O60: 25.4 | P60: 12 | Q60: M24 | R60: 19 | S60: =(K60+R60+Z60+4)*2+T60 -> 115.6 | T60: 6 | U60: 323.85 | V60: 381 | W60: 254 | X60: 152.4 | Y60: - | Z60: =AA60 ->  | AA60: ='Lapjoint fl.'!$C$45 ->  | AB60: 26.1 | AC60: 9.171416202 | AD60: 5.707965483 | AE60: - | AF60: 5S
B61: LJ 150# ANSI B16.5 Size Sch. 10S | C61: LJ | D61: 150# | E61: ANSI B16.5 | AC61: 10.56622659 | AD61: 6.576812199 | AE61: - | AF61: 10S
B62: LJ 150# ANSI B16.5 Size Sch. 40S | C62: LJ | D62: 150# | E62: ANSI B16.5 | AC62: 21.72966208 | AD62: 13.53835998 | AE62: - | AF62: 40S
B63: LJ 150# ANSI B16.5 Size Sch. 80S | C63: LJ | D63: 150# | E63: ANSI B16.5 | AC63: 28.69833472 | AD63: 17.89132975 | AE63: - | AF63: 80S
B64: LJ 150# ANSI B16.5 Size 14" Sch. 5S | C64: LJ | D64: 150# | E64: ANSI B16.5 | F64: 14" | G64: 350 | H64: SS | I64: 533.4 | J64: 79.2 | K64: 35.1 | L64: 360.2 | M64: 400.1 | N64: 476.3 | O64: 28.4 | P64: 12 | Q64: M27 | R64: 22 | S64: =(K64+R64+Z64+4)*2+T64 -> 129.2 | T64: 7 | U64: 355.6 | V64: 412.8 | W64: 304.8 | X64: 152.4 | Y64: - | Z64: =AA64 ->  | AA64: ='Lapjoint fl.'!$C$45 ->  | AB64: 34.5 | AC64: 11.86806365 | AD64: 6.266494006 | AE64: - | AF64: 5S
B65: LJ 150# ANSI B16.5 Size Sch. 10S | C65: LJ | D65: 150# | E65: ANSI B16.5 | AC65: 14.56106206 | AD65: 7.6899716 | AE65: - | AF65: 10S
B66: LJ 150# ANSI B16.5 Size Sch. Std. | C66: LJ | D66: 150# | E66: ANSI B16.5 | AC66: 28.15093058 | AD66: 14.88249554 | AE66: - | AF66: Std.
B67: LJ 150# ANSI B16.5 Size Sch. XS | C67: LJ | D67: 150# | E67: ANSI B16.5 | AC67: 37.20366465 | AD67: 19.68257021 | AE67: - | AF67: XS
B68: LJ 150# ANSI B16.5 Size 16" Sch. 5S | C68: LJ | D68: 150# | E68: ANSI B16.5 | F68: 16" | G68: 400 | H68: SS | I68: 596.9 | J68: 87.4 | K68: 36.6 | L68: 411.2 | M68: 457.2 | N68: 539.8 | O68: 28.4 | P68: 16 | Q68: M27 | R68: 22 | S68: =(K68+R68+Z68+4)*2+T68 -> 132.2 | T68: 7 | U68: 406.4 | V68: 469.9 | W68: 304.8 | X68: 152.4 | Y68: - | Z68: =AA68 ->  | AA68: ='Lapjoint fl.'!$C$45 ->  | AB68: 44.6 | AC68: 14.50597736 | AD68: 7.721877755 | AE68: - | AF68: 5S
B69: LJ 150# ANSI B16.5 Size Sch. 10S | C69: LJ | D69: 150# | E69: ANSI B16.5 | AC69: 16.52678399 | AD69: 8.79867464 | AE69: - | AF69: 10S
B70: LJ 150# ANSI B16.5 Size Sch. Std. | C70: LJ | D70: 150# | E70: ANSI B16.5 | AC70: 32.59990927 | AD70: 17.37307717 | AE70: - | AF70: Std.
B71: LJ 150# ANSI B16.5 Size Sch. XS | C71: LJ | D71: 150# | E71: ANSI B16.5 | AC71: 43.13252397 | AD71: 23.00160345 | AE71: - | AF71: XS
B72: LJ 150# ANSI B16.5 Size 18" Sch. 5S | C72: LJ | D72: 150# | E72: ANSI B16.5 | F72: 18" | G72: 450 | H72: SS | I72: 635 | J72: 96.8 | K72: 39.6 | L72: 462.3 | M72: 505 | N72: 577.9 | O72: 31.8 | P72: 16 | Q72: M30 | R72: 24 | S72: =(K72+R72+Z72+4)*2+T72 -> 142.2 | T72: 7 | U72: 457.2 | V72: 533.4 | W72: 304.8 | X72: 152.4 | Y72: - | Z72: =AA72 ->  | AA72: ='Lapjoint fl.'!$C$45 ->  | AB72: 48.7 | AC72: 16.67844972 | AD72: 9.025994594 | AE72: - | AF72: 5S
B73: LJ 150# ANSI B16.5 Size Sch. 10S | C73: LJ | D73: 150# | E73: ANSI B16.5 | AC73: 19.00516534 | AD73: 10.28642607 | AE73: - | AF73: 10S
B74: LJ 150# ANSI B16.5 Size Sch. Std. | C74: LJ | D74: 150# | E74: ANSI B16.5 | AC74: 37.54111727 | AD74: 20.33924268 | AE74: - | AF74: Std.
B75: LJ 150# ANSI B16.5 Size Sch. XS | C75: LJ | D75: 150# | E75: ANSI B16.5 | AC75: 49.7173447 | AD75: 26.95441583 | AE75: - | AF75: XS
B76: LJ 150# ANSI B16.5 Size 20" Sch. 5S | C76: LJ | D76: 150# | E76: ANSI B16.5 | F76: 20" | G76: 500 | H76: SS | I76: 698.5 | J76: 103.1 | K76: 42.9 | L76: 514.4 | M76: 558.8 | N76: 635 | O76: 31.8 | P76: 20 | Q76: M30 | R76: 24 | S76: =(K76+R76+Z76+4)*2+T76 -> 148.8 | T76: 7 | U76: 508 | V76: 584.2 | W76: 304.8 | X76: 152.4 | Y76: - | Z76: =AA76 ->  | AA76: ='Lapjoint fl.'!$C$45 ->  | AB76: 61.6 | AC76: 21.11692222 | AD76: 11.41995097 | AE76: - | AF76: 5S
B77: LJ 150# ANSI B16.5 Size Sch. 10S | C77: LJ | D77: 150# | E77: ANSI B16.5 | AC77: 24.44187659 | AD77: 13.21995176 | AE77: - | AF77: 10S
B78: LJ 150# ANSI B16.5 Size Sch. Std. | C78: LJ | D78: 150# | E78: ANSI B16.5 | AC78: 41.75137734 | AD78: 22.5991783 | AE78: - | AF78: Std.
B79: LJ 150# ANSI B16.5 Size Sch. XS | C79: LJ | D79: 150# | E79: ANSI B16.5 | AC79: 55.32807952 | AD79: 29.9660824 | AE79: - | AF79: XS
B80: LJ 150# ANSI B16.5 Size 22" Sch. 5S | C80: LJ | D80: 150# | E80: ANSI B16.5 | F80: 22" | G80: 550 | H80: SS | I80: 749.3 | J80: - | K80: 46 | L80: - | M80: - | N80: 692.1 | O80: 34.9 | P80: 20 | Q80: M33 | R80: 24 | S80: =(K80+R80+Z80+4)*2+T80 -> 155 | T80: 7 | U80: 558.8 | V80: 641.4 | W80: 304.8 | X80: - | Y80: - | Z80: =AA80 ->  | AA80: ='Lapjoint fl.'!$C$45 ->  | AB80: - | AC80: 23.476876 | AD80: - | AE80: - | AF80: 5S
B81: LJ 150# ANSI B16.5 Size Sch. 10S | C81: LJ | D81: 150# | E81: ANSI B16.5 | AC81: 27.17705314 | AD81: - | AE81: - | AF81: 10S
B82: LJ 150# ANSI B16.5 Size Sch. Std. | C82: LJ | D82: 150# | E82: ANSI B16.5 | AC82: 46.45647346 | AD82: - | AE82: - | AF82: Std.
B83: LJ 150# ANSI B16.5 Size Sch. XS | C83: LJ | D83: 150# | E83: ANSI B16.5 | AC83: 61.59824959 | AD83: - | AE83: - | AF83: XS
B84: LJ 150# ANSI B16.5 Size 24" Sch. 5S | C84: LJ | D84: 150# | E84: ANSI B16.5 | F84: 24" | G84: 600 | H84: SS | I84: 812.8 | J84: 111.3 | K84: 47.8 | L84: 616 | M84: 663.4 | N84: 749.3 | O84: 35.1 | P84: 20 | Q84: M33 | R84: 26 | S84: =(K84+R84+Z84+4)*2+T84 -> 162.6 | T84: 7 | U84: 609.6 | V84: 692.2 | W84: 304.8 | X84: 152.4 | Y84: - | Z84: =AA84 ->  | AA84: ='Lapjoint fl.'!$C$45 ->  | AB84: 86.6 | AC84: 29.64669881 | AD84: 16.14676452 | AE84: - | AF84: 5S
B85: LJ 150# ANSI B16.5 Size Sch. 10S | C85: LJ | D85: 150# | E85: ANSI B16.5 | AC85: 33.94156334 | AD85: 18.48836478 | AE85: - | AF85: 10S
B86: LJ 150# ANSI B16.5 Size Sch. Std. | C86: LJ | D86: 150# | E86: ANSI B16.5 | AC86: 50.70479896 | AD86: 27.63393021 | AE86: - | AF86: Std.
B87: LJ 150# ANSI B16.5 Size Sch. XS | C87: LJ | D87: 150# | E87: ANSI B16.5 | AC87: 67.25971169 | AD87: 36.6755629 | AE87: - | AF87: XS
B88: =CONCATENATE($C88,$D88,$E88,$F$2,$F88) -> LJ 300# ANSI B16.5 Size 1/2" | C88: LJ | D88: 300# | E88: ANSI B16.5 | F88: 1/2" | G88: 15 | H88: SS | I88: 95.2 | J88: 22.4 | K88: 14.2 | L88: 22.9 | M88: 38.1 | N88: 66.5 | O88: 15.7 | P88: 4 | Q88: M12 | R88: 10 | S88: =(K88+R88+Z88+4)*2+T88 -> 59.4 | T88: 3 | U88: 21.34 | V88: 35.05 | W88: 76.2 | X88: 50.8 | Y88: - | Z88: =AA88 ->  | AA88: ='Lapjoint fl.'!$C$45 ->  | AB88: 0.62 | AE88: -
B89: LJ 300# ANSI B16.5 Size 3/4" | C89: LJ | D89: 300# | E89: ANSI B16.5 | F89: 3/4" | G89: 20 | H89: SS | I89: 117.5 | J89: 25.4 | K89: 15.7 | L89: 28.2 | M89: 47.7 | N89: 82.5 | O89: 19 | P89: 4 | Q89: M16 | R89: 13 | S89: 68.4 | T89: 3 | U89: 26.67 | V89: 42.9 | W89: 76.2 | X89: 50.8 | Y89: - | AA89: ='Lapjoint fl.'!$C$45 ->  | AB89: 1.1 | AE89: -
B90: LJ 300# ANSI B16.5 Size 1" | C90: LJ | D90: 300# | E90: ANSI B16.5 | F90: 1" | G90: 25 | H90: SS | I90: 123.8 | J90: 26.9 | K90: 17.5 | L90: 35.1 | M90: 53.8 | N90: 88.9 | O90: 19 | P90: 4 | Q90: M16 | R90: 13 | S90: 72 | T90: 3 | U90: 33.4 | V90: 50.8 | W90: 101.6 | X90: 50.8 | Y90: - | AA90: ='Lapjoint fl.'!$C$45 ->  | AB90: 1.33 | AE90: -
B91: LJ 300# ANSI B16.5 Size 1¼" | C91: LJ | D91: 300# | E91: ANSI B16.5 | F91: 1¼" | G91: 32 | H91: SS | I91: 133.3 | J91: 26.9 | K91: 19.1 | L91: 43.7 | M91: 63.5 | N91: 98.5 | O91: 19 | P91: 4 | Q91: M16 | R91: 13 | S91: 75.2 | T91: 3 | U91: 42.16 | V91: 63.5 | W91: 101.6 | X91: 50.8 | Y91: - | AA91: ='Lapjoint fl.'!$C$45 ->  | AB91: 1.65 | AE91: -
B92: LJ 300# ANSI B16.5 Size 1½" | C92: LJ | D92: 300# | E92: ANSI B16.5 | F92: 1½" | G92: 40 | H92: SS | I92: 155.6 | J92: 30.2 | K92: 20.6 | L92: 50 | M92: 69.8 | N92: 114.3 | O92: 22.3 | P92: 4 | Q92: M20 | R92: 16 | S92: 84.2 | T92: 3 | U92: 48.26 | V92: 73.15 | W92: 101.6 | X92: 50.8 | Y92: - | AA92: ='Lapjoint fl.'!$C$45 ->  | AB92: 2.44 | AE92: -
B93: LJ 300# ANSI B16.5 Size 2" | C93: LJ | D93: 300# | E93: ANSI B16.5 | F93: 2" | G93: 50 | H93: SS | I93: 165.1 | J93: 33.3 | K93: 22.4 | L93: 62.5 | M93: 84 | N93: 127 | O93: 19 | P93: 8 | Q93: M16 | R93: 13 | S93: 82.8 | T93: 4 | U93: 60.33 | V93: 91.95 | W93: 152.4 | X93: 63.5 | Y93: - | AA93: ='Lapjoint fl.'!$C$45 ->  | AB93: 2.83 | AE93: -
B94: LJ 300# ANSI B16.5 Size 2½" | C94: LJ | D94: 300# | E94: ANSI B16.5 | F94: 2½" | G94: 65 | H94: SS | I94: 190.5 | J94: 38.1 | K94: 25.4 | L94: 75.4 | M94: 100 | N94: 149.3 | O94: 22.3 | P94: 8 | Q94: M20 | R94: 16 | S94: 94.8 | T94: 4 | U94: 73.03 | V94: 104.65 | W94: 152.4 | X94: 63.5 | Y94: - | AA94: ='Lapjoint fl.'!$C$45 ->  | AB94: 4.25 | AE94: -
B95: LJ 300# ANSI B16.5 Size 3" | C95: LJ | D95: 300# | E95: ANSI B16.5 | F95: 3" | G95: 80 | H95: SS | I95: 209.5 | J95: 42.9 | K95: 28.4 | L95: 91.4 | M95: 117.3 | N95: 168.1 | O95: 22.3 | P95: 8 | Q95: M20 | R95: 16 | S95: 100.8 | T95: 4 | U95: 88.9 | V95: 127 | W95: 152.4 | X95: 63.5 | Y95: - | AA95: ='Lapjoint fl.'!$C$45 ->  | AB95: 5.78 | AE95: -
B96: LJ 300# ANSI B16.5 Size 3½" | C96: LJ | D96: 300# | E96: ANSI B16.5 | F96: 3½" | G96: - | H96: SS | I96: 228.6 | J96: 44.5 | K96: 30.2 | L96: 104.1 | M96: 133.3 | N96: 184.1 | O96: 22.3 | P96: 8 | Q96: M20 | R96: 16 | S96: 104.4 | T96: 4 | U96: 101.6 | V96: 139.7 | W96: 152.4 | X96: 76.2 | Y96: - | AA96: ='Lapjoint fl.'!$C$45 ->  | AB96: 7.27 | AE96: -
B97: LJ 300# ANSI B16.5 Size 4" | C97: LJ | D97: 300# | E97: ANSI B16.5 | F97: 4" | G97: 100 | H97: SS | I97: 254 | J97: 47.8 | K97: 31.8 | L97: 116.8 | M97: 146 | N97: 200.1 | O97: 22.3 | P97: 8 | Q97: M20 | R97: 16 | S97: 108.6 | T97: 5 | U97: 114.3 | V97: 157.2 | W97: 152.4 | X97: 76.2 | Y97: - | AA97: ='Lapjoint fl.'!$C$45 ->  | AB97: 9.55 | AE97: -
B98: LJ 300# ANSI B16.5 Size 5" | C98: LJ | D98: 300# | E98: ANSI B16.5 | F98: 5" | G98: 125 | H98: SS | I98: 279.4 | J98: 50.8 | K98: 35.1 | L98: 144.5 | M98: 177.8 | N98: 234.9 | O98: 22.3 | P98: 8 | Q98: M20 | R98: 16 | S98: 115.2 | T98: 5 | U98: 141.3 | V98: 185.7 | W98: 203.2 | X98: 76.2 | Y98: - | AA98: ='Lapjoint fl.'!$C$45 ->  | AB98: 12.2 | AE98: -
B99: LJ 300# ANSI B16.5 Size 6" | C99: LJ | D99: 300# | E99: ANSI B16.5 | F99: 6" | G99: 150 | H99: SS | I99: 317.5 | J99: 52.3 | K99: 36.6 | L99: 171.5 | M99: 206.2 | N99: 269.7 | O99: 22.3 | P99: 12 | Q99: M20 | R99: 16 | S99: 119.2 | T99: 6 | U99: 168.28 | V99: 215.9 | W99: 203.2 | X99: 88.9 | Y99: - | AA99: ='Lapjoint fl.'!$C$45 ->  | AB99: 15.5 | AE99: -
B100: LJ 300# ANSI B16.5 Size 8" | C100: LJ | D100: 300# | E100: ANSI B16.5 | F100: 8" | G100: 200 | H100: SS | I100: 381 | J100: 62 | K100: 41.1 | L100: 222.3 | M100: 260.3 | N100: 330.2 | O100: 25.4 | P100: 12 | Q100: M24 | R100: 19 | S100: 134.2 | T100: 6 | U100: 219.08 | V100: 269.7 | W100: 203.2 | X100: 101.6 | Y100: - | AA100: ='Lapjoint fl.'!$C$45 ->  | AB100: 24.1 | AE100: -
B101: LJ 300# ANSI B16.5 Size 10" | C101: LJ | D101: 300# | E101: ANSI B16.5 | F101: 10" | G101: 250 | H101: SS | I101: 444.5 | J101: 95.3 | K101: 47.8 | L101: 277.4 | M101: 320.5 | N101: 387.3 | O101: 28.4 | P101: 16 | Q101: M27 | R101: 22 | S101: 153.6 | T101: 6 | U101: 273.05 | V101: 323.9 | W101: 254 | X101: 127 | Y101: - | AA101: ='Lapjoint fl.'!$C$45 ->  | AB101: 34.4 | AE101: -
B102: LJ 300# ANSI B16.5 Size 12" | C102: LJ | D102: 300# | E102: ANSI B16.5 | F102: 12" | G102: 300 | H102: SS | I102: 520.7 | J102: 101.6 | K102: 50.8 | L102: 328.2 | M102: 374.6 | N102: 450.8 | O102: 31.7 | P102: 16 | Q102: M30 | R102: 24 | S102: 163.6 | T102: 6 | U102: 323.85 | V102: 381 | W102: 254 | X102: 152.4 | Y102: - | AA102: ='Lapjoint fl.'!$C$45 ->  | AB102: 50.4 | AE102: -
B103: LJ 300# ANSI B16.5 Size 14" | C103: LJ | D103: 300# | E103: ANSI B16.5 | F103: 14" | G103: 350 | H103: SS | I103: 584.2 | J103: 111.3 | K103: 53.8 | L103: 360.2 | M103: 425.4 | N103: 514.3 | O103: 31.7 | P103: 20 | Q103: M30 | R103: 24 | S103: 170.6 | T103: 7 | U103: 355.6 | V103: 412.8 | W103: 304.8 | X103: 152.4 | Y103: - | AA103: ='Lapjoint fl.'!$C$45 ->  | AB103: 70.9 | AE103: -
B104: LJ 300# ANSI B16.5 Size 16" | C104: LJ | D104: 300# | E104: ANSI B16.5 | F104: 16" | G104: 400 | H104: SS | I104: 647.7 | J104: 120.7 | K104: 57.2 | L104: 411.2 | M104: 482.6 | N104: 571.5 | O104: 35.1 | P104: 20 | Q104: M33 | R104: 26 | S104: 181.4 | T104: 7 | U104: 406.4 | V104: 469.9 | W104: 304.8 | X104: 152.4 | Y104: - | AA104: ='Lapjoint fl.'!$C$45 ->  | AB104: 89.5 | AE104: -
B105: LJ 300# ANSI B16.5 Size 18" | C105: LJ | D105: 300# | E105: ANSI B16.5 | F105: 18" | G105: 450 | H105: SS | I105: 711.2 | J105: 130 | K105: 60.5 | L105: 462.3 | M105: 533.4 | N105: 628.6 | O105: 35.1 | P105: 24 | Q105: M33 | R105: 26 | S105: 188 | T105: 7 | U105: 457.2 | V105: 533.4 | W105: 304.8 | X105: 152.4 | Y105: - | AA105: ='Lapjoint fl.'!$C$45 ->  | AB105: 111 | AE105: -
B106: LJ 300# ANSI B16.5 Size 20" | C106: LJ | D106: 300# | E106: ANSI B16.5 | F106: 20" | G106: 500 | H106: SS | I106: 774.7 | J106: 139.7 | K106: 63.5 | L106: 514.4 | M106: 587.2 | N106: 685.8 | O106: 35.1 | P106: 24 | Q106: M33 | R106: 26 | S106: 194 | T106: 7 | U106: 508 | V106: 584.2 | W106: 304.8 | X106: 152.4 | Y106: - | AA106: ='Lapjoint fl.'!$C$45 ->  | AB106: 137 | AE106: -
B107: LJ 300# ANSI B16.5 Size 24" | C107: LJ | D107: 300# | E107: ANSI B16.5 | F107: 24" | G107: 600 | H107: SS | I107: 914.4 | J107: 152.4 | K107: 69.9 | L107: 616 | M107: 701.5 | N107: 812.8 | O107: 41.1 | P107: 24 | Q107: M36 | R107: 29 | S107: 212.8 | T107: 7 | U107: 609.6 | V107: 692.2 | W107: 304.8 | X107: 152.4 | Y107: - | AA107: ='Lapjoint fl.'!$C$45 ->  | AB107: 204 | AE107: -
B108: LJ 400# ANSI B16.5 Size 1/2" | C108: LJ | D108: 400# | E108: ANSI B16.5 | F108: 1/2" | G108: 15 | H108: SS | I108: 95.3 | J108: 22.4 | K108: 14.2 | L108: 22.9 | M108: 38.1 | N108: 66.5 | O108: 15.7 | P108: 4 | Q108: M12 | R108: 10 | S108: 59.4 | T108: 3 | U108: 21.34 | V108: 35.05 | W108: 76.2 | X108: 50.8 | Y108: - | AA108: ='Lapjoint fl.'!$C$45 ->  | AB108: 0.72 | AE108: -
B109: LJ 400# ANSI B16.5 Size 3/4" | C109: LJ | D109: 400# | E109: ANSI B16.5 | F109: 3/4" | G109: 20 | H109: SS | I109: 117.3 | J109: 25.4 | K109: 15.7 | L109: 28.2 | M109: 47.8 | N109: 82.6 | O109: 19.1 | P109: 4 | Q109: M16 | R109: 13 | S109: 68.4 | T109: 3 | U109: 26.67 | V109: 42.9 | W109: 76.2 | X109: 50.8 | Y109: - | AA109: ='Lapjoint fl.'!$C$45 ->  | AB109: 1.25 | AE109: -
B110: LJ 400# ANSI B16.5 Size 1" | C110: LJ | D110: 400# | E110: ANSI B16.5 | F110: 1" | G110: 25 | H110: SS | I110: 124 | J110: 26.9 | K110: 17.5 | L110: 35.1 | M110: 53.8 | N110: 88.9 | O110: 19.1 | P110: 4 | Q110: M16 | R110: 13 | S110: 72 | T110: 3 | U110: 33.4 | V110: 50.8 | W110: 101.6 | X110: 50.8 | Y110: - | AA110: ='Lapjoint fl.'!$C$45 ->  | AB110: 1.5 | AE110: -
B111: LJ 400# ANSI B16.5 Size 1¼" | C111: LJ | D111: 400# | E111: ANSI B16.5 | F111: 1¼" | G111: 32 | H111: SS | I111: 133.4 | J111: 28.4 | K111: 20.6 | L111: 43.7 | M111: 63.5 | N111: 98.6 | O111: 19.1 | P111: 4 | Q111: M16 | R111: 13 | S111: 78.2 | T111: 3 | U111: 42.16 | V111: 63.5 | W111: 101.6 | X111: 50.8 | Y111: - | AA111: ='Lapjoint fl.'!$C$45 ->  | AB111: 2 | AE111: -
B112: LJ 400# ANSI B16.5 Size 1½" | C112: LJ | D112: 400# | E112: ANSI B16.5 | F112: 1½" | G112: 40 | H112: SS | I112: 155.4 | J112: 31.8 | K112: 22.4 | L112: 50 | M112: 69.9 | N112: 114.3 | O112: 22.4 | P112: 4 | Q112: M20 | R112: 16 | S112: 87.8 | T112: 3 | U112: 48.26 | V112: 73.15 | W112: 101.6 | X112: 50.8 | Y112: - | AA112: ='Lapjoint fl.'!$C$45 ->  | AB112: 2.92 | AE112: -
B113: LJ 400# ANSI B16.5 Size 2" | C113: LJ | D113: 400# | E113: ANSI B16.5 | F113: 2" | G113: 50 | H113: SS | I113: 165.1 | J113: 36.6 | K113: 25.4 | L113: 62.5 | M113: 84.1 | N113: 127 | O113: 19.1 | P113: 8 | Q113: M16 | R113: 13 | S113: 88.8 | T113: 4 | U113: 60.33 | V113: 91.95 | W113: 152.4 | X113: 63.5 | Y113: - | AA113: ='Lapjoint fl.'!$C$45 ->  | AB113: 3.55 | AE113: -
B114: LJ 400# ANSI B16.5 Size 2½" | C114: LJ | D114: 400# | E114: ANSI B16.5 | F114: 2½" | G114: 65 | H114: SS | I114: 190.5 | J114: 41.1 | K114: 28.4 | L114: 75.4 | M114: 100.1 | N114: 149.4 | O114: 22.4 | P114: 8 | Q114: M20 | R114: 16 | S114: 100.8 | T114: 4 | U114: 73.03 | V114: 104.65 | W114: 152.4 | X114: 63.5 | Y114: - | AA114: ='Lapjoint fl.'!$C$45 ->  | AB114: 5.23 | AE114: -
B115: LJ 400# ANSI B16.5 Size 3" | C115: LJ | D115: 400# | E115: ANSI B16.5 | F115: 3" | G115: 80 | H115: SS | I115: 209.6 | J115: 46 | K115: 31.6 | L115: 91.4 | M115: 117.3 | N115: 168.1 | O115: 22.4 | P115: 8 | Q115: M20 | R115: 16 | S115: 107.2 | T115: 4 | U115: 88.9 | V115: 127 | W115: 152.4 | X115: 63.5 | Y115: - | AA115: ='Lapjoint fl.'!$C$45 ->  | AB115: 6.95 | AE115: -
B116: LJ 400# ANSI B16.5 Size 3½" | C116: LJ | D116: 400# | E116: ANSI B16.5 | F116: 3½" | G116: - | H116: SS | I116: 228.6 | J116: 49.3 | K116: 35.1 | L116: 104.1 | M116: 133.4 | N116: 184.2 | O116: 25.4 | P116: 8 | Q116: M24 | R116: 19 | S116: 120.2 | T116: 4 | U116: 101.6 | V116: 139.7 | W116: 152.4 | X116: 76.2 | Y116: - | AA116: ='Lapjoint fl.'!$C$45 ->  | AB116: 8.78 | AE116: -
B117: LJ 400# ANSI B16.5 Size 4" | C117: LJ | D117: 400# | E117: ANSI B16.5 | F117: 4" | G117: 100 | H117: SS | I117: 254 | J117: 50.8 | K117: 35.1 | L117: 116.8 | M117: 146.1 | N117: 200.2 | O117: 25.4 | P117: 8 | Q117: M24 | R117: 19 | S117: 121.2 | T117: 5 | U117: 114.3 | V117: 157.2 | W117: 152.4 | X117: 76.2 | Y117: - | AA117: ='Lapjoint fl.'!$C$45 ->  | AB117: 10.9 | AE117: -
B118: LJ 400# ANSI B16.5 Size 5" | C118: LJ | D118: 400# | E118: ANSI B16.5 | F118: 5" | G118: 125 | H118: SS | I118: 279.4 | J118: 53.8 | K118: 38.1 | L118: 144.5 | M118: 177.8 | N118: 235 | O118: 25.4 | P118: 8 | Q118: M24 | R118: 19 | S118: 127.2 | T118: 5 | U118: 141.3 | V118: 185.7 | W118: 203.2 | X118: 76.2 | Y118: - | AA118: ='Lapjoint fl.'!$C$45 ->  | AB118: 13.7 | AE118: -
B119: LJ 400# ANSI B16.5 Size 6" | C119: LJ | D119: 400# | E119: ANSI B16.5 | F119: 6" | G119: 150 | H119: SS | I119: 317.5 | J119: 57.2 | K119: 41.1 | L119: 171.5 | M119: 206.2 | N119: 269.7 | O119: 25.4 | P119: 12 | Q119: M24 | R119: 19 | S119: 134.2 | T119: 6 | U119: 168.28 | V119: 215.9 | W119: 203.2 | X119: 88.9 | Y119: - | AA119: ='Lapjoint fl.'!$C$45 ->  | AB119: 18 | AE119: -
B120: LJ 400# ANSI B16.5 Size 8" | C120: LJ | D120: 400# | E120: ANSI B16.5 | F120: 8" | G120: 200 | H120: SS | I120: 381 | J120: 68.3 | K120: 47.8 | L120: 222.3 | M120: 260.4 | N120: 330.2 | O120: 28.4 | P120: 12 | Q120: M27 | R120: 22 | S120: 153.6 | T120: 6 | U120: 219.08 | V120: 269.7 | W120: 203.2 | X120: 101.6 | Y120: - | AA120: ='Lapjoint fl.'!$C$45 ->  | AB120: 28.3 | AE120: -
B121: LJ 400# ANSI B16.5 Size 10" | C121: LJ | D121: 400# | E121: ANSI B16.5 | F121: 10" | G121: 250 | H121: SS | I121: 444.5 | J121: 101.6 | K121: 53.8 | L121: 277.4 | M121: 320.5 | N121: 387.4 | O121: 31.8 | P121: 16 | Q121: M30 | R121: 24 | S121: 169.6 | T121: 6 | U121: 273.05 | V121: 323.9 | W121: 254 | X121: 127 | Y121: - | AA121: ='Lapjoint fl.'!$C$45 ->  | AB121: 38.8 | AE121: -
B122: LJ 400# ANSI B16.5 Size 12" | C122: LJ | D122: 400# | E122: ANSI B16.5 | F122: 12" | G122: 300 | H122: SS | I122: 520.7 | J122: 108 | K122: 57.2 | L122: 328.2 | M122: 374.7 | N122: 450.9 | O122: 35.1 | P122: 16 | Q122: M33 | R122: 26 | S122: 180.4 | T122: 6 | U122: 323.85 | V122: 381 | W122: 254 | X122: 152.4 | Y122: - | AA122: ='Lapjoint fl.'!$C$45 ->  | AB122: 56.6 | AE122: -
B123: LJ 400# ANSI B16.5 Size 14" | C123: LJ | D123: 400# | E123: ANSI B16.5 | F123: 14" | G123: 350 | H123: SS | I123: 584.2 | J123: 117.3 | K123: 60.5 | L123: 360.2 | M123: 425.5 | N123: 514.4 | O123: 35.1 | P123: 20 | Q123: M33 | R123: 26 | S123: 188 | T123: 7 | U123: 355.6 | V123: 412.8 | W123: 304.8 | X123: 152.4 | Y123: - | AA123: ='Lapjoint fl.'!$C$45 ->  | AB123: 78.6 | AE123: -
B124: LJ 400# ANSI B16.5 Size 16" | C124: LJ | D124: 400# | E124: ANSI B16.5 | F124: 16" | G124: 400 | H124: SS | I124: 647.7 | J124: 127 | K124: 63.5 | L124: 411.2 | M124: 482.6 | N124: 571.5 | O124: 38.1 | P124: 20 | Q124: M36 | R124: 29 | S124: 200 | T124: 7 | U124: 406.4 | V124: 469.9 | W124: 304.8 | X124: 152.4 | Y124: - | AA124: ='Lapjoint fl.'!$C$45 ->  | AB124: 100 | AE124: -
B125: LJ 400# ANSI B16.5 Size 18" | C125: LJ | D125: 400# | E125: ANSI B16.5 | F125: 18" | G125: 450 | H125: SS | I125: 711.2 | J125: 136.7 | K125: 66.5 | L125: 462.3 | M125: 533.4 | N125: 628.7 | O125: 38.1 | P125: 24 | Q125: M36 | R125: 29 | S125: 206 | T125: 7 | U125: 457.2 | V125: 533.4 | W125: 304.8 | X125: 152.4 | Y125: - | AA125: ='Lapjoint fl.'!$C$45 ->  | AB125: 122 | AE125: -
B126: LJ 400# ANSI B16.5 Size 20" | C126: LJ | D126: 400# | E126: ANSI B16.5 | F126: 20" | G126: 500 | H126: SS | I126: 774.7 | J126: 146.1 | K126: 69.9 | L126: 514.4 | M126: 587.2 | N126: 685.8 | O126: 41.1 | P126: 24 | Q126: M39 | R126: 31 | S126: 216.8 | T126: 7 | U126: 508 | V126: 584.2 | W126: 304.8 | X126: 152.4 | Y126: - | AA126: ='Lapjoint fl.'!$C$45 ->  | AB126: 145 | AE126: -
B127: LJ 400# ANSI B16.5 Size 24" | C127: LJ | D127: 400# | E127: ANSI B16.5 | F127: 24" | G127: 600 | H127: SS | I127: 914.4 | J127: 158.8 | K127: 76.2 | L127: 616 | M127: 701.5 | N127: 812.8 | O127: 47.8 | P127: 24 | Q127: M45 | R127: 36 | S127: 239.4 | T127: 7 | U127: 609.6 | V127: 692.2 | W127: 304.8 | X127: 152.4 | Y127: - | AA127: ='Lapjoint fl.'!$C$45 ->  | AB127: 217 | AE127: -
B128: LJ 600# ANSI B16.5 Size 1/2" | C128: LJ | D128: 600# | E128: ANSI B16.5 | F128: 1/2" | G128: 15 | H128: SS | I128: 95.3 | J128: 22.4 | K128: 14.2 | L128: 22.9 | M128: 38.1 | N128: 66.5 | O128: 15.7 | P128: 4 | Q128: M12 | R128: 10 | S128: 59.4 | T128: 3 | U128: 21.34 | V128: 35.05 | W128: 76.2 | X128: 50.8 | Y128: - | AA128: ='Lapjoint fl.'!$C$45 ->  | AB128: 0.72 | AE128: -
B129: LJ 600# ANSI B16.5 Size 3/4" | C129: LJ | D129: 600# | E129: ANSI B16.5 | F129: 3/4" | G129: 20 | H129: SS | I129: 117.3 | J129: 25.4 | K129: 15.7 | L129: 28.2 | M129: 47.8 | N129: 82.6 | O129: 19.1 | P129: 4 | Q129: M16 | R129: 13 | S129: 68.4 | T129: 3 | U129: 26.67 | V129: 42.9 | W129: 76.2 | X129: 50.8 | Y129: - | AA129: ='Lapjoint fl.'!$C$45 ->  | AB129: 1.25 | AE129: -
B130: LJ 600# ANSI B16.5 Size 1" | C130: LJ | D130: 600# | E130: ANSI B16.5 | F130: 1" | G130: 25 | H130: SS | I130: 124 | J130: 26.9 | K130: 17.5 | L130: 35.1 | M130: 53.8 | N130: 88.9 | O130: 19.1 | P130: 4 | Q130: M16 | R130: 13 | S130: 72 | T130: 3 | U130: 33.4 | V130: 50.8 | W130: 101.6 | X130: 50.8 | Y130: - | AA130: ='Lapjoint fl.'!$C$45 ->  | AB130: 1.5 | AE130: -
B131: LJ 600# ANSI B16.5 Size 1¼" | C131: LJ | D131: 600# | E131: ANSI B16.5 | F131: 1¼" | G131: 32 | H131: SS | I131: 133.4 | J131: 28.4 | K131: 20.6 | L131: 43.7 | M131: 63.5 | N131: 98.6 | O131: 19.1 | P131: 4 | Q131: M16 | R131: 13 | S131: 78.2 | T131: 3 | U131: 42.16 | V131: 63.5 | W131: 101.6 | X131: 50.8 | Y131: - | AA131: ='Lapjoint fl.'!$C$45 ->  | AB131: 2 | AE131: -
B132: LJ 600# ANSI B16.5 Size 1½" | C132: LJ | D132: 600# | E132: ANSI B16.5 | F132: 1½" | G132: 40 | H132: SS | I132: 155.4 | J132: 31.8 | K132: 22.4 | L132: 50 | M132: 69.9 | N132: 114.3 | O132: 22.3 | P132: 4 | Q132: M20 | R132: 16 | S132: 87.8 | T132: 3 | U132: 48.26 | V132: 73.15 | W132: 101.6 | X132: 50.8 | Y132: - | AA132: ='Lapjoint fl.'!$C$45 ->  | AB132: 2.92 | AE132: -
B133: LJ 600# ANSI B16.5 Size 2" | C133: LJ | D133: 600# | E133: ANSI B16.5 | F133: 2" | G133: 50 | H133: SS | I133: 165.1 | J133: 36.6 | K133: 25.4 | L133: 62.5 | M133: 84.1 | N133: 127 | O133: 19.1 | P133: 8 | Q133: M16 | R133: 13 | S133: 88.8 | T133: 4 | U133: 60.33 | V133: 91.95 | W133: 152.4 | X133: 63.5 | Y133: - | AA133: ='Lapjoint fl.'!$C$45 ->  | AB133: 3.55 | AE133: -
B134: LJ 600# ANSI B16.5 Size 2½" | C134: LJ | D134: 600# | E134: ANSI B16.5 | F134: 2½" | G134: 65 | H134: SS | I134: 190.5 | J134: 41.1 | K134: 28.4 | L134: 75.4 | M134: 100.1 | N134: 149.4 | O134: 22.4 | P134: 8 | Q134: M20 | R134: 16 | S134: 100.8 | T134: 4 | U134: 73.03 | V134: 104.65 | W134: 152.4 | X134: 63.5 | Y134: - | AA134: ='Lapjoint fl.'!$C$45 ->  | AB134: 5.23 | AE134: -
B135: LJ 600# ANSI B16.5 Size 3" | C135: LJ | D135: 600# | E135: ANSI B16.5 | F135: 3" | G135: 80 | H135: SS | I135: 209.6 | J135: 46 | K135: 31.8 | L135: 91.4 | M135: 117.3 | N135: 168.1 | O135: 22.4 | P135: 8 | Q135: M20 | R135: 16 | S135: 107.6 | T135: 4 | U135: 88.9 | V135: 127 | W135: 152.4 | X135: 63.5 | Y135: - | AA135: ='Lapjoint fl.'!$C$45 ->  | AB135: 6.95 | AE135: -
B136: LJ 600# ANSI B16.5 Size 3½" | C136: LJ | D136: 600# | E136: ANSI B16.5 | F136: 3½" | G136: - | H136: SS | I136: 228.6 | J136: 49.3 | K136: 35.1 | L136: 104.1 | M136: 133.4 | N136: 184.2 | O136: 25.4 | P136: 8 | Q136: M24 | R136: 19 | S136: 120.2 | T136: 4 | U136: 101.6 | V136: 139.7 | W136: 152.4 | X136: 76.2 | Y136: - | AA136: ='Lapjoint fl.'!$C$45 ->  | AB136: 8.78 | AE136: -
B137: LJ 600# ANSI B16.5 Size 4" | C137: LJ | D137: 600# | E137: ANSI B16.5 | F137: 4" | G137: 100 | H137: SS | I137: 273.1 | J137: 53.8 | K137: 38.1 | L137: 116.8 | M137: 152.4 | N137: 215.9 | O137: 25.4 | P137: 8 | Q137: M24 | R137: 19 | S137: 127.2 | T137: 5 | U137: 114.3 | V137: 157.2 | W137: 152.4 | X137: 76.2 | Y137: - | AA137: ='Lapjoint fl.'!$C$45 ->  | AB137: 14.4 | AE137: -
B138: LJ 600# ANSI B16.5 Size 5" | C138: LJ | D138: 600# | E138: ANSI B16.5 | F138: 5" | G138: 125 | H138: SS | I138: 330.2 | J138: 60.5 | K138: 44.5 | L138: 144.5 | M138: 189 | N138: 266.7 | O138: 28.4 | P138: 8 | Q138: M27 | R138: 22 | S138: 146 | T138: 5 | U138: 141.3 | V138: 185.7 | W138: 203.2 | X138: 76.2 | Y138: - | AA138: ='Lapjoint fl.'!$C$45 ->  | AB138: 24.3 | AE138: -
B139: LJ 600# ANSI B16.5 Size 6" | C139: LJ | D139: 600# | E139: ANSI B16.5 | F139: 6" | G139: 150 | H139: SS | I139: 355.6 | J139: 66.5 | K139: 47.8 | L139: 171.5 | M139: 222.3 | N139: 292.1 | O139: 28.4 | P139: 12 | Q139: M27 | R139: 22 | S139: 153.6 | T139: 6 | U139: 168.28 | V139: 215.9 | W139: 203.2 | X139: 88.9 | Y139: - | AA139: ='Lapjoint fl.'!$C$45 ->  | AB139: 28.5 | AE139: -
B140: LJ 600# ANSI B16.5 Size 8" | C140: LJ | D140: 600# | E140: ANSI B16.5 | F140: 8" | G140: 200 | H140: SS | I140: 419.1 | J140: 76.2 | K140: 55.6 | L140: 222.3 | M140: 273.1 | N140: 349.3 | O140: 31.8 | P140: 12 | Q140: M30 | R140: 24 | S140: 173.2 | T140: 6 | U140: 219.08 | V140: 269.7 | W140: 203.2 | X140: 101.6 | Y140: - | AA140: ='Lapjoint fl.'!$C$45 ->  | AB140: 43.1 | AE140: -
B141: LJ 600# ANSI B16.5 Size 10" | C141: LJ | D141: 600# | E141: ANSI B16.5 | F141: 10" | G141: 250 | H141: SS | I141: 508 | J141: 111.3 | K141: 63.5 | L141: 277.4 | M141: 342.9 | N141: 431.8 | O141: 35.1 | P141: 16 | Q141: M33 | R141: 26 | S141: 193 | T141: 6 | U141: 273.05 | V141: 323.9 | W141: 254 | X141: 127 | Y141: - | AA141: ='Lapjoint fl.'!$C$45 ->  | AB141: 70.5 | AE141: -
B142: LJ 600# ANSI B16.5 Size 12" | C142: LJ | D142: 600# | E142: ANSI B16.5 | F142: 12" | G142: 300 | H142: SS | I142: 558.8 | J142: 117.3 | K142: 66.5 | L142: 328.2 | M142: 400.1 | N142: 489 | O142: 35.1 | P142: 20 | Q142: M33 | R142: 26 | S142: 199 | T142: 6 | U142: 323.85 | V142: 381 | W142: 254 | X142: 152.4 | Y142: - | AA142: ='Lapjoint fl.'!$C$45 ->  | AB142: 86.1 | AE142: -
B143: LJ 600# ANSI B16.5 Size 14" | C143: LJ | D143: 600# | E143: ANSI B16.5 | F143: 14" | G143: 350 | H143: SS | I143: 603.3 | J143: 127 | K143: 69.9 | L143: 360.2 | M143: 431.8 | N143: 527.1 | O143: 38.1 | P143: 20 | Q143: M36 | R143: 29 | S143: 212.8 | T143: 7 | U143: 355.6 | V143: 412.8 | W143: 304.8 | X143: 152.4 | Y143: - | AA143: ='Lapjoint fl.'!$C$45 ->  | AB143: 100 | AE143: -
B144: LJ 600# ANSI B16.5 Size 16" | C144: LJ | D144: 600# | E144: ANSI B16.5 | F144: 16" | G144: 400 | H144: SS | I144: 685.8 | J144: 139.7 | K144: 76.2 | L144: 411.2 | M144: 495.3 | N144: 603.3 | O144: 41.1 | P144: 20 | Q144: M39 | R144: 31 | S144: 229.4 | T144: 7 | U144: 406.4 | V144: 469.9 | W144: 304.8 | X144: 152.4 | Y144: - | AA144: ='Lapjoint fl.'!$C$45 ->  | AB144: 145 | AE144: -
B145: LJ 600# ANSI B16.5 Size 18" | C145: LJ | D145: 600# | E145: ANSI B16.5 | F145: 18" | G145: 450 | H145: SS | I145: 743 | J145: 152.4 | K145: 82.6 | L145: 462.3 | M145: 546.1 | N145: 654.1 | O145: 44.5 | P145: 20 | Q145: M42 | R145: 34 | S145: 248.2 | T145: 7 | U145: 457.2 | V145: 533.4 | W145: 304.8 | X145: 152.4 | Y145: - | AA145: ='Lapjoint fl.'!$C$45 ->  | AB145: 177 | AE145: -
B146: LJ 600# ANSI B16.5 Size 20" | C146: LJ | D146: 600# | E146: ANSI B16.5 | F146: 20" | G146: 500 | H146: SS | I146: 812.8 | J146: 165.1 | K146: 88.9 | L146: 514.4 | M146: 609.6 | N146: 723.9 | O146: 44.5 | P146: 24 | Q146: M42 | R146: 34 | S146: 260.8 | T146: 7 | U146: 508 | V146: 584.2 | W146: 304.8 | X146: 152.4 | Y146: - | AA146: ='Lapjoint fl.'!$C$45 ->  | AB146: 225 | AE146: -
B147: LJ 600# ANSI B16.5 Size 24" | C147: LJ | D147: 600# | E147: ANSI B16.5 | F147: 24" | G147: 600 | H147: SS | I147: 939.8 | J147: 184.2 | K147: 101.6 | L147: 616 | M147: 717.6 | N147: 838.2 | O147: 50.8 | P147: 24 | Q147: M48 | R147: 38 | S147: 294.2 | T147: 7 | U147: 609.6 | V147: 692.2 | W147: 304.8 | X147: 152.4 | Y147: - | AA147: ='Lapjoint fl.'!$C$45 ->  | AB147: 318 | AE147: -
B148: LJ 900# ANSI B16.5 Size 1/2" | C148: LJ | D148: 900# | E148: ANSI B16.5 | F148: 1/2" | G148: 15 | H148: SS | I148: 120.6 | J148: 31.8 | K148: 22.4 | L148: 22.9 | M148: 38.1 | N148: 82.5 | O148: 22.3 | P148: 4 | Q148: M20 | R148: 16 | S148: 87.8 | T148: 3 | U148: 21.34 | V148: 35.05 | W148: 76.2 | X148: 50.8 | Y148: - | AA148: ='Lapjoint fl.'!$C$45 ->  | AB148: 1.71 | AE148: -
B149: LJ 900# ANSI B16.5 Size 3/4" | C149: LJ | D149: 900# | E149: ANSI B16.5 | F149: 3/4" | G149: 20 | H149: SS | I149: 130 | J149: 35.1 | K149: 25.4 | L149: 28.2 | M149: 44.4 | N149: 88.9 | O149: 22.3 | P149: 4 | Q149: M20 | R149: 16 | S149: 93.8 | T149: 3 | U149: 26.67 | V149: 42.9 | W149: 76.2 | X149: 50.8 | Y149: - | AA149: ='Lapjoint fl.'!$C$45 ->  | AB149: 2.3 | AE149: -
B150: LJ 900# ANSI B16.5 Size 1" | C150: LJ | D150: 900# | E150: ANSI B16.5 | F150: 1" | G150: 25 | H150: SS | I150: 149.3 | J150: 41.1 | K150: 28.4 | L150: 35.1 | M150: 52.3 | N150: 101.6 | O150: 25.4 | P150: 4 | Q150: M24 | R150: 19 | S150: 105.8 | T150: 3 | U150: 33.4 | V150: 50.8 | W150: 101.6 | X150: 50.8 | Y150: - | AA150: ='Lapjoint fl.'!$C$45 ->  | AB150: 3.4 | AE150: -
B151: LJ 900# ANSI B16.5 Size 1¼" | C151: LJ | D151: 900# | E151: ANSI B16.5 | F151: 1¼" | G151: 32 | H151: SS | I151: 158.7 | J151: 41.1 | K151: 28.4 | L151: 43.7 | M151: 63.5 | N151: 111.2 | O151: 25.4 | P151: 4 | Q151: M24 | R151: 19 | S151: 105.8 | T151: 3 | U151: 42.16 | V151: 63.5 | W151: 101.6 | X151: 50.8 | Y151: - | AA151: ='Lapjoint fl.'!$C$45 ->  | AB151: 3.85 | AE151: -
B152: LJ 900# ANSI B16.5 Size 1½" | C152: LJ | D152: 900# | E152: ANSI B16.5 | F152: 1½" | G152: 40 | H152: SS | I152: 177.8 | J152: 44.5 | K152: 31.8 | L152: 50 | M152: 69.8 | N152: 123.9 | O152: 28.4 | P152: 4 | Q152: M27 | R152: 22 | S152: 118.6 | T152: 3 | U152: 48.26 | V152: 73.15 | W152: 101.6 | X152: 50.8 | Y152: - | AA152: ='Lapjoint fl.'!$C$45 ->  | AB152: 5.28 | AE152: -
B153: LJ 900# ANSI B16.5 Size 2" | C153: LJ | D153: 900# | E153: ANSI B16.5 | F153: 2" | G153: 50 | H153: SS | I153: 215.9 | J153: 57.2 | K153: 38.1 | L153: 62.5 | M153: 104.6 | N153: 165.1 | O153: 25.4 | P153: 8 | Q153: M24 | R153: 19 | S153: 126.2 | T153: 4 | U153: 60.33 | V153: 91.95 | W153: 152.4 | X153: 63.5 | Y153: - | AA153: ='Lapjoint fl.'!$C$45 ->  | AB153: 9.78 | AE153: -
B154: LJ 900# ANSI B16.5 Size 2½" | C154: LJ | D154: 900# | E154: ANSI B16.5 | F154: 2½" | G154: 65 | H154: SS | I154: 244.3 | J154: 63.5 | K154: 41.1 | L154: 75.4 | M154: 123.9 | N154: 190.5 | O154: 28.4 | P154: 8 | Q154: M27 | R154: 22 | S154: 138.2 | T154: 4 | U154: 73.03 | V154: 104.65 | W154: 152.4 | X154: 63.5 | Y154: - | AA154: ='Lapjoint fl.'!$C$45 ->  | AB154: 13.6 | AE154: -
B155: LJ 900# ANSI B16.5 Size 3" | C155: LJ | D155: 900# | E155: ANSI B16.5 | F155: 3" | G155: 80 | H155: SS | I155: 241.3 | J155: 53.8 | K155: 38.1 | L155: 91.4 | M155: 127 | N155: 190.5 | O155: 25.4 | P155: 8 | Q155: M20 | R155: 16 | S155: 120.2 | T155: 4 | U155: 88.9 | V155: 127 | W155: 152.4 | X155: 63.5 | Y155: - | AA155: ='Lapjoint fl.'!$C$45 ->  | AB155: 11.3 | AE155: -
B156: LJ 900# ANSI B16.5 Size 4" | C156: LJ | D156: 900# | E156: ANSI B16.5 | F156: 4" | G156: 100 | H156: SS | I156: 292.1 | J156: 69.9 | K156: 44.5 | L156: 116.8 | M156: 158.7 | N156: 234.9 | O156: 31.7 | P156: 8 | Q156: M27 | R156: 22 | S156: 146 | T156: 5 | U156: 114.3 | V156: 157.2 | W156: 152.4 | X156: 76.2 | Y156: - | AA156: ='Lapjoint fl.'!$C$45 ->  | AB156: 19.2 | AE156: -
B157: LJ 900# ANSI B16.5 Size 5" | C157: LJ | D157: 900# | E157: ANSI B16.5 | F157: 5" | G157: 125 | H157: SS | I157: 349.2 | J157: 79.2 | K157: 50.8 | L157: 144.5 | M157: 190.5 | N157: 279.4 | O157: 35 | P157: 8 | Q157: M33 | R157: 26 | S157: 166.6 | T157: 5 | U157: 141.3 | V157: 185.7 | W157: 203.2 | X157: 76.2 | Y157: - | AA157: ='Lapjoint fl.'!$C$45 ->  | AB157: 31.2 | AE157: -
B158: LJ 900# ANSI B16.5 Size 6" | C158: LJ | D158: 900# | E158: ANSI B16.5 | F158: 6" | G158: 150 | H158: SS | I158: 381 | J158: 85.9 | K158: 55.6 | L158: 171.5 | M158: 234.9 | N158: 317.5 | O158: 31.7 | P158: 12 | Q158: M27 | R158: 22 | S158: 169.2 | T158: 6 | U158: 168.28 | V158: 215.9 | W158: 203.2 | X158: 88.9 | Y158: - | AA158: ='Lapjoint fl.'!$C$45 ->  | AB158: 40.5 | AE158: -
B159: LJ 900# ANSI B16.5 Size 8" | C159: LJ | D159: 900# | E159: ANSI B16.5 | F159: 8" | G159: 200 | H159: SS | I159: 469.9 | J159: 114.3 | K159: 63.5 | L159: 222.3 | M159: 298.4 | N159: 393.7 | O159: 38.1 | P159: 12 | Q159: M36 | R159: 29 | S159: 199 | T159: 6 | U159: 219.08 | V159: 269.7 | W159: 203.2 | X159: 101.6 | Y159: - | AA159: ='Lapjoint fl.'!$C$45 ->  | AB159: 71.5 | AE159: -
B160: LJ 900# ANSI B16.5 Size 10" | C160: LJ | D160: 900# | E160: ANSI B16.5 | F160: 10" | G160: 250 | H160: SS | I160: 546.1 | J160: 127 | K160: 69.9 | L160: 277.4 | M160: 368.3 | N160: 169.9 | O160: 38.1 | P160: 16 | Q160: M36 | R160: 29 | S160: 211.8 | T160: 6 | U160: 273.05 | V160: 323.9 | W160: 254 | X160: 127 | Y160: - | AA160: ='Lapjoint fl.'!$C$45 ->  | AB160: 104 | AE160: -
B161: LJ 900# ANSI B16.5 Size 12" | C161: LJ | D161: 900# | E161: ANSI B16.5 | F161: 12" | G161: 300 | H161: SS | I161: 609.6 | J161: 142.7 | K161: 79.2 | L161: 328.2 | M161: 419.1 | N161: 533.4 | O161: 38.1 | P161: 20 | Q161: M36 | R161: 29 | S161: 230.4 | T161: 6 | U161: 323.85 | V161: 381 | W161: 254 | X161: 152.4 | Y161: - | AA161: ='Lapjoint fl.'!$C$45 ->  | AB161: 139 | AE161: -
B162: LJ 900# ANSI B16.5 Size 14" | C162: LJ | D162: 900# | E162: ANSI B16.5 | F162: 14" | G162: 350 | H162: SS | I162: 641.3 | J162: 155.4 | K162: 85.9 | L162: 360.2 | M162: 450.8 | N162: 558.8 | O162: 41.1 | P162: 20 | Q162: M39 | R162: 29 | S162: 244.8 | T162: 7 | U162: 355.6 | V162: 412.8 | W162: 304.8 | X162: 152.4 | Y162: - | AA162: ='Lapjoint fl.'!$C$45 ->  | AB162: 161 | AE162: -
B163: LJ 900# ANSI B16.5 Size 16" | C163: LJ | D163: 900# | E163: ANSI B16.5 | F163: 16" | G163: 400 | H163: SS | I163: 704.8 | J163: 165.1 | K163: 88.9 | L163: 411.2 | M163: 508 | N163: 615.9 | O163: 44.4 | P163: 20 | Q163: M42 | R163: 34 | S163: 260.8 | T163: 7 | U163: 406.4 | V163: 469.9 | W163: 304.8 | X163: 152.4 | Y163: - | AA163: ='Lapjoint fl.'!$C$45 ->  | AB163: 194 | AE163: -
B164: LJ 900# ANSI B16.5 Size 18" | C164: LJ | D164: 900# | E164: ANSI B16.5 | F164: 18" | G164: 450 | H164: SS | I164: 787.4 | J164: 190.5 | K164: 101.6 | L164: 462.3 | M164: 565.1 | N164: 685.8 | O164: 50.8 | P164: 20 | Q164: M48 | R164: 38 | S164: 294.2 | T164: 7 | U164: 457.2 | V164: 533.4 | W164: 304.8 | X164: 152.4 | Y164: - | AA164: ='Lapjoint fl.'!$C$45 ->  | AB164: 267 | AE164: -
B165: LJ 900# ANSI B16.5 Size 20" | C165: LJ | D165: 900# | E165: ANSI B16.5 | F165: 20" | G165: 500 | H165: SS | I165: 857.2 | J165: 209.6 | K165: 108 | L165: 514.4 | M165: 622.3 | N165: 749.3 | O165: 53.8 | P165: 20 | Q165: M52 | R165: 42 | S165: 315 | T165: 7 | U165: 508 | V165: 584.2 | W165: 304.8 | X165: 152.4 | Y165: - | AA165: ='Lapjoint fl.'!$C$45 ->  | AB165: 334 | AE165: -
B166: LJ 900# ANSI B16.5 Size 24" | C166: LJ | D166: 900# | E166: ANSI B16.5 | F166: 24" | G166: 600 | H166: SS | I166: 1041.4 | J166: 266.7 | K166: 139.7 | L166: 616 | M166: 749.3 | N166: 901.7 | O166: 66.5 | P166: 20 | Q166: M64 | R166: 51 | S166: 396.4 | T166: 7 | U166: 609.6 | V166: 692.2 | W166: 304.8 | X166: 152.4 | Y166: - | AA166: ='Lapjoint fl.'!$C$45 ->  | AB166: 618 | AE166: -
B167: LJ 1500# ANSI B16.5 Size 1/2" | C167: LJ | D167: 1500# | E167: ANSI B16.5 | F167: 1/2" | G167: 15 | H167: SS | I167: 120.6 | J167: 31.8 | K167: 22.4 | L167: 22.9 | M167: 38.1 | N167: 82.5 | O167: 22.3 | P167: 4 | Q167: M20 | R167: 16 | S167: 87.8 | T167: 3 | U167: 21.34 | V167: 35.05 | W167: 76.2 | X167: 50.8 | Y167: - | AA167: ='Lapjoint fl.'!$C$45 ->  | AB167: 1.71 | AE167: -
B168: LJ 1500# ANSI B16.5 Size 3/4" | C168: LJ | D168: 1500# | E168: ANSI B16.5 | F168: 3/4" | G168: 20 | H168: SS | I168: 130 | J168: 35.1 | K168: 25.4 | L168: 28.2 | M168: 44.4 | N168: 88.9 | O168: 22.3 | P168: 4 | Q168: M20 | R168: 16 | S168: 93.8 | T168: 3 | U168: 26.67 | V168: 42.9 | W168: 76.2 | X168: 50.8 | Y168: - | AA168: ='Lapjoint fl.'!$C$45 ->  | AB168: 2.3 | AE168: -
B169: LJ 1500# ANSI B16.5 Size 1" | C169: LJ | D169: 1500# | E169: ANSI B16.5 | F169: 1" | G169: 25 | H169: SS | I169: 149.3 | J169: 41.1 | K169: 28.4 | L169: 35.1 | M169: 52.3 | N169: 101.6 | O169: 25.4 | P169: 4 | Q169: M24 | R169: 19 | S169: 105.8 | T169: 3 | U169: 33.4 | V169: 50.8 | W169: 101.6 | X169: 50.8 | Y169: - | AA169: ='Lapjoint fl.'!$C$45 ->  | AB169: 3.4 | AE169: -
B170: LJ 1500# ANSI B16.5 Size 1¼" | C170: LJ | D170: 1500# | E170: ANSI B16.5 | F170: 1¼" | G170: 32 | H170: SS | I170: 158.7 | J170: 41.1 | K170: 28.4 | L170: 43.7 | M170: 63.5 | N170: 111.2 | O170: 25.4 | P170: 4 | Q170: M24 | R170: 19 | S170: 105.8 | T170: 3 | U170: 42.16 | V170: 63.5 | W170: 101.6 | X170: 50.8 | Y170: - | AA170: ='Lapjoint fl.'!$C$45 ->  | AB170: 3.85 | AE170: -
B171: LJ 1500# ANSI B16.5 Size 1½" | C171: LJ | D171: 1500# | E171: ANSI B16.5 | F171: 1½" | G171: 40 | H171: SS | I171: 177.8 | J171: 44.5 | K171: 31.8 | L171: 50 | M171: 69.8 | N171: 123.9 | O171: 28.4 | P171: 4 | Q171: M27 | R171: 22 | S171: 118.6 | T171: 3 | U171: 48.26 | V171: 73.15 | W171: 101.6 | X171: 50.8 | Y171: - | AA171: ='Lapjoint fl.'!$C$45 ->  | AB171: 5.28 | AE171: -
B172: LJ 1500# ANSI B16.5 Size 2" | C172: LJ | D172: 1500# | E172: ANSI B16.5 | F172: 2" | G172: 50 | H172: SS | I172: 215.9 | J172: 57.2 | K172: 38.1 | L172: 62.5 | M172: 104.6 | N172: 165.1 | O172: 25.4 | P172: 8 | Q172: M24 | R172: 19 | S172: 126.2 | T172: 4 | U172: 60.33 | V172: 91.95 | W172: 152.4 | X172: 63.5 | Y172: - | AA172: ='Lapjoint fl.'!$C$45 ->  | AB172: 9.78 | AE172: -
B173: LJ 1500# ANSI B16.5 Size 2½" | C173: LJ | D173: 1500# | E173: ANSI B16.5 | F173: 2½" | G173: 65 | H173: SS | I173: 244.3 | J173: 63.5 | K173: 41.1 | L173: 75.4 | M173: 123.9 | N173: 190.5 | O173: 28.4 | P173: 8 | Q173: M27 | R173: 22 | S173: 138.2 | T173: 4 | U173: 73.03 | V173: 104.65 | W173: 152.4 | X173: 63.5 | Y173: - | AA173: ='Lapjoint fl.'!$C$45 ->  | AB173: 13.6 | AE173: -
B174: LJ 1500# ANSI B16.5 Size 3" | C174: LJ | D174: 1500# | E174: ANSI B16.5 | F174: 3" | G174: 80 | H174: SS | I174: 266.7 | J174: 73.2 | K174: 47.8 | L174: 91.4 | M174: 133.3 | N174: 203.2 | O174: 31.7 | P174: 8 | Q174: M30 | R174: 24 | S174: 155.6 | T174: 4 | U174: 88.9 | V174: 127 | W174: 152.4 | X174: 63.5 | Y174: - | AA174: ='Lapjoint fl.'!$C$45 ->  | AB174: 17.8 | AE174: -
B175: LJ 1500# ANSI B16.5 Size 4" | C175: LJ | D175: 1500# | E175: ANSI B16.5 | F175: 4" | G175: 100 | H175: SS | I175: 311.1 | J175: 90.4 | K175: 53.8 | L175: 116.8 | M175: 162 | N175: 241.3 | O175: 35 | P175: 8 | Q175: M33 | R175: 26 | S175: 172.6 | T175: 5 | U175: 114.3 | V175: 157.2 | W175: 152.4 | X175: 76.2 | Y175: - | AA175: ='Lapjoint fl.'!$C$45 ->  | AB175: 27.5 | AE175: -
B176: LJ 1500# ANSI B16.5 Size 5" | C176: LJ | D176: 1500# | E176: ANSI B16.5 | F176: 5" | G176: 125 | H176: SS | I176: 374.6 | J176: 104.6 | K176: 73.2 | L176: 144.5 | M176: 196.8 | N176: 292.1 | O176: 41.1 | P176: 8 | Q176: M39 | R176: 31 | S176: 221.4 | T176: 5 | U176: 141.3 | V176: 185.7 | W176: 203.2 | X176: 76.2 | Y176: - | AA176: ='Lapjoint fl.'!$C$45 ->  | AB176: 51.5 | AE176: -
B177: LJ 1500# ANSI B16.5 Size 6" | C177: LJ | D177: 1500# | E177: ANSI B16.5 | F177: 6" | G177: 150 | H177: SS | I177: 393.7 | J177: 119.1 | K177: 82.6 | L177: 171.5 | M177: 228.6 | N177: 317.5 | O177: 38.1 | P177: 12 | Q177: M36 | R177: 29 | S177: 237.2 | T177: 6 | U177: 168.28 | V177: 215.9 | W177: 203.2 | X177: 88.9 | Y177: - | AA177: ='Lapjoint fl.'!$C$45 ->  | AB177: 62 | AE177: -
B178: LJ 1500# ANSI B16.5 Size 8" | C178: LJ | D178: 1500# | E178: ANSI B16.5 | F178: 8" | G178: 200 | H178: SS | I178: 482.6 | J178: 142.7 | K178: 91.9 | L178: 222.3 | M178: 292.1 | N178: 393.7 | O178: 44.4 | P178: 12 | Q178: M42 | R178: 34 | S178: 265.8 | T178: 6 | U178: 219.08 | V178: 269.7 | W178: 203.2 | X178: 101.6 | Y178: - | AA178: ='Lapjoint fl.'!$C$45 ->  | AB178: 105 | AE178: -
B179: LJ 1500# ANSI B16.5 Size 10" | C179: LJ | D179: 1500# | E179: ANSI B16.5 | F179: 10" | G179: 250 | H179: SS | I179: 584.2 | J179: 177.8 | K179: 108 | L179: 277.4 | M179: 368.3 | N179: 485.6 | O179: 50.8 | P179: 12 | Q179: M48 | R179: 38 | S179: 306 | T179: 6 | U179: 273.05 | V179: 323.9 | W179: 254 | X179: 127 | Y179: - | AA179: ='Lapjoint fl.'!$C$45 ->  | AB179: 179 | AE179: -
B180: LJ 1500# ANSI B16.5 Size 12" | C180: LJ | D180: 1500# | E180: ANSI B16.5 | F180: 12" | G180: 300 | H180: SS | I180: 673.1 | J180: 218.9 | K180: 124 | L180: 328.2 | M180: 450.8 | N180: 571.5 | O180: 53.8 | P180: 16 | Q180: M52 | R180: 42 | S180: 346 | T180: 6 | U180: 323.85 | V180: 381 | W180: 254 | X180: 152.4 | Y180: - | AA180: ='Lapjoint fl.'!$C$45 ->  | AB180: 269 | AE180: -
B181: LJ 1500# ANSI B16.5 Size 14" | C181: LJ | D181: 1500# | E181: ANSI B16.5 | F181: 14" | G181: 350 | H181: SS | I181: 749.3 | J181: 241.3 | K181: 133.4 | L181: 360.2 | M181: 495.3 | N181: 635 | O181: 60.4 | P181: 16 | Q181: M56 | R181: 45 | S181: 371.8 | T181: 7 | U181: 355.6 | V181: 412.8 | W181: 304.8 | X181: 152.4 | Y181: - | AA181: ='Lapjoint fl.'!$C$45 ->  | AB181: 365 | AE181: -
B182: LJ 1500# ANSI B16.5 Size 16" | C182: LJ | D182: 1500# | E182: ANSI B16.5 | F182: 16" | G182: 400 | H182: SS | I182: 825.5 | J182: 260.4 | K182: 146.1 | L182: 411.2 | M182: 552.4 | N182: 704.8 | O182: 66.5 | P182: 16 | Q182: M60 | R182: 48 | S182: 403.2 | T182: 7 | U182: 406.4 | V182: 469.9 | W182: 304.8 | X182: 152.4 | Y182: - | AA182: ='Lapjoint fl.'!$C$45 ->  | AB182: 459 | AE182: -
B183: LJ 1500# ANSI B16.5 Size 18" | C183: LJ | D183: 1500# | E183: ANSI B16.5 | F183: 18" | G183: 450 | H183: SS | I183: 914.4 | J183: 276.4 | K183: 162.1 | L183: 462.3 | M183: 596.9 | N183: 774.7 | O183: 73.1 | P183: 16 | Q183: M68 | R183: 54 | S183: 447.2 | T183: 7 | U183: 457.2 | V183: 533.4 | W183: 304.8 | X183: 152.4 | Y183: - | AA183: ='Lapjoint fl.'!$C$45 ->  | AB183: 598 | AE183: -
B184: LJ 1500# ANSI B16.5 Size 20" | C184: LJ | D184: 1500# | E184: ANSI B16.5 | F184: 20" | G184: 500 | H184: SS | I184: 984.2 | J184: 292.1 | K184: 177.8 | L184: 514.4 | M184: 641.3 | N184: 831.8 | O184: 79.2 | P184: 16 | Q184: M76 | R184: 61 | S184: 492.6 | T184: 7 | U184: 508 | V184: 584.2 | W184: 304.8 | X184: 152.4 | Y184: - | AA184: ='Lapjoint fl.'!$C$45 ->  | AB184: 712 | AE184: -
B185: LJ 1500# ANSI B16.5 Size 24" | C185: LJ | D185: 1500# | E185: ANSI B16.5 | F185: 24" | G185: 600 | H185: SS | I185: 1168.4 | J185: 330.2 | K185: 203.2 | L185: 616 | M185: 762 | N185: 990.6 | O185: 91.9 | P185: 16 | Q185: M80 | R185: 64 | S185: 549.4 | T185: 7 | U185: 609.6 | V185: 692.2 | W185: 304.8 | X185: 152.4 | Y185: - | AA185: ='Lapjoint fl.'!$C$45 ->  | AB185: 1090 | AE185: -
B186: LJ 2500# ANSI B16.5 Size 1/2" | C186: LJ | D186: 2500# | E186: ANSI B16.5 | F186: 1/2" | G186: 15 | H186: SS | I186: 133.4 | J186: 39.6 | K186: 30.2 | L186: 22.9 | M186: 42.9 | N186: 88.9 | O186: 22.4 | P186: 4 | Q186: M20 | R186: 16 | S186: 103.4 | T186: 3 | U186: 21.34 | V186: 35.05 | W186: 76.2 | X186: 50.8 | Y186: - | AA186: ='Lapjoint fl.'!$C$45 ->  | AB186: 2.92 | AE186: -
B187: LJ 2500# ANSI B16.5 Size 3/4" | C187: LJ | D187: 2500# | E187: ANSI B16.5 | F187: 3/4" | G187: 20 | H187: SS | I187: 139.7 | J187: 42.9 | K187: 31.8 | L187: 28.2 | M187: 50.8 | N187: 95.3 | O187: 22.4 | P187: 4 | Q187: M20 | R187: 16 | S187: 106.6 | T187: 3 | U187: 26.67 | V187: 42.9 | W187: 76.2 | X187: 50.8 | Y187: - | AA187: ='Lapjoint fl.'!$C$45 ->  | AB187: 3.4 | AE187: -
B188: LJ 2500# ANSI B16.5 Size 1" | C188: LJ | D188: 2500# | E188: ANSI B16.5 | F188: 1" | G188: 25 | H188: SS | I188: 158.8 | J188: 47.8 | K188: 35.1 | L188: 35.1 | M188: 57.2 | N188: 108 | O188: 25.4 | P188: 4 | Q188: M24 | R188: 19 | S188: 119.2 | T188: 3 | U188: 33.4 | V188: 50.8 | W188: 101.6 | X188: 50.8 | Y188: - | AA188: ='Lapjoint fl.'!$C$45 ->  | AB188: 4.77 | AE188: -
B189: LJ 2500# ANSI B16.5 Size 1¼" | C189: LJ | D189: 2500# | E189: ANSI B16.5 | F189: 1¼" | G189: 32 | H189: SS | I189: 184.2 | J189: 52.3 | K189: 38.1 | L189: 43.7 | M189: 73.2 | N189: 130 | O189: 28.4 | P189: 4 | Q189: M27 | R189: 22 | S189: 131.2 | T189: 3 | U189: 42.16 | V189: 63.5 | W189: 101.6 | X189: 50.8 | Y189: - | AA189: ='Lapjoint fl.'!$C$45 ->  | AB189: 7.08 | AE189: -
B190: LJ 2500# ANSI B16.5 Size 1½" | C190: LJ | D190: 2500# | E190: ANSI B16.5 | F190: 1½" | G190: 40 | H190: SS | I190: 203.2 | J190: 60.5 | K190: 44.5 | L190: 50 | M190: 79.2 | N190: 146.1 | O190: 31.8 | P190: 4 | Q190: M30 | R190: 24 | S190: 148 | T190: 3 | U190: 48.26 | V190: 73.15 | W190: 101.6 | X190: 50.8 | Y190: - | AA190: ='Lapjoint fl.'!$C$45 ->  | AB190: 9.93 | AE190: -
B191: LJ 2500# ANSI B16.5 Size 2" | C191: LJ | D191: 2500# | E191: ANSI B16.5 | F191: 2" | G191: 50 | H191: SS | I191: 235 | J191: 69.9 | K191: 50.8 | L191: 62.5 | M191: 95.3 | N191: 171.5 | O191: 28.4 | P191: 8 | Q191: M27 | R191: 22 | S191: 157.6 | T191: 4 | U191: 60.33 | V191: 91.95 | W191: 152.4 | X191: 63.5 | Y191: - | AA191: ='Lapjoint fl.'!$C$45 ->  | AB191: 14.7 | AE191: -
B192: LJ 2500# ANSI B16.5 Size 2½" | C192: LJ | D192: 2500# | E192: ANSI B16.5 | F192: 2½" | G192: 65 | H192: SS | I192: 266.7 | J192: 79.2 | K192: 57.2 | L192: 75.4 | M192: 114.3 | N192: 196.9 | O192: 31.8 | P192: 8 | Q192: M30 | R192: 24 | S192: 174.4 | T192: 4 | U192: 73.03 | V192: 104.65 | W192: 152.4 | X192: 63.5 | Y192: - | AA192: ='Lapjoint fl.'!$C$45 ->  | AB192: 21.3 | AE192: -
B193: LJ 2500# ANSI B16.5 Size 3" | C193: LJ | D193: 2500# | E193: ANSI B16.5 | F193: 3" | G193: 80 | H193: SS | I193: 304.8 | J193: 91.9 | K193: 66.5 | L193: 91.4 | M193: 133.4 | N193: 228.6 | O193: 35.1 | P193: 8 | Q193: M33 | R193: 26 | S193: 197 | T193: 4 | U193: 88.9 | V193: 127 | W193: 152.4 | X193: 63.5 | Y193: - | AA193: ='Lapjoint fl.'!$C$45 ->  | AB193: 32.3 | AE193: -
B194: LJ 2500# ANSI B16.5 Size 4" | C194: LJ | D194: 2500# | E194: ANSI B16.5 | F194: 4" | G194: 100 | H194: SS | I194: 355.6 | J194: 108 | K194: 76.2 | L194: 116.8 | M194: 165.1 | N194: 273.1 | O194: 41.1 | P194: 8 | Q194: M39 | R194: 31 | S194: 227.4 | T194: 5 | U194: 114.3 | V194: 157.2 | W194: 152.4 | X194: 76.2 | Y194: - | AA194: ='Lapjoint fl.'!$C$45 ->  | AB194: 52.5 | AE194: -
